Workbook

Sheet Instructions
C2: MetaboDrift
C3: Metabolomics batch combination and drift correction/normalization utility for MS Excel
C6: Instructions for use of MetaboDrift:
C8: 1) Format raw data (metabolite peak areas or peak heights) so that metabolite names appear in columns and sample names appear in rows.
C10: 2) Paste metabolite peak area/height, metabolite names and sample names into the provided ranges in the worksheet labeled "RAW". Add m/z and RT data if desired
C12: 3) OR, as an alternative to steps 1-2, Use "Import XCMS diffreport" to import data generated from a standard XCMS diffreport file
C14: 4) Fill in required data in the first three columns in the "RAW" worksheet (run number, batch number and QC) as follows:
D16: a) Run number: an integer value indicating the order in which samples were run within a batch. Numbers can either be re-used between batches
D17: (e.g batch 1 runs 1-27; batch 2 runs 1-34, etc.) or can be unique across all samples in the data set (e.g. batch 1 runs 1-27; batch 2 runs 28-62).
D19: b) Batch number: integer value identifying which samples were run within each analysis batch
D21: c) QC: use an "X" to indicate runs of the QC sample. Leave blank for other samples. QC sample data will be used to drift-correct and normalize batches.
D23: d) "Group" column is optional; it is used when exporting data for Metaboanalyst, and can be used as a user reference column to organize samples into groups
C25: 5) Select the "Sort raw data" button to sort QC samples above biological samples, and to order samples by run number
C27: 6) If internal standard normalization is desired, mark any internal standards compounds with an "X" in the indicated row. Add m/z and RT data if desired.
C29: 7) Select the "Update plots, RSDs & ISTDs" button to update ranges for the peak intensity profiles and % RSD values
C31: 8) Select any desired drift correction or normalization methods. For guidance selecting/comparing methods, see flowchart below. Processing may take several minutes.
D33: For LOESS drift correction, user will be prompted for an α value, with a valid range of 0.1-1. Lower α values cause tighter fitting, but are prone to "overfitting"
D34: random noise in the QC data. Higher values cause looser fitting but may not sufficiently correct for complex patterns of drift. Often the default value of 0.5
D35: works acceptably, but can be optimized as needed. For batches with few QC samples, changes in alpha may not alter the curve fit due to
D36: inherent limitations of LOESS in fitting a small number of data points; in these cases, a default minimal level of smoothing will be applied.
C38: 9) Examine drift-corrected/normalized data. If suitable, extract corrected data for statistics or visualization. Use "Export for Metaboanalyst" feature if desired
C39: NOTE: | D39: Drift correction and normalization are computationally intensive for large datasets.
D40: Depending on processor speed, execution may require several minutes to complete.
C43: Current software limitations
C44: Maximum # of metabolites (or spectral features): 16370
C45: Maximum # of samples: 16370
C46: Maximum # of batches: 256
C48: Manuscript/author information:
C49: Evaluation of intensity drift correction strategies using MetaboDrift, a normalization tool for multi-batch metabolomics data
C50: Chanisa Thonusin, Heidi B. IglayReger, Tanu Soni, Amy E. Rothberg, Charles F. Burant and Charles R. Evans*
C51: *to whom correspondence should be addressed
C52: email: chevans@umich.edu

Sheet RAW
A1: MetaboDrift: RAW data | F1: User input required | G1: User input optional | H1: Non-alterable
E3: =E4 -> 0
A5: Average QC % RSD | C5: =AVERAGE(IF(ISNUMBER(F5:XFD5),F5:XFD5)) -> 14.7% | E5: QC sample % RSD | F5: =_xlfn.STDEV.P(IF(ISNUMBER(OFFSET(F11,0,0,$C$7)),OFFSET(F11,0,0,$C$7)))/AVERAGE(IF(ISNUMBER(OFFSET(F11,0,0,$C$7)),OFFSET(F11,0,0,$C$7))) -> 3.8% | G5: =_xlfn.STDEV.P(IF(ISNUMBER(OFFSET(G11,0,0,$C$7)),OFFSET(G11,0,0,$C$7)))/AVERAGE(IF(ISNUMBER(OFFSET(G11,0,0,$C$7)),OFFSET(G11,0,0,$C$7))) -> 5.3% | H5: =_xlfn.STDEV.P(IF(ISNUMBER(OFFSET(H11,0,0,$C$7)),OFFSET(H11,0,0,$C$7)))/AVERAGE(IF(ISNUMBER(OFFSET(H11,0,0,$C$7)),OFFSET(H11,0,0,$C$7))) -> 6.5% | I5: =_xlfn.STDEV.P(IF(ISNUMBER(OFFSET(I11,0,0,$C$7)),OFFSET(I11,0,0,$C$7)))/AVERAGE(IF(ISNUMBER(OFFSET(I11,0,0,$C$7)),OFFSET(I11,0,0,$C$7))) -> 6.7% | J5: =_xlfn.STDEV.P(IF(ISNUMBER(OFFSET(J11,0,0,$C$7)),OFFSET(J11,0,0,$C$7)))/AVERAGE(IF(ISNUMBER(OFFSET(J11,0,0,$C$7)),OFFSET(J11,0,0,$C$7))) -> 6.2% | K5: =_xlfn.STDEV.P(IF(ISNUMBER(OFFSET(K11,0,0,$C$7)),OFFSET(K11,0,0,$C$7)))/AVERAGE(IF(ISNUMBER(OFFSET(K11,0,0,$C$7)),OFFSET(K11,0,0,$C$7))) -> 10.6% | L5: =_xlfn.STDEV.P(IF(ISNUMBER(OFFSET(L11,0,0,$C$7)),OFFSET(L11,0,0,$C$7)))/AVERAGE(IF(ISNUMBER(OFFSET(L11,0,0,$C$7)),OFFSET(L11,0,0,$C$7))) -> 5.9% | M5: =_xlfn.STDEV.P(IF(ISNUMBER(OFFSET(M11,0,0,$C$7)),OFFSET(M11,0,0,$C$7)))/AVERAGE(IF(ISNUMBER(OFFSET(M11,0,0,$C$7)),OFFSET(M11,0,0,$C$7))) -> 9.1% | N5: =_xlfn.STDEV.P(IF(ISNUMBER(OFFSET(N11,0,0,$C$7)),OFFSET(N11,0,0,$C$7)))/AVERAGE(IF(ISNUMBER(OFFSET(N11,0,0,$C$7)),OFFSET(N11,0,0,$C$7))) -> 8.5% | O5: =_xlfn.STDEV.P(IF(ISNUMBER(OFFSET(O11,0,0,$C$7)),OFFSET(O11,0,0,$C$7)))/AVERAGE(IF(ISNUMBER(OFFSET(O11,0,0,$C$7)),OFFSET(O11,0,0,$C$7))) -> 5.6% | P5: =_xlfn.STDEV.P(IF(ISNUMBER(OFFSET(P11,0,0,$C$7)),OFFSET(P11,0,0,$C$7)))/AVERAGE(IF(ISNUMBER(OFFSET(P11,0,0,$C$7)),OFFSET(P11,0,0,$C$7))) -> 5.5% | Q5: =_xlfn.STDEV.P(IF(ISNUMBER(OFFSET(Q11,0,0,$C$7)),OFFSET(Q11,0,0,$C$7)))/AVERAGE(IF(ISNUMBER(OFFSET(Q11,0,0,$C$7)),OFFSET(Q11,0,0,$C$7))) -> 7.4% | R5: =_xlfn.STDEV.P(IF(ISNUMBER(OFFSET(R11,0,0,$C$7)),OFFSET(R11,0,0,$C$7)))/AVERAGE(IF(ISNUMBER(OFFSET(R11,0,0,$C$7)),OFFSET(R11,0,0,$C$7))) -> 7.9% | S5: =_xlfn.STDEV.P(IF(ISNUMBER(OFFSET(S11,0,0,$C$7)),OFFSET(S11,0,0,$C$7)))/AVERAGE(IF(ISNUMBER(OFFSET(S11,0,0,$C$7)),OFFSET(S11,0,0,$C$7))) -> 7.4% | T5: =_xlfn.STDEV.P(IF(ISNUMBER(OFFSET(T11,0,0,$C$7)),OFFSET(T11,0,0,$C$7)))/AVERAGE(IF(ISNUMBER(OFFSET(T11,0,0,$C$7)),OFFSET(T11,0,0,$C$7))) -> 9.7% | U5: =_xlfn.STDEV.P(IF(ISNUMBER(OFFSET(U11,0,0,$C$7)),OFFSET(U11,0,0,$C$7)))/AVERAGE(IF(ISNUMBER(OFFSET(U11,0,0,$C$7)),OFFSET(U11,0,0,$C$7))) -> 7.2% | V5: =_xlfn.STDEV.P(IF(ISNUMBER(OFFSET(V11,0,0,$C$7)),OFFSET(V11,0,0,$C$7)))/AVERAGE(IF(ISNUMBER(OFFSET(V11,0,0,$C$7)),OFFSET(V11,0,0,$C$7))) -> 43.6% | W5: =_xlfn.STDEV.P(IF(ISNUMBER(OFFSET(W11,0,0,$C$7)),OFFSET(W11,0,0,$C$7)))/AVERAGE(IF(ISNUMBER(OFFSET(W11,0,0,$C$7)),OFFSET(W11,0,0,$C$7))) -> 6.0% | X5: =_xlfn.STDEV.P(IF(ISNUMBER(OFFSET(X11,0,0,$C$7)),OFFSET(X11,0,0,$C$7)))/AVERAGE(IF(ISNUMBER(OFFSET(X11,0,0,$C$7)),OFFSET(X11,0,0,$C$7))) -> 6.1% | Y5: =_xlfn.STDEV.P(IF(ISNUMBER(OFFSET(Y11,0,0,$C$7)),OFFSET(Y11,0,0,$C$7)))/AVERAGE(IF(ISNUMBER(OFFSET(Y11,0,0,$C$7)),OFFSET(Y11,0,0,$C$7))) -> 47.7% | Z5: =_xlfn.STDEV.P(IF(ISNUMBER(OFFSET(Z11,0,0,$C$7)),OFFSET(Z11,0,0,$C$7)))/AVERAGE(IF(ISNUMBER(OFFSET(Z11,0,0,$C$7)),OFFSET(Z11,0,0,$C$7))) -> 49.4% | AA5: =_xlfn.STDEV.P(IF(ISNUMBER(OFFSET(AA11,0,0,$C$7)),OFFSET(AA11,0,0,$C$7)))/AVERAGE(IF(ISNUMBER(OFFSET(AA11,0,0,$C$7)),OFFSET(AA11,0,0,$C$7))) -> 18.1% | AB5: =_xlfn.STDEV.P(IF(ISNUMBER(OFFSET(AB11,0,0,$C$7)),OFFSET(AB11,0,0,$C$7)))/AVERAGE(IF(ISNUMBER(OFFSET(AB11,0,0,$C$7)),OFFSET(AB11,0,0,$C$7))) -> 14.6% | AC5: =_xlfn.STDEV.P(IF(ISNUMBER(OFFSET(AC11,0,0,$C$7)),OFFSET(AC11,0,0,$C$7)))/AVERAGE(IF(ISNUMBER(OFFSET(AC11,0,0,$C$7)),OFFSET(AC11,0,0,$C$7))) -> 9.5% | AD5: =_xlfn.STDEV.P(IF(ISNUMBER(OFFSET(AD11,0,0,$C$7)),OFFSET(AD11,0,0,$C$7)))/AVERAGE(IF(ISNUMBER(OFFSET(AD11,0,0,$C$7)),OFFSET(AD11,0,0,$C$7))) -> 8.6% | AE5: =_xlfn.STDEV.P(IF(ISNUMBER(OFFSET(AE11,0,0,$C$7)),OFFSET(AE11,0,0,$C$7)))/AVERAGE(IF(ISNUMBER(OFFSET(AE11,0,0,$C$7)),OFFSET(AE11,0,0,$C$7))) -> 4.2% | AF5: =_xlfn.STDEV.P(IF(ISNUMBER(OFFSET(AF11,0,0,$C$7)),OFFSET(AF11,0,0,$C$7)))/AVERAGE(IF(ISNUMBER(OFFSET(AF11,0,0,$C$7)),OFFSET(AF11,0,0,$C$7))) -> 4.0% | AG5: =_xlfn.STDEV.P(IF(ISNUMBER(OFFSET(AG11,0,0,$C$7)),OFFSET(AG11,0,0,$C$7)))/AVERAGE(IF(ISNUMBER(OFFSET(AG11,0,0,$C$7)),OFFSET(AG11,0,0,$C$7))) -> 3.9% | AH5: =_xlfn.STDEV.P(IF(ISNUMBER(OFFSET(AH11,0,0,$C$7)),OFFSET(AH11,0,0,$C$7)))/AVERAGE(IF(ISNUMBER(OFFSET(AH11,0,0,$C$7)),OFFSET(AH11,0,0,$C$7))) -> 5.0% | AI5: =_xlfn.STDEV.P(IF(ISNUMBER(OFFSET(AI11,0,0,$C$7)),OFFSET(AI11,0,0,$C$7)))/AVERAGE(IF(ISNUMBER(OFFSET(AI11,0,0,$C$7)),OFFSET(AI11,0,0,$C$7))) -> 5.9% | AJ5: =_xlfn.STDEV.P(IF(ISNUMBER(OFFSET(AJ11,0,0,$C$7)),OFFSET(AJ11,0,0,$C$7)))/AVERAGE(IF(ISNUMBER(OFFSET(AJ11,0,0,$C$7)),OFFSET(AJ11,0,0,$C$7))) -> 6.1% | AK5: =_xlfn.STDEV.P(IF(ISNUMBER(OFFSET(AK11,0,0,$C$7)),OFFSET(AK11,0,0,$C$7)))/AVERAGE(IF(ISNUMBER(OFFSET(AK11,0,0,$C$7)),OFFSET(AK11,0,0,$C$7))) -> 9.1% | AL5: =_xlfn.STDEV.P(IF(ISNUMBER(OFFSET(AL11,0,0,$C$7)),OFFSET(AL11,0,0,$C$7)))/AVERAGE(IF(ISNUMBER(OFFSET(AL11,0,0,$C$7)),OFFSET(AL11,0,0,$C$7))) -> 10.1% | AM5: =_xlfn.STDEV.P(IF(ISNUMBER(OFFSET(AM11,0,0,$C$7)),OFFSET(AM11,0,0,$C$7)))/AVERAGE(IF(ISNUMBER(OFFSET(AM11,0,0,$C$7)),OFFSET(AM11,0,0,$C$7))) -> 4.7% | AN5: =_xlfn.STDEV.P(IF(ISNUMBER(OFFSET(AN11,0,0,$C$7)),OFFSET(AN11,0,0,$C$7)))/AVERAGE(IF(ISNUMBER(OFFSET(AN11,0,0,$C$7)),OFFSET(AN11,0,0,$C$7))) -> 8.2% | AO5: =_xlfn.STDEV.P(IF(ISNUMBER(OFFSET(AO11,0,0,$C$7)),OFFSET(AO11,0,0,$C$7)))/AVERAGE(IF(ISNUMBER(OFFSET(AO11,0,0,$C$7)),OFFSET(AO11,0,0,$C$7))) -> 4.1% | AP5: =_xlfn.STDEV.P(IF(ISNUMBER(OFFSET(AP11,0,0,$C$7)),OFFSET(AP11,0,0,$C$7)))/AVERAGE(IF(ISNUMBER(OFFSET(AP11,0,0,$C$7)),OFFSET(AP11,0,0,$C$7))) -> 10.2% | AQ5: =_xlfn.STDEV.P(IF(ISNUMBER(OFFSET(AQ11,0,0,$C$7)),OFFSET(AQ11,0,0,$C$7)))/AVERAGE(IF(ISNUMBER(OFFSET(AQ11,0,0,$C$7)),OFFSET(AQ11,0,0,$C$7))) -> 11.8% | AR5: =_xlfn.STDEV.P(IF(ISNUMBER(OFFSET(AR11,0,0,$C$7)),OFFSET(AR11,0,0,$C$7)))/AVERAGE(IF(ISNUMBER(OFFSET(AR11,0,0,$C$7)),OFFSET(AR11,0,0,$C$7))) -> 10.0% | AS5: =_xlfn.STDEV.P(IF(ISNUMBER(OFFSET(AS11,0,0,$C$7)),OFFSET(AS11,0,0,$C$7)))/AVERAGE(IF(ISNUMBER(OFFSET(AS11,0,0,$C$7)),OFFSET(AS11,0,0,$C$7))) -> 6.0% | AT5: =_xlfn.STDEV.P(IF(ISNUMBER(OFFSET(AT11,0,0,$C$7)),OFFSET(AT11,0,0,$C$7)))/AVERAGE(IF(ISNUMBER(OFFSET(AT11,0,0,$C$7)),OFFSET(AT11,0,0,$C$7))) -> 7.8% | AU5: =_xlfn.STDEV.P(IF(ISNUMBER(OFFSET(AU11,0,0,$C$7)),OFFSET(AU11,0,0,$C$7)))/AVERAGE(IF(ISNUMBER(OFFSET(AU11,0,0,$C$7)),OFFSET(AU11,0,0,$C$7))) -> 7.0% | AV5: =_xlfn.STDEV.P(IF(ISNUMBER(OFFSET(AV11,0,0,$C$7)),OFFSET(AV11,0,0,$C$7)))/AVERAGE(IF(ISNUMBER(OFFSET(AV11,0,0,$C$7)),OFFSET(AV11,0,0,$C$7))) -> 8.4% | AW5: =_xlfn.STDEV.P(IF(ISNUMBER(OFFSET(AW11,0,0,$C$7)),OFFSET(AW11,0,0,$C$7)))/AVERAGE(IF(ISNUMBER(OFFSET(AW11,0,0,$C$7)),OFFSET(AW11,0,0,$C$7))) -> 7.5% | AX5: =_xlfn.STDEV.P(IF(ISNUMBER(OFFSET(AX11,0,0,$C$7)),OFFSET(AX11,0,0,$C$7)))/AVERAGE(IF(ISNUMBER(OFFSET(AX11,0,0,$C$7)),OFFSET(AX11,0,0,$C$7))) -> 8.3% | AY5: =_xlfn.STDEV.P(IF(ISNUMBER(OFFSET(AY11,0,0,$C$7)),OFFSET(AY11,0,0,$C$7)))/AVERAGE(IF(ISNUMBER(OFFSET(AY11,0,0,$C$7)),OFFSET(AY11,0,0,$C$7))) -> 6.2% | AZ5: =_xlfn.STDEV.P(IF(ISNUMBER(OFFSET(AZ11,0,0,$C$7)),OFFSET(AZ11,0,0,$C$7)))/AVERAGE(IF(ISNUMBER(OFFSET(AZ11,0,0,$C$7)),OFFSET(AZ11,0,0,$C$7))) -> 5.8% | BA5: =_xlfn.STDEV.P(IF(ISNUMBER(OFFSET(BA11,0,0,$C$7)),OFFSET(BA11,0,0,$C$7)))/AVERAGE(IF(ISNUMBER(OFFSET(BA11,0,0,$C$7)),OFFSET(BA11,0,0,$C$7))) -> 5.7% | BB5: =_xlfn.STDEV.P(IF(ISNUMBER(OFFSET(BB11,0,0,$C$7)),OFFSET(BB11,0,0,$C$7)))/AVERAGE(IF(ISNUMBER(OFFSET(BB11,0,0,$C$7)),OFFSET(BB11,0,0,$C$7))) -> 7.8% | BC5: =_xlfn.STDEV.P(IF(ISNUMBER(OFFSET(BC11,0,0,$C$7)),OFFSET(BC11,0,0,$C$7)))/AVERAGE(IF(ISNUMBER(OFFSET(BC11,0,0,$C$7)),OFFSET(BC11,0,0,$C$7))) -> 5.5% | BD5: =_xlfn.STDEV.P(IF(ISNUMBER(OFFSET(BD11,0,0,$C$7)),OFFSET(BD11,0,0,$C$7)))/AVERAGE(IF(ISNUMBER(OFFSET(BD11,0,0,$C$7)),OFFSET(BD11,0,0,$C$7))) -> 5.1% | BE5: =_xlfn.STDEV.P(IF(ISNUMBER(OFFSET(BE11,0,0,$C$7)),OFFSET(BE11,0,0,$C$7)))/AVERAGE(IF(ISNUMBER(OFFSET(BE11,0,0,$C$7)),OFFSET(BE11,0,0,$C$7))) -> 6.6% | BF5: =_xlfn.STDEV.P(IF(ISNUMBER(OFFSET(BF11,0,0,$C$7)),OFFSET(BF11,0,0,$C$7)))/AVERAGE(IF(ISNUMBER(OFFSET(BF11,0,0,$C$7)),OFFSET(BF11,0,0,$C$7))) -> 5.7% | BG5: =_xlfn.STDEV.P(IF(ISNUMBER(OFFSET(BG11,0,0,$C$7)),OFFSET(BG11,0,0,$C$7)))/AVERAGE(IF(ISNUMBER(OFFSET(BG11,0,0,$C$7)),OFFSET(BG11,0,0,$C$7))) -> 5.2% | BH5: =_xlfn.STDEV.P(IF(ISNUMBER(OFFSET(BH11,0,0,$C$7)),OFFSET(BH11,0,0,$C$7)))/AVERAGE(IF(ISNUMBER(OFFSET(BH11,0,0,$C$7)),OFFSET(BH11,0,0,$C$7))) -> 6.4% | BI5: =_xlfn.STDEV.P(IF(ISNUMBER(OFFSET(BI11,0,0,$C$7)),OFFSET(BI11,0,0,$C$7)))/AVERAGE(IF(ISNUMBER(OFFSET(BI11,0,0,$C$7)),OFFSET(BI11,0,0,$C$7))) -> 75.0% | BJ5: =_xlfn.STDEV.P(IF(ISNUMBER(OFFSET(BJ11,0,0,$C$7)),OFFSET(BJ11,0,0,$C$7)))/AVERAGE(IF(ISNUMBER(OFFSET(BJ11,0,0,$C$7)),OFFSET(BJ11,0,0,$C$7))) -> 11.3% | BK5: =_xlfn.STDEV.P(IF(ISNUMBER(OFFSET(BK11,0,0,$C$7)),OFFSET(BK11,0,0,$C$7)))/AVERAGE(IF(ISNUMBER(OFFSET(BK11,0,0,$C$7)),OFFSET(BK11,0,0,$C$7))) -> 4.2% | BL5: =_xlfn.STDEV.P(IF(ISNUMBER(OFFSET(BL11,0,0,$C$7)),OFFSET(BL11,0,0,$C$7)))/AVERAGE(IF(ISNUMBER(OFFSET(BL11,0,0,$C$7)),OFFSET(BL11,0,0,$C$7))) -> 6.5% | BM5: =_xlfn.STDEV.P(IF(ISNUMBER(OFFSET(BM11,0,0,$C$7)),OFFSET(BM11,0,0,$C$7)))/AVERAGE(IF(ISNUMBER(OFFSET(BM11,0,0,$C$7)),OFFSET(BM11,0,0,$C$7))) -> 5.8% | BN5: =_xlfn.STDEV.P(IF(ISNUMBER(OFFSET(BN11,0,0,$C$7)),OFFSET(BN11,0,0,$C$7)))/AVERAGE(IF(ISNUMBER(OFFSET(BN11,0,0,$C$7)),OFFSET(BN11,0,0,$C$7))) -> 4.7% | BO5: =_xlfn.STDEV.P(IF(ISNUMBER(OFFSET(BO11,0,0,$C$7)),OFFSET(BO11,0,0,$C$7)))/AVERAGE(IF(ISNUMBER(OFFSET(BO11,0,0,$C$7)),OFFSET(BO11,0,0,$C$7))) -> 5.3% | BP5: =_xlfn.STDEV.P(IF(ISNUMBER(OFFSET(BP11,0,0,$C$7)),OFFSET(BP11,0,0,$C$7)))/AVERAGE(IF(ISNUMBER(OFFSET(BP11,0,0,$C$7)),OFFSET(BP11,0,0,$C$7))) -> 6.5% | BQ5: =_xlfn.STDEV.P(IF(ISNUMBER(OFFSET(BQ11,0,0,$C$7)),OFFSET(BQ11,0,0,$C$7)))/AVERAGE(IF(ISNUMBER(OFFSET(BQ11,0,0,$C$7)),OFFSET(BQ11,0,0,$C$7))) -> 10.7% | BR5: =_xlfn.STDEV.P(IF(ISNUMBER(OFFSET(BR11,0,0,$C$7)),OFFSET(BR11,0,0,$C$7)))/AVERAGE(IF(ISNUMBER(OFFSET(BR11,0,0,$C$7)),OFFSET(BR11,0,0,$C$7))) -> 5.0% | BS5: =_xlfn.STDEV.P(IF(ISNUMBER(OFFSET(BS11,0,0,$C$7)),OFFSET(BS11,0,0,$C$7)))/AVERAGE(IF(ISNUMBER(OFFSET(BS11,0,0,$C$7)),OFFSET(BS11,0,0,$C$7))) -> 5.2% | BT5: =_xlfn.STDEV.P(IF(ISNUMBER(OFFSET(BT11,0,0,$C$7)),OFFSET(BT11,0,0,$C$7)))/AVERAGE(IF(ISNUMBER(OFFSET(BT11,0,0,$C$7)),OFFSET(BT11,0,0,$C$7))) -> 2.7% | BU5: =_xlfn.STDEV.P(IF(ISNUMBER(OFFSET(BU11,0,0,$C$7)),OFFSET(BU11,0,0,$C$7)))/AVERAGE(IF(ISNUMBER(OFFSET(BU11,0,0,$C$7)),OFFSET(BU11,0,0,$C$7))) -> 5.9% | BV5: =_xlfn.STDEV.P(IF(ISNUMBER(OFFSET(BV11,0,0,$C$7)),OFFSET(BV11,0,0,$C$7)))/AVERAGE(IF(ISNUMBER(OFFSET(BV11,0,0,$C$7)),OFFSET(BV11,0,0,$C$7))) -> 5.5% | BW5: =_xlfn.STDEV.P(IF(ISNUMBER(OFFSET(BW11,0,0,$C$7)),OFFSET(BW11,0,0,$C$7)))/AVERAGE(IF(ISNUMBER(OFFSET(BW11,0,0,$C$7)),OFFSET(BW11,0,0,$C$7))) -> 4.6% | BX5: =_xlfn.STDEV.P(IF(ISNUMBER(OFFSET(BX11,0,0,$C$7)),OFFSET(BX11,0,0,$C$7)))/AVERAGE(IF(ISNUMBER(OFFSET(BX11,0,0,$C$7)),OFFSET(BX11,0,0,$C$7))) -> 6.0% | BY5: =_xlfn.STDEV.P(IF(ISNUMBER(OFFSET(BY11,0,0,$C$7)),OFFSET(BY11,0,0,$C$7)))/AVERAGE(IF(ISNUMBER(OFFSET(BY11,0,0,$C$7)),OFFSET(BY11,0,0,$C$7))) -> 6.0% | BZ5: =_xlfn.STDEV.P(IF(ISNUMBER(OFFSET(BZ11,0,0,$C$7)),OFFSET(BZ11,0,0,$C$7)))/AVERAGE(IF(ISNUMBER(OFFSET(BZ11,0,0,$C$7)),OFFSET(BZ11,0,0,$C$7))) -> 5.6% | CA5: =_xlfn.STDEV.P(IF(ISNUMBER(OFFSET(CA11,0,0,$C$7)),OFFSET(CA11,0,0,$C$7)))/AVERAGE(IF(ISNUMBER(OFFSET(CA11,0,0,$C$7)),OFFSET(CA11,0,0,$C$7))) -> 6.3% | CB5: =_xlfn.STDEV.P(IF(ISNUMBER(OFFSET(CB11,0,0,$C$7)),OFFSET(CB11,0,0,$C$7)))/AVERAGE(IF(ISNUMBER(OFFSET(CB11,0,0,$C$7)),OFFSET(CB11,0,0,$C$7))) -> 3.6% | CC5: =_xlfn.STDEV.P(IF(ISNUMBER(OFFSET(CC11,0,0,$C$7)),OFFSET(CC11,0,0,$C$7)))/AVERAGE(IF(ISNUMBER(OFFSET(CC11,0,0,$C$7)),OFFSET(CC11,0,0,$C$7))) -> 18.7% | CD5: =_xlfn.STDEV.P(IF(ISNUMBER(OFFSET(CD11,0,0,$C$7)),OFFSET(CD11,0,0,$C$7)))/AVERAGE(IF(ISNUMBER(OFFSET(CD11,0,0,$C$7)),OFFSET(CD11,0,0,$C$7))) -> 6.7% | CE5: =_xlfn.STDEV.P(IF(ISNUMBER(OFFSET(CE11,0,0,$C$7)),OFFSET(CE11,0,0,$C$7)))/AVERAGE(IF(ISNUMBER(OFFSET(CE11,0,0,$C$7)),OFFSET(CE11,0,0,$C$7))) -> 4.6% | CF5: =_xlfn.STDEV.P(IF(ISNUMBER(OFFSET(CF11,0,0,$C$7)),OFFSET(CF11,0,0,$C$7)))/AVERAGE(IF(ISNUMBER(OFFSET(CF11,0,0,$C$7)),OFFSET(CF11,0,0,$C$7))) -> 3.4% | CG5: =_xlfn.STDEV.P(IF(ISNUMBER(OFFSET(CG11,0,0,$C$7)),OFFSET(CG11,0,0,$C$7)))/AVERAGE(IF(ISNUMBER(OFFSET(CG11,0,0,$C$7)),OFFSET(CG11,0,0,$C$7))) -> 12.8% | CH5: =_xlfn.STDEV.P(IF(ISNUMBER(OFFSET(CH11,0,0,$C$7)),OFFSET(CH11,0,0,$C$7)))/AVERAGE(IF(ISNUMBER(OFFSET(CH11,0,0,$C$7)),OFFSET(CH11,0,0,$C$7))) -> 6.7% | CI5: =_xlfn.STDEV.P(IF(ISNUMBER(OFFSET(CI11,0,0,$C$7)),OFFSET(CI11,0,0,$C$7)))/AVERAGE(IF(ISNUMBER(OFFSET(CI11,0,0,$C$7)),OFFSET(CI11,0,0,$C$7))) -> 7.7% | CJ5: =_xlfn.STDEV.P(IF(ISNUMBER(OFFSET(CJ11,0,0,$C$7)),OFFSET(CJ11,0,0,$C$7)))/AVERAGE(IF(ISNUMBER(OFFSET(CJ11,0,0,$C$7)),OFFSET(CJ11,0,0,$C$7))) -> 6.3% | CK5: =_xlfn.STDEV.P(IF(ISNUMBER(OFFSET(CK11,0,0,$C$7)),OFFSET(CK11,0,0,$C$7)))/AVERAGE(IF(ISNUMBER(OFFSET(CK11,0,0,$C$7)),OFFSET(CK11,0,0,$C$7))) -> 3.2% | CL5: =_xlfn.STDEV.P(IF(ISNUMBER(OFFSET(CL11,0,0,$C$7)),OFFSET(CL11,0,0,$C$7)))/AVERAGE(IF(ISNUMBER(OFFSET(CL11,0,0,$C$7)),OFFSET(CL11,0,0,$C$7))) -> 5.6% | CM5: =_xlfn.STDEV.P(IF(ISNUMBER(OFFSET(CM11,0,0,$C$7)),OFFSET(CM11,0,0,$C$7)))/AVERAGE(IF(ISNUMBER(OFFSET(CM11,0,0,$C$7)),OFFSET(CM11,0,0,$C$7))) -> 5.8% | CN5: =_xlfn.STDEV.P(IF(ISNUMBER(OFFSET(CN11,0,0,$C$7)),OFFSET(CN11,0,0,$C$7)))/AVERAGE(IF(ISNUMBER(OFFSET(CN11,0,0,$C$7)),OFFSET(CN11,0,0,$C$7))) -> 5.1% | CO5: =_xlfn.STDEV.P(IF(ISNUMBER(OFFSET(CO11,0,0,$C$7)),OFFSET(CO11,0,0,$C$7)))/AVERAGE(IF(ISNUMBER(OFFSET(CO11,0,0,$C$7)),OFFSET(CO11,0,0,$C$7))) -> 3.7% | CP5: =_xlfn.STDEV.P(IF(ISNUMBER(OFFSET(CP11,0,0,$C$7)),OFFSET(CP11,0,0,$C$7)))/AVERAGE(IF(ISNUMBER(OFFSET(CP11,0,0,$C$7)),OFFSET(CP11,0,0,$C$7))) -> 4.4% | CQ5: =_xlfn.STDEV.P(IF(ISNUMBER(OFFSET(CQ11,0,0,$C$7)),OFFSET(CQ11,0,0,$C$7)))/AVERAGE(IF(ISNUMBER(OFFSET(CQ11,0,0,$C$7)),OFFSET(CQ11,0,0,$C$7))) -> 4.8% | CR5: =_xlfn.STDEV.P(IF(ISNUMBER(OFFSET(CR11,0,0,$C$7)),OFFSET(CR11,0,0,$C$7)))/AVERAGE(IF(ISNUMBER(OFFSET(CR11,0,0,$C$7)),OFFSET(CR11,0,0,$C$7))) -> 5.4% | CS5: =_xlfn.STDEV.P(IF(ISNUMBER(OFFSET(CS11,0,0,$C$7)),OFFSET(CS11,0,0,$C$7)))/AVERAGE(IF(ISNUMBER(OFFSET(CS11,0,0,$C$7)),OFFSET(CS11,0,0,$C$7))) -> 14.1% | CT5: =_xlfn.STDEV.P(IF(ISNUMBER(OFFSET(CT11,0,0,$C$7)),OFFSET(CT11,0,0,$C$7)))/AVERAGE(IF(ISNUMBER(OFFSET(CT11,0,0,$C$7)),OFFSET(CT11,0,0,$C$7))) -> 21.5% | CU5: =_xlfn.STDEV.P(IF(ISNUMBER(OFFSET(CU11,0,0,$C$7)),OFFSET(CU11,0,0,$C$7)))/AVERAGE(IF(ISNUMBER(OFFSET(CU11,0,0,$C$7)),OFFSET(CU11,0,0,$C$7))) -> 7.3% | CV5: =_xlfn.STDEV.P(IF(ISNUMBER(OFFSET(CV11,0,0,$C$7)),OFFSET(CV11,0,0,$C$7)))/AVERAGE(IF(ISNUMBER(OFFSET(CV11,0,0,$C$7)),OFFSET(CV11,0,0,$C$7))) -> 6.3% | CW5: =_xlfn.STDEV.P(IF(ISNUMBER(OFFSET(CW11,0,0,$C$7)),OFFSET(CW11,0,0,$C$7)))/AVERAGE(IF(ISNUMBER(OFFSET(CW11,0,0,$C$7)),OFFSET(CW11,0,0,$C$7))) -> 6.5% | CX5: =_xlfn.STDEV.P(IF(ISNUMBER(OFFSET(CX11,0,0,$C$7)),OFFSET(CX11,0,0,$C$7)))/AVERAGE(IF(ISNUMBER(OFFSET(CX11,0,0,$C$7)),OFFSET(CX11,0,0,$C$7))) -> 4.1% | CY5: =_xlfn.STDEV.P(IF(ISNUMBER(OFFSET(CY11,0,0,$C$7)),OFFSET(CY11,0,0,$C$7)))/AVERAGE(IF(ISNUMBER(OFFSET(CY11,0,0,$C$7)),OFFSET(CY11,0,0,$C$7))) -> 6.3% | CZ5: =_xlfn.STDEV.P(IF(ISNUMBER(OFFSET(CZ11,0,0,$C$7)),OFFSET(CZ11,0,0,$C$7)))/AVERAGE(IF(ISNUMBER(OFFSET(CZ11,0,0,$C$7)),OFFSET(CZ11,0,0,$C$7))) -> 6.2% | DA5: =_xlfn.STDEV.P(IF(ISNUMBER(OFFSET(DA11,0,0,$C$7)),OFFSET(DA11,0,0,$C$7)))/AVERAGE(IF(ISNUMBER(OFFSET(DA11,0,0,$C$7)),OFFSET(DA11,0,0,$C$7))) -> 7.6% | DB5: =_xlfn.STDEV.P(IF(ISNUMBER(OFFSET(DB11,0,0,$C$7)),OFFSET(DB11,0,0,$C$7)))/AVERAGE(IF(ISNUMBER(OFFSET(DB11,0,0,$C$7)),OFFSET(DB11,0,0,$C$7))) -> 5.1% | DC5: =_xlfn.STDEV.P(IF(ISNUMBER(OFFSET(DC11,0,0,$C$7)),OFFSET(DC11,0,0,$C$7)))/AVERAGE(IF(ISNUMBER(OFFSET(DC11,0,0,$C$7)),OFFSET(DC11,0,0,$C$7))) -> 7.6% | DD5: =_xlfn.STDEV.P(IF(ISNUMBER(OFFSET(DD11,0,0,$C$7)),OFFSET(DD11,0,0,$C$7)))/AVERAGE(IF(ISNUMBER(OFFSET(DD11,0,0,$C$7)),OFFSET(DD11,0,0,$C$7))) -> 93.3% | DE5: =_xlfn.STDEV.P(IF(ISNUMBER(OFFSET(DE11,0,0,$C$7)),OFFSET(DE11,0,0,$C$7)))/AVERAGE(IF(ISNUMBER(OFFSET(DE11,0,0,$C$7)),OFFSET(DE11,0,0,$C$7))) -> 5.0% | DF5: =_xlfn.STDEV.P(IF(ISNUMBER(OFFSET(DF11,0,0,$C$7)),OFFSET(DF11,0,0,$C$7)))/AVERAGE(IF(ISNUMBER(OFFSET(DF11,0,0,$C$7)),OFFSET(DF11,0,0,$C$7))) -> 5.1% | DG5: =_xlfn.STDEV.P(IF(ISNUMBER(OFFSET(DG11,0,0,$C$7)),OFFSET(DG11,0,0,$C$7)))/AVERAGE(IF(ISNUMBER(OFFSET(DG11,0,0,$C$7)),OFFSET(DG11,0,0,$C$7))) -> 5.8% | DH5: =_xlfn.STDEV.P(IF(ISNUMBER(OFFSET(DH11,0,0,$C$7)),OFFSET(DH11,0,0,$C$7)))/AVERAGE(IF(ISNUMBER(OFFSET(DH11,0,0,$C$7)),OFFSET(DH11,0,0,$C$7))) -> 6.4% | DI5: =_xlfn.STDEV.P(IF(ISNUMBER(OFFSET(DI11,0,0,$C$7)),OFFSET(DI11,0,0,$C$7)))/AVERAGE(IF(ISNUMBER(OFFSET(DI11,0,0,$C$7)),OFFSET(DI11,0,0,$C$7))) -> 6.1% | DJ5: =_xlfn.STDEV.P(IF(ISNUMBER(OFFSET(DJ11,0,0,$C$7)),OFFSET(DJ11,0,0,$C$7)))/AVERAGE(IF(ISNUMBER(OFFSET(DJ11,0,0,$C$7)),OFFSET(DJ11,0,0,$C$7))) -> 6.6% | DK5: =_xlfn.STDEV.P(IF(ISNUMBER(OFFSET(DK11,0,0,$C$7)),OFFSET(DK11,0,0,$C$7)))/AVERAGE(IF(ISNUMBER(OFFSET(DK11,0,0,$C$7)),OFFSET(DK11,0,0,$C$7))) -> 4.6% | DL5: =_xlfn.STDEV.P(IF(ISNUMBER(OFFSET(DL11,0,0,$C$7)),OFFSET(DL11,0,0,$C$7)))/AVERAGE(IF(ISNUMBER(OFFSET(DL11,0,0,$C$7)),OFFSET(DL11,0,0,$C$7))) -> 22.7% | DM5: =_xlfn.STDEV.P(IF(ISNUMBER(OFFSET(DM11,0,0,$C$7)),OFFSET(DM11,0,0,$C$7)))/AVERAGE(IF(ISNUMBER(OFFSET(DM11,0,0,$C$7)),OFFSET(DM11,0,0,$C$7))) -> 5.8% | DN5: =_xlfn.STDEV.P(IF(ISNUMBER(OFFSET(DN11,0,0,$C$7)),OFFSET(DN11,0,0,$C$7)))/AVERAGE(IF(ISNUMBER(OFFSET(DN11,0,0,$C$7)),OFFSET(DN11,0,0,$C$7))) -> 6.2% | DO5: =_xlfn.STDEV.P(IF(ISNUMBER(OFFSET(DO11,0,0,$C$7)),OFFSET(DO11,0,0,$C$7)))/AVERAGE(IF(ISNUMBER(OFFSET(DO11,0,0,$C$7)),OFFSET(DO11,0,0,$C$7))) -> 4.8% | DP5: =_xlfn.STDEV.P(IF(ISNUMBER(OFFSET(DP11,0,0,$C$7)),OFFSET(DP11,0,0,$C$7)))/AVERAGE(IF(ISNUMBER(OFFSET(DP11,0,0,$C$7)),OFFSET(DP11,0,0,$C$7))) -> 5.4% | DQ5: =_xlfn.STDEV.P(IF(ISNUMBER(OFFSET(DQ11,0,0,$C$7)),OFFSET(DQ11,0,0,$C$7)))/AVERAGE(IF(ISNUMBER(OFFSET(DQ11,0,0,$C$7)),OFFSET(DQ11,0,0,$C$7))) -> 6.1% | DR5: =_xlfn.STDEV.P(IF(ISNUMBER(OFFSET(DR11,0,0,$C$7)),OFFSET(DR11,0,0,$C$7)))/AVERAGE(IF(ISNUMBER(OFFSET(DR11,0,0,$C$7)),OFFSET(DR11,0,0,$C$7))) -> 3.9% | DS5: =_xlfn.STDEV.P(IF(ISNUMBER(OFFSET(DS11,0,0,$C$7)),OFFSET(DS11,0,0,$C$7)))/AVERAGE(IF(ISNUMBER(OFFSET(DS11,0,0,$C$7)),OFFSET(DS11,0,0,$C$7))) -> 10.6% | DT5: =_xlfn.STDEV.P(IF(ISNUMBER(OFFSET(DT11,0,0,$C$7)),OFFSET(DT11,0,0,$C$7)))/AVERAGE(IF(ISNUMBER(OFFSET(DT11,0,0,$C$7)),OFFSET(DT11,0,0,$C$7))) -> 19.1% | DU5: =_xlfn.STDEV.P(IF(ISNUMBER(OFFSET(DU11,0,0,$C$7)),OFFSET(DU11,0,0,$C$7)))/AVERAGE(IF(ISNUMBER(OFFSET(DU11,0,0,$C$7)),OFFSET(DU11,0,0,$C$7))) -> 5.9% | DV5: =_xlfn.STDEV.P(IF(ISNUMBER(OFFSET(DV11,0,0,$C$7)),OFFSET(DV11,0,0,$C$7)))/AVERAGE(IF(ISNUMBER(OFFSET(DV11,0,0,$C$7)),OFFSET(DV11,0,0,$C$7))) -> 5.9% | DW5: =_xlfn.STDEV.P(IF(ISNUMBER(OFFSET(DW11,0,0,$C$7)),OFFSET(DW11,0,0,$C$7)))/AVERAGE(IF(ISNUMBER(OFFSET(DW11,0,0,$C$7)),OFFSET(DW11,0,0,$C$7))) -> 7.9% | DX5: =_xlfn.STDEV.P(IF(ISNUMBER(OFFSET(DX11,0,0,$C$7)),OFFSET(DX11,0,0,$C$7)))/AVERAGE(IF(ISNUMBER(OFFSET(DX11,0,0,$C$7)),OFFSET(DX11,0,0,$C$7))) -> 5.9% | DY5: =_xlfn.STDEV.P(IF(ISNUMBER(OFFSET(DY11,0,0,$C$7)),OFFSET(DY11,0,0,$C$7)))/AVERAGE(IF(ISNUMBER(OFFSET(DY11,0,0,$C$7)),OFFSET(DY11,0,0,$C$7))) -> 7.5% | DZ5: =_xlfn.STDEV.P(IF(ISNUMBER(OFFSET(DZ11,0,0,$C$7)),OFFSET(DZ11,0,0,$C$7)))/AVERAGE(IF(ISNUMBER(OFFSET(DZ11,0,0,$C$7)),OFFSET(DZ11,0,0,$C$7))) -> 5.4% | EA5: =_xlfn.STDEV.P(IF(ISNUMBER(OFFSET(EA11,0,0,$C$7)),OFFSET(EA11,0,0,$C$7)))/AVERAGE(IF(ISNUMBER(OFFSET(EA11,0,0,$C$7)),OFFSET(EA11,0,0,$C$7))) -> 7.4% | EB5: =_xlfn.STDEV.P(IF(ISNUMBER(OFFSET(EB11,0,0,$C$7)),OFFSET(EB11,0,0,$C$7)))/AVERAGE(IF(ISNUMBER(OFFSET(EB11,0,0,$C$7)),OFFSET(EB11,0,0,$C$7))) -> 5.5% | EC5: =_xlfn.STDEV.P(IF(ISNUMBER(OFFSET(EC11,0,0,$C$7)),OFFSET(EC11,0,0,$C$7)))/AVERAGE(IF(ISNUMBER(OFFSET(EC11,0,0,$C$7)),OFFSET(EC11,0,0,$C$7))) -> 9.5% | ED5: =_xlfn.STDEV.P(IF(ISNUMBER(OFFSET(ED11,0,0,$C$7)),OFFSET(ED11,0,0,$C$7)))/AVERAGE(IF(ISNUMBER(OFFSET(ED11,0,0,$C$7)),OFFSET(ED11,0,0,$C$7))) -> 5.4% | EE5: =_xlfn.STDEV.P(IF(ISNUMBER(OFFSET(EE11,0,0,$C$7)),OFFSET(EE11,0,0,$C$7)))/AVERAGE(IF(ISNUMBER(OFFSET(EE11,0,0,$C$7)),OFFSET(EE11,0,0,$C$7))) -> 10.5% | EF5: =_xlfn.STDEV.P(IF(ISNUMBER(OFFSET(EF11,0,0,$C$7)),OFFSET(EF11,0,0,$C$7)))/AVERAGE(IF(ISNUMBER(OFFSET(EF11,0,0,$C$7)),OFFSET(EF11,0,0,$C$7))) -> 5.4% | EG5: =_xlfn.STDEV.P(IF(ISNUMBER(OFFSET(EG11,0,0,$C$7)),OFFSET(EG11,0,0,$C$7)))/AVERAGE(IF(ISNUMBER(OFFSET(EG11,0,0,$C$7)),OFFSET(EG11,0,0,$C$7))) -> 5.4% | EH5: =_xlfn.STDEV.P(IF(ISNUMBER(OFFSET(EH11,0,0,$C$7)),OFFSET(EH11,0,0,$C$7)))/AVERAGE(IF(ISNUMBER(OFFSET(EH11,0,0,$C$7)),OFFSET(EH11,0,0,$C$7))) -> 7.6% | EI5: =_xlfn.STDEV.P(IF(ISNUMBER(OFFSET(EI11,0,0,$C$7)),OFFSET(EI11,0,0,$C$7)))/AVERAGE(IF(ISNUMBER(OFFSET(EI11,0,0,$C$7)),OFFSET(EI11,0,0,$C$7))) -> 5.6% | EJ5: =_xlfn.STDEV.P(IF(ISNUMBER(OFFSET(EJ11,0,0,$C$7)),OFFSET(EJ11,0,0,$C$7)))/AVERAGE(IF(ISNUMBER(OFFSET(EJ11,0,0,$C$7)),OFFSET(EJ11,0,0,$C$7))) -> 5.3% | EK5: =_xlfn.STDEV.P(IF(ISNUMBER(OFFSET(EK11,0,0,$C$7)),OFFSET(EK11,0,0,$C$7)))/AVERAGE(IF(ISNUMBER(OFFSET(EK11,0,0,$C$7)),OFFSET(EK11,0,0,$C$7))) -> 5.7% | EL5: =_xlfn.STDEV.P(IF(ISNUMBER(OFFSET(EL11,0,0,$C$7)),OFFSET(EL11,0,0,$C$7)))/AVERAGE(IF(ISNUMBER(OFFSET(EL11,0,0,$C$7)),OFFSET(EL11,0,0,$C$7))) -> 6.0% | EM5: =_xlfn.STDEV.P(IF(ISNUMBER(OFFSET(EM11,0,0,$C$7)),OFFSET(EM11,0,0,$C$7)))/AVERAGE(IF(ISNUMBER(OFFSET(EM11,0,0,$C$7)),OFFSET(EM11,0,0,$C$7))) -> 5.9% | EN5: =_xlfn.STDEV.P(IF(ISNUMBER(OFFSET(EN11,0,0,$C$7)),OFFSET(EN11,0,0,$C$7)))/AVERAGE(IF(ISNUMBER(OFFSET(EN11,0,0,$C$7)),OFFSET(EN11,0,0,$C$7))) -> 6.2% | EO5: =_xlfn.STDEV.P(IF(ISNUMBER(OFFSET(EO11,0,0,$C$7)),OFFSET(EO11,0,0,$C$7)))/AVERAGE(IF(ISNUMBER(OFFSET(EO11,0,0,$C$7)),OFFSET(EO11,0,0,$C$7))) -> 4.0% | EP5: =_xlfn.STDEV.P(IF(ISNUMBER(OFFSET(EP11,0,0,$C$7)),OFFSET(EP11,0,0,$C$7)))/AVERAGE(IF(ISNUMBER(OFFSET(EP11,0,0,$C$7)),OFFSET(EP11,0,0,$C$7))) -> 6.4% | EQ5: =_xlfn.STDEV.P(IF(ISNUMBER(OFFSET(EQ11,0,0,$C$7)),OFFSET(EQ11,0,0,$C$7)))/AVERAGE(IF(ISNUMBER(OFFSET(EQ11,0,0,$C$7)),OFFSET(EQ11,0,0,$C$7))) -> 12.9% | ER5: =_xlfn.STDEV.P(IF(ISNUMBER(OFFSET(ER11,0,0,$C$7)),OFFSET(ER11,0,0,$C$7)))/AVERAGE(IF(ISNUMBER(OFFSET(ER11,0,0,$C$7)),OFFSET(ER11,0,0,$C$7))) -> 6.5% | ES5: =_xlfn.STDEV.P(IF(ISNUMBER(OFFSET(ES11,0,0,$C$7)),OFFSET(ES11,0,0,$C$7)))/AVERAGE(IF(ISNUMBER(OFFSET(ES11,0,0,$C$7)),OFFSET(ES11,0,0,$C$7))) -> 6.5% | ET5: =_xlfn.STDEV.P(IF(ISNUMBER(OFFSET(ET11,0,0,$C$7)),OFFSET(ET11,0,0,$C$7)))/AVERAGE(IF(ISNUMBER(OFFSET(ET11,0,0,$C$7)),OFFSET(ET11,0,0,$C$7))) -> 5.7% | EU5: =_xlfn.STDEV.P(IF(ISNUMBER(OFFSET(EU11,0,0,$C$7)),OFFSET(EU11,0,0,$C$7)))/AVERAGE(IF(ISNUMBER(OFFSET(EU11,0,0,$C$7)),OFFSET(EU11,0,0,$C$7))) -> 5.9% | EV5: =_xlfn.STDEV.P(IF(ISNUMBER(OFFSET(EV11,0,0,$C$7)),OFFSET(EV11,0,0,$C$7)))/AVERAGE(IF(ISNUMBER(OFFSET(EV11,0,0,$C$7)),OFFSET(EV11,0,0,$C$7))) -> 11.6% | EW5: =_xlfn.STDEV.P(IF(ISNUMBER(OFFSET(EW11,0,0,$C$7)),OFFSET(EW11,0,0,$C$7)))/AVERAGE(IF(ISNUMBER(OFFSET(EW11,0,0,$C$7)),OFFSET(EW11,0,0,$C$7))) -> 5.9% | EX5: =_xlfn.STDEV.P(IF(ISNUMBER(OFFSET(EX11,0,0,$C$7)),OFFSET(EX11,0,0,$C$7)))/AVERAGE(IF(ISNUMBER(OFFSET(EX11,0,0,$C$7)),OFFSET(EX11,0,0,$C$7))) -> 6.9% | EY5: =_xlfn.STDEV.P(IF(ISNUMBER(OFFSET(EY11,0,0,$C$7)),OFFSET(EY11,0,0,$C$7)))/AVERAGE(IF(ISNUMBER(OFFSET(EY11,0,0,$C$7)),OFFSET(EY11,0,0,$C$7))) -> 6.5% | EZ5: =_xlfn.STDEV.P(IF(ISNUMBER(OFFSET(EZ11,0,0,$C$7)),OFFSET(EZ11,0,0,$C$7)))/AVERAGE(IF(ISNUMBER(OFFSET(EZ11,0,0,$C$7)),OFFSET(EZ11,0,0,$C$7))) -> 12.9% | FA5: =_xlfn.STDEV.P(IF(ISNUMBER(OFFSET(FA11,0,0,$C$7)),OFFSET(FA11,0,0,$C$7)))/AVERAGE(IF(ISNUMBER(OFFSET(FA11,0,0,$C$7)),OFFSET(FA11,0,0,$C$7))) -> 8.4% | FB5: =_xlfn.STDEV.P(IF(ISNUMBER(OFFSET(FB11,0,0,$C$7)),OFFSET(FB11,0,0,$C$7)))/AVERAGE(IF(ISNUMBER(OFFSET(FB11,0,0,$C$7)),OFFSET(FB11,0,0,$C$7))) -> 8.8% | FC5: =_xlfn.STDEV.P(IF(ISNUMBER(OFFSET(FC11,0,0,$C$7)),OFFSET(FC11,0,0,$C$7)))/AVERAGE(IF(ISNUMBER(OFFSET(FC11,0,0,$C$7)),OFFSET(FC11,0,0,$C$7))) -> 5.4% | FD5: =_xlfn.STDEV.P(IF(ISNUMBER(OFFSET(FD11,0,0,$C$7)),OFFSET(FD11,0,0,$C$7)))/AVERAGE(IF(ISNUMBER(OFFSET(FD11,0,0,$C$7)),OFFSET(FD11,0,0,$C$7))) -> 20.4% | FE5: =_xlfn.STDEV.P(IF(ISNUMBER(OFFSET(FE11,0,0,$C$7)),OFFSET(FE11,0,0,$C$7)))/AVERAGE(IF(ISNUMBER(OFFSET(FE11,0,0,$C$7)),OFFSET(FE11,0,0,$C$7))) -> 4.1% | FF5: =_xlfn.STDEV.P(IF(ISNUMBER(OFFSET(FF11,0,0,$C$7)),OFFSET(FF11,0,0,$C$7)))/AVERAGE(IF(ISNUMBER(OFFSET(FF11,0,0,$C$7)),OFFSET(FF11,0,0,$C$7))) -> 5.9% | FG5: =_xlfn.STDEV.P(IF(ISNUMBER(OFFSET(FG11,0,0,$C$7)),OFFSET(FG11,0,0,$C$7)))/AVERAGE(IF(ISNUMBER(OFFSET(FG11,0,0,$C$7)),OFFSET(FG11,0,0,$C$7))) -> 25.0% | FH5: =_xlfn.STDEV.P(IF(ISNUMBER(OFFSET(FH11,0,0,$C$7)),OFFSET(FH11,0,0,$C$7)))/AVERAGE(IF(ISNUMBER(OFFSET(FH11,0,0,$C$7)),OFFSET(FH11,0,0,$C$7))) -> 100.5% | FI5: =_xlfn.STDEV.P(IF(ISNUMBER(OFFSET(FI11,0,0,$C$7)),OFFSET(FI11,0,0,$C$7)))/AVERAGE(IF(ISNUMBER(OFFSET(FI11,0,0,$C$7)),OFFSET(FI11,0,0,$C$7))) -> 3.0% | FJ5: =_xlfn.STDEV.P(IF(ISNUMBER(OFFSET(FJ11,0,0,$C$7)),OFFSET(FJ11,0,0,$C$7)))/AVERAGE(IF(ISNUMBER(OFFSET(FJ11,0,0,$C$7)),OFFSET(FJ11,0,0,$C$7))) -> 4.3% | FK5: =_xlfn.STDEV.P(IF(ISNUMBER(OFFSET(FK11,0,0,$C$7)),OFFSET(FK11,0,0,$C$7)))/AVERAGE(IF(ISNUMBER(OFFSET(FK11,0,0,$C$7)),OFFSET(FK11,0,0,$C$7))) -> 6.0% | FL5: =_xlfn.STDEV.P(IF(ISNUMBER(OFFSET(FL11,0,0,$C$7)),OFFSET(FL11,0,0,$C$7)))/AVERAGE(IF(ISNUMBER(OFFSET(FL11,0,0,$C$7)),OFFSET(FL11,0,0,$C$7))) -> 18.1% | FM5: =_xlfn.STDEV.P(IF(ISNUMBER(OFFSET(FM11,0,0,$C$7)),OFFSET(FM11,0,0,$C$7)))/AVERAGE(IF(ISNUMBER(OFFSET(FM11,0,0,$C$7)),OFFSET(FM11,0,0,$C$7))) -> 5.0% | FN5: =_xlfn.STDEV.P(IF(ISNUMBER(OFFSET(FN11,0,0,$C$7)),OFFSET(FN11,0,0,$C$7)))/AVERAGE(IF(ISNUMBER(OFFSET(FN11,0,0,$C$7)),OFFSET(FN11,0,0,$C$7))) -> 4.0% | FO5: =_xlfn.STDEV.P(IF(ISNUMBER(OFFSET(FO11,0,0,$C$7)),OFFSET(FO11,0,0,$C$7)))/AVERAGE(IF(ISNUMBER(OFFSET(FO11,0,0,$C$7)),OFFSET(FO11,0,0,$C$7))) -> 6.2% | FP5: =_xlfn.STDEV.P(IF(ISNUMBER(OFFSET(FP11,0,0,$C$7)),OFFSET(FP11,0,0,$C$7)))/AVERAGE(IF(ISNUMBER(OFFSET(FP11,0,0,$C$7)),OFFSET(FP11,0,0,$C$7))) -> 3.4% | FQ5: =_xlfn.STDEV.P(IF(ISNUMBER(OFFSET(FQ11,0,0,$C$7)),OFFSET(FQ11,0,0,$C$7)))/AVERAGE(IF(ISNUMBER(OFFSET(FQ11,0,0,$C$7)),OFFSET(FQ11,0,0,$C$7))) -> 2.7% | FR5: =_xlfn.STDEV.P(IF(ISNUMBER(OFFSET(FR11,0,0,$C$7)),OFFSET(FR11,0,0,$C$7)))/AVERAGE(IF(ISNUMBER(OFFSET(FR11,0,0,$C$7)),OFFSET(FR11,0,0,$C$7))) -> 4.7% | FS5: =_xlfn.STDEV.P(IF(ISNUMBER(OFFSET(FS11,0,0,$C$7)),OFFSET(FS11,0,0,$C$7)))/AVERAGE(IF(ISNUMBER(OFFSET(FS11,0,0,$C$7)),OFFSET(FS11,0,0,$C$7))) -> 4.6% | FT5: =_xlfn.STDEV.P(IF(ISNUMBER(OFFSET(FT11,0,0,$C$7)),OFFSET(FT11,0,0,$C$7)))/AVERAGE(IF(ISNUMBER(OFFSET(FT11,0,0,$C$7)),OFFSET(FT11,0,0,$C$7))) -> 14.2% | FU5: =_xlfn.STDEV.P(IF(ISNUMBER(OFFSET(FU11,0,0,$C$7)),OFFSET(FU11,0,0,$C$7)))/AVERAGE(IF(ISNUMBER(OFFSET(FU11,0,0,$C$7)),OFFSET(FU11,0,0,$C$7))) -> 5.6% | FV5: =_xlfn.STDEV.P(IF(ISNUMBER(OFFSET(FV11,0,0,$C$7)),OFFSET(FV11,0,0,$C$7)))/AVERAGE(IF(ISNUMBER(OFFSET(FV11,0,0,$C$7)),OFFSET(FV11,0,0,$C$7))) -> 5.6% | FW5: =_xlfn.STDEV.P(IF(ISNUMBER(OFFSET(FW11,0,0,$C$7)),OFFSET(FW11,0,0,$C$7)))/AVERAGE(IF(ISNUMBER(OFFSET(FW11,0,0,$C$7)),OFFSET(FW11,0,0,$C$7))) -> 4.6% | FX5: =_xlfn.STDEV.P(IF(ISNUMBER(OFFSET(FX11,0,0,$C$7)),OFFSET(FX11,0,0,$C$7)))/AVERAGE(IF(ISNUMBER(OFFSET(FX11,0,0,$C$7)),OFFSET(FX11,0,0,$C$7))) -> 6.1% | FY5: =_xlfn.STDEV.P(IF(ISNUMBER(OFFSET(FY11,0,0,$C$7)),OFFSET(FY11,0,0,$C$7)))/AVERAGE(IF(ISNUMBER(OFFSET(FY11,0,0,$C$7)),OFFSET(FY11,0,0,$C$7))) -> 184.7% | FZ5: =_xlfn.STDEV.P(IF(ISNUMBER(OFFSET(FZ11,0,0,$C$7)),OFFSET(FZ11,0,0,$C$7)))/AVERAGE(IF(ISNUMBER(OFFSET(FZ11,0,0,$C$7)),OFFSET(FZ11,0,0,$C$7))) -> 5.1% | GA5: =_xlfn.STDEV.P(IF(ISNUMBER(OFFSET(GA11,0,0,$C$7)),OFFSET(GA11,0,0,$C$7)))/AVERAGE(IF(ISNUMBER(OFFSET(GA11,0,0,$C$7)),OFFSET(GA11,0,0,$C$7))) -> 3.0% | GB5: =_xlfn.STDEV.P(IF(ISNUMBER(OFFSET(GB11,0,0,$C$7)),OFFSET(GB11,0,0,$C$7)))/AVERAGE(IF(ISNUMBER(OFFSET(GB11,0,0,$C$7)),OFFSET(GB11,0,0,$C$7))) -> 4.0% | GC5: =_xlfn.STDEV.P(IF(ISNUMBER(OFFSET(GC11,0,0,$C$7)),OFFSET(GC11,0,0,$C$7)))/AVERAGE(IF(ISNUMBER(OFFSET(GC11,0,0,$C$7)),OFFSET(GC11,0,0,$C$7))) -> 4.7% | GD5: =_xlfn.STDEV.P(IF(ISNUMBER(OFFSET(GD11,0,0,$C$7)),OFFSET(GD11,0,0,$C$7)))/AVERAGE(IF(ISNUMBER(OFFSET(GD11,0,0,$C$7)),OFFSET(GD11,0,0,$C$7))) -> 14.1% | GE5: =_xlfn.STDEV.P(IF(ISNUMBER(OFFSET(GE11,0,0,$C$7)),OFFSET(GE11,0,0,$C$7)))/AVERAGE(IF(ISNUMBER(OFFSET(GE11,0,0,$C$7)),OFFSET(GE11,0,0,$C$7))) -> 4.5% | GF5: =_xlfn.STDEV.P(IF(ISNUMBER(OFFSET(GF11,0,0,$C$7)),OFFSET(GF11,0,0,$C$7)))/AVERAGE(IF(ISNUMBER(OFFSET(GF11,0,0,$C$7)),OFFSET(GF11,0,0,$C$7))) -> 4.7% | GG5: =_xlfn.STDEV.P(IF(ISNUMBER(OFFSET(GG11,0,0,$C$7)),OFFSET(GG11,0,0,$C$7)))/AVERAGE(IF(ISNUMBER(OFFSET(GG11,0,0,$C$7)),OFFSET(GG11,0,0,$C$7))) -> 6.0% | GH5: =_xlfn.STDEV.P(IF(ISNUMBER(OFFSET(GH11,0,0,$C$7)),OFFSET(GH11,0,0,$C$7)))/AVERAGE(IF(ISNUMBER(OFFSET(GH11,0,0,$C$7)),OFFSET(GH11,0,0,$C$7))) -> 5.1% | GI5: =_xlfn.STDEV.P(IF(ISNUMBER(OFFSET(GI11,0,0,$C$7)),OFFSET(GI11,0,0,$C$7)))/AVERAGE(IF(ISNUMBER(OFFSET(GI11,0,0,$C$7)),OFFSET(GI11,0,0,$C$7))) -> 12.4% | GJ5: =_xlfn.STDEV.P(IF(ISNUMBER(OFFSET(GJ11,0,0,$C$7)),OFFSET(GJ11,0,0,$C$7)))/AVERAGE(IF(ISNUMBER(OFFSET(GJ11,0,0,$C$7)),OFFSET(GJ11,0,0,$C$7))) -> 4.9% | GK5: =_xlfn.STDEV.P(IF(ISNUMBER(OFFSET(GK11,0,0,$C$7)),OFFSET(GK11,0,0,$C$7)))/AVERAGE(IF(ISNUMBER(OFFSET(GK11,0,0,$C$7)),OFFSET(GK11,0,0,$C$7))) -> 5.0% | GL5: =_xlfn.STDEV.P(IF(ISNUMBER(OFFSET(GL11,0,0,$C$7)),OFFSET(GL11,0,0,$C$7)))/AVERAGE(IF(ISNUMBER(OFFSET(GL11,0,0,$C$7)),OFFSET(GL11,0,0,$C$7))) -> 2.9% | GM5: =_xlfn.STDEV.P(IF(ISNUMBER(OFFSET(GM11,0,0,$C$7)),OFFSET(GM11,0,0,$C$7)))/AVERAGE(IF(ISNUMBER(OFFSET(GM11,0,0,$C$7)),OFFSET(GM11,0,0,$C$7))) -> 3.1% | GN5: =_xlfn.STDEV.P(IF(ISNUMBER(OFFSET(GN11,0,0,$C$7)),OFFSET(GN11,0,0,$C$7)))/AVERAGE(IF(ISNUMBER(OFFSET(GN11,0,0,$C$7)),OFFSET(GN11,0,0,$C$7))) -> 4.7% | GO5: =_xlfn.STDEV.P(IF(ISNUMBER(OFFSET(GO11,0,0,$C$7)),OFFSET(GO11,0,0,$C$7)))/AVERAGE(IF(ISNUMBER(OFFSET(GO11,0,0,$C$7)),OFFSET(GO11,0,0,$C$7))) -> 3.7% | GP5: =_xlfn.STDEV.P(IF(ISNUMBER(OFFSET(GP11,0,0,$C$7)),OFFSET(GP11,0,0,$C$7)))/AVERAGE(IF(ISNUMBER(OFFSET(GP11,0,0,$C$7)),OFFSET(GP11,0,0,$C$7))) -> 4.9% | GQ5: =_xlfn.STDEV.P(IF(ISNUMBER(OFFSET(GQ11,0,0,$C$7)),OFFSET(GQ11,0,0,$C$7)))/AVERAGE(IF(ISNUMBER(OFFSET(GQ11,0,0,$C$7)),OFFSET(GQ11,0,0,$C$7))) -> 10.1% | GR5: =_xlfn.STDEV.P(IF(ISNUMBER(OFFSET(GR11,0,0,$C$7)),OFFSET(GR11,0,0,$C$7)))/AVERAGE(IF(ISNUMBER(OFFSET(GR11,0,0,$C$7)),OFFSET(GR11,0,0,$C$7))) -> 6.2% | GS5: =_xlfn.STDEV.P(IF(ISNUMBER(OFFSET(GS11,0,0,$C$7)),OFFSET(GS11,0,0,$C$7)))/AVERAGE(IF(ISNUMBER(OFFSET(GS11,0,0,$C$7)),OFFSET(GS11,0,0,$C$7))) -> 4.6% | GT5: =_xlfn.STDEV.P(IF(ISNUMBER(OFFSET(GT11,0,0,$C$7)),OFFSET(GT11,0,0,$C$7)))/AVERAGE(IF(ISNUMBER(OFFSET(GT11,0,0,$C$7)),OFFSET(GT11,0,0,$C$7))) -> 4.4% | GU5: =_xlfn.STDEV.P(IF(ISNUMBER(OFFSET(GU11,0,0,$C$7)),OFFSET(GU11,0,0,$C$7)))/AVERAGE(IF(ISNUMBER(OFFSET(GU11,0,0,$C$7)),OFFSET(GU11,0,0,$C$7))) -> 3.8% | GV5: =_xlfn.STDEV.P(IF(ISNUMBER(OFFSET(GV11,0,0,$C$7)),OFFSET(GV11,0,0,$C$7)))/AVERAGE(IF(ISNUMBER(OFFSET(GV11,0,0,$C$7)),OFFSET(GV11,0,0,$C$7))) -> 3.7% | GW5: =_xlfn.STDEV.P(IF(ISNUMBER(OFFSET(GW11,0,0,$C$7)),OFFSET(GW11,0,0,$C$7)))/AVERAGE(IF(ISNUMBER(OFFSET(GW11,0,0,$C$7)),OFFSET(GW11,0,0,$C$7))) -> 6.2% | GX5: =_xlfn.STDEV.P(IF(ISNUMBER(OFFSET(GX11,0,0,$C$7)),OFFSET(GX11,0,0,$C$7)))/AVERAGE(IF(ISNUMBER(OFFSET(GX11,0,0,$C$7)),OFFSET(GX11,0,0,$C$7))) -> 3.5% | GY5: =_xlfn.STDEV.P(IF(ISNUMBER(OFFSET(GY11,0,0,$C$7)),OFFSET(GY11,0,0,$C$7)))/AVERAGE(IF(ISNUMBER(OFFSET(GY11,0,0,$C$7)),OFFSET(GY11,0,0,$C$7))) -> 4.9% | GZ5: =_xlfn.STDEV.P(IF(ISNUMBER(OFFSET(GZ11,0,0,$C$7)),OFFSET(GZ11,0,0,$C$7)))/AVERAGE(IF(ISNUMBER(OFFSET(GZ11,0,0,$C$7)),OFFSET(GZ11,0,0,$C$7))) -> 4.6% | HA5: =_xlfn.STDEV.P(IF(ISNUMBER(OFFSET(HA11,0,0,$C$7)),OFFSET(HA11,0,0,$C$7)))/AVERAGE(IF(ISNUMBER(OFFSET(HA11,0,0,$C$7)),OFFSET(HA11,0,0,$C$7))) -> 8.8% | HB5: =_xlfn.STDEV.P(IF(ISNUMBER(OFFSET(HB11,0,0,$C$7)),OFFSET(HB11,0,0,$C$7)))/AVERAGE(IF(ISNUMBER(OFFSET(HB11,0,0,$C$7)),OFFSET(HB11,0,0,$C$7))) -> 5.9% | HC5: =_xlfn.STDEV.P(IF(ISNUMBER(OFFSET(HC11,0,0,$C$7)),OFFSET(HC11,0,0,$C$7)))/AVERAGE(IF(ISNUMBER(OFFSET(HC11,0,0,$C$7)),OFFSET(HC11,0,0,$C$7))) -> 14.7% | HD5: =_xlfn.STDEV.P(IF(ISNUMBER(OFFSET(HD11,0,0,$C$7)),OFFSET(HD11,0,0,$C$7)))/AVERAGE(IF(ISNUMBER(OFFSET(HD11,0,0,$C$7)),OFFSET(HD11,0,0,$C$7))) -> 17.8% | HE5: =_xlfn.STDEV.P(IF(ISNUMBER(OFFSET(HE11,0,0,$C$7)),OFFSET(HE11,0,0,$C$7)))/AVERAGE(IF(ISNUMBER(OFFSET(HE11,0,0,$C$7)),OFFSET(HE11,0,0,$C$7))) -> 4.0% | HF5: =_xlfn.STDEV.P(IF(ISNUMBER(OFFSET(HF11,0,0,$C$7)),OFFSET(HF11,0,0,$C$7)))/AVERAGE(IF(ISNUMBER(OFFSET(HF11,0,0,$C$7)),OFFSET(HF11,0,0,$C$7))) -> 6.0% | HG5: =_xlfn.STDEV.P(IF(ISNUMBER(OFFSET(HG11,0,0,$C$7)),OFFSET(HG11,0,0,$C$7)))/AVERAGE(IF(ISNUMBER(OFFSET(HG11,0,0,$C$7)),OFFSET(HG11,0,0,$C$7))) -> 4.2% | HH5: =_xlfn.STDEV.P(IF(ISNUMBER(OFFSET(HH11,0,0,$C$7)),OFFSET(HH11,0,0,$C$7)))/AVERAGE(IF(ISNUMBER(OFFSET(HH11,0,0,$C$7)),OFFSET(HH11,0,0,$C$7))) -> 4.3% | HI5: =_xlfn.STDEV.P(IF(ISNUMBER(OFFSET(HI11,0,0,$C$7)),OFFSET(HI11,0,0,$C$7)))/AVERAGE(IF(ISNUMBER(OFFSET(HI11,0,0,$C$7)),OFFSET(HI11,0,0,$C$7))) -> 26.4% | HJ5: =_xlfn.STDEV.P(IF(ISNUMBER(OFFSET(HJ11,0,0,$C$7)),OFFSET(HJ11,0,0,$C$7)))/AVERAGE(IF(ISNUMBER(OFFSET(HJ11,0,0,$C$7)),OFFSET(HJ11,0,0,$C$7))) -> 28.3% | HK5: =_xlfn.STDEV.P(IF(ISNUMBER(OFFSET(HK11,0,0,$C$7)),OFFSET(HK11,0,0,$C$7)))/AVERAGE(IF(ISNUMBER(OFFSET(HK11,0,0,$C$7)),OFFSET(HK11,0,0,$C$7))) -> 24.9% | HL5: =_xlfn.STDEV.P(IF(ISNUMBER(OFFSET(HL11,0,0,$C$7)),OFFSET(HL11,0,0,$C$7)))/AVERAGE(IF(ISNUMBER(OFFSET(HL11,0,0,$C$7)),OFFSET(HL11,0,0,$C$7))) -> 23.4% | HM5: =_xlfn.STDEV.P(IF(ISNUMBER(OFFSET(HM11,0,0,$C$7)),OFFSET(HM11,0,0,$C$7)))/AVERAGE(IF(ISNUMBER(OFFSET(HM11,0,0,$C$7)),OFFSET(HM11,0,0,$C$7))) -> 22.5% | HN5: =_xlfn.STDEV.P(IF(ISNUMBER(OFFSET(HN11,0,0,$C$7)),OFFSET(HN11,0,0,$C$7)))/AVERAGE(IF(ISNUMBER(OFFSET(HN11,0,0,$C$7)),OFFSET(HN11,0,0,$C$7))) -> 21.9% | HO5: =_xlfn.STDEV.P(IF(ISNUMBER(OFFSET(HO11,0,0,$C$7)),OFFSET(HO11,0,0,$C$7)))/AVERAGE(IF(ISNUMBER(OFFSET(HO11,0,0,$C$7)),OFFSET(HO11,0,0,$C$7))) -> 13.0% | HP5: =_xlfn.STDEV.P(IF(ISNUMBER(OFFSET(HP11,0,0,$C$7)),OFFSET(HP11,0,0,$C$7)))/AVERAGE(IF(ISNUMBER(OFFSET(HP11,0,0,$C$7)),OFFSET(HP11,0,0,$C$7))) -> 13.2% | HQ5: =_xlfn.STDEV.P(IF(ISNUMBER(OFFSET(HQ11,0,0,$C$7)),OFFSET(HQ11,0,0,$C$7)))/AVERAGE(IF(ISNUMBER(OFFSET(HQ11,0,0,$C$7)),OFFSET(HQ11,0,0,$C$7))) -> 17.5% | HR5: =_xlfn.STDEV.P(IF(ISNUMBER(OFFSET(HR11,0,0,$C$7)),OFFSET(HR11,0,0,$C$7)))/AVERAGE(IF(ISNUMBER(OFFSET(HR11,0,0,$C$7)),OFFSET(HR11,0,0,$C$7))) -> 6.4% | HS5: =_xlfn.STDEV.P(IF(ISNUMBER(OFFSET(HS11,0,0,$C$7)),OFFSET(HS11,0,0,$C$7)))/AVERAGE(IF(ISNUMBER(OFFSET(HS11,0,0,$C$7)),OFFSET(HS11,0,0,$C$7))) -> 9.1% | HT5: =_xlfn.STDEV.P(IF(ISNUMBER(OFFSET(HT11,0,0,$C$7)),OFFSET(HT11,0,0,$C$7)))/AVERAGE(IF(ISNUMBER(OFFSET(HT11,0,0,$C$7)),OFFSET(HT11,0,0,$C$7))) -> 6.0% | HU5: =_xlfn.STDEV.P(IF(ISNUMBER(OFFSET(HU11,0,0,$C$7)),OFFSET(HU11,0,0,$C$7)))/AVERAGE(IF(ISNUMBER(OFFSET(HU11,0,0,$C$7)),OFFSET(HU11,0,0,$C$7))) -> 10.3% | HV5: =_xlfn.STDEV.P(IF(ISNUMBER(OFFSET(HV11,0,0,$C$7)),OFFSET(HV11,0,0,$C$7)))/AVERAGE(IF(ISNUMBER(OFFSET(HV11,0,0,$C$7)),OFFSET(HV11,0,0,$C$7))) -> 14.2% | HW5: =_xlfn.STDEV.P(IF(ISNUMBER(OFFSET(HW11,0,0,$C$7)),OFFSET(HW11,0,0,$C$7)))/AVERAGE(IF(ISNUMBER(OFFSET(HW11,0,0,$C$7)),OFFSET(HW11,0,0,$C$7))) -> 21.0% | HX5: =_xlfn.STDEV.P(IF(ISNUMBER(OFFSET(HX11,0,0,$C$7)),OFFSET(HX11,0,0,$C$7)))/AVERAGE(IF(ISNUMBER(OFFSET(HX11,0,0,$C$7)),OFFSET(HX11,0,0,$C$7))) -> 8.1% | HY5: =_xlfn.STDEV.P(IF(ISNUMBER(OFFSET(HY11,0,0,$C$7)),OFFSET(HY11,0,0,$C$7)))/AVERAGE(IF(ISNUMBER(OFFSET(HY11,0,0,$C$7)),OFFSET(HY11,0,0,$C$7))) -> 5.3% | HZ5: =_xlfn.STDEV.P(IF(ISNUMBER(OFFSET(HZ11,0,0,$C$7)),OFFSET(HZ11,0,0,$C$7)))/AVERAGE(IF(ISNUMBER(OFFSET(HZ11,0,0,$C$7)),OFFSET(HZ11,0,0,$C$7))) -> 9.0% | IA5: =_xlfn.STDEV.P(IF(ISNUMBER(OFFSET(IA11,0,0,$C$7)),OFFSET(IA11,0,0,$C$7)))/AVERAGE(IF(ISNUMBER(OFFSET(IA11,0,0,$C$7)),OFFSET(IA11,0,0,$C$7))) -> 8.7% | IB5: =_xlfn.STDEV.P(IF(ISNUMBER(OFFSET(IB11,0,0,$C$7)),OFFSET(IB11,0,0,$C$7)))/AVERAGE(IF(ISNUMBER(OFFSET(IB11,0,0,$C$7)),OFFSET(IB11,0,0,$C$7))) -> 32.0% | IC5: =_xlfn.STDEV.P(IF(ISNUMBER(OFFSET(IC11,0,0,$C$7)),OFFSET(IC11,0,0,$C$7)))/AVERAGE(IF(ISNUMBER(OFFSET(IC11,0,0,$C$7)),OFFSET(IC11,0,0,$C$7))) -> 4.9% | ID5: =_xlfn.STDEV.P(IF(ISNUMBER(OFFSET(ID11,0,0,$C$7)),OFFSET(ID11,0,0,$C$7)))/AVERAGE(IF(ISNUMBER(OFFSET(ID11,0,0,$C$7)),OFFSET(ID11,0,0,$C$7))) -> 7.3% | IE5: =_xlfn.STDEV.P(IF(ISNUMBER(OFFSET(IE11,0,0,$C$7)),OFFSET(IE11,0,0,$C$7)))/AVERAGE(IF(ISNUMBER(OFFSET(IE11,0,0,$C$7)),OFFSET(IE11,0,0,$C$7))) -> 2.7% | IF5: =_xlfn.STDEV.P(IF(ISNUMBER(OFFSET(IF11,0,0,$C$7)),OFFSET(IF11,0,0,$C$7)))/AVERAGE(IF(ISNUMBER(OFFSET(IF11,0,0,$C$7)),OFFSET(IF11,0,0,$C$7))) -> 6.4% | IG5: =_xlfn.STDEV.P(IF(ISNUMBER(OFFSET(IG11,0,0,$C$7)),OFFSET(IG11,0,0,$C$7)))/AVERAGE(IF(ISNUMBER(OFFSET(IG11,0,0,$C$7)),OFFSET(IG11,0,0,$C$7))) -> 6.6% | IH5: =_xlfn.STDEV.P(IF(ISNUMBER(OFFSET(IH11,0,0,$C$7)),OFFSET(IH11,0,0,$C$7)))/AVERAGE(IF(ISNUMBER(OFFSET(IH11,0,0,$C$7)),OFFSET(IH11,0,0,$C$7))) -> 6.5% | II5: =_xlfn.STDEV.P(IF(ISNUMBER(OFFSET(II11,0,0,$C$7)),OFFSET(II11,0,0,$C$7)))/AVERAGE(IF(ISNUMBER(OFFSET(II11,0,0,$C$7)),OFFSET(II11,0,0,$C$7))) -> 5.5% | IJ5: =_xlfn.STDEV.P(IF(ISNUMBER(OFFSET(IJ11,0,0,$C$7)),OFFSET(IJ11,0,0,$C$7)))/AVERAGE(IF(ISNUMBER(OFFSET(IJ11,0,0,$C$7)),OFFSET(IJ11,0,0,$C$7))) -> 17.8% | IK5: =_xlfn.STDEV.P(IF(ISNUMBER(OFFSET(IK11,0,0,$C$7)),OFFSET(IK11,0,0,$C$7)))/AVERAGE(IF(ISNUMBER(OFFSET(IK11,0,0,$C$7)),OFFSET(IK11,0,0,$C$7))) -> 15.0% | IL5: =_xlfn.STDEV.P(IF(ISNUMBER(OFFSET(IL11,0,0,$C$7)),OFFSET(IL11,0,0,$C$7)))/AVERAGE(IF(ISNUMBER(OFFSET(IL11,0,0,$C$7)),OFFSET(IL11,0,0,$C$7))) -> 12.1% | IM5: =_xlfn.STDEV.P(IF(ISNUMBER(OFFSET(IM11,0,0,$C$7)),OFFSET(IM11,0,0,$C$7)))/AVERAGE(IF(ISNUMBER(OFFSET(IM11,0,0,$C$7)),OFFSET(IM11,0,0,$C$7))) -> 3.5% | IN5: =_xlfn.STDEV.P(IF(ISNUMBER(OFFSET(IN11,0,0,$C$7)),OFFSET(IN11,0,0,$C$7)))/AVERAGE(IF(ISNUMBER(OFFSET(IN11,0,0,$C$7)),OFFSET(IN11,0,0,$C$7))) -> 4.1% | IO5: =_xlfn.STDEV.P(IF(ISNUMBER(OFFSET(IO11,0,0,$C$7)),OFFSET(IO11,0,0,$C$7)))/AVERAGE(IF(ISNUMBER(OFFSET(IO11,0,0,$C$7)),OFFSET(IO11,0,0,$C$7))) -> 4.9% | IP5: =_xlfn.STDEV.P(IF(ISNUMBER(OFFSET(IP11,0,0,$C$7)),OFFSET(IP11,0,0,$C$7)))/AVERAGE(IF(ISNUMBER(OFFSET(IP11,0,0,$C$7)),OFFSET(IP11,0,0,$C$7))) -> 20.7% | IQ5: =_xlfn.STDEV.P(IF(ISNUMBER(OFFSET(IQ11,0,0,$C$7)),OFFSET(IQ11,0,0,$C$7)))/AVERAGE(IF(ISNUMBER(OFFSET(IQ11,0,0,$C$7)),OFFSET(IQ11,0,0,$C$7))) -> 3.1% | IR5: =_xlfn.STDEV.P(IF(ISNUMBER(OFFSET(IR11,0,0,$C$7)),OFFSET(IR11,0,0,$C$7)))/AVERAGE(IF(ISNUMBER(OFFSET(IR11,0,0,$C$7)),OFFSET(IR11,0,0,$C$7))) -> 9.7% | IS5: =_xlfn.STDEV.P(IF(ISNUMBER(OFFSET(IS11,0,0,$C$7)),OFFSET(IS11,0,0,$C$7)))/AVERAGE(IF(ISNUMBER(OFFSET(IS11,0,0,$C$7)),OFFSET(IS11,0,0,$C$7))) -> 3.7% | IT5: =_xlfn.STDEV.P(IF(ISNUMBER(OFFSET(IT11,0,0,$C$7)),OFFSET(IT11,0,0,$C$7)))/AVERAGE(IF(ISNUMBER(OFFSET(IT11,0,0,$C$7)),OFFSET(IT11,0,0,$C$7))) -> 5.2% | IU5: =_xlfn.STDEV.P(IF(ISNUMBER(OFFSET(IU11,0,0,$C$7)),OFFSET(IU11,0,0,$C$7)))/AVERAGE(IF(ISNUMBER(OFFSET(IU11,0,0,$C$7)),OFFSET(IU11,0,0,$C$7))) -> 19.1% | IV5: =_xlfn.STDEV.P(IF(ISNUMBER(OFFSET(IV11,0,0,$C$7)),OFFSET(IV11,0,0,$C$7)))/AVERAGE(IF(ISNUMBER(OFFSET(IV11,0,0,$C$7)),OFFSET(IV11,0,0,$C$7))) -> 4.8% | IW5: =_xlfn.STDEV.P(IF(ISNUMBER(OFFSET(IW11,0,0,$C$7)),OFFSET(IW11,0,0,$C$7)))/AVERAGE(IF(ISNUMBER(OFFSET(IW11,0,0,$C$7)),OFFSET(IW11,0,0,$C$7))) -> 18.1% | IX5: =_xlfn.STDEV.P(IF(ISNUMBER(OFFSET(IX11,0,0,$C$7)),OFFSET(IX11,0,0,$C$7)))/AVERAGE(IF(ISNUMBER(OFFSET(IX11,0,0,$C$7)),OFFSET(IX11,0,0,$C$7))) -> 25.4% | IY5: =_xlfn.STDEV.P(IF(ISNUMBER(OFFSET(IY11,0,0,$C$7)),OFFSET(IY11,0,0,$C$7)))/AVERAGE(IF(ISNUMBER(OFFSET(IY11,0,0,$C$7)),OFFSET(IY11,0,0,$C$7))) -> 21.0% | IZ5: =_xlfn.STDEV.P(IF(ISNUMBER(OFFSET(IZ11,0,0,$C$7)),OFFSET(IZ11,0,0,$C$7)))/AVERAGE(IF(ISNUMBER(OFFSET(IZ11,0,0,$C$7)),OFFSET(IZ11,0,0,$C$7))) -> 30.1% | JA5: =_xlfn.STDEV.P(IF(ISNUMBER(OFFSET(JA11,0,0,$C$7)),OFFSET(JA11,0,0,$C$7)))/AVERAGE(IF(ISNUMBER(OFFSET(JA11,0,0,$C$7)),OFFSET(JA11,0,0,$C$7))) -> 5.0% | JB5: =_xlfn.STDEV.P(IF(ISNUMBER(OFFSET(JB11,0,0,$C$7)),OFFSET(JB11,0,0,$C$7)))/AVERAGE(IF(ISNUMBER(OFFSET(JB11,0,0,$C$7)),OFFSET(JB11,0,0,$C$7))) -> 3.4% | JC5: =_xlfn.STDEV.P(IF(ISNUMBER(OFFSET(JC11,0,0,$C$7)),OFFSET(JC11,0,0,$C$7)))/AVERAGE(IF(ISNUMBER(OFFSET(JC11,0,0,$C$7)),OFFSET(JC11,0,0,$C$7))) -> 3.9% | JD5: =_xlfn.STDEV.P(IF(ISNUMBER(OFFSET(JD11,0,0,$C$7)),OFFSET(JD11,0,0,$C$7)))/AVERAGE(IF(ISNUMBER(OFFSET(JD11,0,0,$C$7)),OFFSET(JD11,0,0,$C$7))) -> 18.3% | JE5: =_xlfn.STDEV.P(IF(ISNUMBER(OFFSET(JE11,0,0,$C$7)),OFFSET(JE11,0,0,$C$7)))/AVERAGE(IF(ISNUMBER(OFFSET(JE11,0,0,$C$7)),OFFSET(JE11,0,0,$C$7))) -> 9.3% | JF5: =_xlfn.STDEV.P(IF(ISNUMBER(OFFSET(JF11,0,0,$C$7)),OFFSET(JF11,0,0,$C$7)))/AVERAGE(IF(ISNUMBER(OFFSET(JF11,0,0,$C$7)),OFFSET(JF11,0,0,$C$7))) -> 8.2% | JG5: =_xlfn.STDEV.P(IF(ISNUMBER(OFFSET(JG11,0,0,$C$7)),OFFSET(JG11,0,0,$C$7)))/AVERAGE(IF(ISNUMBER(OFFSET(JG11,0,0,$C$7)),OFFSET(JG11,0,0,$C$7))) -> 24.7% | JH5: =_xlfn.STDEV.P(IF(ISNUMBER(OFFSET(JH11,0,0,$C$7)),OFFSET(JH11,0,0,$C$7)))/AVERAGE(IF(ISNUMBER(OFFSET(JH11,0,0,$C$7)),OFFSET(JH11,0,0,$C$7))) -> 6.7% | JI5: =_xlfn.STDEV.P(IF(ISNUMBER(OFFSET(JI11,0,0,$C$7)),OFFSET(JI11,0,0,$C$7)))/AVERAGE(IF(ISNUMBER(OFFSET(JI11,0,0,$C$7)),OFFSET(JI11,0,0,$C$7))) -> 18.8% | JJ5: =_xlfn.STDEV.P(IF(ISNUMBER(OFFSET(JJ11,0,0,$C$7)),OFFSET(JJ11,0,0,$C$7)))/AVERAGE(IF(ISNUMBER(OFFSET(JJ11,0,0,$C$7)),OFFSET(JJ11,0,0,$C$7))) -> 3.8% | JK5: =_xlfn.STDEV.P(IF(ISNUMBER(OFFSET(JK11,0,0,$C$7)),OFFSET(JK11,0,0,$C$7)))/AVERAGE(IF(ISNUMBER(OFFSET(JK11,0,0,$C$7)),OFFSET(JK11,0,0,$C$7))) -> 21.1% | JL5: =_xlfn.STDEV.P(IF(ISNUMBER(OFFSET(JL11,0,0,$C$7)),OFFSET(JL11,0,0,$C$7)))/AVERAGE(IF(ISNUMBER(OFFSET(JL11,0,0,$C$7)),OFFSET(JL11,0,0,$C$7))) -> 16.7% | JM5: =_xlfn.STDEV.P(IF(ISNUMBER(OFFSET(JM11,0,0,$C$7)),OFFSET(JM11,0,0,$C$7)))/AVERAGE(IF(ISNUMBER(OFFSET(JM11,0,0,$C$7)),OFFSET(JM11,0,0,$C$7))) -> 25.5% | JN5: =_xlfn.STDEV.P(IF(ISNUMBER(OFFSET(JN11,0,0,$C$7)),OFFSET(JN11,0,0,$C$7)))/AVERAGE(IF(ISNUMBER(OFFSET(JN11,0,0,$C$7)),OFFSET(JN11,0,0,$C$7))) -> 11.8% | JO5: =_xlfn.STDEV.P(IF(ISNUMBER(OFFSET(JO11,0,0,$C$7)),OFFSET(JO11,0,0,$C$7)))/AVERAGE(IF(ISNUMBER(OFFSET(JO11,0,0,$C$7)),OFFSET(JO11,0,0,$C$7))) -> 9.9% | JP5: =_xlfn.STDEV.P(IF(ISNUMBER(OFFSET(JP11,0,0,$C$7)),OFFSET(JP11,0,0,$C$7)))/AVERAGE(IF(ISNUMBER(OFFSET(JP11,0,0,$C$7)),OFFSET(JP11,0,0,$C$7))) -> 7.2% | JQ5: =_xlfn.STDEV.P(IF(ISNUMBER(OFFSET(JQ11,0,0,$C$7)),OFFSET(JQ11,0,0,$C$7)))/AVERAGE(IF(ISNUMBER(OFFSET(JQ11,0,0,$C$7)),OFFSET(JQ11,0,0,$C$7))) -> 3.0% | JR5: =_xlfn.STDEV.P(IF(ISNUMBER(OFFSET(JR11,0,0,$C$7)),OFFSET(JR11,0,0,$C$7)))/AVERAGE(IF(ISNUMBER(OFFSET(JR11,0,0,$C$7)),OFFSET(JR11,0,0,$C$7))) -> 6.8% | JS5: =_xlfn.STDEV.P(IF(ISNUMBER(OFFSET(JS11,0,0,$C$7)),OFFSET(JS11,0,0,$C$7)))/AVERAGE(IF(ISNUMBER(OFFSET(JS11,0,0,$C$7)),OFFSET(JS11,0,0,$C$7))) -> 5.9% | JT5: =_xlfn.STDEV.P(IF(ISNUMBER(OFFSET(JT11,0,0,$C$7)),OFFSET(JT11,0,0,$C$7)))/AVERAGE(IF(ISNUMBER(OFFSET(JT11,0,0,$C$7)),OFFSET(JT11,0,0,$C$7))) -> 6.3% | JU5: =_xlfn.STDEV.P(IF(ISNUMBER(OFFSET(JU11,0,0,$C$7)),OFFSET(JU11,0,0,$C$7)))/AVERAGE(IF(ISNUMBER(OFFSET(JU11,0,0,$C$7)),OFFSET(JU11,0,0,$C$7))) -> 7.2% | JV5: =_xlfn.STDEV.P(IF(ISNUMBER(OFFSET(JV11,0,0,$C$7)),OFFSET(JV11,0,0,$C$7)))/AVERAGE(IF(ISNUMBER(OFFSET(JV11,0,0,$C$7)),OFFSET(JV11,0,0,$C$7))) -> 2.5% | JW5: =_xlfn.STDEV.P(IF(ISNUMBER(OFFSET(JW11,0,0,$C$7)),OFFSET(JW11,0,0,$C$7)))/AVERAGE(IF(ISNUMBER(OFFSET(JW11,0,0,$C$7)),OFFSET(JW11,0,0,$C$7))) -> 3.0% | JX5: =_xlfn.STDEV.P(IF(ISNUMBER(OFFSET(JX11,0,0,$C$7)),OFFSET(JX11,0,0,$C$7)))/AVERAGE(IF(ISNUMBER(OFFSET(JX11,0,0,$C$7)),OFFSET(JX11,0,0,$C$7))) -> 3.3% | JY5: =_xlfn.STDEV.P(IF(ISNUMBER(OFFSET(JY11,0,0,$C$7)),OFFSET(JY11,0,0,$C$7)))/AVERAGE(IF(ISNUMBER(OFFSET(JY11,0,0,$C$7)),OFFSET(JY11,0,0,$C$7))) -> 4.7% | JZ5: =_xlfn.STDEV.P(IF(ISNUMBER(OFFSET(JZ11,0,0,$C$7)),OFFSET(JZ11,0,0,$C$7)))/AVERAGE(IF(ISNUMBER(OFFSET(JZ11,0,0,$C$7)),OFFSET(JZ11,0,0,$C$7))) -> 5.8% | KA5: =_xlfn.STDEV.P(IF(ISNUMBER(OFFSET(KA11,0,0,$C$7)),OFFSET(KA11,0,0,$C$7)))/AVERAGE(IF(ISNUMBER(OFFSET(KA11,0,0,$C$7)),OFFSET(KA11,0,0,$C$7))) -> 31.3% | KB5: =_xlfn.STDEV.P(IF(ISNUMBER(OFFSET(KB11,0,0,$C$7)),OFFSET(KB11,0,0,$C$7)))/AVERAGE(IF(ISNUMBER(OFFSET(KB11,0,0,$C$7)),OFFSET(KB11,0,0,$C$7))) -> 6.7% | KC5: =_xlfn.STDEV.P(IF(ISNUMBER(OFFSET(KC11,0,0,$C$7)),OFFSET(KC11,0,0,$C$7)))/AVERAGE(IF(ISNUMBER(OFFSET(KC11,0,0,$C$7)),OFFSET(KC11,0,0,$C$7))) -> 11.9% | KD5: =_xlfn.STDEV.P(IF(ISNUMBER(OFFSET(KD11,0,0,$C$7)),OFFSET(KD11,0,0,$C$7)))/AVERAGE(IF(ISNUMBER(OFFSET(KD11,0,0,$C$7)),OFFSET(KD11,0,0,$C$7))) -> 6.1% | KE5: =_xlfn.STDEV.P(IF(ISNUMBER(OFFSET(KE11,0,0,$C$7)),OFFSET(KE11,0,0,$C$7)))/AVERAGE(IF(ISNUMBER(OFFSET(KE11,0,0,$C$7)),OFFSET(KE11,0,0,$C$7))) -> 4.5% | KF5: =_xlfn.STDEV.P(IF(ISNUMBER(OFFSET(KF11,0,0,$C$7)),OFFSET(KF11,0,0,$C$7)))/AVERAGE(IF(ISNUMBER(OFFSET(KF11,0,0,$C$7)),OFFSET(KF11,0,0,$C$7))) -> 4.7% | KG5: =_xlfn.STDEV.P(IF(ISNUMBER(OFFSET(KG11,0,0,$C$7)),OFFSET(KG11,0,0,$C$7)))/AVERAGE(IF(ISNUMBER(OFFSET(KG11,0,0,$C$7)),OFFSET(KG11,0,0,$C$7))) -> 7.6% | KH5: =_xlfn.STDEV.P(IF(ISNUMBER(OFFSET(KH11,0,0,$C$7)),OFFSET(KH11,0,0,$C$7)))/AVERAGE(IF(ISNUMBER(OFFSET(KH11,0,0,$C$7)),OFFSET(KH11,0,0,$C$7))) -> 12.7% | KI5: =_xlfn.STDEV.P(IF(ISNUMBER(OFFSET(KI11,0,0,$C$7)),OFFSET(KI11,0,0,$C$7)))/AVERAGE(IF(ISNUMBER(OFFSET(KI11,0,0,$C$7)),OFFSET(KI11,0,0,$C$7))) -> 14.1% | KJ5: =_xlfn.STDEV.P(IF(ISNUMBER(OFFSET(KJ11,0,0,$C$7)),OFFSET(KJ11,0,0,$C$7)))/AVERAGE(IF(ISNUMBER(OFFSET(KJ11,0,0,$C$7)),OFFSET(KJ11,0,0,$C$7))) -> 9.7% | KK5: =_xlfn.STDEV.P(IF(ISNUMBER(OFFSET(KK11,0,0,$C$7)),OFFSET(KK11,0,0,$C$7)))/AVERAGE(IF(ISNUMBER(OFFSET(KK11,0,0,$C$7)),OFFSET(KK11,0,0,$C$7))) -> 5.0% | KL5: =_xlfn.STDEV.P(IF(ISNUMBER(OFFSET(KL11,0,0,$C$7)),OFFSET(KL11,0,0,$C$7)))/AVERAGE(IF(ISNUMBER(OFFSET(KL11,0,0,$C$7)),OFFSET(KL11,0,0,$C$7))) -> 11.2% | KM5: =_xlfn.STDEV.P(IF(ISNUMBER(OFFSET(KM11,0,0,$C$7)),OFFSET(KM11,0,0,$C$7)))/AVERAGE(IF(ISNUMBER(OFFSET(KM11,0,0,$C$7)),OFFSET(KM11,0,0,$C$7))) -> 7.0% | KN5: =_xlfn.STDEV.P(IF(ISNUMBER(OFFSET(KN11,0,0,$C$7)),OFFSET(KN11,0,0,$C$7)))/AVERAGE(IF(ISNUMBER(OFFSET(KN11,0,0,$C$7)),OFFSET(KN11,0,0,$C$7))) -> 8.8% | KO5: =_xlfn.STDEV.P(IF(ISNUMBER(OFFSET(KO11,0,0,$C$7)),OFFSET(KO11,0,0,$C$7)))/AVERAGE(IF(ISNUMBER(OFFSET(KO11,0,0,$C$7)),OFFSET(KO11,0,0,$C$7))) -> 6.6% | KP5: =_xlfn.STDEV.P(IF(ISNUMBER(OFFSET(KP11,0,0,$C$7)),OFFSET(KP11,0,0,$C$7)))/AVERAGE(IF(ISNUMBER(OFFSET(KP11,0,0,$C$7)),OFFSET(KP11,0,0,$C$7))) -> 13.5% | KQ5: =_xlfn.STDEV.P(IF(ISNUMBER(OFFSET(KQ11,0,0,$C$7)),OFFSET(KQ11,0,0,$C$7)))/AVERAGE(IF(ISNUMBER(OFFSET(KQ11,0,0,$C$7)),OFFSET(KQ11,0,0,$C$7))) -> 11.1% | KR5: =_xlfn.STDEV.P(IF(ISNUMBER(OFFSET(KR11,0,0,$C$7)),OFFSET(KR11,0,0,$C$7)))/AVERAGE(IF(ISNUMBER(OFFSET(KR11,0,0,$C$7)),OFFSET(KR11,0,0,$C$7))) -> 8.0% | KS5: =_xlfn.STDEV.P(IF(ISNUMBER(OFFSET(KS11,0,0,$C$7)),OFFSET(KS11,0,0,$C$7)))/AVERAGE(IF(ISNUMBER(OFFSET(KS11,0,0,$C$7)),OFFSET(KS11,0,0,$C$7))) -> 4.7% | KT5: =_xlfn.STDEV.P(IF(ISNUMBER(OFFSET(KT11,0,0,$C$7)),OFFSET(KT11,0,0,$C$7)))/AVERAGE(IF(ISNUMBER(OFFSET(KT11,0,0,$C$7)),OFFSET(KT11,0,0,$C$7))) -> 11.4% | KU5: =_xlfn.STDEV.P(IF(ISNUMBER(OFFSET(KU11,0,0,$C$7)),OFFSET(KU11,0,0,$C$7)))/AVERAGE(IF(ISNUMBER(OFFSET(KU11,0,0,$C$7)),OFFSET(KU11,0,0,$C$7))) -> 23.7% | KV5: =_xlfn.STDEV.P(IF(ISNUMBER(OFFSET(KV11,0,0,$C$7)),OFFSET(KV11,0,0,$C$7)))/AVERAGE(IF(ISNUMBER(OFFSET(KV11,0,0,$C$7)),OFFSET(KV11,0,0,$C$7))) -> 4.9% | KW5: =_xlfn.STDEV.P(IF(ISNUMBER(OFFSET(KW11,0,0,$C$7)),OFFSET(KW11,0,0,$C$7)))/AVERAGE(IF(ISNUMBER(OFFSET(KW11,0,0,$C$7)),OFFSET(KW11,0,0,$C$7))) -> 3.9% | KX5: =_xlfn.STDEV.P(IF(ISNUMBER(OFFSET(KX11,0,0,$C$7)),OFFSET(KX11,0,0,$C$7)))/AVERAGE(IF(ISNUMBER(OFFSET(KX11,0,0,$C$7)),OFFSET(KX11,0,0,$C$7))) -> 8.0% | KY5: =_xlfn.STDEV.P(IF(ISNUMBER(OFFSET(KY11,0,0,$C$7)),OFFSET(KY11,0,0,$C$7)))/AVERAGE(IF(ISNUMBER(OFFSET(KY11,0,0,$C$7)),OFFSET(KY11,0,0,$C$7))) -> 6.6% | KZ5: =_xlfn.STDEV.P(IF(ISNUMBER(OFFSET(KZ11,0,0,$C$7)),OFFSET(KZ11,0,0,$C$7)))/AVERAGE(IF(ISNUMBER(OFFSET(KZ11,0,0,$C$7)),OFFSET(KZ11,0,0,$C$7))) -> 5.3% | LA5: =_xlfn.STDEV.P(IF(ISNUMBER(OFFSET(LA11,0,0,$C$7)),OFFSET(LA11,0,0,$C$7)))/AVERAGE(IF(ISNUMBER(OFFSET(LA11,0,0,$C$7)),OFFSET(LA11,0,0,$C$7))) -> 7.3% | LB5: =_xlfn.STDEV.P(IF(ISNUMBER(OFFSET(LB11,0,0,$C$7)),OFFSET(LB11,0,0,$C$7)))/AVERAGE(IF(ISNUMBER(OFFSET(LB11,0,0,$C$7)),OFFSET(LB11,0,0,$C$7))) -> 7.7% | LC5: =_xlfn.STDEV.P(IF(ISNUMBER(OFFSET(LC11,0,0,$C$7)),OFFSET(LC11,0,0,$C$7)))/AVERAGE(IF(ISNUMBER(OFFSET(LC11,0,0,$C$7)),OFFSET(LC11,0,0,$C$7))) -> 13.8% | LD5: =_xlfn.STDEV.P(IF(ISNUMBER(OFFSET(LD11,0,0,$C$7)),OFFSET(LD11,0,0,$C$7)))/AVERAGE(IF(ISNUMBER(OFFSET(LD11,0,0,$C$7)),OFFSET(LD11,0,0,$C$7))) -> 3.8% | LE5: =_xlfn.STDEV.P(IF(ISNUMBER(OFFSET(LE11,0,0,$C$7)),OFFSET(LE11,0,0,$C$7)))/AVERAGE(IF(ISNUMBER(OFFSET(LE11,0,0,$C$7)),OFFSET(LE11,0,0,$C$7))) -> 3.7% | LF5: =_xlfn.STDEV.P(IF(ISNUMBER(OFFSET(LF11,0,0,$C$7)),OFFSET(LF11,0,0,$C$7)))/AVERAGE(IF(ISNUMBER(OFFSET(LF11,0,0,$C$7)),OFFSET(LF11,0,0,$C$7))) -> 12.4% | LG5: =_xlfn.STDEV.P(IF(ISNUMBER(OFFSET(LG11,0,0,$C$7)),OFFSET(LG11,0,0,$C$7)))/AVERAGE(IF(ISNUMBER(OFFSET(LG11,0,0,$C$7)),OFFSET(LG11,0,0,$C$7))) -> 16.7% | LH5: =_xlfn.STDEV.P(IF(ISNUMBER(OFFSET(LH11,0,0,$C$7)),OFFSET(LH11,0,0,$C$7)))/AVERAGE(IF(ISNUMBER(OFFSET(LH11,0,0,$C$7)),OFFSET(LH11,0,0,$C$7))) -> 10.5% | LI5: =_xlfn.STDEV.P(IF(ISNUMBER(OFFSET(LI11,0,0,$C$7)),OFFSET(LI11,0,0,$C$7)))/AVERAGE(IF(ISNUMBER(OFFSET(LI11,0,0,$C$7)),OFFSET(LI11,0,0,$C$7))) -> 10.3% | LJ5: =_xlfn.STDEV.P(IF(ISNUMBER(OFFSET(LJ11,0,0,$C$7)),OFFSET(LJ11,0,0,$C$7)))/AVERAGE(IF(ISNUMBER(OFFSET(LJ11,0,0,$C$7)),OFFSET(LJ11,0,0,$C$7))) -> 53.6% | LK5: =_xlfn.STDEV.P(IF(ISNUMBER(OFFSET(LK11,0,0,$C$7)),OFFSET(LK11,0,0,$C$7)))/AVERAGE(IF(ISNUMBER(OFFSET(LK11,0,0,$C$7)),OFFSET(LK11,0,0,$C$7))) -> 48.3% | LL5: =_xlfn.STDEV.P(IF(ISNUMBER(OFFSET(LL11,0,0,$C$7)),OFFSET(LL11,0,0,$C$7)))/AVERAGE(IF(ISNUMBER(OFFSET(LL11,0,0,$C$7)),OFFSET(LL11,0,0,$C$7))) -> 50.6% | LM5: =_xlfn.STDEV.P(IF(ISNUMBER(OFFSET(LM11,0,0,$C$7)),OFFSET(LM11,0,0,$C$7)))/AVERAGE(IF(ISNUMBER(OFFSET(LM11,0,0,$C$7)),OFFSET(LM11,0,0,$C$7))) -> 13.8% | LN5: =_xlfn.STDEV.P(IF(ISNUMBER(OFFSET(LN11,0,0,$C$7)),OFFSET(LN11,0,0,$C$7)))/AVERAGE(IF(ISNUMBER(OFFSET(LN11,0,0,$C$7)),OFFSET(LN11,0,0,$C$7))) -> 24.3% | LO5: =_xlfn.STDEV.P(IF(ISNUMBER(OFFSET(LO11,0,0,$C$7)),OFFSET(LO11,0,0,$C$7)))/AVERAGE(IF(ISNUMBER(OFFSET(LO11,0,0,$C$7)),OFFSET(LO11,0,0,$C$7))) -> 7.5% | LP5: =_xlfn.STDEV.P(IF(ISNUMBER(OFFSET(LP11,0,0,$C$7)),OFFSET(LP11,0,0,$C$7)))/AVERAGE(IF(ISNUMBER(OFFSET(LP11,0,0,$C$7)),OFFSET(LP11,0,0,$C$7))) -> 32.2% | LQ5: =_xlfn.STDEV.P(IF(ISNUMBER(OFFSET(LQ11,0,0,$C$7)),OFFSET(LQ11,0,0,$C$7)))/AVERAGE(IF(ISNUMBER(OFFSET(LQ11,0,0,$C$7)),OFFSET(LQ11,0,0,$C$7))) -> 9.7% | LR5: =_xlfn.STDEV.P(IF(ISNUMBER(OFFSET(LR11,0,0,$C$7)),OFFSET(LR11,0,0,$C$7)))/AVERAGE(IF(ISNUMBER(OFFSET(LR11,0,0,$C$7)),OFFSET(LR11,0,0,$C$7))) -> 7.7% | LS5: =_xlfn.STDEV.P(IF(ISNUMBER(OFFSET(LS11,0,0,$C$7)),OFFSET(LS11,0,0,$C$7)))/AVERAGE(IF(ISNUMBER(OFFSET(LS11,0,0,$C$7)),OFFSET(LS11,0,0,$C$7))) -> 31.1% | LT5: =_xlfn.STDEV.P(IF(ISNUMBER(OFFSET(LT11,0,0,$C$7)),OFFSET(LT11,0,0,$C$7)))/AVERAGE(IF(ISNUMBER(OFFSET(LT11,0,0,$C$7)),OFFSET(LT11,0,0,$C$7))) -> 7.3% | LU5: =_xlfn.STDEV.P(IF(ISNUMBER(OFFSET(LU11,0,0,$C$7)),OFFSET(LU11,0,0,$C$7)))/AVERAGE(IF(ISNUMBER(OFFSET(LU11,0,0,$C$7)),OFFSET(LU11,0,0,$C$7))) -> 19.4% | LV5: =_xlfn.STDEV.P(IF(ISNUMBER(OFFSET(LV11,0,0,$C$7)),OFFSET(LV11,0,0,$C$7)))/AVERAGE(IF(ISNUMBER(OFFSET(LV11,0,0,$C$7)),OFFSET(LV11,0,0,$C$7))) -> 9.7% | LW5: =_xlfn.STDEV.P(IF(ISNUMBER(OFFSET(LW11,0,0,$C$7)),OFFSET(LW11,0,0,$C$7)))/AVERAGE(IF(ISNUMBER(OFFSET(LW11,0,0,$C$7)),OFFSET(LW11,0,0,$C$7))) -> 20.9% | LX5: =_xlfn.STDEV.P(IF(ISNUMBER(OFFSET(LX11,0,0,$C$7)),OFFSET(LX11,0,0,$C$7)))/AVERAGE(IF(ISNUMBER(OFFSET(LX11,0,0,$C$7)),OFFSET(LX11,0,0,$C$7))) -> 14.2% | LY5: =_xlfn.STDEV.P(IF(ISNUMBER(OFFSET(LY11,0,0,$C$7)),OFFSET(LY11,0,0,$C$7)))/AVERAGE(IF(ISNUMBER(OFFSET(LY11,0,0,$C$7)),OFFSET(LY11,0,0,$C$7))) -> 11.4% | LZ5: =_xlfn.STDEV.P(IF(ISNUMBER(OFFSET(LZ11,0,0,$C$7)),OFFSET(LZ11,0,0,$C$7)))/AVERAGE(IF(ISNUMBER(OFFSET(LZ11,0,0,$C$7)),OFFSET(LZ11,0,0,$C$7))) -> 74.2% | MA5: =_xlfn.STDEV.P(IF(ISNUMBER(OFFSET(MA11,0,0,$C$7)),OFFSET(MA11,0,0,$C$7)))/AVERAGE(IF(ISNUMBER(OFFSET(MA11,0,0,$C$7)),OFFSET(MA11,0,0,$C$7))) -> 20.4% | MB5: =_xlfn.STDEV.P(IF(ISNUMBER(OFFSET(MB11,0,0,$C$7)),OFFSET(MB11,0,0,$C$7)))/AVERAGE(IF(ISNUMBER(OFFSET(MB11,0,0,$C$7)),OFFSET(MB11,0,0,$C$7))) -> 12.0% | MC5: =_xlfn.STDEV.P(IF(ISNUMBER(OFFSET(MC11,0,0,$C$7)),OFFSET(MC11,0,0,$C$7)))/AVERAGE(IF(ISNUMBER(OFFSET(MC11,0,0,$C$7)),OFFSET(MC11,0,0,$C$7))) -> 41.2% | MD5: =_xlfn.STDEV.P(IF(ISNUMBER(OFFSET(MD11,0,0,$C$7)),OFFSET(MD11,0,0,$C$7)))/AVERAGE(IF(ISNUMBER(OFFSET(MD11,0,0,$C$7)),OFFSET(MD11,0,0,$C$7))) -> 10.1% | ME5: =_xlfn.STDEV.P(IF(ISNUMBER(OFFSET(ME11,0,0,$C$7)),OFFSET(ME11,0,0,$C$7)))/AVERAGE(IF(ISNUMBER(OFFSET(ME11,0,0,$C$7)),OFFSET(ME11,0,0,$C$7))) -> 11.7% | MF5: =_xlfn.STDEV.P(IF(ISNUMBER(OFFSET(MF11,0,0,$C$7)),OFFSET(MF11,0,0,$C$7)))/AVERAGE(IF(ISNUMBER(OFFSET(MF11,0,0,$C$7)),OFFSET(MF11,0,0,$C$7))) -> 24.0% | MG5: =_xlfn.STDEV.P(IF(ISNUMBER(OFFSET(MG11,0,0,$C$7)),OFFSET(MG11,0,0,$C$7)))/AVERAGE(IF(ISNUMBER(OFFSET(MG11,0,0,$C$7)),OFFSET(MG11,0,0,$C$7))) -> 6.7% | MH5: =_xlfn.STDEV.P(IF(ISNUMBER(OFFSET(MH11,0,0,$C$7)),OFFSET(MH11,0,0,$C$7)))/AVERAGE(IF(ISNUMBER(OFFSET(MH11,0,0,$C$7)),OFFSET(MH11,0,0,$C$7))) -> 73.5% | MI5: =_xlfn.STDEV.P(IF(ISNUMBER(OFFSET(MI11,0,0,$C$7)),OFFSET(MI11,0,0,$C$7)))/AVERAGE(IF(ISNUMBER(OFFSET(MI11,0,0,$C$7)),OFFSET(MI11,0,0,$C$7))) -> 10.8% | MJ5: =_xlfn.STDEV.P(IF(ISNUMBER(OFFSET(MJ11,0,0,$C$7)),OFFSET(MJ11,0,0,$C$7)))/AVERAGE(IF(ISNUMBER(OFFSET(MJ11,0,0,$C$7)),OFFSET(MJ11,0,0,$C$7))) -> 8.3% | MK5: =_xlfn.STDEV.P(IF(ISNUMBER(OFFSET(MK11,0,0,$C$7)),OFFSET(MK11,0,0,$C$7)))/AVERAGE(IF(ISNUMBER(OFFSET(MK11,0,0,$C$7)),OFFSET(MK11,0,0,$C$7))) -> 12.2% | ML5: =_xlfn.STDEV.P(IF(ISNUMBER(OFFSET(ML11,0,0,$C$7)),OFFSET(ML11,0,0,$C$7)))/AVERAGE(IF(ISNUMBER(OFFSET(ML11,0,0,$C$7)),OFFSET(ML11,0,0,$C$7))) -> 24.4% | MM5: =_xlfn.STDEV.P(IF(ISNUMBER(OFFSET(MM11,0,0,$C$7)),OFFSET(MM11,0,0,$C$7)))/AVERAGE(IF(ISNUMBER(OFFSET(MM11,0,0,$C$7)),OFFSET(MM11,0,0,$C$7))) -> 17.0% | MN5: =_xlfn.STDEV.P(IF(ISNUMBER(OFFSET(MN11,0,0,$C$7)),OFFSET(MN11,0,0,$C$7)))/AVERAGE(IF(ISNUMBER(OFFSET(MN11,0,0,$C$7)),OFFSET(MN11,0,0,$C$7))) -> 18.9% | MO5: =_xlfn.STDEV.P(IF(ISNUMBER(OFFSET(MO11,0,0,$C$7)),OFFSET(MO11,0,0,$C$7)))/AVERAGE(IF(ISNUMBER(OFFSET(MO11,0,0,$C$7)),OFFSET(MO11,0,0,$C$7))) -> 21.9% | MP5: =_xlfn.STDEV.P(IF(ISNUMBER(OFFSET(MP11,0,0,$C$7)),OFFSET(MP11,0,0,$C$7)))/AVERAGE(IF(ISNUMBER(OFFSET(MP11,0,0,$C$7)),OFFSET(MP11,0,0,$C$7))) -> 18.1% | MQ5: =_xlfn.STDEV.P(IF(ISNUMBER(OFFSET(MQ11,0,0,$C$7)),OFFSET(MQ11,0,0,$C$7)))/AVERAGE(IF(ISNUMBER(OFFSET(MQ11,0,0,$C$7)),OFFSET(MQ11,0,0,$C$7))) -> 9.9% | MR5: =_xlfn.STDEV.P(IF(ISNUMBER(OFFSET(MR11,0,0,$C$7)),OFFSET(MR11,0,0,$C$7)))/AVERAGE(IF(ISNUMBER(OFFSET(MR11,0,0,$C$7)),OFFSET(MR11,0,0,$C$7))) -> 13.5% | MS5: =_xlfn.STDEV.P(IF(ISNUMBER(OFFSET(MS11,0,0,$C$7)),OFFSET(MS11,0,0,$C$7)))/AVERAGE(IF(ISNUMBER(OFFSET(MS11,0,0,$C$7)),OFFSET(MS11,0,0,$C$7))) -> 17.3% | MT5: =_xlfn.STDEV.P(IF(ISNUMBER(OFFSET(MT11,0,0,$C$7)),OFFSET(MT11,0,0,$C$7)))/AVERAGE(IF(ISNUMBER(OFFSET(MT11,0,0,$C$7)),OFFSET(MT11,0,0,$C$7))) -> 20.2% | MU5: =_xlfn.STDEV.P(IF(ISNUMBER(OFFSET(MU11,0,0,$C$7)),OFFSET(MU11,0,0,$C$7)))/AVERAGE(IF(ISNUMBER(OFFSET(MU11,0,0,$C$7)),OFFSET(MU11,0,0,$C$7))) -> 12.9% | MV5: =_xlfn.STDEV.P(IF(ISNUMBER(OFFSET(MV11,0,0,$C$7)),OFFSET(MV11,0,0,$C$7)))/AVERAGE(IF(ISNUMBER(OFFSET(MV11,0,0,$C$7)),OFFSET(MV11,0,0,$C$7))) -> 17.3% | MW5: =_xlfn.STDEV.P(IF(ISNUMBER(OFFSET(MW11,0,0,$C$7)),OFFSET(MW11,0,0,$C$7)))/AVERAGE(IF(ISNUMBER(OFFSET(MW11,0,0,$C$7)),OFFSET(MW11,0,0,$C$7))) -> 13.7% | MX5: =_xlfn.STDEV.P(IF(ISNUMBER(OFFSET(MX11,0,0,$C$7)),OFFSET(MX11,0,0,$C$7)))/AVERAGE(IF(ISNUMBER(OFFSET(MX11,0,0,$C$7)),OFFSET(MX11,0,0,$C$7))) -> 5.9% | MY5: =_xlfn.STDEV.P(IF(ISNUMBER(OFFSET(MY11,0,0,$C$7)),OFFSET(MY11,0,0,$C$7)))/AVERAGE(IF(ISNUMBER(OFFSET(MY11,0,0,$C$7)),OFFSET(MY11,0,0,$C$7))) -> 17.5% | MZ5: =_xlfn.STDEV.P(IF(ISNUMBER(OFFSET(MZ11,0,0,$C$7)),OFFSET(MZ11,0,0,$C$7)))/AVERAGE(IF(ISNUMBER(OFFSET(MZ11,0,0,$C$7)),OFFSET(MZ11,0,0,$C$7))) -> 9.7% | NA5: =_xlfn.STDEV.P(IF(ISNUMBER(OFFSET(NA11,0,0,$C$7)),OFFSET(NA11,0,0,$C$7)))/AVERAGE(IF(ISNUMBER(OFFSET(NA11,0,0,$C$7)),OFFSET(NA11,0,0,$C$7))) -> 61.8% | NB5: =_xlfn.STDEV.P(IF(ISNUMBER(OFFSET(NB11,0,0,$C$7)),OFFSET(NB11,0,0,$C$7)))/AVERAGE(IF(ISNUMBER(OFFSET(NB11,0,0,$C$7)),OFFSET(NB11,0,0,$C$7))) -> 6.6% | NC5: =_xlfn.STDEV.P(IF(ISNUMBER(OFFSET(NC11,0,0,$C$7)),OFFSET(NC11,0,0,$C$7)))/AVERAGE(IF(ISNUMBER(OFFSET(NC11,0,0,$C$7)),OFFSET(NC11,0,0,$C$7))) -> 10.1% | ND5: =_xlfn.STDEV.P(IF(ISNUMBER(OFFSET(ND11,0,0,$C$7)),OFFSET(ND11,0,0,$C$7)))/AVERAGE(IF(ISNUMBER(OFFSET(ND11,0,0,$C$7)),OFFSET(ND11,0,0,$C$7))) -> 6.4% | NE5: =_xlfn.STDEV.P(IF(ISNUMBER(OFFSET(NE11,0,0,$C$7)),OFFSET(NE11,0,0,$C$7)))/AVERAGE(IF(ISNUMBER(OFFSET(NE11,0,0,$C$7)),OFFSET(NE11,0,0,$C$7))) -> 22.4% | NF5: =_xlfn.STDEV.P(IF(ISNUMBER(OFFSET(NF11,0,0,$C$7)),OFFSET(NF11,0,0,$C$7)))/AVERAGE(IF(ISNUMBER(OFFSET(NF11,0,0,$C$7)),OFFSET(NF11,0,0,$C$7))) -> 10.3% | NG5: =_xlfn.STDEV.P(IF(ISNUMBER(OFFSET(NG11,0,0,$C$7)),OFFSET(NG11,0,0,$C$7)))/AVERAGE(IF(ISNUMBER(OFFSET(NG11,0,0,$C$7)),OFFSET(NG11,0,0,$C$7))) -> 10.9% | NH5: =_xlfn.STDEV.P(IF(ISNUMBER(OFFSET(NH11,0,0,$C$7)),OFFSET(NH11,0,0,$C$7)))/AVERAGE(IF(ISNUMBER(OFFSET(NH11,0,0,$C$7)),OFFSET(NH11,0,0,$C$7))) -> 16.1% | NI5: =_xlfn.STDEV.P(IF(ISNUMBER(OFFSET(NI11,0,0,$C$7)),OFFSET(NI11,0,0,$C$7)))/AVERAGE(IF(ISNUMBER(OFFSET(NI11,0,0,$C$7)),OFFSET(NI11,0,0,$C$7))) -> 7.7% | NJ5: =_xlfn.STDEV.P(IF(ISNUMBER(OFFSET(NJ11,0,0,$C$7)),OFFSET(NJ11,0,0,$C$7)))/AVERAGE(IF(ISNUMBER(OFFSET(NJ11,0,0,$C$7)),OFFSET(NJ11,0,0,$C$7))) -> 14.0% | NK5: =_xlfn.STDEV.P(IF(ISNUMBER(OFFSET(NK11,0,0,$C$7)),OFFSET(NK11,0,0,$C$7)))/AVERAGE(IF(ISNUMBER(OFFSET(NK11,0,0,$C$7)),OFFSET(NK11,0,0,$C$7))) -> 22.3% | NL5: =_xlfn.STDEV.P(IF(ISNUMBER(OFFSET(NL11,0,0,$C$7)),OFFSET(NL11,0,0,$C$7)))/AVERAGE(IF(ISNUMBER(OFFSET(NL11,0,0,$C$7)),OFFSET(NL11,0,0,$C$7))) -> 6.9% | NM5: =_xlfn.STDEV.P(IF(ISNUMBER(OFFSET(NM11,0,0,$C$7)),OFFSET(NM11,0,0,$C$7)))/AVERAGE(IF(ISNUMBER(OFFSET(NM11,0,0,$C$7)),OFFSET(NM11,0,0,$C$7))) -> 6.0% | NN5: =_xlfn.STDEV.P(IF(ISNUMBER(OFFSET(NN11,0,0,$C$7)),OFFSET(NN11,0,0,$C$7)))/AVERAGE(IF(ISNUMBER(OFFSET(NN11,0,0,$C$7)),OFFSET(NN11,0,0,$C$7))) -> 7.9% | NO5: =_xlfn.STDEV.P(IF(ISNUMBER(OFFSET(NO11,0,0,$C$7)),OFFSET(NO11,0,0,$C$7)))/AVERAGE(IF(ISNUMBER(OFFSET(NO11,0,0,$C$7)),OFFSET(NO11,0,0,$C$7))) -> 8.9% | NP5: =_xlfn.STDEV.P(IF(ISNUMBER(OFFSET(NP11,0,0,$C$7)),OFFSET(NP11,0,0,$C$7)))/AVERAGE(IF(ISNUMBER(OFFSET(NP11,0,0,$C$7)),OFFSET(NP11,0,0,$C$7))) -> 21.7% | NQ5: =_xlfn.STDEV.P(IF(ISNUMBER(OFFSET(NQ11,0,0,$C$7)),OFFSET(NQ11,0,0,$C$7)))/AVERAGE(IF(ISNUMBER(OFFSET(NQ11,0,0,$C$7)),OFFSET(NQ11,0,0,$C$7))) -> 11.0% | NR5: =_xlfn.STDEV.P(IF(ISNUMBER(OFFSET(NR11,0,0,$C$7)),OFFSET(NR11,0,0,$C$7)))/AVERAGE(IF(ISNUMBER(OFFSET(NR11,0,0,$C$7)),OFFSET(NR11,0,0,$C$7))) -> 8.3% | NS5: =_xlfn.STDEV.P(IF(ISNUMBER(OFFSET(NS11,0,0,$C$7)),OFFSET(NS11,0,0,$C$7)))/AVERAGE(IF(ISNUMBER(OFFSET(NS11,0,0,$C$7)),OFFSET(NS11,0,0,$C$7))) -> 8.1% | NT5: =_xlfn.STDEV.P(IF(ISNUMBER(OFFSET(NT11,0,0,$C$7)),OFFSET(NT11,0,0,$C$7)))/AVERAGE(IF(ISNUMBER(OFFSET(NT11,0,0,$C$7)),OFFSET(NT11,0,0,$C$7))) -> 6.4% | NU5: =_xlfn.STDEV.P(IF(ISNUMBER(OFFSET(NU11,0,0,$C$7)),OFFSET(NU11,0,0,$C$7)))/AVERAGE(IF(ISNUMBER(OFFSET(NU11,0,0,$C$7)),OFFSET(NU11,0,0,$C$7))) -> 32.0% | NV5: =_xlfn.STDEV.P(IF(ISNUMBER(OFFSET(NV11,0,0,$C$7)),OFFSET(NV11,0,0,$C$7)))/AVERAGE(IF(ISNUMBER(OFFSET(NV11,0,0,$C$7)),OFFSET(NV11,0,0,$C$7))) -> 12.6% | NW5: =_xlfn.STDEV.P(IF(ISNUMBER(OFFSET(NW11,0,0,$C$7)),OFFSET(NW11,0,0,$C$7)))/AVERAGE(IF(ISNUMBER(OFFSET(NW11,0,0,$C$7)),OFFSET(NW11,0,0,$C$7))) -> 9.8% | NX5: =_xlfn.STDEV.P(IF(ISNUMBER(OFFSET(NX11,0,0,$C$7)),OFFSET(NX11,0,0,$C$7)))/AVERAGE(IF(ISNUMBER(OFFSET(NX11,0,0,$C$7)),OFFSET(NX11,0,0,$C$7))) -> 22.4% | NY5: =_xlfn.STDEV.P(IF(ISNUMBER(OFFSET(NY11,0,0,$C$7)),OFFSET(NY11,0,0,$C$7)))/AVERAGE(IF(ISNUMBER(OFFSET(NY11,0,0,$C$7)),OFFSET(NY11,0,0,$C$7))) -> 4.4% | NZ5: =_xlfn.STDEV.P(IF(ISNUMBER(OFFSET(NZ11,0,0,$C$7)),OFFSET(NZ11,0,0,$C$7)))/AVERAGE(IF(ISNUMBER(OFFSET(NZ11,0,0,$C$7)),OFFSET(NZ11,0,0,$C$7))) -> 5.5% | OA5: =_xlfn.STDEV.P(IF(ISNUMBER(OFFSET(OA11,0,0,$C$7)),OFFSET(OA11,0,0,$C$7)))/AVERAGE(IF(ISNUMBER(OFFSET(OA11,0,0,$C$7)),OFFSET(OA11,0,0,$C$7))) -> 6.2% | OB5: =_xlfn.STDEV.P(IF(ISNUMBER(OFFSET(OB11,0,0,$C$7)),OFFSET(OB11,0,0,$C$7)))/AVERAGE(IF(ISNUMBER(OFFSET(OB11,0,0,$C$7)),OFFSET(OB11,0,0,$C$7))) -> 2.8% | OC5: =_xlfn.STDEV.P(IF(ISNUMBER(OFFSET(OC11,0,0,$C$7)),OFFSET(OC11,0,0,$C$7)))/AVERAGE(IF(ISNUMBER(OFFSET(OC11,0,0,$C$7)),OFFSET(OC11,0,0,$C$7))) -> 4.0% | OD5: =_xlfn.STDEV.P(IF(ISNUMBER(OFFSET(OD11,0,0,$C$7)),OFFSET(OD11,0,0,$C$7)))/AVERAGE(IF(ISNUMBER(OFFSET(OD11,0,0,$C$7)),OFFSET(OD11,0,0,$C$7))) -> 22.3% | OE5: =_xlfn.STDEV.P(IF(ISNUMBER(OFFSET(OE11,0,0,$C$7)),OFFSET(OE11,0,0,$C$7)))/AVERAGE(IF(ISNUMBER(OFFSET(OE11,0,0,$C$7)),OFFSET(OE11,0,0,$C$7))) -> 8.6% | OF5: =_xlfn.STDEV.P(IF(ISNUMBER(OFFSET(OF11,0,0,$C$7)),OFFSET(OF11,0,0,$C$7)))/AVERAGE(IF(ISNUMBER(OFFSET(OF11,0,0,$C$7)),OFFSET(OF11,0,0,$C$7))) -> 9.1% | OG5: =_xlfn.STDEV.P(IF(ISNUMBER(OFFSET(OG11,0,0,$C$7)),OFFSET(OG11,0,0,$C$7)))/AVERAGE(IF(ISNUMBER(OFFSET(OG11,0,0,$C$7)),OFFSET(OG11,0,0,$C$7))) -> 6.1% | OH5: =_xlfn.STDEV.P(IF(ISNUMBER(OFFSET(OH11,0,0,$C$7)),OFFSET(OH11,0,0,$C$7)))/AVERAGE(IF(ISNUMBER(OFFSET(OH11,0,0,$C$7)),OFFSET(OH11,0,0,$C$7))) -> 5.2% | OI5: =_xlfn.STDEV.P(IF(ISNUMBER(OFFSET(OI11,0,0,$C$7)),OFFSET(OI11,0,0,$C$7)))/AVERAGE(IF(ISNUMBER(OFFSET(OI11,0,0,$C$7)),OFFSET(OI11,0,0,$C$7))) -> 21.2% | OJ5: =_xlfn.STDEV.P(IF(ISNUMBER(OFFSET(OJ11,0,0,$C$7)),OFFSET(OJ11,0,0,$C$7)))/AVERAGE(IF(ISNUMBER(OFFSET(OJ11,0,0,$C$7)),OFFSET(OJ11,0,0,$C$7))) -> 5.9% | OK5: =_xlfn.STDEV.P(IF(ISNUMBER(OFFSET(OK11,0,0,$C$7)),OFFSET(OK11,0,0,$C$7)))/AVERAGE(IF(ISNUMBER(OFFSET(OK11,0,0,$C$7)),OFFSET(OK11,0,0,$C$7))) -> 8.5% | OL5: =_xlfn.STDEV.P(IF(ISNUMBER(OFFSET(OL11,0,0,$C$7)),OFFSET(OL11,0,0,$C$7)))/AVERAGE(IF(ISNUMBER(OFFSET(OL11,0,0,$C$7)),OFFSET(OL11,0,0,$C$7))) -> 16.7% | OM5: =_xlfn.STDEV.P(IF(ISNUMBER(OFFSET(OM11,0,0,$C$7)),OFFSET(OM11,0,0,$C$7)))/AVERAGE(IF(ISNUMBER(OFFSET(OM11,0,0,$C$7)),OFFSET(OM11,0,0,$C$7))) -> 9.4% | ON5: =_xlfn.STDEV.P(IF(ISNUMBER(OFFSET(ON11,0,0,$C$7)),OFFSET(ON11,0,0,$C$7)))/AVERAGE(IF(ISNUMBER(OFFSET(ON11,0,0,$C$7)),OFFSET(ON11,0,0,$C$7))) -> 6.0% | OO5: =_xlfn.STDEV.P(IF(ISNUMBER(OFFSET(OO11,0,0,$C$7)),OFFSET(OO11,0,0,$C$7)))/AVERAGE(IF(ISNUMBER(OFFSET(OO11,0,0,$C$7)),OFFSET(OO11,0,0,$C$7))) -> 8.2% | OP5: =_xlfn.STDEV.P(IF(ISNUMBER(OFFSET(OP11,0,0,$C$7)),OFFSET(OP11,0,0,$C$7)))/AVERAGE(IF(ISNUMBER(OFFSET(OP11,0,0,$C$7)),OFFSET(OP11,0,0,$C$7))) -> 25.1% | OQ5: =_xlfn.STDEV.P(IF(ISNUMBER(OFFSET(OQ11,0,0,$C$7)),OFFSET(OQ11,0,0,$C$7)))/AVERAGE(IF(ISNUMBER(OFFSET(OQ11,0,0,$C$7)),OFFSET(OQ11,0,0,$C$7))) -> 14.1% | OR5: =_xlfn.STDEV.P(IF(ISNUMBER(OFFSET(OR11,0,0,$C$7)),OFFSET(OR11,0,0,$C$7)))/AVERAGE(IF(ISNUMBER(OFFSET(OR11,0,0,$C$7)),OFFSET(OR11,0,0,$C$7))) -> 9.6% | OS5: =_xlfn.STDEV.P(IF(ISNUMBER(OFFSET(OS11,0,0,$C$7)),OFFSET(OS11,0,0,$C$7)))/AVERAGE(IF(ISNUMBER(OFFSET(OS11,0,0,$C$7)),OFFSET(OS11,0,0,$C$7))) -> 12.1% | OT5: =_xlfn.STDEV.P(IF(ISNUMBER(OFFSET(OT11,0,0,$C$7)),OFFSET(OT11,0,0,$C$7)))/AVERAGE(IF(ISNUMBER(OFFSET(OT11,0,0,$C$7)),OFFSET(OT11,0,0,$C$7))) -> 20.1% | OU5: =_xlfn.STDEV.P(IF(ISNUMBER(OFFSET(OU11,0,0,$C$7)),OFFSET(OU11,0,0,$C$7)))/AVERAGE(IF(ISNUMBER(OFFSET(OU11,0,0,$C$7)),OFFSET(OU11,0,0,$C$7))) -> 20.4% | OV5: =_xlfn.STDEV.P(IF(ISNUMBER(OFFSET(OV11,0,0,$C$7)),OFFSET(OV11,0,0,$C$7)))/AVERAGE(IF(ISNUMBER(OFFSET(OV11,0,0,$C$7)),OFFSET(OV11,0,0,$C$7))) -> 17.7% | OW5: =_xlfn.STDEV.P(IF(ISNUMBER(OFFSET(OW11,0,0,$C$7)),OFFSET(OW11,0,0,$C$7)))/AVERAGE(IF(ISNUMBER(OFFSET(OW11,0,0,$C$7)),OFFSET(OW11,0,0,$C$7))) -> 20.4% | OX5: =_xlfn.STDEV.P(IF(ISNUMBER(OFFSET(OX11,0,0,$C$7)),OFFSET(OX11,0,0,$C$7)))/AVERAGE(IF(ISNUMBER(OFFSET(OX11,0,0,$C$7)),OFFSET(OX11,0,0,$C$7))) -> 12.0% | OY5: =_xlfn.STDEV.P(IF(ISNUMBER(OFFSET(OY11,0,0,$C$7)),OFFSET(OY11,0,0,$C$7)))/AVERAGE(IF(ISNUMBER(OFFSET(OY11,0,0,$C$7)),OFFSET(OY11,0,0,$C$7))) -> 17.9% | OZ5: =_xlfn.STDEV.P(IF(ISNUMBER(OFFSET(OZ11,0,0,$C$7)),OFFSET(OZ11,0,0,$C$7)))/AVERAGE(IF(ISNUMBER(OFFSET(OZ11,0,0,$C$7)),OFFSET(OZ11,0,0,$C$7))) -> 12.0% | PA5: =_xlfn.STDEV.P(IF(ISNUMBER(OFFSET(PA11,0,0,$C$7)),OFFSET(PA11,0,0,$C$7)))/AVERAGE(IF(ISNUMBER(OFFSET(PA11,0,0,$C$7)),OFFSET(PA11,0,0,$C$7))) -> 15.2% | PB5: =_xlfn.STDEV.P(IF(ISNUMBER(OFFSET(PB11,0,0,$C$7)),OFFSET(PB11,0,0,$C$7)))/AVERAGE(IF(ISNUMBER(OFFSET(PB11,0,0,$C$7)),OFFSET(PB11,0,0,$C$7))) -> 13.9% | PC5: =_xlfn.STDEV.P(IF(ISNUMBER(OFFSET(PC11,0,0,$C$7)),OFFSET(PC11,0,0,$C$7)))/AVERAGE(IF(ISNUMBER(OFFSET(PC11,0,0,$C$7)),OFFSET(PC11,0,0,$C$7))) -> 61.4% | PD5: =_xlfn.STDEV.P(IF(ISNUMBER(OFFSET(PD11,0,0,$C$7)),OFFSET(PD11,0,0,$C$7)))/AVERAGE(IF(ISNUMBER(OFFSET(PD11,0,0,$C$7)),OFFSET(PD11,0,0,$C$7))) -> 14.0% | PE5: =_xlfn.STDEV.P(IF(ISNUMBER(OFFSET(PE11,0,0,$C$7)),OFFSET(PE11,0,0,$C$7)))/AVERAGE(IF(ISNUMBER(OFFSET(PE11,0,0,$C$7)),OFFSET(PE11,0,0,$C$7))) -> 20.1% | PF5: =_xlfn.STDEV.P(IF(ISNUMBER(OFFSET(PF11,0,0,$C$7)),OFFSET(PF11,0,0,$C$7)))/AVERAGE(IF(ISNUMBER(OFFSET(PF11,0,0,$C$7)),OFFSET(PF11,0,0,$C$7))) -> 29.5% | PG5: =_xlfn.STDEV.P(IF(ISNUMBER(OFFSET(PG11,0,0,$C$7)),OFFSET(PG11,0,0,$C$7)))/AVERAGE(IF(ISNUMBER(OFFSET(PG11,0,0,$C$7)),OFFSET(PG11,0,0,$C$7))) -> 8.5% | PH5: =_xlfn.STDEV.P(IF(ISNUMBER(OFFSET(PH11,0,0,$C$7)),OFFSET(PH11,0,0,$C$7)))/AVERAGE(IF(ISNUMBER(OFFSET(PH11,0,0,$C$7)),OFFSET(PH11,0,0,$C$7))) -> 11.4% | PI5: =_xlfn.STDEV.P(IF(ISNUMBER(OFFSET(PI11,0,0,$C$7)),OFFSET(PI11,0,0,$C$7)))/AVERAGE(IF(ISNUMBER(OFFSET(PI11,0,0,$C$7)),OFFSET(PI11,0,0,$C$7))) -> 10.1% | PJ5: =_xlfn.STDEV.P(IF(ISNUMBER(OFFSET(PJ11,0,0,$C$7)),OFFSET(PJ11,0,0,$C$7)))/AVERAGE(IF(ISNUMBER(OFFSET(PJ11,0,0,$C$7)),OFFSET(PJ11,0,0,$C$7))) -> 11.9% | PK5: =_xlfn.STDEV.P(IF(ISNUMBER(OFFSET(PK11,0,0,$C$7)),OFFSET(PK11,0,0,$C$7)))/AVERAGE(IF(ISNUMBER(OFFSET(PK11,0,0,$C$7)),OFFSET(PK11,0,0,$C$7))) -> 95.5% | PL5: =_xlfn.STDEV.P(IF(ISNUMBER(OFFSET(PL11,0,0,$C$7)),OFFSET(PL11,0,0,$C$7)))/AVERAGE(IF(ISNUMBER(OFFSET(PL11,0,0,$C$7)),OFFSET(PL11,0,0,$C$7))) -> 4.2% | PM5: =_xlfn.STDEV.P(IF(ISNUMBER(OFFSET(PM11,0,0,$C$7)),OFFSET(PM11,0,0,$C$7)))/AVERAGE(IF(ISNUMBER(OFFSET(PM11,0,0,$C$7)),OFFSET(PM11,0,0,$C$7))) -> 14.6% | PN5: =_xlfn.STDEV.P(IF(ISNUMBER(OFFSET(PN11,0,0,$C$7)),OFFSET(PN11,0,0,$C$7)))/AVERAGE(IF(ISNUMBER(OFFSET(PN11,0,0,$C$7)),OFFSET(PN11,0,0,$C$7))) -> 26.3% | PO5: =_xlfn.STDEV.P(IF(ISNUMBER(OFFSET(PO11,0,0,$C$7)),OFFSET(PO11,0,0,$C$7)))/AVERAGE(IF(ISNUMBER(OFFSET(PO11,0,0,$C$7)),OFFSET(PO11,0,0,$C$7))) -> 10.0% | PP5: =_xlfn.STDEV.P(IF(ISNUMBER(OFFSET(PP11,0,0,$C$7)),OFFSET(PP11,0,0,$C$7)))/AVERAGE(IF(ISNUMBER(OFFSET(PP11,0,0,$C$7)),OFFSET(PP11,0,0,$C$7))) -> 11.2% | PQ5: =_xlfn.STDEV.P(IF(ISNUMBER(OFFSET(PQ11,0,0,$C$7)),OFFSET(PQ11,0,0,$C$7)))/AVERAGE(IF(ISNUMBER(OFFSET(PQ11,0,0,$C$7)),OFFSET(PQ11,0,0,$C$7))) -> 6.3% | PR5: =_xlfn.STDEV.P(IF(ISNUMBER(OFFSET(PR11,0,0,$C$7)),OFFSET(PR11,0,0,$C$7)))/AVERAGE(IF(ISNUMBER(OFFSET(PR11,0,0,$C$7)),OFFSET(PR11,0,0,$C$7))) -> 7.2% | PS5: =_xlfn.STDEV.P(IF(ISNUMBER(OFFSET(PS11,0,0,$C$7)),OFFSET(PS11,0,0,$C$7)))/AVERAGE(IF(ISNUMBER(OFFSET(PS11,0,0,$C$7)),OFFSET(PS11,0,0,$C$7))) -> 10.3% | PT5: =_xlfn.STDEV.P(IF(ISNUMBER(OFFSET(PT11,0,0,$C$7)),OFFSET(PT11,0,0,$C$7)))/AVERAGE(IF(ISNUMBER(OFFSET(PT11,0,0,$C$7)),OFFSET(PT11,0,0,$C$7))) -> 8.9% | PU5: =_xlfn.STDEV.P(IF(ISNUMBER(OFFSET(PU11,0,0,$C$7)),OFFSET(PU11,0,0,$C$7)))/AVERAGE(IF(ISNUMBER(OFFSET(PU11,0,0,$C$7)),OFFSET(PU11,0,0,$C$7))) -> 8.8% | PV5: =_xlfn.STDEV.P(IF(ISNUMBER(OFFSET(PV11,0,0,$C$7)),OFFSET(PV11,0,0,$C$7)))/AVERAGE(IF(ISNUMBER(OFFSET(PV11,0,0,$C$7)),OFFSET(PV11,0,0,$C$7))) -> 10.8% | PW5: =_xlfn.STDEV.P(IF(ISNUMBER(OFFSET(PW11,0,0,$C$7)),OFFSET(PW11,0,0,$C$7)))/AVERAGE(IF(ISNUMBER(OFFSET(PW11,0,0,$C$7)),OFFSET(PW11,0,0,$C$7))) -> 13.6% | PX5: =_xlfn.STDEV.P(IF(ISNUMBER(OFFSET(PX11,0,0,$C$7)),OFFSET(PX11,0,0,$C$7)))/AVERAGE(IF(ISNUMBER(OFFSET(PX11,0,0,$C$7)),OFFSET(PX11,0,0,$C$7))) -> 16.2% | PY5: =_xlfn.STDEV.P(IF(ISNUMBER(OFFSET(PY11,0,0,$C$7)),OFFSET(PY11,0,0,$C$7)))/AVERAGE(IF(ISNUMBER(OFFSET(PY11,0,0,$C$7)),OFFSET(PY11,0,0,$C$7))) -> 5.8% | PZ5: =_xlfn.STDEV.P(IF(ISNUMBER(OFFSET(PZ11,0,0,$C$7)),OFFSET(PZ11,0,0,$C$7)))/AVERAGE(IF(ISNUMBER(OFFSET(PZ11,0,0,$C$7)),OFFSET(PZ11,0,0,$C$7))) -> 27.8% | QA5: =_xlfn.STDEV.P(IF(ISNUMBER(OFFSET(QA11,0,0,$C$7)),OFFSET(QA11,0,0,$C$7)))/AVERAGE(IF(ISNUMBER(OFFSET(QA11,0,0,$C$7)),OFFSET(QA11,0,0,$C$7))) -> 8.5% | QB5: =_xlfn.STDEV.P(IF(ISNUMBER(OFFSET(QB11,0,0,$C$7)),OFFSET(QB11,0,0,$C$7)))/AVERAGE(IF(ISNUMBER(OFFSET(QB11,0,0,$C$7)),OFFSET(QB11,0,0,$C$7))) -> 6.3% | QC5: =_xlfn.STDEV.P(IF(ISNUMBER(OFFSET(QC11,0,0,$C$7)),OFFSET(QC11,0,0,$C$7)))/AVERAGE(IF(ISNUMBER(OFFSET(QC11,0,0,$C$7)),OFFSET(QC11,0,0,$C$7))) -> 12.3% | QD5: =_xlfn.STDEV.P(IF(ISNUMBER(OFFSET(QD11,0,0,$C$7)),OFFSET(QD11,0,0,$C$7)))/AVERAGE(IF(ISNUMBER(OFFSET(QD11,0,0,$C$7)),OFFSET(QD11,0,0,$C$7))) -> 12.7% | QE5: =_xlfn.STDEV.P(IF(ISNUMBER(OFFSET(QE11,0,0,$C$7)),OFFSET(QE11,0,0,$C$7)))/AVERAGE(IF(ISNUMBER(OFFSET(QE11,0,0,$C$7)),OFFSET(QE11,0,0,$C$7))) -> 6.3% | QF5: =_xlfn.STDEV.P(IF(ISNUMBER(OFFSET(QF11,0,0,$C$7)),OFFSET(QF11,0,0,$C$7)))/AVERAGE(IF(ISNUMBER(OFFSET(QF11,0,0,$C$7)),OFFSET(QF11,0,0,$C$7))) -> 53.9% | QG5: =_xlfn.STDEV.P(IF(ISNUMBER(OFFSET(QG11,0,0,$C$7)),OFFSET(QG11,0,0,$C$7)))/AVERAGE(IF(ISNUMBER(OFFSET(QG11,0,0,$C$7)),OFFSET(QG11,0,0,$C$7))) -> 22.0% | QH5: =_xlfn.STDEV.P(IF(ISNUMBER(OFFSET(QH11,0,0,$C$7)),OFFSET(QH11,0,0,$C$7)))/AVERAGE(IF(ISNUMBER(OFFSET(QH11,0,0,$C$7)),OFFSET(QH11,0,0,$C$7))) -> 10.6% | QI5: =_xlfn.STDEV.P(IF(ISNUMBER(OFFSET(QI11,0,0,$C$7)),OFFSET(QI11,0,0,$C$7)))/AVERAGE(IF(ISNUMBER(OFFSET(QI11,0,0,$C$7)),OFFSET(QI11,0,0,$C$7))) -> 9.0% | QJ5: =_xlfn.STDEV.P(IF(ISNUMBER(OFFSET(QJ11,0,0,$C$7)),OFFSET(QJ11,0,0,$C$7)))/AVERAGE(IF(ISNUMBER(OFFSET(QJ11,0,0,$C$7)),OFFSET(QJ11,0,0,$C$7))) -> 10.9% | QK5: =_xlfn.STDEV.P(IF(ISNUMBER(OFFSET(QK11,0,0,$C$7)),OFFSET(QK11,0,0,$C$7)))/AVERAGE(IF(ISNUMBER(OFFSET(QK11,0,0,$C$7)),OFFSET(QK11,0,0,$C$7))) -> 9.5% | QL5: =_xlfn.STDEV.P(IF(ISNUMBER(OFFSET(QL11,0,0,$C$7)),OFFSET(QL11,0,0,$C$7)))/AVERAGE(IF(ISNUMBER(OFFSET(QL11,0,0,$C$7)),OFFSET(QL11,0,0,$C$7))) -> 5.5% | QM5: =_xlfn.STDEV.P(IF(ISNUMBER(OFFSET(QM11,0,0,$C$7)),OFFSET(QM11,0,0,$C$7)))/AVERAGE(IF(ISNUMBER(OFFSET(QM11,0,0,$C$7)),OFFSET(QM11,0,0,$C$7))) -> 21.3% | QN5: =_xlfn.STDEV.P(IF(ISNUMBER(OFFSET(QN11,0,0,$C$7)),OFFSET(QN11,0,0,$C$7)))/AVERAGE(IF(ISNUMBER(OFFSET(QN11,0,0,$C$7)),OFFSET(QN11,0,0,$C$7))) -> 18.4% | QO5: =_xlfn.STDEV.P(IF(ISNUMBER(OFFSET(QO11,0,0,$C$7)),OFFSET(QO11,0,0,$C$7)))/AVERAGE(IF(ISNUMBER(OFFSET(QO11,0,0,$C$7)),OFFSET(QO11,0,0,$C$7))) -> 16.0% | QP5: =_xlfn.STDEV.P(IF(ISNUMBER(OFFSET(QP11,0,0,$C$7)),OFFSET(QP11,0,0,$C$7)))/AVERAGE(IF(ISNUMBER(OFFSET(QP11,0,0,$C$7)),OFFSET(QP11,0,0,$C$7))) -> 26.3% | QQ5: =_xlfn.STDEV.P(IF(ISNUMBER(OFFSET(QQ11,0,0,$C$7)),OFFSET(QQ11,0,0,$C$7)))/AVERAGE(IF(ISNUMBER(OFFSET(QQ11,0,0,$C$7)),OFFSET(QQ11,0,0,$C$7))) -> 31.0% | QR5: =_xlfn.STDEV.P(IF(ISNUMBER(OFFSET(QR11,0,0,$C$7)),OFFSET(QR11,0,0,$C$7)))/AVERAGE(IF(ISNUMBER(OFFSET(QR11,0,0,$C$7)),OFFSET(QR11,0,0,$C$7))) -> 25.4% | QS5: =_xlfn.STDEV.P(IF(ISNUMBER(OFFSET(QS11,0,0,$C$7)),OFFSET(QS11,0,0,$C$7)))/AVERAGE(IF(ISNUMBER(OFFSET(QS11,0,0,$C$7)),OFFSET(QS11,0,0,$C$7))) -> 8.7% | QT5: =_xlfn.STDEV.P(IF(ISNUMBER(OFFSET(QT11,0,0,$C$7)),OFFSET(QT11,0,0,$C$7)))/AVERAGE(IF(ISNUMBER(OFFSET(QT11,0,0,$C$7)),OFFSET(QT11,0,0,$C$7))) -> 11.6% | QU5: =_xlfn.STDEV.P(IF(ISNUMBER(OFFSET(QU11,0,0,$C$7)),OFFSET(QU11,0,0,$C$7)))/AVERAGE(IF(ISNUMBER(OFFSET(QU11,0,0,$C$7)),OFFSET(QU11,0,0,$C$7))) -> 18.5% | QV5: =_xlfn.STDEV.P(IF(ISNUMBER(OFFSET(QV11,0,0,$C$7)),OFFSET(QV11,0,0,$C$7)))/AVERAGE(IF(ISNUMBER(OFFSET(QV11,0,0,$C$7)),OFFSET(QV11,0,0,$C$7))) -> 26.2% | QW5: =_xlfn.STDEV.P(IF(ISNUMBER(OFFSET(QW11,0,0,$C$7)),OFFSET(QW11,0,0,$C$7)))/AVERAGE(IF(ISNUMBER(OFFSET(QW11,0,0,$C$7)),OFFSET(QW11,0,0,$C$7))) -> 22.5% | QX5: =_xlfn.STDEV.P(IF(ISNUMBER(OFFSET(QX11,0,0,$C$7)),OFFSET(QX11,0,0,$C$7)))/AVERAGE(IF(ISNUMBER(OFFSET(QX11,0,0,$C$7)),OFFSET(QX11,0,0,$C$7))) -> 24.7% | QY5: =_xlfn.STDEV.P(IF(ISNUMBER(OFFSET(QY11,0,0,$C$7)),OFFSET(QY11,0,0,$C$7)))/AVERAGE(IF(ISNUMBER(OFFSET(QY11,0,0,$C$7)),OFFSET(QY11,0,0,$C$7))) -> 18.7% | QZ5: =_xlfn.STDEV.P(IF(ISNUMBER(OFFSET(QZ11,0,0,$C$7)),OFFSET(QZ11,0,0,$C$7)))/AVERAGE(IF(ISNUMBER(OFFSET(QZ11,0,0,$C$7)),OFFSET(QZ11,0,0,$C$7))) -> 17.0% | RA5: =_xlfn.STDEV.P(IF(ISNUMBER(OFFSET(RA11,0,0,$C$7)),OFFSET(RA11,0,0,$C$7)))/AVERAGE(IF(ISNUMBER(OFFSET(RA11,0,0,$C$7)),OFFSET(RA11,0,0,$C$7))) -> 9.6% | RB5: =_xlfn.STDEV.P(IF(ISNUMBER(OFFSET(RB11,0,0,$C$7)),OFFSET(RB11,0,0,$C$7)))/AVERAGE(IF(ISNUMBER(OFFSET(RB11,0,0,$C$7)),OFFSET(RB11,0,0,$C$7))) -> 17.9% | RC5: =_xlfn.STDEV.P(IF(ISNUMBER(OFFSET(RC11,0,0,$C$7)),OFFSET(RC11,0,0,$C$7)))/AVERAGE(IF(ISNUMBER(OFFSET(RC11,0,0,$C$7)),OFFSET(RC11,0,0,$C$7))) -> 10.1% | RD5: =_xlfn.STDEV.P(IF(ISNUMBER(OFFSET(RD11,0,0,$C$7)),OFFSET(RD11,0,0,$C$7)))/AVERAGE(IF(ISNUMBER(OFFSET(RD11,0,0,$C$7)),OFFSET(RD11,0,0,$C$7))) -> 16.1% | RE5: =_xlfn.STDEV.P(IF(ISNUMBER(OFFSET(RE11,0,0,$C$7)),OFFSET(RE11,0,0,$C$7)))/AVERAGE(IF(ISNUMBER(OFFSET(RE11,0,0,$C$7)),OFFSET(RE11,0,0,$C$7))) -> 8.1% | RF5: =_xlfn.STDEV.P(IF(ISNUMBER(OFFSET(RF11,0,0,$C$7)),OFFSET(RF11,0,0,$C$7)))/AVERAGE(IF(ISNUMBER(OFFSET(RF11,0,0,$C$7)),OFFSET(RF11,0,0,$C$7))) -> 12.8% | RG5: =_xlfn.STDEV.P(IF(ISNUMBER(OFFSET(RG11,0,0,$C$7)),OFFSET(RG11,0,0,$C$7)))/AVERAGE(IF(ISNUMBER(OFFSET(RG11,0,0,$C$7)),OFFSET(RG11,0,0,$C$7))) -> 32.9% | RH5: =_xlfn.STDEV.P(IF(ISNUMBER(OFFSET(RH11,0,0,$C$7)),OFFSET(RH11,0,0,$C$7)))/AVERAGE(IF(ISNUMBER(OFFSET(RH11,0,0,$C$7)),OFFSET(RH11,0,0,$C$7))) -> 20.9% | RI5: =_xlfn.STDEV.P(IF(ISNUMBER(OFFSET(RI11,0,0,$C$7)),OFFSET(RI11,0,0,$C$7)))/AVERAGE(IF(ISNUMBER(OFFSET(RI11,0,0,$C$7)),OFFSET(RI11,0,0,$C$7))) -> 49.9% | RJ5: =_xlfn.STDEV.P(IF(ISNUMBER(OFFSET(RJ11,0,0,$C$7)),OFFSET(RJ11,0,0,$C$7)))/AVERAGE(IF(ISNUMBER(OFFSET(RJ11,0,0,$C$7)),OFFSET(RJ11,0,0,$C$7))) -> 27.3% | RK5: =_xlfn.STDEV.P(IF(ISNUMBER(OFFSET(RK11,0,0,$C$7)),OFFSET(RK11,0,0,$C$7)))/AVERAGE(IF(ISNUMBER(OFFSET(RK11,0,0,$C$7)),OFFSET(RK11,0,0,$C$7))) -> 26.3% | RL5: =_xlfn.STDEV.P(IF(ISNUMBER(OFFSET(RL11,0,0,$C$7)),OFFSET(RL11,0,0,$C$7)))/AVERAGE(IF(ISNUMBER(OFFSET(RL11,0,0,$C$7)),OFFSET(RL11,0,0,$C$7))) -> 15.6% | RM5: =_xlfn.STDEV.P(IF(ISNUMBER(OFFSET(RM11,0,0,$C$7)),OFFSET(RM11,0,0,$C$7)))/AVERAGE(IF(ISNUMBER(OFFSET(RM11,0,0,$C$7)),OFFSET(RM11,0,0,$C$7))) -> 17.3% | RN5: =_xlfn.STDEV.P(IF(ISNUMBER(OFFSET(RN11,0,0,$C$7)),OFFSET(RN11,0,0,$C$7)))/AVERAGE(IF(ISNUMBER(OFFSET(RN11,0,0,$C$7)),OFFSET(RN11,0,0,$C$7))) -> 23.2% | RO5: =_xlfn.STDEV.P(IF(ISNUMBER(OFFSET(RO11,0,0,$C$7)),OFFSET(RO11,0,0,$C$7)))/AVERAGE(IF(ISNUMBER(OFFSET(RO11,0,0,$C$7)),OFFSET(RO11,0,0,$C$7))) -> 30.9% | RP5: =_xlfn.STDEV.P(IF(ISNUMBER(OFFSET(RP11,0,0,$C$7)),OFFSET(RP11,0,0,$C$7)))/AVERAGE(IF(ISNUMBER(OFFSET(RP11,0,0,$C$7)),OFFSET(RP11,0,0,$C$7))) -> 31.3% | RQ5: =_xlfn.STDEV.P(IF(ISNUMBER(OFFSET(RQ11,0,0,$C$7)),OFFSET(RQ11,0,0,$C$7)))/AVERAGE(IF(ISNUMBER(OFFSET(RQ11,0,0,$C$7)),OFFSET(RQ11,0,0,$C$7))) -> 16.0% | RR5: =_xlfn.STDEV.P(IF(ISNUMBER(OFFSET(RR11,0,0,$C$7)),OFFSET(RR11,0,0,$C$7)))/AVERAGE(IF(ISNUMBER(OFFSET(RR11,0,0,$C$7)),OFFSET(RR11,0,0,$C$7))) -> 6.5% | RS5: =_xlfn.STDEV.P(IF(ISNUMBER(OFFSET(RS11,0,0,$C$7)),OFFSET(RS11,0,0,$C$7)))/AVERAGE(IF(ISNUMBER(OFFSET(RS11,0,0,$C$7)),OFFSET(RS11,0,0,$C$7))) -> 14.7% | RT5: =_xlfn.STDEV.P(IF(ISNUMBER(OFFSET(RT11,0,0,$C$7)),OFFSET(RT11,0,0,$C$7)))/AVERAGE(IF(ISNUMBER(OFFSET(RT11,0,0,$C$7)),OFFSET(RT11,0,0,$C$7))) -> 12.7% | RU5: =_xlfn.STDEV.P(IF(ISNUMBER(OFFSET(RU11,0,0,$C$7)),OFFSET(RU11,0,0,$C$7)))/AVERAGE(IF(ISNUMBER(OFFSET(RU11,0,0,$C$7)),OFFSET(RU11,0,0,$C$7))) -> 13.2% | RV5: =_xlfn.STDEV.P(IF(ISNUMBER(OFFSET(RV11,0,0,$C$7)),OFFSET(RV11,0,0,$C$7)))/AVERAGE(IF(ISNUMBER(OFFSET(RV11,0,0,$C$7)),OFFSET(RV11,0,0,$C$7))) -> 15.7% | RW5: =_xlfn.STDEV.P(IF(ISNUMBER(OFFSET(RW11,0,0,$C$7)),OFFSET(RW11,0,0,$C$7)))/AVERAGE(IF(ISNUMBER(OFFSET(RW11,0,0,$C$7)),OFFSET(RW11,0,0,$C$7))) -> 2.8% | RX5: =_xlfn.STDEV.P(IF(ISNUMBER(OFFSET(RX11,0,0,$C$7)),OFFSET(RX11,0,0,$C$7)))/AVERAGE(IF(ISNUMBER(OFFSET(RX11,0,0,$C$7)),OFFSET(RX11,0,0,$C$7))) -> 9.4% | RY5: =_xlfn.STDEV.P(IF(ISNUMBER(OFFSET(RY11,0,0,$C$7)),OFFSET(RY11,0,0,$C$7)))/AVERAGE(IF(ISNUMBER(OFFSET(RY11,0,0,$C$7)),OFFSET(RY11,0,0,$C$7))) -> 6.6% | RZ5: =_xlfn.STDEV.P(IF(ISNUMBER(OFFSET(RZ11,0,0,$C$7)),OFFSET(RZ11,0,0,$C$7)))/AVERAGE(IF(ISNUMBER(OFFSET(RZ11,0,0,$C$7)),OFFSET(RZ11,0,0,$C$7))) ->  | SA5: =_xlfn.STDEV.P(IF(ISNUMBER(OFFSET(SA11,0,0,$C$7)),OFFSET(SA11,0,0,$C$7)))/AVERAGE(IF(ISNUMBER(OFFSET(SA11,0,0,$C$7)),OFFSET(SA11,0,0,$C$7))) -> 18.7% | SB5: =_xlfn.STDEV.P(IF(ISNUMBER(OFFSET(SB11,0,0,$C$7)),OFFSET(SB11,0,0,$C$7)))/AVERAGE(IF(ISNUMBER(OFFSET(SB11,0,0,$C$7)),OFFSET(SB11,0,0,$C$7))) -> 15.9% | SC5: =_xlfn.STDEV.P(IF(ISNUMBER(OFFSET(SC11,0,0,$C$7)),OFFSET(SC11,0,0,$C$7)))/AVERAGE(IF(ISNUMBER(OFFSET(SC11,0,0,$C$7)),OFFSET(SC11,0,0,$C$7))) -> 7.8% | SD5: =_xlfn.STDEV.P(IF(ISNUMBER(OFFSET(SD11,0,0,$C$7)),OFFSET(SD11,0,0,$C$7)))/AVERAGE(IF(ISNUMBER(OFFSET(SD11,0,0,$C$7)),OFFSET(SD11,0,0,$C$7))) -> 20.2% | SE5: =_xlfn.STDEV.P(IF(ISNUMBER(OFFSET(SE11,0,0,$C$7)),OFFSET(SE11,0,0,$C$7)))/AVERAGE(IF(ISNUMBER(OFFSET(SE11,0,0,$C$7)),OFFSET(SE11,0,0,$C$7))) -> 16.5% | SF5: =_xlfn.STDEV.P(IF(ISNUMBER(OFFSET(SF11,0,0,$C$7)),OFFSET(SF11,0,0,$C$7)))/AVERAGE(IF(ISNUMBER(OFFSET(SF11,0,0,$C$7)),OFFSET(SF11,0,0,$C$7))) -> 54.8% | SG5: =_xlfn.STDEV.P(IF(ISNUMBER(OFFSET(SG11,0,0,$C$7)),OFFSET(SG11,0,0,$C$7)))/AVERAGE(IF(ISNUMBER(OFFSET(SG11,0,0,$C$7)),OFFSET(SG11,0,0,$C$7))) -> 9.3% | SH5: =_xlfn.STDEV.P(IF(ISNUMBER(OFFSET(SH11,0,0,$C$7)),OFFSET(SH11,0,0,$C$7)))/AVERAGE(IF(ISNUMBER(OFFSET(SH11,0,0,$C$7)),OFFSET(SH11,0,0,$C$7))) -> 15.7% | SI5: =_xlfn.STDEV.P(IF(ISNUMBER(OFFSET(SI11,0,0,$C$7)),OFFSET(SI11,0,0,$C$7)))/AVERAGE(IF(ISNUMBER(OFFSET(SI11,0,0,$C$7)),OFFSET(SI11,0,0,$C$7))) -> 10.5% | SJ5: =_xlfn.STDEV.P(IF(ISNUMBER(OFFSET(SJ11,0,0,$C$7)),OFFSET(SJ11,0,0,$C$7)))/AVERAGE(IF(ISNUMBER(OFFSET(SJ11,0,0,$C$7)),OFFSET(SJ11,0,0,$C$7))) -> 10.9% | SK5: =_xlfn.STDEV.P(IF(ISNUMBER(OFFSET(SK11,0,0,$C$7)),OFFSET(SK11,0,0,$C$7)))/AVERAGE(IF(ISNUMBER(OFFSET(SK11,0,0,$C$7)),OFFSET(SK11,0,0,$C$7))) -> 8.1% | SL5: =_xlfn.STDEV.P(IF(ISNUMBER(OFFSET(SL11,0,0,$C$7)),OFFSET(SL11,0,0,$C$7)))/AVERAGE(IF(ISNUMBER(OFFSET(SL11,0,0,$C$7)),OFFSET(SL11,0,0,$C$7))) -> 12.7% | SM5: =_xlfn.STDEV.P(IF(ISNUMBER(OFFSET(SM11,0,0,$C$7)),OFFSET(SM11,0,0,$C$7)))/AVERAGE(IF(ISNUMBER(OFFSET(SM11,0,0,$C$7)),OFFSET(SM11,0,0,$C$7))) -> 15.5% | SN5: =_xlfn.STDEV.P(IF(ISNUMBER(OFFSET(SN11,0,0,$C$7)),OFFSET(SN11,0,0,$C$7)))/AVERAGE(IF(ISNUMBER(OFFSET(SN11,0,0,$C$7)),OFFSET(SN11,0,0,$C$7))) -> 28.9% | SO5: =_xlfn.STDEV.P(IF(ISNUMBER(OFFSET(SO11,0,0,$C$7)),OFFSET(SO11,0,0,$C$7)))/AVERAGE(IF(ISNUMBER(OFFSET(SO11,0,0,$C$7)),OFFSET(SO11,0,0,$C$7))) -> 46.1% | SP5: =_xlfn.STDEV.P(IF(ISNUMBER(OFFSET(SP11,0,0,$C$7)),OFFSET(SP11,0,0,$C$7)))/AVERAGE(IF(ISNUMBER(OFFSET(SP11,0,0,$C$7)),OFFSET(SP11,0,0,$C$7))) -> 16.6% | SQ5: =_xlfn.STDEV.P(IF(ISNUMBER(OFFSET(SQ11,0,0,$C$7)),OFFSET(SQ11,0,0,$C$7)))/AVERAGE(IF(ISNUMBER(OFFSET(SQ11,0,0,$C$7)),OFFSET(SQ11,0,0,$C$7))) -> 13.6% | SR5: =_xlfn.STDEV.P(IF(ISNUMBER(OFFSET(SR11,0,0,$C$7)),OFFSET(SR11,0,0,$C$7)))/AVERAGE(IF(ISNUMBER(OFFSET(SR11,0,0,$C$7)),OFFSET(SR11,0,0,$C$7))) -> 9.3% | SS5: =_xlfn.STDEV.P(IF(ISNUMBER(OFFSET(SS11,0,0,$C$7)),OFFSET(SS11,0,0,$C$7)))/AVERAGE(IF(ISNUMBER(OFFSET(SS11,0,0,$C$7)),OFFSET(SS11,0,0,$C$7))) -> 13.3% | ST5: =_xlfn.STDEV.P(IF(ISNUMBER(OFFSET(ST11,0,0,$C$7)),OFFSET(ST11,0,0,$C$7)))/AVERAGE(IF(ISNUMBER(OFFSET(ST11,0,0,$C$7)),OFFSET(ST11,0,0,$C$7))) -> 8.2% | SU5: =_xlfn.STDEV.P(IF(ISNUMBER(OFFSET(SU11,0,0,$C$7)),OFFSET(SU11,0,0,$C$7)))/AVERAGE(IF(ISNUMBER(OFFSET(SU11,0,0,$C$7)),OFFSET(SU11,0,0,$C$7))) -> 9.7% | SV5: =_xlfn.STDEV.P(IF(ISNUMBER(OFFSET(SV11,0,0,$C$7)),OFFSET(SV11,0,0,$C$7)))/AVERAGE(IF(ISNUMBER(OFFSET(SV11,0,0,$C$7)),OFFSET(SV11,0,0,$C$7))) -> 11.5% | SW5: =_xlfn.STDEV.P(IF(ISNUMBER(OFFSET(SW11,0,0,$C$7)),OFFSET(SW11,0,0,$C$7)))/AVERAGE(IF(ISNUMBER(OFFSET(SW11,0,0,$C$7)),OFFSET(SW11,0,0,$C$7))) -> 5.2% | SX5: =_xlfn.STDEV.P(IF(ISNUMBER(OFFSET(SX11,0,0,$C$7)),OFFSET(SX11,0,0,$C$7)))/AVERAGE(IF(ISNUMBER(OFFSET(SX11,0,0,$C$7)),OFFSET(SX11,0,0,$C$7))) -> 10.6% | SY5: =_xlfn.STDEV.P(IF(ISNUMBER(OFFSET(SY11,0,0,$C$7)),OFFSET(SY11,0,0,$C$7)))/AVERAGE(IF(ISNUMBER(OFFSET(SY11,0,0,$C$7)),OFFSET(SY11,0,0,$C$7))) -> 6.8% | SZ5: =_xlfn.STDEV.P(IF(ISNUMBER(OFFSET(SZ11,0,0,$C$7)),OFFSET(SZ11,0,0,$C$7)))/AVERAGE(IF(ISNUMBER(OFFSET(SZ11,0,0,$C$7)),OFFSET(SZ11,0,0,$C$7))) -> 9.9% | TA5: =_xlfn.STDEV.P(IF(ISNUMBER(OFFSET(TA11,0,0,$C$7)),OFFSET(TA11,0,0,$C$7)))/AVERAGE(IF(ISNUMBER(OFFSET(TA11,0,0,$C$7)),OFFSET(TA11,0,0,$C$7))) -> 9.2% | TB5: =_xlfn.STDEV.P(IF(ISNUMBER(OFFSET(TB11,0,0,$C$7)),OFFSET(TB11,0,0,$C$7)))/AVERAGE(IF(ISNUMBER(OFFSET(TB11,0,0,$C$7)),OFFSET(TB11,0,0,$C$7))) -> 13.3% | TC5: =_xlfn.STDEV.P(IF(ISNUMBER(OFFSET(TC11,0,0,$C$7)),OFFSET(TC11,0,0,$C$7)))/AVERAGE(IF(ISNUMBER(OFFSET(TC11,0,0,$C$7)),OFFSET(TC11,0,0,$C$7))) -> 5.6% | TD5: =_xlfn.STDEV.P(IF(ISNUMBER(OFFSET(TD11,0,0,$C$7)),OFFSET(TD11,0,0,$C$7)))/AVERAGE(IF(ISNUMBER(OFFSET(TD11,0,0,$C$7)),OFFSET(TD11,0,0,$C$7))) -> 9.8% | TE5: =_xlfn.STDEV.P(IF(ISNUMBER(OFFSET(TE11,0,0,$C$7)),OFFSET(TE11,0,0,$C$7)))/AVERAGE(IF(ISNUMBER(OFFSET(TE11,0,0,$C$7)),OFFSET(TE11,0,0,$C$7))) -> 14.8% | TF5: =_xlfn.STDEV.P(IF(ISNUMBER(OFFSET(TF11,0,0,$C$7)),OFFSET(TF11,0,0,$C$7)))/AVERAGE(IF(ISNUMBER(OFFSET(TF11,0,0,$C$7)),OFFSET(TF11,0,0,$C$7))) -> 16.1% | TG5: =_xlfn.STDEV.P(IF(ISNUMBER(OFFSET(TG11,0,0,$C$7)),OFFSET(TG11,0,0,$C$7)))/AVERAGE(IF(ISNUMBER(OFFSET(TG11,0,0,$C$7)),OFFSET(TG11,0,0,$C$7))) -> 26.6% | TH5: =_xlfn.STDEV.P(IF(ISNUMBER(OFFSET(TH11,0,0,$C$7)),OFFSET(TH11,0,0,$C$7)))/AVERAGE(IF(ISNUMBER(OFFSET(TH11,0,0,$C$7)),OFFSET(TH11,0,0,$C$7))) -> 2.6% | TI5: =_xlfn.STDEV.P(IF(ISNUMBER(OFFSET(TI11,0,0,$C$7)),OFFSET(TI11,0,0,$C$7)))/AVERAGE(IF(ISNUMBER(OFFSET(TI11,0,0,$C$7)),OFFSET(TI11,0,0,$C$7))) -> 23.8% | TJ5: =_xlfn.STDEV.P(IF(ISNUMBER(OFFSET(TJ11,0,0,$C$7)),OFFSET(TJ11,0,0,$C$7)))/AVERAGE(IF(ISNUMBER(OFFSET(TJ11,0,0,$C$7)),OFFSET(TJ11,0,0,$C$7))) -> 3.0% | TK5: =_xlfn.STDEV.P(IF(ISNUMBER(OFFSET(TK11,0,0,$C$7)),OFFSET(TK11,0,0,$C$7)))/AVERAGE(IF(ISNUMBER(OFFSET(TK11,0,0,$C$7)),OFFSET(TK11,0,0,$C$7))) -> 13.2% | TL5: =_xlfn.STDEV.P(IF(ISNUMBER(OFFSET(TL11,0,0,$C$7)),OFFSET(TL11,0,0,$C$7)))/AVERAGE(IF(ISNUMBER(OFFSET(TL11,0,0,$C$7)),OFFSET(TL11,0,0,$C$7))) -> 9.8% | TM5: =_xlfn.STDEV.P(IF(ISNUMBER(OFFSET(TM11,0,0,$C$7)),OFFSET(TM11,0,0,$C$7)))/AVERAGE(IF(ISNUMBER(OFFSET(TM11,0,0,$C$7)),OFFSET(TM11,0,0,$C$7))) -> 45.5% | TN5: =_xlfn.STDEV.P(IF(ISNUMBER(OFFSET(TN11,0,0,$C$7)),OFFSET(TN11,0,0,$C$7)))/AVERAGE(IF(ISNUMBER(OFFSET(TN11,0,0,$C$7)),OFFSET(TN11,0,0,$C$7))) -> 7.9% | TO5: =_xlfn.STDEV.P(IF(ISNUMBER(OFFSET(TO11,0,0,$C$7)),OFFSET(TO11,0,0,$C$7)))/AVERAGE(IF(ISNUMBER(OFFSET(TO11,0,0,$C$7)),OFFSET(TO11,0,0,$C$7))) -> 6.1% | TP5: =_xlfn.STDEV.P(IF(ISNUMBER(OFFSET(TP11,0,0,$C$7)),OFFSET(TP11,0,0,$C$7)))/AVERAGE(IF(ISNUMBER(OFFSET(TP11,0,0,$C$7)),OFFSET(TP11,0,0,$C$7))) -> 24.2% | TQ5: =_xlfn.STDEV.P(IF(ISNUMBER(OFFSET(TQ11,0,0,$C$7)),OFFSET(TQ11,0,0,$C$7)))/AVERAGE(IF(ISNUMBER(OFFSET(TQ11,0,0,$C$7)),OFFSET(TQ11,0,0,$C$7))) -> 9.0% | TR5: =_xlfn.STDEV.P(IF(ISNUMBER(OFFSET(TR11,0,0,$C$7)),OFFSET(TR11,0,0,$C$7)))/AVERAGE(IF(ISNUMBER(OFFSET(TR11,0,0,$C$7)),OFFSET(TR11,0,0,$C$7))) -> 7.7% | TS5: =_xlfn.STDEV.P(IF(ISNUMBER(OFFSET(TS11,0,0,$C$7)),OFFSET(TS11,0,0,$C$7)))/AVERAGE(IF(ISNUMBER(OFFSET(TS11,0,0,$C$7)),OFFSET(TS11,0,0,$C$7))) -> 7.9% | TT5: =_xlfn.STDEV.P(IF(ISNUMBER(OFFSET(TT11,0,0,$C$7)),OFFSET(TT11,0,0,$C$7)))/AVERAGE(IF(ISNUMBER(OFFSET(TT11,0,0,$C$7)),OFFSET(TT11,0,0,$C$7))) -> 16.7% | TU5: =_xlfn.STDEV.P(IF(ISNUMBER(OFFSET(TU11,0,0,$C$7)),OFFSET(TU11,0,0,$C$7)))/AVERAGE(IF(ISNUMBER(OFFSET(TU11,0,0,$C$7)),OFFSET(TU11,0,0,$C$7))) -> 6.2% | TV5: =_xlfn.STDEV.P(IF(ISNUMBER(OFFSET(TV11,0,0,$C$7)),OFFSET(TV11,0,0,$C$7)))/AVERAGE(IF(ISNUMBER(OFFSET(TV11,0,0,$C$7)),OFFSET(TV11,0,0,$C$7))) -> 13.3% | TW5: =_xlfn.STDEV.P(IF(ISNUMBER(OFFSET(TW11,0,0,$C$7)),OFFSET(TW11,0,0,$C$7)))/AVERAGE(IF(ISNUMBER(OFFSET(TW11,0,0,$C$7)),OFFSET(TW11,0,0,$C$7))) -> 7.5% | TX5: =_xlfn.STDEV.P(IF(ISNUMBER(OFFSET(TX11,0,0,$C$7)),OFFSET(TX11,0,0,$C$7)))/AVERAGE(IF(ISNUMBER(OFFSET(TX11,0,0,$C$7)),OFFSET(TX11,0,0,$C$7))) -> 4.9% | TY5: =_xlfn.STDEV.P(IF(ISNUMBER(OFFSET(TY11,0,0,$C$7)),OFFSET(TY11,0,0,$C$7)))/AVERAGE(IF(ISNUMBER(OFFSET(TY11,0,0,$C$7)),OFFSET(TY11,0,0,$C$7))) -> 62.9% | TZ5: =_xlfn.STDEV.P(IF(ISNUMBER(OFFSET(TZ11,0,0,$C$7)),OFFSET(TZ11,0,0,$C$7)))/AVERAGE(IF(ISNUMBER(OFFSET(TZ11,0,0,$C$7)),OFFSET(TZ11,0,0,$C$7))) -> 9.6% | UA5: =_xlfn.STDEV.P(IF(ISNUMBER(OFFSET(UA11,0,0,$C$7)),OFFSET(UA11,0,0,$C$7)))/AVERAGE(IF(ISNUMBER(OFFSET(UA11,0,0,$C$7)),OFFSET(UA11,0,0,$C$7))) -> 12.0% | UB5: =_xlfn.STDEV.P(IF(ISNUMBER(OFFSET(UB11,0,0,$C$7)),OFFSET(UB11,0,0,$C$7)))/AVERAGE(IF(ISNUMBER(OFFSET(UB11,0,0,$C$7)),OFFSET(UB11,0,0,$C$7))) -> 14.6% | UC5: =_xlfn.STDEV.P(IF(ISNUMBER(OFFSET(UC11,0,0,$C$7)),OFFSET(UC11,0,0,$C$7)))/AVERAGE(IF(ISNUMBER(OFFSET(UC11,0,0,$C$7)),OFFSET(UC11,0,0,$C$7))) -> 5.3% | UD5: =_xlfn.STDEV.P(IF(ISNUMBER(OFFSET(UD11,0,0,$C$7)),OFFSET(UD11,0,0,$C$7)))/AVERAGE(IF(ISNUMBER(OFFSET(UD11,0,0,$C$7)),OFFSET(UD11,0,0,$C$7))) -> 10.6% | UE5: =_xlfn.STDEV.P(IF(ISNUMBER(OFFSET(UE11,0,0,$C$7)),OFFSET(UE11,0,0,$C$7)))/AVERAGE(IF(ISNUMBER(OFFSET(UE11,0,0,$C$7)),OFFSET(UE11,0,0,$C$7))) -> 5.7% | UF5: =_xlfn.STDEV.P(IF(ISNUMBER(OFFSET(UF11,0,0,$C$7)),OFFSET(UF11,0,0,$C$7)))/AVERAGE(IF(ISNUMBER(OFFSET(UF11,0,0,$C$7)),OFFSET(UF11,0,0,$C$7))) -> 9.9% | UG5: =_xlfn.STDEV.P(IF(ISNUMBER(OFFSET(UG11,0,0,$C$7)),OFFSET(UG11,0,0,$C$7)))/AVERAGE(IF(ISNUMBER(OFFSET(UG11,0,0,$C$7)),OFFSET(UG11,0,0,$C$7))) -> 10.9% | UH5: =_xlfn.STDEV.P(IF(ISNUMBER(OFFSET(UH11,0,0,$C$7)),OFFSET(UH11,0,0,$C$7)))/AVERAGE(IF(ISNUMBER(OFFSET(UH11,0,0,$C$7)),OFFSET(UH11,0,0,$C$7))) -> 21.5% | UI5: =_xlfn.STDEV.P(IF(ISNUMBER(OFFSET(UI11,0,0,$C$7)),OFFSET(UI11,0,0,$C$7)))/AVERAGE(IF(ISNUMBER(OFFSET(UI11,0,0,$C$7)),OFFSET(UI11,0,0,$C$7))) -> 10.2% | UJ5: =_xlfn.STDEV.P(IF(ISNUMBER(OFFSET(UJ11,0,0,$C$7)),OFFSET(UJ11,0,0,$C$7)))/AVERAGE(IF(ISNUMBER(OFFSET(UJ11,0,0,$C$7)),OFFSET(UJ11,0,0,$C$7))) -> 25.1% | UK5: =_xlfn.STDEV.P(IF(ISNUMBER(OFFSET(UK11,0,0,$C$7)),OFFSET(UK11,0,0,$C$7)))/AVERAGE(IF(ISNUMBER(OFFSET(UK11,0,0,$C$7)),OFFSET(UK11,0,0,$C$7))) -> 6.9% | UL5: =_xlfn.STDEV.P(IF(ISNUMBER(OFFSET(UL11,0,0,$C$7)),OFFSET(UL11,0,0,$C$7)))/AVERAGE(IF(ISNUMBER(OFFSET(UL11,0,0,$C$7)),OFFSET(UL11,0,0,$C$7))) -> 14.0% | UM5: =_xlfn.STDEV.P(IF(ISNUMBER(OFFSET(UM11,0,0,$C$7)),OFFSET(UM11,0,0,$C$7)))/AVERAGE(IF(ISNUMBER(OFFSET(UM11,0,0,$C$7)),OFFSET(UM11,0,0,$C$7))) -> 8.4% | UN5: =_xlfn.STDEV.P(IF(ISNUMBER(OFFSET(UN11,0,0,$C$7)),OFFSET(UN11,0,0,$C$7)))/AVERAGE(IF(ISNUMBER(OFFSET(UN11,0,0,$C$7)),OFFSET(UN11,0,0,$C$7))) -> 14.6% | UO5: =_xlfn.STDEV.P(IF(ISNUMBER(OFFSET(UO11,0,0,$C$7)),OFFSET(UO11,0,0,$C$7)))/AVERAGE(IF(ISNUMBER(OFFSET(UO11,0,0,$C$7)),OFFSET(UO11,0,0,$C$7))) -> 12.0% | UP5: =_xlfn.STDEV.P(IF(ISNUMBER(OFFSET(UP11,0,0,$C$7)),OFFSET(UP11,0,0,$C$7)))/AVERAGE(IF(ISNUMBER(OFFSET(UP11,0,0,$C$7)),OFFSET(UP11,0,0,$C$7))) -> 36.1% | UQ5: =_xlfn.STDEV.P(IF(ISNUMBER(OFFSET(UQ11,0,0,$C$7)),OFFSET(UQ11,0,0,$C$7)))/AVERAGE(IF(ISNUMBER(OFFSET(UQ11,0,0,$C$7)),OFFSET(UQ11,0,0,$C$7))) -> 3.9% | UR5: =_xlfn.STDEV.P(IF(ISNUMBER(OFFSET(UR11,0,0,$C$7)),OFFSET(UR11,0,0,$C$7)))/AVERAGE(IF(ISNUMBER(OFFSET(UR11,0,0,$C$7)),OFFSET(UR11,0,0,$C$7))) -> 9.1% | US5: =_xlfn.STDEV.P(IF(ISNUMBER(OFFSET(US11,0,0,$C$7)),OFFSET(US11,0,0,$C$7)))/AVERAGE(IF(ISNUMBER(OFFSET(US11,0,0,$C$7)),OFFSET(US11,0,0,$C$7))) -> 22.0% | UT5: =_xlfn.STDEV.P(IF(ISNUMBER(OFFSET(UT11,0,0,$C$7)),OFFSET(UT11,0,0,$C$7)))/AVERAGE(IF(ISNUMBER(OFFSET(UT11,0,0,$C$7)),OFFSET(UT11,0,0,$C$7))) -> 7.0% | UU5: =_xlfn.STDEV.P(IF(ISNUMBER(OFFSET(UU11,0,0,$C$7)),OFFSET(UU11,0,0,$C$7)))/AVERAGE(IF(ISNUMBER(OFFSET(UU11,0,0,$C$7)),OFFSET(UU11,0,0,$C$7))) -> 10.1% | UV5: =_xlfn.STDEV.P(IF(ISNUMBER(OFFSET(UV11,0,0,$C$7)),OFFSET(UV11,0,0,$C$7)))/AVERAGE(IF(ISNUMBER(OFFSET(UV11,0,0,$C$7)),OFFSET(UV11,0,0,$C$7))) -> 3.6% | UW5: =_xlfn.STDEV.P(IF(ISNUMBER(OFFSET(UW11,0,0,$C$7)),OFFSET(UW11,0,0,$C$7)))/AVERAGE(IF(ISNUMBER(OFFSET(UW11,0,0,$C$7)),OFFSET(UW11,0,0,$C$7))) -> 372.8% | UX5: =_xlfn.STDEV.P(IF(ISNUMBER(OFFSET(UX11,0,0,$C$7)),OFFSET(UX11,0,0,$C$7)))/AVERAGE(IF(ISNUMBER(OFFSET(UX11,0,0,$C$7)),OFFSET(UX11,0,0,$C$7))) -> 8.8% | UY5: =_xlfn.STDEV.P(IF(ISNUMBER(OFFSET(UY11,0,0,$C$7)),OFFSET(UY11,0,0,$C$7)))/AVERAGE(IF(ISNUMBER(OFFSET(UY11,0,0,$C$7)),OFFSET(UY11,0,0,$C$7))) -> 11.4% | UZ5: =_xlfn.STDEV.P(IF(ISNUMBER(OFFSET(UZ11,0,0,$C$7)),OFFSET(UZ11,0,0,$C$7)))/AVERAGE(IF(ISNUMBER(OFFSET(UZ11,0,0,$C$7)),OFFSET(UZ11,0,0,$C$7))) -> 11.8% | VA5: =_xlfn.STDEV.P(IF(ISNUMBER(OFFSET(VA11,0,0,$C$7)),OFFSET(VA11,0,0,$C$7)))/AVERAGE(IF(ISNUMBER(OFFSET(VA11,0,0,$C$7)),OFFSET(VA11,0,0,$C$7))) -> 12.8% | VB5: =_xlfn.STDEV.P(IF(ISNUMBER(OFFSET(VB11,0,0,$C$7)),OFFSET(VB11,0,0,$C$7)))/AVERAGE(IF(ISNUMBER(OFFSET(VB11,0,0,$C$7)),OFFSET(VB11,0,0,$C$7))) -> 5.0% | VC5: =_xlfn.STDEV.P(IF(ISNUMBER(OFFSET(VC11,0,0,$C$7)),OFFSET(VC11,0,0,$C$7)))/AVERAGE(IF(ISNUMBER(OFFSET(VC11,0,0,$C$7)),OFFSET(VC11,0,0,$C$7))) -> 24.7% | VD5: =_xlfn.STDEV.P(IF(ISNUMBER(OFFSET(VD11,0,0,$C$7)),OFFSET(VD11,0,0,$C$7)))/AVERAGE(IF(ISNUMBER(OFFSET(VD11,0,0,$C$7)),OFFSET(VD11,0,0,$C$7))) -> 22.1% | VE5: =_xlfn.STDEV.P(IF(ISNUMBER(OFFSET(VE11,0,0,$C$7)),OFFSET(VE11,0,0,$C$7)))/AVERAGE(IF(ISNUMBER(OFFSET(VE11,0,0,$C$7)),OFFSET(VE11,0,0,$C$7))) -> 16.1% | VF5: =_xlfn.STDEV.P(IF(ISNUMBER(OFFSET(VF11,0,0,$C$7)),OFFSET(VF11,0,0,$C$7)))/AVERAGE(IF(ISNUMBER(OFFSET(VF11,0,0,$C$7)),OFFSET(VF11,0,0,$C$7))) -> 30.1% | VG5: =_xlfn.STDEV.P(IF(ISNUMBER(OFFSET(VG11,0,0,$C$7)),OFFSET(VG11,0,0,$C$7)))/AVERAGE(IF(ISNUMBER(OFFSET(VG11,0,0,$C$7)),OFFSET(VG11,0,0,$C$7))) -> 37.8% | VH5: =_xlfn.STDEV.P(IF(ISNUMBER(OFFSET(VH11,0,0,$C$7)),OFFSET(VH11,0,0,$C$7)))/AVERAGE(IF(ISNUMBER(OFFSET(VH11,0,0,$C$7)),OFFSET(VH11,0,0,$C$7))) -> 13.8% | VI5: =_xlfn.STDEV.P(IF(ISNUMBER(OFFSET(VI11,0,0,$C$7)),OFFSET(VI11,0,0,$C$7)))/AVERAGE(IF(ISNUMBER(OFFSET(VI11,0,0,$C$7)),OFFSET(VI11,0,0,$C$7))) -> 102.9% | VJ5: =_xlfn.STDEV.P(IF(ISNUMBER(OFFSET(VJ11,0,0,$C$7)),OFFSET(VJ11,0,0,$C$7)))/AVERAGE(IF(ISNUMBER(OFFSET(VJ11,0,0,$C$7)),OFFSET(VJ11,0,0,$C$7))) -> 6.2% | VK5: =_xlfn.STDEV.P(IF(ISNUMBER(OFFSET(VK11,0,0,$C$7)),OFFSET(VK11,0,0,$C$7)))/AVERAGE(IF(ISNUMBER(OFFSET(VK11,0,0,$C$7)),OFFSET(VK11,0,0,$C$7))) -> 6.1% | VL5: =_xlfn.STDEV.P(IF(ISNUMBER(OFFSET(VL11,0,0,$C$7)),OFFSET(VL11,0,0,$C$7)))/AVERAGE(IF(ISNUMBER(OFFSET(VL11,0,0,$C$7)),OFFSET(VL11,0,0,$C$7))) -> 8.6% | VM5: =_xlfn.STDEV.P(IF(ISNUMBER(OFFSET(VM11,0,0,$C$7)),OFFSET(VM11,0,0,$C$7)))/AVERAGE(IF(ISNUMBER(OFFSET(VM11,0,0,$C$7)),OFFSET(VM11,0,0,$C$7))) -> 8.6% | VN5: =_xlfn.STDEV.P(IF(ISNUMBER(OFFSET(VN11,0,0,$C$7)),OFFSET(VN11,0,0,$C$7)))/AVERAGE(IF(ISNUMBER(OFFSET(VN11,0,0,$C$7)),OFFSET(VN11,0,0,$C$7))) -> 10.0% | VO5: =_xlfn.STDEV.P(IF(ISNUMBER(OFFSET(VO11,0,0,$C$7)),OFFSET(VO11,0,0,$C$7)))/AVERAGE(IF(ISNUMBER(OFFSET(VO11,0,0,$C$7)),OFFSET(VO11,0,0,$C$7))) -> 7.0% | VP5: =_xlfn.STDEV.P(IF(ISNUMBER(OFFSET(VP11,0,0,$C$7)),OFFSET(VP11,0,0,$C$7)))/AVERAGE(IF(ISNUMBER(OFFSET(VP11,0,0,$C$7)),OFFSET(VP11,0,0,$C$7))) -> 8.7% | VQ5: =_xlfn.STDEV.P(IF(ISNUMBER(OFFSET(VQ11,0,0,$C$7)),OFFSET(VQ11,0,0,$C$7)))/AVERAGE(IF(ISNUMBER(OFFSET(VQ11,0,0,$C$7)),OFFSET(VQ11,0,0,$C$7))) -> 12.1% | VR5: =_xlfn.STDEV.P(IF(ISNUMBER(OFFSET(VR11,0,0,$C$7)),OFFSET(VR11,0,0,$C$7)))/AVERAGE(IF(ISNUMBER(OFFSET(VR11,0,0,$C$7)),OFFSET(VR11,0,0,$C$7))) -> 12.7% | VS5: =_xlfn.STDEV.P(IF(ISNUMBER(OFFSET(VS11,0,0,$C$7)),OFFSET(VS11,0,0,$C$7)))/AVERAGE(IF(ISNUMBER(OFFSET(VS11,0,0,$C$7)),OFFSET(VS11,0,0,$C$7))) -> 5.7% | VT5: =_xlfn.STDEV.P(IF(ISNUMBER(OFFSET(VT11,0,0,$C$7)),OFFSET(VT11,0,0,$C$7)))/AVERAGE(IF(ISNUMBER(OFFSET(VT11,0,0,$C$7)),OFFSET(VT11,0,0,$C$7))) -> 9.5% | VU5: =_xlfn.STDEV.P(IF(ISNUMBER(OFFSET(VU11,0,0,$C$7)),OFFSET(VU11,0,0,$C$7)))/AVERAGE(IF(ISNUMBER(OFFSET(VU11,0,0,$C$7)),OFFSET(VU11,0,0,$C$7))) -> 21.9% | VV5: =_xlfn.STDEV.P(IF(ISNUMBER(OFFSET(VV11,0,0,$C$7)),OFFSET(VV11,0,0,$C$7)))/AVERAGE(IF(ISNUMBER(OFFSET(VV11,0,0,$C$7)),OFFSET(VV11,0,0,$C$7))) -> 15.1% | VW5: =_xlfn.STDEV.P(IF(ISNUMBER(OFFSET(VW11,0,0,$C$7)),OFFSET(VW11,0,0,$C$7)))/AVERAGE(IF(ISNUMBER(OFFSET(VW11,0,0,$C$7)),OFFSET(VW11,0,0,$C$7))) -> 13.1% | VX5: =_xlfn.STDEV.P(IF(ISNUMBER(OFFSET(VX11,0,0,$C$7)),OFFSET(VX11,0,0,$C$7)))/AVERAGE(IF(ISNUMBER(OFFSET(VX11,0,0,$C$7)),OFFSET(VX11,0,0,$C$7))) -> 5.0% | VY5: =_xlfn.STDEV.P(IF(ISNUMBER(OFFSET(VY11,0,0,$C$7)),OFFSET(VY11,0,0,$C$7)))/AVERAGE(IF(ISNUMBER(OFFSET(VY11,0,0,$C$7)),OFFSET(VY11,0,0,$C$7))) -> 7.7% | VZ5: =_xlfn.STDEV.P(IF(ISNUMBER(OFFSET(VZ11,0,0,$C$7)),OFFSET(VZ11,0,0,$C$7)))/AVERAGE(IF(ISNUMBER(OFFSET(VZ11,0,0,$C$7)),OFFSET(VZ11,0,0,$C$7))) -> 6.8% | WA5: =_xlfn.STDEV.P(IF(ISNUMBER(OFFSET(WA11,0,0,$C$7)),OFFSET(WA11,0,0,$C$7)))/AVERAGE(IF(ISNUMBER(OFFSET(WA11,0,0,$C$7)),OFFSET(WA11,0,0,$C$7))) -> 6.4% | WB5: =_xlfn.STDEV.P(IF(ISNUMBER(OFFSET(WB11,0,0,$C$7)),OFFSET(WB11,0,0,$C$7)))/AVERAGE(IF(ISNUMBER(OFFSET(WB11,0,0,$C$7)),OFFSET(WB11,0,0,$C$7))) -> 7.4% | WC5: =_xlfn.STDEV.P(IF(ISNUMBER(OFFSET(WC11,0,0,$C$7)),OFFSET(WC11,0,0,$C$7)))/AVERAGE(IF(ISNUMBER(OFFSET(WC11,0,0,$C$7)),OFFSET(WC11,0,0,$C$7))) -> 80.7% | WD5: =_xlfn.STDEV.P(IF(ISNUMBER(OFFSET(WD11,0,0,$C$7)),OFFSET(WD11,0,0,$C$7)))/AVERAGE(IF(ISNUMBER(OFFSET(WD11,0,0,$C$7)),OFFSET(WD11,0,0,$C$7))) -> 23.8% | WE5: =_xlfn.STDEV.P(IF(ISNUMBER(OFFSET(WE11,0,0,$C$7)),OFFSET(WE11,0,0,$C$7)))/AVERAGE(IF(ISNUMBER(OFFSET(WE11,0,0,$C$7)),OFFSET(WE11,0,0,$C$7))) -> 91.0% | WF5: =_xlfn.STDEV.P(IF(ISNUMBER(OFFSET(WF11,0,0,$C$7)),OFFSET(WF11,0,0,$C$7)))/AVERAGE(IF(ISNUMBER(OFFSET(WF11,0,0,$C$7)),OFFSET(WF11,0,0,$C$7))) -> 8.0% | WG5: =_xlfn.STDEV.P(IF(ISNUMBER(OFFSET(WG11,0,0,$C$7)),OFFSET(WG11,0,0,$C$7)))/AVERAGE(IF(ISNUMBER(OFFSET(WG11,0,0,$C$7)),OFFSET(WG11,0,0,$C$7))) -> 28.5% | WH5: =_xlfn.STDEV.P(IF(ISNUMBER(OFFSET(WH11,0,0,$C$7)),OFFSET(WH11,0,0,$C$7)))/AVERAGE(IF(ISNUMBER(OFFSET(WH11,0,0,$C$7)),OFFSET(WH11,0,0,$C$7))) -> 14.0% | WI5: =_xlfn.STDEV.P(IF(ISNUMBER(OFFSET(WI11,0,0,$C$7)),OFFSET(WI11,0,0,$C$7)))/AVERAGE(IF(ISNUMBER(OFFSET(WI11,0,0,$C$7)),OFFSET(WI11,0,0,$C$7))) -> 17.9% | WJ5: =_xlfn.STDEV.P(IF(ISNUMBER(OFFSET(WJ11,0,0,$C$7)),OFFSET(WJ11,0,0,$C$7)))/AVERAGE(IF(ISNUMBER(OFFSET(WJ11,0,0,$C$7)),OFFSET(WJ11,0,0,$C$7))) -> 16.3% | WK5: =_xlfn.STDEV.P(IF(ISNUMBER(OFFSET(WK11,0,0,$C$7)),OFFSET(WK11,0,0,$C$7)))/AVERAGE(IF(ISNUMBER(OFFSET(WK11,0,0,$C$7)),OFFSET(WK11,0,0,$C$7))) -> 35.4% | WL5: =_xlfn.STDEV.P(IF(ISNUMBER(OFFSET(WL11,0,0,$C$7)),OFFSET(WL11,0,0,$C$7)))/AVERAGE(IF(ISNUMBER(OFFSET(WL11,0,0,$C$7)),OFFSET(WL11,0,0,$C$7))) -> 141.5% | WM5: =_xlfn.STDEV.P(IF(ISNUMBER(OFFSET(WM11,0,0,$C$7)),OFFSET(WM11,0,0,$C$7)))/AVERAGE(IF(ISNUMBER(OFFSET(WM11,0,0,$C$7)),OFFSET(WM11,0,0,$C$7))) -> 24.6% | WN5: =_xlfn.STDEV.P(IF(ISNUMBER(OFFSET(WN11,0,0,$C$7)),OFFSET(WN11,0,0,$C$7)))/AVERAGE(IF(ISNUMBER(OFFSET(WN11,0,0,$C$7)),OFFSET(WN11,0,0,$C$7))) -> 9.2% | WO5: =_xlfn.STDEV.P(IF(ISNUMBER(OFFSET(WO11,0,0,$C$7)),OFFSET(WO11,0,0,$C$7)))/AVERAGE(IF(ISNUMBER(OFFSET(WO11,0,0,$C$7)),OFFSET(WO11,0,0,$C$7))) -> 5.8% | WP5: =_xlfn.STDEV.P(IF(ISNUMBER(OFFSET(WP11,0,0,$C$7)),OFFSET(WP11,0,0,$C$7)))/AVERAGE(IF(ISNUMBER(OFFSET(WP11,0,0,$C$7)),OFFSET(WP11,0,0,$C$7))) -> 7.5% | WQ5: =_xlfn.STDEV.P(IF(ISNUMBER(OFFSET(WQ11,0,0,$C$7)),OFFSET(WQ11,0,0,$C$7)))/AVERAGE(IF(ISNUMBER(OFFSET(WQ11,0,0,$C$7)),OFFSET(WQ11,0,0,$C$7))) -> 8.6% | WR5: =_xlfn.STDEV.P(IF(ISNUMBER(OFFSET(WR11,0,0,$C$7)),OFFSET(WR11,0,0,$C$7)))/AVERAGE(IF(ISNUMBER(OFFSET(WR11,0,0,$C$7)),OFFSET(WR11,0,0,$C$7))) -> 7.4% | WS5: =_xlfn.STDEV.P(IF(ISNUMBER(OFFSET(WS11,0,0,$C$7)),OFFSET(WS11,0,0,$C$7)))/AVERAGE(IF(ISNUMBER(OFFSET(WS11,0,0,$C$7)),OFFSET(WS11,0,0,$C$7))) -> 3.6% | WT5: =_xlfn.STDEV.P(IF(ISNUMBER(OFFSET(WT11,0,0,$C$7)),OFFSET(WT11,0,0,$C$7)))/AVERAGE(IF(ISNUMBER(OFFSET(WT11,0,0,$C$7)),OFFSET(WT11,0,0,$C$7))) -> 9.3% | WU5: =_xlfn.STDEV.P(IF(ISNUMBER(OFFSET(WU11,0,0,$C$7)),OFFSET(WU11,0,0,$C$7)))/AVERAGE(IF(ISNUMBER(OFFSET(WU11,0,0,$C$7)),OFFSET(WU11,0,0,$C$7))) -> 18.4% | WV5: =_xlfn.STDEV.P(IF(ISNUMBER(OFFSET(WV11,0,0,$C$7)),OFFSET(WV11,0,0,$C$7)))/AVERAGE(IF(ISNUMBER(OFFSET(WV11,0,0,$C$7)),OFFSET(WV11,0,0,$C$7))) -> 5.7% | WW5: =_xlfn.STDEV.P(IF(ISNUMBER(OFFSET(WW11,0,0,$C$7)),OFFSET(WW11,0,0,$C$7)))/AVERAGE(IF(ISNUMBER(OFFSET(WW11,0,0,$C$7)),OFFSET(WW11,0,0,$C$7))) -> 116.4% | WX5: =_xlfn.STDEV.P(IF(ISNUMBER(OFFSET(WX11,0,0,$C$7)),OFFSET(WX11,0,0,$C$7)))/AVERAGE(IF(ISNUMBER(OFFSET(WX11,0,0,$C$7)),OFFSET(WX11,0,0,$C$7))) -> 19.9% | WY5: =_xlfn.STDEV.P(IF(ISNUMBER(OFFSET(WY11,0,0,$C$7)),OFFSET(WY11,0,0,$C$7)))/AVERAGE(IF(ISNUMBER(OFFSET(WY11,0,0,$C$7)),OFFSET(WY11,0,0,$C$7))) -> 32.6% | WZ5: =_xlfn.STDEV.P(IF(ISNUMBER(OFFSET(WZ11,0,0,$C$7)),OFFSET(WZ11,0,0,$C$7)))/AVERAGE(IF(ISNUMBER(OFFSET(WZ11,0,0,$C$7)),OFFSET(WZ11,0,0,$C$7))) -> 11.2% | XA5: =_xlfn.STDEV.P(IF(ISNUMBER(OFFSET(XA11,0,0,$C$7)),OFFSET(XA11,0,0,$C$7)))/AVERAGE(IF(ISNUMBER(OFFSET(XA11,0,0,$C$7)),OFFSET(XA11,0,0,$C$7))) -> 5.0% | XB5: =_xlfn.STDEV.P(IF(ISNUMBER(OFFSET(XB11,0,0,$C$7)),OFFSET(XB11,0,0,$C$7)))/AVERAGE(IF(ISNUMBER(OFFSET(XB11,0,0,$C$7)),OFFSET(XB11,0,0,$C$7))) -> 3.1% | XC5: =_xlfn.STDEV.P(IF(ISNUMBER(OFFSET(XC11,0,0,$C$7)),OFFSET(XC11,0,0,$C$7)))/AVERAGE(IF(ISNUMBER(OFFSET(XC11,0,0,$C$7)),OFFSET(XC11,0,0,$C$7))) -> 5.2% | XD5: =_xlfn.STDEV.P(IF(ISNUMBER(OFFSET(XD11,0,0,$C$7)),OFFSET(XD11,0,0,$C$7)))/AVERAGE(IF(ISNUMBER(OFFSET(XD11,0,0,$C$7)),OFFSET(XD11,0,0,$C$7))) -> 38.7% | XE5: =_xlfn.STDEV.P(IF(ISNUMBER(OFFSET(XE11,0,0,$C$7)),OFFSET(XE11,0,0,$C$7)))/AVERAGE(IF(ISNUMBER(OFFSET(XE11,0,0,$C$7)),OFFSET(XE11,0,0,$C$7))) -> 88.6% | XF5: =_xlfn.STDEV.P(IF(ISNUMBER(OFFSET(XF11,0,0,$C$7)),OFFSET(XF11,0,0,$C$7)))/AVERAGE(IF(ISNUMBER(OFFSET(XF11,0,0,$C$7)),OFFSET(XF11,0,0,$C$7))) -> 4.8% | XG5: =_xlfn.STDEV.P(IF(ISNUMBER(OFFSET(XG11,0,0,$C$7)),OFFSET(XG11,0,0,$C$7)))/AVERAGE(IF(ISNUMBER(OFFSET(XG11,0,0,$C$7)),OFFSET(XG11,0,0,$C$7))) -> 5.4% | XH5: =_xlfn.STDEV.P(IF(ISNUMBER(OFFSET(XH11,0,0,$C$7)),OFFSET(XH11,0,0,$C$7)))/AVERAGE(IF(ISNUMBER(OFFSET(XH11,0,0,$C$7)),OFFSET(XH11,0,0,$C$7))) -> 5.3% | XI5: =_xlfn.STDEV.P(IF(ISNUMBER(OFFSET(XI11,0,0,$C$7)),OFFSET(XI11,0,0,$C$7)))/AVERAGE(IF(ISNUMBER(OFFSET(XI11,0,0,$C$7)),OFFSET(XI11,0,0,$C$7))) -> 20.2% | XJ5: =_xlfn.STDEV.P(IF(ISNUMBER(OFFSET(XJ11,0,0,$C$7)),OFFSET(XJ11,0,0,$C$7)))/AVERAGE(IF(ISNUMBER(OFFSET(XJ11,0,0,$C$7)),OFFSET(XJ11,0,0,$C$7))) -> 5.5% | XK5: =_xlfn.STDEV.P(IF(ISNUMBER(OFFSET(XK11,0,0,$C$7)),OFFSET(XK11,0,0,$C$7)))/AVERAGE(IF(ISNUMBER(OFFSET(XK11,0,0,$C$7)),OFFSET(XK11,0,0,$C$7))) -> 14.5% | XL5: =_xlfn.STDEV.P(IF(ISNUMBER(OFFSET(XL11,0,0,$C$7)),OFFSET(XL11,0,0,$C$7)))/AVERAGE(IF(ISNUMBER(OFFSET(XL11,0,0,$C$7)),OFFSET(XL11,0,0,$C$7))) -> 5.2% | XM5: =_xlfn.STDEV.P(IF(ISNUMBER(OFFSET(XM11,0,0,$C$7)),OFFSET(XM11,0,0,$C$7)))/AVERAGE(IF(ISNUMBER(OFFSET(XM11,0,0,$C$7)),OFFSET(XM11,0,0,$C$7))) -> 6.7% | XN5: =_xlfn.STDEV.P(IF(ISNUMBER(OFFSET(XN11,0,0,$C$7)),OFFSET(XN11,0,0,$C$7)))/AVERAGE(IF(ISNUMBER(OFFSET(XN11,0,0,$C$7)),OFFSET(XN11,0,0,$C$7))) -> 23.3% | XO5: =_xlfn.STDEV.P(IF(ISNUMBER(OFFSET(XO11,0,0,$C$7)),OFFSET(XO11,0,0,$C$7)))/AVERAGE(IF(ISNUMBER(OFFSET(XO11,0,0,$C$7)),OFFSET(XO11,0,0,$C$7))) -> 3.9% | XP5: =_xlfn.STDEV.P(IF(ISNUMBER(OFFSET(XP11,0,0,$C$7)),OFFSET(XP11,0,0,$C$7)))/AVERAGE(IF(ISNUMBER(OFFSET(XP11,0,0,$C$7)),OFFSET(XP11,0,0,$C$7))) -> 5.8% | XQ5: =_xlfn.STDEV.P(IF(ISNUMBER(OFFSET(XQ11,0,0,$C$7)),OFFSET(XQ11,0,0,$C$7)))/AVERAGE(IF(ISNUMBER(OFFSET(XQ11,0,0,$C$7)),OFFSET(XQ11,0,0,$C$7))) -> 10.7% | XR5: =_xlfn.STDEV.P(IF(ISNUMBER(OFFSET(XR11,0,0,$C$7)),OFFSET(XR11,0,0,$C$7)))/AVERAGE(IF(ISNUMBER(OFFSET(XR11,0,0,$C$7)),OFFSET(XR11,0,0,$C$7))) -> 13.1% | XS5: =_xlfn.STDEV.P(IF(ISNUMBER(OFFSET(XS11,0,0,$C$7)),OFFSET(XS11,0,0,$C$7)))/AVERAGE(IF(ISNUMBER(OFFSET(XS11,0,0,$C$7)),OFFSET(XS11,0,0,$C$7))) -> 20.0% | XT5: =_xlfn.STDEV.P(IF(ISNUMBER(OFFSET(XT11,0,0,$C$7)),OFFSET(XT11,0,0,$C$7)))/AVERAGE(IF(ISNUMBER(OFFSET(XT11,0,0,$C$7)),OFFSET(XT11,0,0,$C$7))) -> 3.4% | XU5: =_xlfn.STDEV.P(IF(ISNUMBER(OFFSET(XU11,0,0,$C$7)),OFFSET(XU11,0,0,$C$7)))/AVERAGE(IF(ISNUMBER(OFFSET(XU11,0,0,$C$7)),OFFSET(XU11,0,0,$C$7))) -> 29.1% | XV5: =_xlfn.STDEV.P(IF(ISNUMBER(OFFSET(XV11,0,0,$C$7)),OFFSET(XV11,0,0,$C$7)))/AVERAGE(IF(ISNUMBER(OFFSET(XV11,0,0,$C$7)),OFFSET(XV11,0,0,$C$7))) -> 21.1% | XW5: =_xlfn.STDEV.P(IF(ISNUMBER(OFFSET(XW11,0,0,$C$7)),OFFSET(XW11,0,0,$C$7)))/AVERAGE(IF(ISNUMBER(OFFSET(XW11,0,0,$C$7)),OFFSET(XW11,0,0,$C$7))) -> 7.2% | XX5: =_xlfn.STDEV.P(IF(ISNUMBER(OFFSET(XX11,0,0,$C$7)),OFFSET(XX11,0,0,$C$7)))/AVERAGE(IF(ISNUMBER(OFFSET(XX11,0,0,$C$7)),OFFSET(XX11,0,0,$C$7))) -> 17.9% | XY5: =_xlfn.STDEV.P(IF(ISNUMBER(OFFSET(XY11,0,0,$C$7)),OFFSET(XY11,0,0,$C$7)))/AVERAGE(IF(ISNUMBER(OFFSET(XY11,0,0,$C$7)),OFFSET(XY11,0,0,$C$7))) -> 5.7% | XZ5: =_xlfn.STDEV.P(IF(ISNUMBER(OFFSET(XZ11,0,0,$C$7)),OFFSET(XZ11,0,0,$C$7)))/AVERAGE(IF(ISNUMBER(OFFSET(XZ11,0,0,$C$7)),OFFSET(XZ11,0,0,$C$7))) -> 24.2% | YA5: =_xlfn.STDEV.P(IF(ISNUMBER(OFFSET(YA11,0,0,$C$7)),OFFSET(YA11,0,0,$C$7)))/AVERAGE(IF(ISNUMBER(OFFSET(YA11,0,0,$C$7)),OFFSET(YA11,0,0,$C$7))) -> 6.7% | YB5: =_xlfn.STDEV.P(IF(ISNUMBER(OFFSET(YB11,0,0,$C$7)),OFFSET(YB11,0,0,$C$7)))/AVERAGE(IF(ISNUMBER(OFFSET(YB11,0,0,$C$7)),OFFSET(YB11,0,0,$C$7))) -> 22.3% | YC5: =_xlfn.STDEV.P(IF(ISNUMBER(OFFSET(YC11,0,0,$C$7)),OFFSET(YC11,0,0,$C$7)))/AVERAGE(IF(ISNUMBER(OFFSET(YC11,0,0,$C$7)),OFFSET(YC11,0,0,$C$7))) -> 7.2% | YD5: =_xlfn.STDEV.P(IF(ISNUMBER(OFFSET(YD11,0,0,$C$7)),OFFSET(YD11,0,0,$C$7)))/AVERAGE(IF(ISNUMBER(OFFSET(YD11,0,0,$C$7)),OFFSET(YD11,0,0,$C$7))) -> 6.0% | YE5: =_xlfn.STDEV.P(IF(ISNUMBER(OFFSET(YE11,0,0,$C$7)),OFFSET(YE11,0,0,$C$7)))/AVERAGE(IF(ISNUMBER(OFFSET(YE11,0,0,$C$7)),OFFSET(YE11,0,0,$C$7))) -> 19.7% | YF5: =_xlfn.STDEV.P(IF(ISNUMBER(OFFSET(YF11,0,0,$C$7)),OFFSET(YF11,0,0,$C$7)))/AVERAGE(IF(ISNUMBER(OFFSET(YF11,0,0,$C$7)),OFFSET(YF11,0,0,$C$7))) -> 7.1% | YG5: =_xlfn.STDEV.P(IF(ISNUMBER(OFFSET(YG11,0,0,$C$7)),OFFSET(YG11,0,0,$C$7)))/AVERAGE(IF(ISNUMBER(OFFSET(YG11,0,0,$C$7)),OFFSET(YG11,0,0,$C$7))) -> 6.2% | YH5: =_xlfn.STDEV.P(IF(ISNUMBER(OFFSET(YH11,0,0,$C$7)),OFFSET(YH11,0,0,$C$7)))/AVERAGE(IF(ISNUMBER(OFFSET(YH11,0,0,$C$7)),OFFSET(YH11,0,0,$C$7))) -> 20.9% | YI5: =_xlfn.STDEV.P(IF(ISNUMBER(OFFSET(YI11,0,0,$C$7)),OFFSET(YI11,0,0,$C$7)))/AVERAGE(IF(ISNUMBER(OFFSET(YI11,0,0,$C$7)),OFFSET(YI11,0,0,$C$7))) -> 12.9% | YJ5: =_xlfn.STDEV.P(IF(ISNUMBER(OFFSET(YJ11,0,0,$C$7)),OFFSET(YJ11,0,0,$C$7)))/AVERAGE(IF(ISNUMBER(OFFSET(YJ11,0,0,$C$7)),OFFSET(YJ11,0,0,$C$7))) -> 41.6% | YK5: =_xlfn.STDEV.P(IF(ISNUMBER(OFFSET(YK11,0,0,$C$7)),OFFSET(YK11,0,0,$C$7)))/AVERAGE(IF(ISNUMBER(OFFSET(YK11,0,0,$C$7)),OFFSET(YK11,0,0,$C$7))) -> 11.7% | YL5: =_xlfn.STDEV.P(IF(ISNUMBER(OFFSET(YL11,0,0,$C$7)),OFFSET(YL11,0,0,$C$7)))/AVERAGE(IF(ISNUMBER(OFFSET(YL11,0,0,$C$7)),OFFSET(YL11,0,0,$C$7))) -> 10.6% | YM5: =_xlfn.STDEV.P(IF(ISNUMBER(OFFSET(YM11,0,0,$C$7)),OFFSET(YM11,0,0,$C$7)))/AVERAGE(IF(ISNUMBER(OFFSET(YM11,0,0,$C$7)),OFFSET(YM11,0,0,$C$7))) -> 10.9% | YN5: =_xlfn.STDEV.P(IF(ISNUMBER(OFFSET(YN11,0,0,$C$7)),OFFSET(YN11,0,0,$C$7)))/AVERAGE(IF(ISNUMBER(OFFSET(YN11,0,0,$C$7)),OFFSET(YN11,0,0,$C$7))) -> 23.3% | YO5: =_xlfn.STDEV.P(IF(ISNUMBER(OFFSET(YO11,0,0,$C$7)),OFFSET(YO11,0,0,$C$7)))/AVERAGE(IF(ISNUMBER(OFFSET(YO11,0,0,$C$7)),OFFSET(YO11,0,0,$C$7))) -> 14.5% | YP5: =_xlfn.STDEV.P(IF(ISNUMBER(OFFSET(YP11,0,0,$C$7)),OFFSET(YP11,0,0,$C$7)))/AVERAGE(IF(ISNUMBER(OFFSET(YP11,0,0,$C$7)),OFFSET(YP11,0,0,$C$7))) -> 33.6% | YQ5: =_xlfn.STDEV.P(IF(ISNUMBER(OFFSET(YQ11,0,0,$C$7)),OFFSET(YQ11,0,0,$C$7)))/AVERAGE(IF(ISNUMBER(OFFSET(YQ11,0,0,$C$7)),OFFSET(YQ11,0,0,$C$7))) -> 44.9% | YR5: =_xlfn.STDEV.P(IF(ISNUMBER(OFFSET(YR11,0,0,$C$7)),OFFSET(YR11,0,0,$C$7)))/AVERAGE(IF(ISNUMBER(OFFSET(YR11,0,0,$C$7)),OFFSET(YR11,0,0,$C$7))) -> 9.5% | YS5: =_xlfn.STDEV.P(IF(ISNUMBER(OFFSET(YS11,0,0,$C$7)),OFFSET(YS11,0,0,$C$7)))/AVERAGE(IF(ISNUMBER(OFFSET(YS11,0,0,$C$7)),OFFSET(YS11,0,0,$C$7))) -> 181.6% | YT5: =_xlfn.STDEV.P(IF(ISNUMBER(OFFSET(YT11,0,0,$C$7)),OFFSET(YT11,0,0,$C$7)))/AVERAGE(IF(ISNUMBER(OFFSET(YT11,0,0,$C$7)),OFFSET(YT11,0,0,$C$7))) -> 9.8% | YU5: =_xlfn.STDEV.P(IF(ISNUMBER(OFFSET(YU11,0,0,$C$7)),OFFSET(YU11,0,0,$C$7)))/AVERAGE(IF(ISNUMBER(OFFSET(YU11,0,0,$C$7)),OFFSET(YU11,0,0,$C$7))) -> 7.4% | YV5: =_xlfn.STDEV.P(IF(ISNUMBER(OFFSET(YV11,0,0,$C$7)),OFFSET(YV11,0,0,$C$7)))/AVERAGE(IF(ISNUMBER(OFFSET(YV11,0,0,$C$7)),OFFSET(YV11,0,0,$C$7))) -> 20.7% | YW5: =_xlfn.STDEV.P(IF(ISNUMBER(OFFSET(YW11,0,0,$C$7)),OFFSET(YW11,0,0,$C$7)))/AVERAGE(IF(ISNUMBER(OFFSET(YW11,0,0,$C$7)),OFFSET(YW11,0,0,$C$7))) -> 6.0% | YX5: =_xlfn.STDEV.P(IF(ISNUMBER(OFFSET(YX11,0,0,$C$7)),OFFSET(YX11,0,0,$C$7)))/AVERAGE(IF(ISNUMBER(OFFSET(YX11,0,0,$C$7)),OFFSET(YX11,0,0,$C$7))) -> 19.6% | YY5: =_xlfn.STDEV.P(IF(ISNUMBER(OFFSET(YY11,0,0,$C$7)),OFFSET(YY11,0,0,$C$7)))/AVERAGE(IF(ISNUMBER(OFFSET(YY11,0,0,$C$7)),OFFSET(YY11,0,0,$C$7))) -> 10.1% | YZ5: =_xlfn.STDEV.P(IF(ISNUMBER(OFFSET(YZ11,0,0,$C$7)),OFFSET(YZ11,0,0,$C$7)))/AVERAGE(IF(ISNUMBER(OFFSET(YZ11,0,0,$C$7)),OFFSET(YZ11,0,0,$C$7))) -> 13.3% | ZA5: =_xlfn.STDEV.P(IF(ISNUMBER(OFFSET(ZA11,0,0,$C$7)),OFFSET(ZA11,0,0,$C$7)))/AVERAGE(IF(ISNUMBER(OFFSET(ZA11,0,0,$C$7)),OFFSET(ZA11,0,0,$C$7))) -> 6.9% | ZB5: =_xlfn.STDEV.P(IF(ISNUMBER(OFFSET(ZB11,0,0,$C$7)),OFFSET(ZB11,0,0,$C$7)))/AVERAGE(IF(ISNUMBER(OFFSET(ZB11,0,0,$C$7)),OFFSET(ZB11,0,0,$C$7))) -> 8.0% | ZC5: =_xlfn.STDEV.P(IF(ISNUMBER(OFFSET(ZC11,0,0,$C$7)),OFFSET(ZC11,0,0,$C$7)))/AVERAGE(IF(ISNUMBER(OFFSET(ZC11,0,0,$C$7)),OFFSET(ZC11,0,0,$C$7))) -> 11.7% | ZD5: =_xlfn.STDEV.P(IF(ISNUMBER(OFFSET(ZD11,0,0,$C$7)),OFFSET(ZD11,0,0,$C$7)))/AVERAGE(IF(ISNUMBER(OFFSET(ZD11,0,0,$C$7)),OFFSET(ZD11,0,0,$C$7))) -> 169.5% | ZE5: =_xlfn.STDEV.P(IF(ISNUMBER(OFFSET(ZE11,0,0,$C$7)),OFFSET(ZE11,0,0,$C$7)))/AVERAGE(IF(ISNUMBER(OFFSET(ZE11,0,0,$C$7)),OFFSET(ZE11,0,0,$C$7))) -> 4.3% | ZF5: =_xlfn.STDEV.P(IF(ISNUMBER(OFFSET(ZF11,0,0,$C$7)),OFFSET(ZF11,0,0,$C$7)))/AVERAGE(IF(ISNUMBER(OFFSET(ZF11,0,0,$C$7)),OFFSET(ZF11,0,0,$C$7))) -> 16.9% | ZG5: =_xlfn.STDEV.P(IF(ISNUMBER(OFFSET(ZG11,0,0,$C$7)),OFFSET(ZG11,0,0,$C$7)))/AVERAGE(IF(ISNUMBER(OFFSET(ZG11,0,0,$C$7)),OFFSET(ZG11,0,0,$C$7))) -> 9.6% | ZH5: =_xlfn.STDEV.P(IF(ISNUMBER(OFFSET(ZH11,0,0,$C$7)),OFFSET(ZH11,0,0,$C$7)))/AVERAGE(IF(ISNUMBER(OFFSET(ZH11,0,0,$C$7)),OFFSET(ZH11,0,0,$C$7))) -> 9.6% | ZI5: =_xlfn.STDEV.P(IF(ISNUMBER(OFFSET(ZI11,0,0,$C$7)),OFFSET(ZI11,0,0,$C$7)))/AVERAGE(IF(ISNUMBER(OFFSET(ZI11,0,0,$C$7)),OFFSET(ZI11,0,0,$C$7))) -> 5.7% | ZJ5: =_xlfn.STDEV.P(IF(ISNUMBER(OFFSET(ZJ11,0,0,$C$7)),OFFSET(ZJ11,0,0,$C$7)))/AVERAGE(IF(ISNUMBER(OFFSET(ZJ11,0,0,$C$7)),OFFSET(ZJ11,0,0,$C$7))) -> 8.9% | ZK5: =_xlfn.STDEV.P(IF(ISNUMBER(OFFSET(ZK11,0,0,$C$7)),OFFSET(ZK11,0,0,$C$7)))/AVERAGE(IF(ISNUMBER(OFFSET(ZK11,0,0,$C$7)),OFFSET(ZK11,0,0,$C$7))) -> 37.4% | ZL5: =_xlfn.STDEV.P(IF(ISNUMBER(OFFSET(ZL11,0,0,$C$7)),OFFSET(ZL11,0,0,$C$7)))/AVERAGE(IF(ISNUMBER(OFFSET(ZL11,0,0,$C$7)),OFFSET(ZL11,0,0,$C$7))) -> 25.5% | ZM5: =_xlfn.STDEV.P(IF(ISNUMBER(OFFSET(ZM11,0,0,$C$7)),OFFSET(ZM11,0,0,$C$7)))/AVERAGE(IF(ISNUMBER(OFFSET(ZM11,0,0,$C$7)),OFFSET(ZM11,0,0,$C$7))) -> 6.3% | ZN5: =_xlfn.STDEV.P(IF(ISNUMBER(OFFSET(ZN11,0,0,$C$7)),OFFSET(ZN11,0,0,$C$7)))/AVERAGE(IF(ISNUMBER(OFFSET(ZN11,0,0,$C$7)),OFFSET(ZN11,0,0,$C$7))) -> 13.8% | ZO5: =_xlfn.STDEV.P(IF(ISNUMBER(OFFSET(ZO11,0,0,$C$7)),OFFSET(ZO11,0,0,$C$7)))/AVERAGE(IF(ISNUMBER(OFFSET(ZO11,0,0,$C$7)),OFFSET(ZO11,0,0,$C$7))) -> 13.4% | ZP5: =_xlfn.STDEV.P(IF(ISNUMBER(OFFSET(ZP11,0,0,$C$7)),OFFSET(ZP11,0,0,$C$7)))/AVERAGE(IF(ISNUMBER(OFFSET(ZP11,0,0,$C$7)),OFFSET(ZP11,0,0,$C$7))) -> 7.1% | ZQ5: =_xlfn.STDEV.P(IF(ISNUMBER(OFFSET(ZQ11,0,0,$C$7)),OFFSET(ZQ11,0,0,$C$7)))/AVERAGE(IF(ISNUMBER(OFFSET(ZQ11,0,0,$C$7)),OFFSET(ZQ11,0,0,$C$7))) -> 77.1% | ZR5: =_xlfn.STDEV.P(IF(ISNUMBER(OFFSET(ZR11,0,0,$C$7)),OFFSET(ZR11,0,0,$C$7)))/AVERAGE(IF(ISNUMBER(OFFSET(ZR11,0,0,$C$7)),OFFSET(ZR11,0,0,$C$7))) -> 13.9% | ZS5: =_xlfn.STDEV.P(IF(ISNUMBER(OFFSET(ZS11,0,0,$C$7)),OFFSET(ZS11,0,0,$C$7)))/AVERAGE(IF(ISNUMBER(OFFSET(ZS11,0,0,$C$7)),OFFSET(ZS11,0,0,$C$7))) -> 6.9% | ZT5: =_xlfn.STDEV.P(IF(ISNUMBER(OFFSET(ZT11,0,0,$C$7)),OFFSET(ZT11,0,0,$C$7)))/AVERAGE(IF(ISNUMBER(OFFSET(ZT11,0,0,$C$7)),OFFSET(ZT11,0,0,$C$7))) -> 8.2% | ZU5: =_xlfn.STDEV.P(IF(ISNUMBER(OFFSET(ZU11,0,0,$C$7)),OFFSET(ZU11,0,0,$C$7)))/AVERAGE(IF(ISNUMBER(OFFSET(ZU11,0,0,$C$7)),OFFSET(ZU11,0,0,$C$7))) -> 5.6% | ZV5: =_xlfn.STDEV.P(IF(ISNUMBER(OFFSET(ZV11,0,0,$C$7)),OFFSET(ZV11,0,0,$C$7)))/AVERAGE(IF(ISNUMBER(OFFSET(ZV11,0,0,$C$7)),OFFSET(ZV11,0,0,$C$7))) -> 5.9% | ZW5: =_xlfn.STDEV.P(IF(ISNUMBER(OFFSET(ZW11,0,0,$C$7)),OFFSET(ZW11,0,0,$C$7)))/AVERAGE(IF(ISNUMBER(OFFSET(ZW11,0,0,$C$7)),OFFSET(ZW11,0,0,$C$7))) -> 10.0% | ZX5: =_xlfn.STDEV.P(IF(ISNUMBER(OFFSET(ZX11,0,0,$C$7)),OFFSET(ZX11,0,0,$C$7)))/AVERAGE(IF(ISNUMBER(OFFSET(ZX11,0,0,$C$7)),OFFSET(ZX11,0,0,$C$7))) -> 17.2% | ZY5: =_xlfn.STDEV.P(IF(ISNUMBER(OFFSET(ZY11,0,0,$C$7)),OFFSET(ZY11,0,0,$C$7)))/AVERAGE(IF(ISNUMBER(OFFSET(ZY11,0,0,$C$7)),OFFSET(ZY11,0,0,$C$7))) -> 11.7% | ZZ5: =_xlfn.STDEV.P(IF(ISNUMBER(OFFSET(ZZ11,0,0,$C$7)),OFFSET(ZZ11,0,0,$C$7)))/AVERAGE(IF(ISNUMBER(OFFSET(ZZ11,0,0,$C$7)),OFFSET(ZZ11,0,0,$C$7))) -> 11.3% | AAA5: =_xlfn.STDEV.P(IF(ISNUMBER(OFFSET(AAA11,0,0,$C$7)),OFFSET(AAA11,0,0,$C$7)))/AVERAGE(IF(ISNUMBER(OFFSET(AAA11,0,0,$C$7)),OFFSET(AAA11,0,0,$C$7))) -> 20.5% | AAB5: =_xlfn.STDEV.P(IF(ISNUMBER(OFFSET(AAB11,0,0,$C$7)),OFFSET(AAB11,0,0,$C$7)))/AVERAGE(IF(ISNUMBER(OFFSET(AAB11,0,0,$C$7)),OFFSET(AAB11,0,0,$C$7))) -> 5.4% | AAC5: =_xlfn.STDEV.P(IF(ISNUMBER(OFFSET(AAC11,0,0,$C$7)),OFFSET(AAC11,0,0,$C$7)))/AVERAGE(IF(ISNUMBER(OFFSET(AAC11,0,0,$C$7)),OFFSET(AAC11,0,0,$C$7))) -> 4.2% | AAD5: =_xlfn.STDEV.P(IF(ISNUMBER(OFFSET(AAD11,0,0,$C$7)),OFFSET(AAD11,0,0,$C$7)))/AVERAGE(IF(ISNUMBER(OFFSET(AAD11,0,0,$C$7)),OFFSET(AAD11,0,0,$C$7))) -> 20.2% | AAE5: =_xlfn.STDEV.P(IF(ISNUMBER(OFFSET(AAE11,0,0,$C$7)),OFFSET(AAE11,0,0,$C$7)))/AVERAGE(IF(ISNUMBER(OFFSET(AAE11,0,0,$C$7)),OFFSET(AAE11,0,0,$C$7))) -> 9.7% | AAF5: =_xlfn.STDEV.P(IF(ISNUMBER(OFFSET(AAF11,0,0,$C$7)),OFFSET(AAF11,0,0,$C$7)))/AVERAGE(IF(ISNUMBER(OFFSET(AAF11,0,0,$C$7)),OFFSET(AAF11,0,0,$C$7))) -> 39.5% | AAG5: =_xlfn.STDEV.P(IF(ISNUMBER(OFFSET(AAG11,0,0,$C$7)),OFFSET(AAG11,0,0,$C$7)))/AVERAGE(IF(ISNUMBER(OFFSET(AAG11,0,0,$C$7)),OFFSET(AAG11,0,0,$C$7))) -> 13.0% | AAH5: =_xlfn.STDEV.P(IF(ISNUMBER(OFFSET(AAH11,0,0,$C$7)),OFFSET(AAH11,0,0,$C$7)))/AVERAGE(IF(ISNUMBER(OFFSET(AAH11,0,0,$C$7)),OFFSET(AAH11,0,0,$C$7))) -> 12.0% | AAI5: =_xlfn.STDEV.P(IF(ISNUMBER(OFFSET(AAI11,0,0,$C$7)),OFFSET(AAI11,0,0,$C$7)))/AVERAGE(IF(ISNUMBER(OFFSET(AAI11,0,0,$C$7)),OFFSET(AAI11,0,0,$C$7))) -> 12.8% | AAJ5: =_xlfn.STDEV.P(IF(ISNUMBER(OFFSET(AAJ11,0,0,$C$7)),OFFSET(AAJ11,0,0,$C$7)))/AVERAGE(IF(ISNUMBER(OFFSET(AAJ11,0,0,$C$7)),OFFSET(AAJ11,0,0,$C$7))) -> 4.1% | AAK5: =_xlfn.STDEV.P(IF(ISNUMBER(OFFSET(AAK11,0,0,$C$7)),OFFSET(AAK11,0,0,$C$7)))/AVERAGE(IF(ISNUMBER(OFFSET(AAK11,0,0,$C$7)),OFFSET(AAK11,0,0,$C$7))) -> 5.4%
A6: Metabolites | C6: =COUNTIF(F10:XFD10,"<>") -> 708 | E6: m/z
A7: QC samples | C7: =COUNTIF(C11:C15440,"=X") -> 18 | E7: RT
A8: Other samples | C8: =COUNTIFS(C11:C15440,"<>X",E11:E15440,"<>") -> 258 | E8: Internal Standard? (mark with X)
A9: Batches | C9: =SUMPRODUCT((B11:B15447<>"")/COUNTIF(B11:B15447,B11:B15447 & "")) -> 1 | E9: Assigned ISTD
A10: Run# | B10: Batch # | C10: QC? (X) | D10: Group | E10: Name | F10: CE (22:1) iSTD_729.653@11.83 | G10: CE (22:1) iSTD_724.6987@11.83 | H10: Ceramide C17 iSTD_552.536@6.03 | I10: Ceramide C17 iSTD_534.5255@6.03 | J10: Ceramide C17 iSTD_574.5178@6.05 | K10: Cholesterol d7 iSTD_376.3957@4.87 | L10: CUDA (pos) iSTD iSTD_341.2803@0.85 | M10: DG (12:0/12:0/0:0) iSTD_479.3712@4.28 | N10: DG (12:0/12:0/0:0) iSTD_474.4156@4.29 | O10: DG (18:1/2:0/0:0) iSTD_421.2932@3.18 | P10: DG (18:1/2:0/0:0) iSTD_416.3375@3.18 | Q10: LPC (17:0) iSTD_510.3561@1.92 | R10: LPE (17:1) iSTD_466.2932@1.42 | S10: MG (17:0/0:0/0:0) iSTD_345.3002@3.05 | T10: MG (17:0/0:0/0:0) iSTD_367.2822@3.06 | U10: PC (25:0) iSTD_636.4599@3.54 | V10: PE (17:0/17:0) iSTD_720.5549@6.38 | W10: SM (d35:1) iSTD_717.5911@5.14 | X10: Sphingosine (d17:1) iSTD_286.2741@1.13 | Y10: TG (17:0/17:1/17:0)-d5 iSTD_874.7882@11.15 | Z10: TG (17:0/17:1/17:0)-d5 iSTD_869.8285@11.13 | AA10: Acylcarnitine C10:0 _316.2484@0.67 | AB10: Acylcarnitine C12:0 _344.2801@0.83 | AC10: Acylcarnitine C16:0 _400.3428@1.7 | AD10: Acylcarnitine C18:1 _426.3582@1.85 | AE10: CE (16:1) _645.5584_640.6032@10.455 | AF10: CE (18:1) _668.6349_673.5899@11.03 | AG10: CE (18:3) _669.5586_664.6021@10.115 | AH10: CE (20:3) _692.6343@10.63 | AI10: CE (20:5) _693.5590_688.6033@9.855 | AJ10: CE (22:6) _719.5742_714.6187@10.03 | AK10: Ceramide (d18:1/23:0) _636.6292_658.6110@8.09 | AL10: Ceramide (d40:1) _604.6027_622.6136_644.5953@7.77 | AM10: Ceramide (d42:1) _632.6343_650.6446_672.6268@8.40666666666667 | AN10: Ceramide (d42:2) _648.6212_670.6110@7.73 | AO10: Cholesterol _369.3519@4.94 | AP10: DG (34:1) _617.5121@6.99 | AQ10: DG (36:2) _638.5740_643.5282@7.05 | AR10: DG (36:3) _641.5124_636.5569@6.515 | AS10: Gal-Gal-Cer(d18:1/16:0) or Lactosylceramide(d18:1/16:0) _862.6241@4.86 | AT10: GlcCer (d42:1) _812.6934_834.6782@7.745 | AU10: LPC (14:0) _468.309@1.06 | AV10: LPC (15:0) _482.3245@1.29 | AW10: LPC (16:0) _496.3409_518.3221@1.57 | AX10: LPC (16:1) _494.3244@1.18 | AY10: LPC (18:0) _524.3718_546.3535@2.34 | AZ10: LPC (18:1) _522.3560_544.3377@1.71 | BA10: LPC (18:2) _520.3405_542.3222@1.31 | BB10: LPC (18:3) _518.3242@1.08 | BC10: LPC (20:3) _546.3557@1.51 | BD10: LPC (20:4) _544.34@1.28 | BE10: LPC (20:5) _542.3243@1.04 | BF10: LPC (22:6) _568.3398@1.23 | BG10: LPC (o-16:0) _482.3612@1.86 | BH10: LPC (p-16:0) or LPC (o-16:1) _480.3432@1.78 | BI10: PC (16:0/9:0(CHO)) _650.4388@2.43 | BJ10: PC (28:0) _678.5094@4.3 | BK10: PC (30:0) _706.5446_728.5259@4.895 | BL10: PC (30:1) _704.5258@4.4 | BM10: PC (31:0) _720.5578@5.21 | BN10: PC (32:0) _734.5707_756.5536@5.55 | BO10: PC (32:1) _732.5549_754.5368@4.97 | BP10: PC (32:2) _730.5382_752.5197@4.515 | BQ10: PC (33:0) _748.585@5.76 | BR10: PC (33:1) _746.5698@5.29 | BS10: PC (33:2) _744.5539_766.5401@4.805 | BT10: PC (34:2) _758.5692_780.5524@5.115 | BU10: PC (34:3) _756.5542_778.5356@4.695 | BV10: PC (34:4) _754.5378@4.42 | BW10: PC (35:1) _774.6009@5.94 | BX10: PC (35:2) _772.5858@5.44 | BY10: PC (35:3) _770.569@4.94 | BZ10: PC (35:4) _768.5536_790.5414@4.71 | CA10: PC (36:1) _788.6180_810.5995@6.29 | CB10: PC (36:2) _786.6006@5.77 | CC10: PC (36:3) B _784.5851_806.5677@5.28 | CD10: PC (36:4) A _782.5701_804.5513@4.725 | CE10: PC (36:4) B _782.5692@5.01 | CF10: PC (36:4) C _782.5686 _760.585@5.605 | CG10: PC (36:5) A _780.5532@4.33 | CH10: PC (36:5) B _780.5542_802.5358@4.62 | CI10: PC (36:6) _778.5381@4.29 | CJ10: PC (37:2) _800.6169@6.11 | CK10: PC (37:3) _798.5967@5.58 | CL10: PC (37:4) _796.5845@5.33 | CM10: PC (37:6) _792.554@4.56 | CN10: PC (38:3) _812.6176_834.5984@5.93 | CO10: PC (38:4) A _832.5834 _810.6011@5.67 | CP10: PC (38:5) A _808.5861@5.05 | CQ10: PC (38:5) B _808.5856_830.5670@5.23 | CR10: PC (38:6) A _806.5693_828.5519@4.865 | CS10: PC (38:7) _804.5536@4.37 | CT10: PC (39:6) _820.5845@5.16 | CU10: PC (40:4) _838.6318_860.6132@6.145 | CV10: PC (40:5) A _858.598 _836.6165@5.69 | CW10: PC (40:5) B _836.6149_858.5934@5.915 | CX10: PC (40:6) A _834.6003@5.21 | CY10: PC (40:6) B _834.6015_856.5825@5.47 | CZ10: PC (40:7) _832.5851_854.5671@4.935 | DA10: PC (40:8) _830.5688@4.5 | DB10: PC (o-32:0) _720.5903@5.97 | DC10: PC (o-34:0) _748.621@6.68 | DD10: PC (p-32:0) or PC (o-32:1) _718.5647@5.79 | DE10: PC (p-32:0) or PC (o-32:1) _718.5745_740.5564@5.865 | DF10: PC (p-34:1) or PC (o-34:2) A _744.59@5.52 | DG10: PC (p-34:1) or PC (o-34:2) B _744.5840_766.5673@5.915 | DH10: PC (p-34:2) or PC (o-34:3) _742.5746_764.5562@5.41 | DI10: PC (p-36:2) or PC (o-36:3) _770.6031@5.57 | DJ10: PC (p-36:3) or PC (o-36:4) _768.5903_790.5721@5.41 | DK10: PC (p-36:4) or PC (o-36:5) _766.5746@5.29 | DL10: PC (p-38:2) or PC (o-38:3) _798.6363@6.37 | DM10: PC (p-38:3) or PC (o-38:4) _796.6213_818.6024@6.09 | DN10: PC (p-38:4) or PC (o-38:5) A _794.6042_816.5884@5.445 | DO10: PC (p-38:4) or PC (o-38:5) B _794.6057@5.95 | DP10: PC (p-38:5) or PC (o-38:6) _814.5746 _792.5898@5.34 | DQ10: PC (p-40:5) or PC (o-40:6) _820.6194@5.88 | DR10: PC (p-40:6) or PC (o-40:7) A _818.5985@5.28 | DS10: PC (p-40:6) or PC (o-40:7) B _818.6079@5.74 | DT10: PC (p-40:7) or PC (o-40:8) _816.6078@5.18 | DU10: PC (p-42:5) or PC (o-42:6) _848.6506@6.19 | DV10: PE (34:2) _716.5372@5.28 | DW10: PE (38:4) _768.5633@5.81 | DX10: PE (38:6) _764.5276@4.98 | DY10: PE (p-36:2) or PE (o-36:3) _728.5587@6.26 | DZ10: PE (p-36:4) or PE (o-36:5) _724.5277@5.47 | EA10: PE (p-38:4) or PE (o-38:5) _752.5579@6.13 | EB10: PE (p-38:5) or PE (o-38:6) _750.5441@5.51 | EC10: SM (d30:1) _647.512@3.67 | ED10: SM (d32:1) _675.5438_697.5252@4.21 | EE10: SM (d32:2) _673.5277@3.75 | EF10: SM (d33:1) _689.5593_711.5408@4.5 | EG10: SM (d34:0) _705.5895@5.03 | EH10: SM (d34:1) _703.5753@4.81 | EI10: SM (d34:2) _701.5596_723.5408@4.3 | EJ10: SM (d36:0) _733.6191@5.72 | EK10: SM (d36:1) _731.6071_753.5880@5.47 | EL10: SM (d36:2) _729.5911_751.5721@4.915 | EM10: SM (d36:3) _727.5743@4.47 | EN10: SM (d38:1) _759.6378_781.6188@6.2 | EO10: SM (d38:2) _779.6026 _757.6207@5.585 | EP10: SM (d39:1) _773.6530_795.6332@6.535 | EQ10: SM (d39:2) _771.6324@5.95 | ER10: SM (d40:1) _787.6697_809.6508@6.87 | ES10: SM (d40:2) _785.6539_807.6349@6.28 | ET10: SM (d41:1) _801.6847_823.6658@7.22 | EU10: SM (d41:2) _821.6499 _799.6687@6.625 | EV10: SM (d41:2) _799.6683@6.51 | EW10: SM (d42:1) _815.7006_837.6817@7.57 | EX10: SM (d42:2) _813.6855_835.6666@6.84 | EY10: SM (d42:3) _811.6661_833.6507@6.265 | EZ10: SM (d43:1) _829.7146@7.77 | FA10: SM (d43:2) _827.6985@7.07 | FB10: TG (14:0/14:0/14:0) _740.6761@9.56 | FC10: TG (44:1) _766.6918_771.6470@9.59 | FD10: TG (46:0) _801.6942 _796.739@10.49 | FE10: TG (46:1) _799.6789_794.7238@10.085 | FF10: TG (46:2) _792.7074_797.6628@9.65 | FG10: TG (46:3) _795.6463@9.22 | FH10: TG (48:0) _824.7711@10.92 | FI10: TG (48:1) _827.7101_822.7553@10.52 | FJ10: TG (48:2) _825.6949_820.7397@10.115 | FK10: TG (48:3) _823.6790_818.7234@9.695 | FL10: TG (49:0) _843.7419 _838.7856@11.135 | FM10: TG (49:1) _836.7707_841.7258@10.745 | FN10: TG (49:2) _834.7548_839.7101@10.345 | FO10: TG (49:3) _832.7397_837.6949@9.94 | FP10: TG (50:1) _855.7424_850.7872@10.94 | FQ10: TG (50:2) _853.7263_848.7708@10.555 | FR10: TG (50:3) _851.7107_846.7556@10.165 | FS10: TG (50:4) _844.7394_849.6949@9.79 | FT10: TG (50:5) _842.7225_847.6780@9.39 | FU10: TG (51:1) _864.8018@11.12 | FV10: TG (51:2) _862.7867_867.7418@10.77 | FW10: TG (51:3) _860.7706_865.7259@10.39 | FX10: TG (51:4) _863.7105_858.7545@10.015 | FY10: TG (52:0) _885.7881_880.8325@11.7 | FZ10: TG (52:1) _883.7738_878.8188@11.345 | GA10: TG (52:2) _881.7590_876.8018@10.95 | GB10: TG (52:4) _877.7266_872.7705@10.23 | GC10: TG (52:5) _875.7112_870.7559@9.875 | GD10: TG (52:6) _868.7384@9.51 | GE10: TG (53:1) _892.8324_897.7869@11.51 | GF10: TG (53:2) _890.8174_895.7729@11.155 | GG10: TG (53:3) _888.8021_893.7574@10.8 | GH10: TG (53:4) _891.7418_886.7856@10.435 | GI10: TG (53:5) _889.728@10.04 | GJ10: TG (54:1) _911.8039_906.8484@11.715 | GK10: TG (54:2) _904.8346_909.7895@11.36 | GL10: TG (54:3) _902.8183_907.7736@11.01 | GM10: TG (54:4) _905.7579 _900.8026@10.67 | GN10: TG (54:5) B_903.7419 _898.7865@10.445 | GO10: TG (54:5) A_898.7869_903.7421@10.29 | GP10: TG (54:6) B_901.7294 _896.7706@10.13 | GQ10: TG (54:6) A_896.7712_901.7271@9.895 | GR10: TG (56:2) _937.8199_932.8638@11.715 | GS10: TG (56:3) _930.8488_935.8074@11.37 | GT10: TG (56:4) _933.7932@11.11 | GU10: TG (56:4) _928.8323@11.07 | GV10: TG (56:4) _933.7932 _928.8323@11.09 | GW10: TG (56:5) _931.7739 _926.8181@10.89 | GX10: TG (56:6) _929.7574_924.8019@10.46 | GY10: TG (56:7) _927.7415_922.7859@10.1 | GZ10: TG (56:8) _920.7697_925.7316@9.905 | HA10: TG (58:10) _944.7693_949.7277@9.57 | HB10: TG (58:3) _963.8371_958.8787@11.74 | HC10: TG (58:4) A_956.8616@11.4 | HD10: TG (58:6) _952.8326@10.84 | HE10: TG (58:8) _953.76 _948.8011@10.335 | HF10: TG (58:9) _946.7859_951.7433@9.945 | HG10: CSH_posESI #002_719.5674@4.62 | HH10: CSH_posESI #017_549.4902@10.54 | HI10: CSH_posESI #022_615.4966@6.44 | HJ10: CSH_posESI #033_872.538@4.72 | HK10: CSH_posESI #034_896.5385@4.86 | HL10: CSH_posESI #036_858.5986@4.93 | HM10: CSH_posESI #041_430.3806@5.3 | HN10: CSH_posESI #042_900.5695@5.68 | HO10: CSH_posESI #058_951.8165@10.45 | HP10: CSH_posESI #081_951.775@11.36 | HQ10: CSH_posESI #098_813.6387@9.64 | HR10: CSH_posESI #103_766.5698@4.96 | HS10: CSH_posESI #104_764.6755_769.6315@9.14 | HT10: CSH_posESI #116_885.674@9.52 | HU10: CSH_posESI #124_864.5255@5.29 | HV10: CSH_posESI #125_865.6688@9.77 | HW10: CSH_posESI #130_903.6563@6.84 | HX10: CSH_posESI #137_816.7072_821.6627@9.28 | HY10: CSH_posESI #141_899.748@11.34 | HZ10: CSH_posESI #164_841.6684@10.1 | IA10: CSH_posESI #170_867.6839@10.16 | IB10: CSH_posESI #176_551.5045@10.94 | IC10: CSH_posESI #187_601.5196@10.63 | ID10: CSH_posESI #197_876.6834@6.83 | IE10: CSH_posESI #201_369.3525@10.53 | IF10: CSH_posESI #203_925.7628@11.37 | IG10: CSH_posESI #211_893.6997@10.21 | IH10: CSH_posESI #214_948.8655 _931.8488@11.355 | II10: CSH_posESI #215_808.7389_813.6934@10.315 | IJ10: CSH_posESI #230_848.5392@5.21 | IK10: CSH_posESI #231_838.5114@5.16 | IL10: CSH_posESI #232_1162.8569@5.6 | IM10: CSH_posESI #270_627.5352@4.94 | IN10: CSH_posESI #275_887.5641 _904.5903@4.94 | IO10: CSH_posESI #282_577.5201@10.95 | IP10: CSH_posESI #285_876.5699@5.79 | IQ10: CSH_posESI #286_1159.833@5.11 | IR10: CSH_posESI #288_577.5192@4.88 | IS10: CSH_posESI #290_866.5413@5.78 | IT10: CSH_posESI #293_776.5796@4.91 | IU10: CSH_posESI #296_603.535@5 | IV10: CSH_posESI #298_603.5356@10.97 | IW10: CSH_posESI #301_850.5551@5.59 | IX10: CSH_posESI #303_874.5541@5.3 | IY10: CSH_posESI #307_872.5386@5.01 | IZ10: CSH_posESI #308_878.5873@6.29 | JA10: CSH_posESI #310_1017.9355@10.53 | JB10: CSH_posESI #359_663.4545@11.04 | JC10: _909.5457@4.92 | JD10: _811.6791@9.88 | JE10: _806.7242@9.88 | JF10: _919.7771@10.85 | JG10: _914.8164@10.86 | JH10: _880.718@9.52 | JI10: _967.8657@12.03 | JJ10: _962.9098@12.04 | JK10: _675.2646@3.18 | JL10: _653.283@3.18 | JM10: _670.3093@3.19 | JN10: _873.6942@9.59 | JO10: _863.6835@9.51 | JP10: _931.534@4.94 | JQ10: _649.5919_671.5745_666.6198@10.5266666666667 | JR10: _806.5696_828.5520@4.63 | JS10: _810.6011_832.5817@5.45 | JT10: _762.6024_784.5856@6.225 | JU10: _814.6339_836.6166@6.375 | JV10: _673.5922_690.6191_695.5743@10.3 | JW10: _857.7559_874.7858_879.7428@10.6233333333333 | JX10: _369.3527_386.3786@11.02 | JY10: _768.7077_773.6626@10.065 | JZ10: _916.8325_921.7899@11.185 | KA10: _866.8165_871.7721@11.495 | KB10: _836.8051_841.7613@11.505 | KC10: _918.8477_923.8023@11.525 | KD10: _934.8737_939.8303@11.745 | KE10: _934.8790_939.8348@11.92 | KF10: _960.8904_965.8507@11.925 | KG10: _894.7541_899.7099@9.5 | KH10: _536.4384@8.47 | KI10: _549.4903@10.15 | KJ10: _547.4729@10.14 | KK10: _575.5042@10.61 | KL10: _577.5188@10.61 | KM10: _579.5287@10.97 | KN10: _601.5182@10.24 | KO10: _599.5039@10.25 | KP10: _605.5455@11 | KQ10: _833.7427@9.92 | KR10: _861.7651@10.12 | KS10: _887.7808@10.17 | KT10: _887.7877@10.43 | KU10: _911.7808@9.88 | KV10: _913.7961@10.23 | KW10: _917.8286@10.93 | KX10: _919.8445@11.34 | KY10: _937.7971@9.89 | KZ10: _939.8116@10.29 | LA10: _945.8591@11.36 | LB10: _952.5977@5.12 | LC10: _965.8271@10.45 | LD10: _1160.3342@5.11 | LE10: _1159.3315@5.11 | LF10: _1163.3582@5.6 | LG10: _1162.3562@5.6 | LH10: _1196.3341@5.01 | LI10: _1195.3314@5.01 | LJ10: _703.5737@4.71 | LK10: _781.5558@5.32 | LL10: _781.5575@5.42 | LM10: _781.5556@5.15 | LN10: _781.5557@5.22 | LO10: _943.8436@11.01 | LP10: _781.5565@5.07 | LQ10: _917.7005@9.92 | LR10: _879.1766@10.96 | LS10: _156.0419@0.54 | LT10: _286.1439@0.78 | LU10: _448.3273@1.03 | LV10: _184.0732@1.57 | LW10: _255.2111@2.53 | LX10: _286.2292@2.53 | LY10: _217.0178@2.87 | LZ10: _678.4702@3.08 | MA10: _1073.5663@3.18 | MB10: _300.2894@3.27 | MC10: _568.428@3.46 | MD10: _661.5271@3.93 | ME10: _570.4438@4.18 | MF10: _184.0732@4.3 | MG10: _774.564@4.46 | MH10: _781.5569@4.5 | MI10: _715.5744@4.62 | MJ10: _725.5574@4.8 | MK10: _741.5356@4.8 | ML10: _793.5447@4.8 | MM10: _1077.3408@4.8 | MN10: _705.8116@4.81 | MO10: _777.5545@4.82 | MP10: _1128.8369@4.82 | MQ10: _184.073@4.84 | MR10: _777.0544@4.84 | MS10: _1180.335@4.84 | MT10: _1180.8367@4.84 | MU10: _1000.5974@4.85 | MV10: _844.5295@4.86 | MW10: _864.6242@4.86 | MX10: _886.512@4.86 | MY10: _765.5609@4.87 | MZ10: _837.5487@4.88 | NA10: _859.541@4.89 | NB10: _661.5275@4.91 | NC10: _902.5744@4.94 | ND10: _653.5499@4.96 | NE10: _779.5469@4.98 | NF10: _780.0452@4.99 | NG10: _820.5364@4.99 | NH10: _840.6217@5 | NI10: _782.8073@5.01 | NJ10: _784.9277@5.01 | NK10: _793.584@5.01 | NL10: _805.0514@5.01 | NM10: _862.5103@5.01 | NN10: _976.5973@5.01 | NO10: _1195.8324@5.01 | NP10: _863.5327@5.02 | NQ10: _817.5621@5.03 | NR10: _700.572@5.04 | NS10: _727.5715@5.04 | NT10: _818.0605@5.04 | NU10: _755.5756@5.05 | NV10: _1183.3315@5.05 | NW10: _1183.8328@5.05 | NX10: _793.053@5.06 | NY10: _1171.3319@5.08 | NZ10: _1171.8329@5.08 | OA10: _184.073@5.11 | OB10: _758.8049@5.11 | OC10: _760.9233@5.11 | OD10: _761.0881@5.11 | OE10: _769.5646@5.11 | OF10: _770.0627@5.11 | OG10: _1188.812@5.11 | OH10: _1189.3121@5.11 | OI10: _761.1667@5.12 | OJ10: _781.0519@5.12 | OK10: _839.5136@5.13 | OL10: _849.5424@5.13 | OM10: _1172.8402@5.17 | ON10: _1173.3416@5.17 | OO10: _629.5504@5.18 | OP10: _703.5751@5.2 | OQ10: _806.0608@5.21 | OR10: _794.0604@5.27 | OS10: _819.067@5.27 | OT10: _786.832@5.28 | OU10: _786.9428@5.28 | OV10: _978.6127@5.28 | OW10: _979.616@5.28 | OX10: _1185.8481@5.28 | OY10: _1186.3506@5.28 | OZ10: _692.5587@5.29 | PA10: _1198.3547@5.29 | PB10: _1198.8561@5.29 | PC10: _807.0672@5.3 | PD10: _842.634@5.3 | PE10: _703.575@5.35 | PF10: _765.5604@5.4 | PG10: _605.5504@5.49 | PH10: _837.6143@5.51 | PI10: _930.6058@5.59 | PJ10: _772.0771@5.6 | PK10: _783.0676@5.6 | PL10: _840.5267@5.6 | PM10: _954.6139@5.6 | PN10: _760.8206@5.61 | PO10: _762.939@5.61 | PP10: _842.5332@5.61 | PQ10: _184.073@5.62 | PR10: _828.6107@5.62 | PS10: _1187.8649@5.64 | PT10: _1187.3644@5.65 | PU10: _807.5766@5.66 | PV10: _808.0766@5.66 | PW10: _1004.6287@5.67 | PX10: _868.6466@5.68 | PY10: _890.5416@5.68 | PZ10: _773.5628@5.72 | QA10: _821.0845@5.72 | QB10: _796.0764@5.73 | QC10: _1188.8723@5.75 | QD10: _1189.3744@5.75 | QE10: _184.073@5.76 | QF10: _786.8395@5.77 | QG10: _788.8483@5.77 | QH10: _788.9612@5.77 | QI10: _798.0932@5.77 | QJ10: _980.6287@5.78 | QK10: _981.6318@5.78 | QL10: _809.0836@5.79 | QM10: _877.5735@5.79 | QN10: _845.6538@5.82 | QO10: _844.6506@5.84 | QP10: _821.6178@5.89 | QQ10: _797.6303@5.91 | QR10: _902.5851@5.92 | QS10: _783.5327@5.97 | QT10: _1126.0431@6.05 | QU10: _721.5822@6.15 | QV10: _849.642@6.21 | QW10: _901.6376@6.26 | QX10: _184.0732@6.27 | QY10: _809.1165@6.28 | QZ10: _822.1251@6.28 | RA10: _868.5598@6.29 | RB10: _982.644@6.29 | RC10: _799.6453@6.38 | RD10: _657.4866@6.52 | RE10: _831.6932@6.52 | RF10: _825.6733@6.58 | RG10: _775.6476@6.75 | RH10: _825.6592@6.78 | RI10: _810.6432@6.8 | RJ10: _851.6676@6.8 | RK10: _822.6514@6.85 | RL10: _877.6704@6.85 | RM10: _184.0733@6.86 | RN10: _817.66@6.94 | RO10: _810.6558@7.04 | RP10: _659.5014@7.07 | RQ10: _668.5963@7.17 | RR10: _852.6835@7.44 | RS10: _536.4385@7.59 | RT10: _536.4385@7.6 | RU10: _536.4387@8.03 | RV10: _540.4689@8.26 | RW10: _687.5685@8.38 | RX10: _651.6475@8.4 | RY10: _685.5481@9.29 | RZ10: _897.6983@9.4 | SA10: _891.6993@9.47 | SB10: _917.7139@9.49 | SC10: _907.7278@9.52 | SD10: _923.7219@9.53 | SE10: _839.6528@9.69 | SF10: _845.7389@9.69 | SG10: _899.7112@9.73 | SH10: _941.7018@9.73 | SI10: _925.7262@9.74 | SJ10: _780.7079@9.84 | SK10: _899.7323@9.85 | SL10: _369.3522@9.86 | SM10: _888.7643@9.88 | SN10: _893.7084@9.88 | SO10: _891.6852@9.89 | SP10: _919.7262@9.9 | SQ10: _941.7054@9.93 | SR10: _967.7184@9.95 | SS10: _735.5486@10.02 | ST10: _715.6218@10.04 | SU10: _815.6544@10.05 | SV10: _943.7147@10.07 | SW10: _369.352@10.12 | SX10: _890.7802@10.14 | SY10: _917.7946@10.17 | SZ10: _916.8022@10.19 | TA10: _942.8138@10.21 | TB10: _573.488@10.23 | TC10: _575.5038@10.23 | TD10: _1049.7719@10.23 | TE10: _975.8032@10.24 | TF10: _782.7228@10.27 | TG10: _696.5776@10.28 | TH10: _369.3523@10.29 | TI10: _663.4541@10.29 | TJ10: _927.7502@10.32 | TK10: _711.5484@10.38 | TL10: _881.7094@10.4 | TM10: _696.5775@10.41 | TN10: _945.7301@10.43 | TO10: _955.7737@10.44 | TP10: _893.7356@10.45 | TQ10: _523.4727@10.52 | TR10: _147.1163@10.53 | TS10: _161.1319@10.53 | TT10: _668.8491@10.54 | TU10: _551.5024@10.58 | TV10: _877.0449@10.61 | TW10: _877.1642@10.61 | TX10: _937.7018@10.61 | TY10: _875.037@10.62 | TZ10: _1051.7852@10.62 | UA10: _603.5336@10.63 | UB10: _977.814@10.63 | UC10: _915.8123@10.64 | UD10: _944.8303@10.64 | UE10: _941.8276@10.68 | UF10: _671.5746@10.69 | UG10: _970.8439@10.69 | UH10: _943.8425@10.7 | UI10: _810.7543@10.71 | UJ10: _927.8181@10.71 | UK10: _955.7896@10.75 | UL10: _895.7431@10.78 | UM10: _883.7211@10.79 | UN10: _927.8196@10.82 | UO10: _947.7492@10.87 | UP10: _953.8329@10.88 | UQ10: _891.8139@10.92 | UR10: _946.8455@10.92 | US10: _949.751@10.92 | UT10: _958.8724@10.92 | UU10: _979.8317@10.92 | UV10: _1053.8036@10.94 | UW10: _877.0521@10.96 | UX10: _940.7203@10.96 | UY10: _879.0599@10.97 | UZ10: _939.7162@10.98 | VA10: _161.1319@11.02 | VB10: _1019.9511@11.02 | VC10: _905.8265@11.04 | VD10: _674.5933@11.05 | VE10: _931.8423@11.11 | VF10: _911.7522@11.17 | VG10: _905.8223@11.18 | VH10: _671.5752@11.21 | VI10: _579.5353@11.33 | VJ10: _936.8163@11.34 | VK10: _605.5515@11.35 | VL10: _974.8765@11.36 | VM10: _926.7673@11.37 | VN10: _908.8441@11.39 | VO10: _911.797@11.39 | VP10: _933.858@11.4 | VQ10: _912.8028@11.41 | VR10: _937.8176@11.43 | VS10: _369.3521@11.48 | VT10: _862.8209@11.5 | VU10: _867.7943@11.51 | VV10: _927.7786@11.69 | VW10: _953.7936@11.69 | VX10: _990.941@12.12 | VY10: _1016.9566@12.12 | VZ10: _642.6188@11.03 | WA10: _496.3402@1.44 | WB10: _524.3713@2.15 | WC10: _522.3555@1.58 | WD10: _718.5447@4.68 | WE10: _732.5759@4.88 | WF10: _748.5669@5.33 | WG10: _758.5603@4.59 | WH10: _758.5603@4.65 | WI10: _758.5601@4.76 | WJ10: _758.5614@4.87 | WK10: _756.5667@5.06 | WL10: _782.5698@4.88 | WM10: _794.5696@4.92 | WN10: _816.6396@6.4 | WO10: _810.6002@5.36 | WP10: _804.5536@4.27 | WQ10: _822.591@5.36 | WR10: _820.5772@5.05 | WS10: _830.5668@5.05 | WT10: _854.5682@4.36 | WU10: _880.5895@5 | WV10: _746.5767@5.66 | WW10: _742.5571@5.31 | WX10: _756.5702@5.61 | WY10: _780.5628@5.46 | WZ10: _778.5358@4.78 | XA10: _792.5692@5.06 | XB10: _808.5839@5.78 | XC10: _804.5523@5 | XD10: _804.5518@5.19 | XE10: _804.5515@4.87 | XF10: _820.6065@5.71 | XG10: _716.5654@4.88 | XH10: _746.6058@6.04 | XI10: _740.5551@4.94 | XJ10: _772.6212@6.2 | XK10: _772.6202@6.61 | XL10: _770.6045@5.67 | XM10: _770.6048@6.09 | XN10: _764.558@4.88 | XO10: _796.6152@5.73 | XP10: _796.6157@5.89 | XQ10: _792.5795@5.04 | XR10: _792.5889@5.22 | XS10: _790.5737@4.92 | XT10: _790.5728@5.09 | XU10: _826.6645@6.86 | XV10: _824.6514@6.56 | XW10: _824.6524@6.77 | XX10: _822.632@5.92 | XY10: _822.6356@6.1 | XZ10: _820.6185@5.53 | YA10: _850.6679@6.76 | YB10: _848.6522@6.61 | YC10: _846.663@6.29 | YD10: _878.6992@7.4 | YE10: _914.7827@9.89 | YF10: _700.5276@5.58 | YG10: _788.5672@5.29 | YH10: _816.6038@5.92 | YI10: _822.5319@4.98 | YJ10: _848.541@5.32 | YK10: _872.6503@6.82 | YL10: _864.5309@5.02 | YM10: _886.579@5.23 | YN10: _912.5949@5.29 | YO10: _914.6113@5.88 | YP10: _822.7451@10.1 | YQ10: _822.7456@10.23 | YR10: _796.5394@5.12 | YS10: _852.8024@11.32 | YT10: _826.6036_826.5907@6.29 | YU10: _824.568@5.81 | YV10: _844.7391@9.99 | YW10: _862.7764@10.12 | YX10: _862.7864@11.09 | YY10: _848.5625@5.68 | YZ10: _868.7364@9.81 | ZA10: _892.8255@10.92 | ZB10: _888.7921@10.17 | ZC10: _884.7697@10.08 | ZD10: _908.8634@11.91 | ZE10: _904.8242@10.95 | ZF10: _894.7527@9.83 | ZG10: _892.7307@9.42 | ZH10: _920.8557@11.34 | ZI10: _918.8403@10.92 | ZJ10: _916.8229@10.64 | ZK10: _916.823@10.72 | ZL10: _916.821@10.81 | ZM10: _914.8072@10.22 | ZN10: _912.8019@10.68 | ZO10: _912.7916@9.88 | ZP10: _910.7856@10.28 | ZQ10: _936.8944@12.03 | ZR10: _928.8192@10.66 | ZS10: _926.8178@10.76 | ZT10: _924.7968@10.32 | ZU10: _922.7861@10.29 | ZV10: _948.8925@11.98 | ZW10: _946.8706@11.36 | ZX10: _942.8378@10.68 | ZY10: _940.8218@10.28 | ZZ10: _938.8076@9.89 | AAA10: _938.813@10.66 | AAB10: _956.8585@10.64 | AAC10: _954.8351@10.22 | AAD10: _954.8521@11.14 | AAE10: _950.8164@10.47 | AAF10: _950.8171@10.62 | AAG10: _950.8173@10.71 | AAH10: _974.9099@11.98 | AAI10: _966.8375@10.44 | AAJ10: _988.9256@12.04 | AAK10: _986.91@11.93
A11: 1 | B11: 1 | C11: X | E11: Biorec01_Sarz_CSHMS.d | F11: 65168 | G11: 594369 | H11: 54262 | I11: 31263 | J11: 36974 | K11: 5578 | L11: 64521 | M11: 60003 | N11: 23997 | O11: 205761 | P11: 73589 | Q11: 131316 | R11: 10395 | S11: 18902 | T11: 39057 | U11: 14878 | V11: 36666 | W11: 130153 | X11: 29505 | Y11: 51864 | Z11: 109522 | AA11: 803 | AB11: 741 | AC11: 2196 | AD11: 2468 | AE11: 11017 | AF11: 71459 | AG11: 26906 | AH11: 6792 | AI11: 10511 | AJ11: 20477 | AK11: 6799 | AL11: 7142 | AM11: 20179 | AN11: 7907 | AO11: 46994 | AP11: 13079 | AQ11: 10155 | AR11: 17667 | AS11: 10263 | AT11: 4622 | AU11: 5717 | AV11: 3658 | AW11: 808777 | AX11: 7589 | AY11: 313306 | AZ11: 100247 | BA11: 138250 | BB11: 2897 | BC11: 9345 | BD11: 34910 | BE11: 2726 | BF11: 7049 | BG11: 8361 | BH11: 7514 | BI11: 9383 | BJ11: 2574 | BK11: 47646 | BL11: 1985 | BM11: 5539 | BN11: 172159 | BO11: 118880 | BP11: 24039 | BQ11: 4035 | BR11: 18919 | BS11: 35361 | BT11: 4844344 | BU11: 65042 | BV11: 8330 | BW11: 20467 | BX11: 77475 | BY11: 10480 | BZ11: 9995 | CA11: 359014 | CB11: 2731534 | CC11: 734456 | CD11: 268609 | CE11: 2294321 | CF11: 2055849 | CG11: 6735 | CH11: 95055 | CI11: 3350 | CJ11: 8930 | CK11: 13489 | CL11: 32663 | CM11: 2868 | CN11: 336308 | CO11: 1400301 | CP11: 322233 | CQ11: 201500 | CR11: 1042241 | CS11: 3321 | CT11: 6765 | CU11: 36412 | CV11: 83856 | CW11: 40667 | CX11: 11507 | CY11: 233268 | CZ11: 57202 | DA11: 10471 | DB11: 17159 | DC11: 2448 | DD11: 5747 | DE11: 22158 | DF11: 64018 | DG11: 30473 | DH11: 116481 | DI11: 29703 | DJ11: 177556 | DK11: 146109 | DL11: 6520 | DM11: 66147 | DN11: 145501 | DO11: 28289 | DP11: 41369 | DQ11: 10037 | DR11: 13774 | DS11: 6606 | DT11: 7222 | DU11: 6148 | DV11: 5062 | DW11: 12714 | DX11: 8671 | DY11: 4564 | DZ11: 13986 | EA11: 16116 | EB11: 12969 | EC11: 1997 | ED11: 42908 | EE11: 4732 | EF11: 27397 | EG11: 36169 | EH11: 922427 | EI11: 128599 | EJ11: 7646 | EK11: 164397 | EL11: 198111 | EM11: 3581 | EN11: 85656 | EO11: 53396 | EP11: 22019 | EQ11: 4997 | ER11: 212384 | ES11: 134760 | ET11: 63167 | EU11: 35992 | EV11: 26940 | EW11: 112678 | EX11: 286906 | EY11: 204224 | EZ11: 2413 | FA11: 6092 | FB11: 2574 | FC11: 8620 | FD11: 76303 | FE11: 48770 | FF11: 24290 | FG11: 2960 | FH11: 703261 | FI11: 216006 | FJ11: 159942 | FK11: 40156 | FL11: 17698 | FM11: 32748 | FN11: 25149 | FO11: 4803 | FP11: 783652 | FQ11: 699567 | FR11: 392739 | FS11: 67124 | FT11: 7286 | FU11: 26346 | FV11: 67672 | FW11: 55307 | FX11: 13324 | FY11: 686092 | FZ11: 299752 | GA11: 2003177 | GB11: 1352526 | GC11: 133992 | GD11: 6993 | GE11: 11253 | GF11: 48808 | GG11: 53917 | GH11: 32287 | GI11: 3636 | GJ11: 67315 | GK11: 265155 | GL11: 666216 | GM11: 845532 | GN11: 207357 | GO11: 589213 | GP11: 142629 | GQ11: 145231 | GR11: 21946 | GS11: 25552 | GT11: 5948 | GU11: 23913 | GV11: 29861 | GW11: 58557 | GX11: 114294 | GY11: 88479 | GZ11: 28989 | HA11: 8665 | HB11: 12468 | HC11: 2005 | HD11: 2805 | HE11: 16065 | HF11: 16222 | HG11: 2827 | HH11: 4282 | HI11: 14009 | HJ11: 1925 | HK11: 6140 | HL11: 6244 | HM11: 5307 | HN11: 9426 | HO11: 7990 | HP11: 2174 | HQ11: 4096 | HR11: 9417 | HS11: 6922 | HT11: 11003 | HU11: 5687 | HV11: 10048 | HW11: 2593 | HX11: 12317 | HY11: 11996 | HZ11: 6081 | IA11: 12632 | IB11: 14891 | IC11: 12142 | ID11: 9361 | IE11: 321059 | IF11: 13061 | IG11: 22545 | IH11: 23462 | II11: 9195 | IJ11: 13918 | IK11: 10371 | IL11: 1810 | IM11: 94620 | IN11: 61317 | IO11: 21795 | IP11: 20330 | IQ11: 13666 | IR11: 8395 | IS11: 13506 | IT11: 10695 | IU11: 22580 | IV11: 11556 | IW11: 11112 | IX11: 9600 | IY11: 15509 | IZ11: 4546 | JA11: 11474 | JB11: 30983 | JC11: 14286 | JD11: 1194 | JE11: 2015 | JF11: 1866 | JG11: 1894 | JH11: 7718 | JI11: 3524 | JJ11: 14061 | JK11: 2219 | JL11: 2671 | JM11: 7558 | JN11: 8756 | JO11: 3692 | JP11: 2138 | JQ11: 519287 | JR11: 77740 | JS11: 111539 | JT11: 34404 | JU11: 37189 | JV11: 135046 | JW11: 2485413 | JX11: 233732 | JY11: 12434 | JZ11: 6290 | KA11: 12598 | KB11: 4015 | KC11: 3572 | KD11: 7076 | KE11: 24198 | KF11: 25792 | KG11: 23827 | KH11: 5506 | KI11: 1421 | KJ11: 1302 | KK11: 12522 | KL11: 7337 | KM11: 3069 | KN11: 3186 | KO11: 4618 | KP11: 2147 | KQ11: 1715 | KR11: 3858 | KS11: 7917 | KT11: 14651 | KU11: 3598 | KV11: 19687 | KW11: 15485 | KX11: 5658 | KY11: 3848 | KZ11: 7956 | LA11: 4974 | LB11: 10655 | LC11: 1202 | LD11: 10612 | LE11: 9168 | LF11: 1293 | LG11: 1282 | LH11: 4420 | LI11: 3744 | LJ11: 929423 | LK11: 77355 | LL11: 25265 | LM11: 134886 | LN11: 142703 | LO11: 5681 | LP11: 165405 | LQ11: 14573 | LR11: 7676 | LS11: 2536 | LT11: 6389 | LU11: 3461 | LV11: 6515 | LW11: 1820 | LX11: 8748 | LY11: 4321 | LZ11: 13712 | MA11: 1499 | MB11: 1876 | MC11: 2737 | MD11: 1372 | ME11: 2730 | MF11: 3529 | MG11: 5601 | MH11: 31125 | MI11: 2145 | MJ11: 203309 | MK11: 4476 | ML11: 9134 | MM11: 1818 | MN11: 5740 | MO11: 2912 | MP11: 1795 | MQ11: 17219 | MR11: 4557 | MS11: 1225 | MT11: 912 | MU11: 3835 | MV11: 4366 | MW11: 6295 | MX11: 4284 | MY11: 2959 | MZ11: 1792 | NA11: 0 | NB11: 2388 | NC11: 2505 | ND11: 1939 | NE11: 2348 | NF11: 1710 | NG11: 7666 | NH11: 6471 | NI11: 163989 | NJ11: 6468 | NK11: 3100 | NL11: 13058 | NM11: 10774 | NN11: 9278 | NO11: 5595 | NP11: 5187 | NQ11: 4199 | NR11: 2111 | NS11: 5602 | NT11: 3567 | NU11: 3077 | NV11: 2093 | NW11: 2473 | NX11: 8002 | NY11: 3874 | NZ11: 5129 | OA11: 25131 | OB11: 338823 | OC11: 13780 | OD11: 3965 | OE11: 4840 | OF11: 3691 | OG11: 2495 | OH11: 2560 | OI11: 2986 | OJ11: 16599 | OK11: 7802 | OL11: 9734 | OM11: 4026 | ON11: 3378 | OO11: 2590 | OP11: 9758 | OQ11: 1617 | OR11: 5690 | OS11: 1898 | OT11: 3212 | OU11: 2533 | OV11: 3058 | OW11: 1620 | OX11: 2174 | OY11: 1666 | OZ11: 1907 | PA11: 1144 | PB11: 1298 | PC11: 1195 | PD11: 3437 | PE11: 4146 | PF11: 7282 | PG11: 2786 | PH11: 8677 | PI11: 2429 | PJ11: 1912 | PK11: 6850 | PL11: 7602 | PM11: 6848 | PN11: 122269 | PO11: 4302 | PP11: 3600 | PQ11: 13578 | PR11: 3067 | PS11: 2539 | PT11: 2141 | PU11: 10272 | PV11: 8662 | PW11: 4701 | PX11: 3466 | PY11: 6422 | PZ11: 19747 | QA11: 5945 | QB11: 4838 | QC11: 1886 | QD11: 1750 | QE11: 12722 | QF11: 194446 | QG11: 20573 | QH11: 6196 | QI11: 3612 | QJ11: 9271 | QK11: 5211 | QL11: 16918 | QM11: 10165 | QN11: 2329 | QO11: 5732 | QP11: 6023 | QQ11: 6563 | QR11: 2185 | QS11: 8943 | QT11: 5761 | QU11: 2396 | QV11: 2611 | QW11: 2343 | QX11: 2781 | QY11: 1185 | QZ11: 988 | RA11: 1957 | RB11: 1514 | RC11: 10305 | RD11: 2724 | RE11: 2573 | RF11: 1950 | RG11: 1360 | RH11: 3252 | RI11: 4719 | RJ11: 2843 | RK11: 1040 | RL11: 5418 | RM11: 4277 | RN11: 2777 | RO11: 2639 | RP11: 2940 | RQ11: 1373 | RR11: 4417 | RS11: 9782 | RT11: 8815 | RU11: 1325 | RV11: 1667 | RW11: 125313 | RX11: 5120 | RY11: 3144 | RZ11: 0 | SA11: 3126 | SB11: 4078 | SC11: 4006 | SD11: 5989 | SE11: 7061 | SF11: 7103 | SG11: 10841 | SH11: 4762 | SI11: 12794 | SJ11: 1223 | SK11: 10216 | SL11: 2523 | SM11: 2451 | SN11: 2150 | SO11: 3701 | SP11: 5379 | SQ11: 4217 | SR11: 2968 | SS11: 5290 | ST11: 4134 | SU11: 3027 | SV11: 5534 | SW11: 11984 | SX11: 2995 | SY11: 2899 | SZ11: 5151 | TA11: 7431 | TB11: 1177 | TC11: 6883 | TD11: 2194 | TE11: 2103 | TF11: 3801 | TG11: 23405 | TH11: 83058 | TI11: 26217 | TJ11: 9710 | TK11: 4235 | TL11: 3390 | TM11: 6846 | TN11: 3742 | TO11: 3958 | TP11: 6980 | TQ11: 1611 | TR11: 3020 | TS11: 3170 | TT11: 1876 | TU11: 2839 | TV11: 25137 | TW11: 10440 | TX11: 2177 | TY11: 158951 | TZ11: 2910 | UA11: 3344 | UB11: 2167 | UC11: 19241 | UD11: 6132 | UE11: 8417 | UF11: 34722 | UG11: 2000 | UH11: 3433 | UI11: 8108 | UJ11: 29203 | UK11: 2417 | UL11: 12035 | UM11: 3456 | UN11: 15453 | UO11: 3262 | UP11: 2370 | UQ11: 8559 | UR11: 5927 | US11: 3338 | UT11: 4154 | UU11: 1783 | UV11: 2310 | UW11: 124818 | UX11: 1557 | UY11: 22945 | UZ11: 2050 | VA11: 1820 | VB11: 7413 | VC11: 24057 | VD11: 7592 | VE11: 2604 | VF11: 4193 | VG11: 13573 | VH11: 2105 | VI11: 15551 | VJ11: 5098 | VK11: 2579 | VL11: 2176 | VM11: 6905 | VN11: 2825 | VO11: 11005 | VP11: 3462 | VQ11: 3424 | VR11: 1577 | VS11: 10358 | VT11: 1876 | VU11: 5656 | VV11: 4361 | VW11: 2502 | VX11: 5578 | VY11: 3067 | VZ11: 2614 | WA11: 59300 | WB11: 26223 | WC11: 12864 | WD11: 981 | WE11: 109798 | WF11: 6347 | WG11: 7593 | WH11: 5888 | WI11: 6288 | WJ11: 4434 | WK11: 6557 | WL11: 1243024 | WM11: 3946 | WN11: 5241 | WO11: 64115 | WP11: 5228 | WQ11: 4551 | WR11: 5827 | WS11: 38434 | WT11: 2359 | WU11: 3733 | WV11: 7266 | WW11: 101047 | WX11: 7817 | WY11: 17418 | WZ11: 9359 | XA11: 11495 | XB11: 320002 | XC11: 312772 | XD11: 42169 | XE11: 9291 | XF11: 9285 | XG11: 3256 | XH11: 34249 | XI11: 2585 | XJ11: 19464 | XK11: 2209 | XL11: 26088 | XM11: 17900 | XN11: 7927 | XO11: 13154 | XP11: 19327 | XQ11: 7243 | XR11: 18206 | XS11: 2732 | XT11: 11631 | XU11: 3441 | XV11: 2394 | XW11: 8477 | XX11: 6941 | XY11: 13606 | XZ11: 7637 | YA11: 8647 | YB11: 1886 | YC11: 2052 | YD11: 10083 | YE11: 1799 | YF11: 3611 | YG11: 26319 | YH11: 3653 | YI11: 2511 | YJ11: 10092 | YK11: 845 | YL11: 5658 | YM11: 2746 | YN11: 1670 | YO11: 3260 | YP11: 16413 | YQ11: 18467 | YR11: 7172 | YS11: 1208322 | YT11: 5556 | YU11: 7583 | YV11: 11769 | YW11: 3939 | YX11: 1256 | YY11: 4252 | YZ11: 2443 | ZA11: 8629 | ZB11: 8278 | ZC11: 1889 | ZD11: 274219 | ZE11: 140806 | ZF11: 7378 | ZG11: 2749 | ZH11: 5914 | ZI11: 17483 | ZJ11: 17953 | ZK11: 6159 | ZL11: 7932 | ZM11: 20853 | ZN11: 2754 | ZO11: 3865 | ZP11: 3797 | ZQ11: 32175 | ZR11: 14690 | ZS11: 31385 | ZT11: 21187 | ZU11: 37256 | ZV11: 3171 | ZW11: 5478 | ZX11: 5704 | ZY11: 7978 | ZZ11: 3434 | AAA11: 1470 | AAB11: 3987 | AAC11: 4200 | AAD11: 3687 | AAE11: 8206 | AAF11: 2353 | AAG11: 3996 | AAH11: 2588 | AAI11: 2095 | AAJ11: 10859 | AAK11: 8530
A12: 13 | B12: 1 | C12: X | E12: Biorec02_Sarz_CSHMS.d | F12: 66752 | G12: 601156 | H12: 54905 | I12: 32263 | J12: 37439 | K12: 5885 | L12: 64828 | M12: 63001 | N12: 23865 | O12: 214049 | P12: 72393 | Q12: 136429 | R12: 10286 | S12: 18119 | T12: 41538 | U12: 15021 | V12: 37317 | W12: 132869 | X12: 30974 | Y12: 53470 | Z12: 113391 | AA12: 645 | AB12: 1082 | AC12: 2276 | AD12: 2596 | AE12: 11706 | AF12: 72986 | AG12: 27746 | AH12: 6751 | AI12: 12108 | AJ12: 22507 | AK12: 5893 | AL12: 7400 | AM12: 20693 | AN12: 8347 | AO12: 48489 | AP12: 13328 | AQ12: 10050 | AR12: 18863 | AS12: 9518 | AT12: 4537 | AU12: 6710 | AV12: 3687 | AW12: 834589 | AX12: 8619 | AY12: 320306 | AZ12: 102920 | BA12: 145797 | BB12: 3021 | BC12: 10025 | BD12: 36982 | BE12: 2863 | BF12: 7066 | BG12: 8455 | BH12: 7344 | BI12: 9800 | BJ12: 2468 | BK12: 49268 | BL12: 2124 | BM12: 5262 | BN12: 172532 | BO12: 122192 | BP12: 25234 | BQ12: 4006 | BR12: 19532 | BS12: 35000 | BT12: 4948956 | BU12: 66738 | BV12: 8413 | BW12: 20290 | BX12: 79068 | BY12: 11148 | BZ12: 9644 | CA12: 370388 | CB12: 2794633 | CC12: 765127 | CD12: 272811 | CE12: 2307426 | CF12: 2070966 | CG12: 7002 | CH12: 101587 | CI12: 3643 | CJ12: 9263 | CK12: 13648 | CL12: 33055 | CM12: 3061 | CN12: 352497 | CO12: 1441966 | CP12: 322526 | CQ12: 201501 | CR12: 1055252 | CS12: 3568 | CT12: 3651 | CU12: 37341 | CV12: 89708 | CW12: 41511 | CX12: 12381 | CY12: 238092 | CZ12: 60231 | DA12: 11073 | DB12: 17775 | DC12: 2854 | DD12: 5558 | DE12: 23145 | DF12: 63860 | DG12: 32001 | DH12: 122087 | DI12: 38251 | DJ12: 184432 | DK12: 151320 | DL12: 6787 | DM12: 70061 | DN12: 151443 | DO12: 28785 | DP12: 45027 | DQ12: 10624 | DR12: 14303 | DS12: 7008 | DT12: 6978 | DU12: 6321 | DV12: 5361 | DW12: 13843 | DX12: 8821 | DY12: 4414 | DZ12: 13492 | EA12: 16726 | EB12: 13992 | EC12: 1897 | ED12: 44775 | EE12: 5402 | EF12: 30030 | EG12: 38458 | EH12: 936908 | EI12: 133602 | EJ12: 8187 | EK12: 167765 | EL12: 205809 | EM12: 3778 | EN12: 89591 | EO12: 53230 | EP12: 23984 | EQ12: 5353 | ER12: 217217 | ES12: 137077 | ET12: 66040 | EU12: 37573 | EV12: 31980 | EW12: 118078 | EX12: 297790 | EY12: 213177 | EZ12: 2411 | FA12: 5581 | FB12: 2129 | FC12: 8795 | FD12: 57108 | FE12: 49288 | FF12: 24054 | FG12: 2873 | FH12: 355355 | FI12: 215153 | FJ12: 164674 | FK12: 42816 | FL12: 13662 | FM12: 32372 | FN12: 25156 | FO12: 4959 | FP12: 789645 | FQ12: 713569 | FR12: 395454 | FS12: 67802 | FT12: 9263 | FU12: 26621 | FV12: 71736 | FW12: 54820 | FX12: 13991 | FY12: 358922 | FZ12: 314753 | GA12: 2013825 | GB12: 1385713 | GC12: 137021 | GD12: 7198 | GE12: 11003 | GF12: 49935 | GG12: 56399 | GH12: 32629 | GI12: 3886 | GJ12: 69355 | GK12: 270969 | GL12: 686299 | GM12: 860127 | GN12: 213415 | GO12: 609176 | GP12: 143978 | GQ12: 152540 | GR12: 22403 | GS12: 25682 | GT12: 5721 | GU12: 23969 | GV12: 29690 | GW12: 61509 | GX12: 117365 | GY12: 89452 | GZ12: 30931 | HA12: 8934 | HB12: 13422 | HC12: 2134 | HD12: 2466 | HE12: 16240 | HF12: 17226 | HG12: 2671 | HH12: 4575 | HI12: 13881 | HJ12: 2076 | HK12: 7248 | HL12: 6105 | HM12: 4518 | HN12: 9690 | HO12: 7644 | HP12: 2603 | HQ12: 4776 | HR12: 9166 | HS12: 6667 | HT12: 11067 | HU12: 6221 | HV12: 9845 | HW12: 3089 | HX12: 12161 | HY12: 12492 | HZ12: 6330 | IA12: 13020 | IB12: 7080 | IC12: 11823 | ID12: 9056 | IE12: 333072 | IF12: 13650 | IG12: 22899 | IH12: 24184 | II12: 9927 | IJ12: 18664 | IK12: 11771 | IL12: 1997 | IM12: 97072 | IN12: 62145 | IO12: 20360 | IP12: 21889 | IQ12: 13587 | IR12: 9137 | IS12: 14132 | IT12: 10705 | IU12: 22663 | IV12: 12243 | IW12: 11308 | IX12: 10225 | IY12: 15839 | IZ12: 5001 | JA12: 11829 | JB12: 31916 | JC12: 15002 | JD12: 1238 | JE12: 1728 | JF12: 2266 | JG12: 1782 | JH12: 8192 | JI12: 3246 | JJ12: 14580 | JK12: 2357 | JL12: 2381 | JM12: 6501 | JN12: 9214 | JO12: 3913 | JP12: 1989 | JQ12: 524440 | JR12: 80728 | JS12: 116799 | JT12: 36602 | JU12: 38564 | JV12: 139732 | JW12: 2559213 | JX12: 249047 | JY12: 12366 | JZ12: 6157 | KA12: 7884 | KB12: 4201 | KC12: 3935 | KD12: 7858 | KE12: 23754 | KF12: 25998 | KG12: 24630 | KH12: 4520 | KI12: 1487 | KJ12: 1261 | KK12: 12371 | KL12: 10372 | KM12: 3032 | KN12: 3437 | KO12: 4630 | KP12: 2151 | KQ12: 1492 | KR12: 3970 | KS12: 7887 | KT12: 14661 | KU12: 3537 | KV12: 19992 | KW12: 17098 | KX12: 6168 | KY12: 3736 | KZ12: 7977 | LA12: 5322 | LB12: 10700 | LC12: 1280 | LD12: 10800 | LE12: 10366 | LF12: 1447 | LG12: 1197 | LH12: 4480 | LI12: 3716 | LJ12: 956723 | LK12: 76184 | LL12: 12148 | LM12: 110851 | LN12: 139050 | LO12: 5270 | LP12: 5494 | LQ12: 13650 | LR12: 8767 | LS12: 2678 | LT12: 6110 | LU12: 3657 | LV12: 7428 | LW12: 2223 | LX12: 8909 | LY12: 3639 | LZ12: 15312 | MA12: 1410 | MB12: 2058 | MC12: 2760 | MD12: 1305 | ME12: 2806 | MF12: 2367 | MG12: 5885 | MH12: 6484 | MI12: 2585 | MJ12: 207924 | MK12: 5031 | ML12: 10173 | MM12: 1917 | MN12: 5796 | MO12: 5848 | MP12: 2105 | MQ12: 14524 | MR12: 4790 | MS12: 1338 | MT12: 1172 | MU12: 3885 | MV12: 4092 | MW12: 5542 | MX12: 4167 | MY12: 4492 | MZ12: 2031 | NA12: 0 | NB12: 2109 | NC12: 2600 | ND12: 1973 | NE12: 2282 | NF12: 1743 | NG12: 8107 | NH12: 6149 | NI12: 163098 | NJ12: 7527 | NK12: 3541 | NL12: 13545 | NM12: 10681 | NN12: 9062 | NO12: 5943 | NP12: 5217 | NQ12: 3652 | NR12: 2053 | NS12: 6388 | NT12: 3490 | NU12: 7306 | NV12: 2519 | NW12: 2925 | NX12: 9327 | NY12: 4108 | NZ12: 5740 | OA12: 26715 | OB12: 341038 | OC12: 14605 | OD12: 4128 | OE12: 5171 | OF12: 3895 | OG12: 2727 | OH12: 2635 | OI12: 3683 | OJ12: 18038 | OK12: 7840 | OL12: 9740 | OM12: 4599 | ON12: 3457 | OO12: 3010 | OP12: 10405 | OQ12: 1579 | OR12: 7384 | OS12: 1754 | OT12: 5862 | OU12: 2594 | OV12: 3462 | OW12: 1651 | OX12: 2007 | OY12: 1290 | OZ12: 1464 | PA12: 1111 | PB12: 1256 | PC12: 2860 | PD12: 3914 | PE12: 3722 | PF12: 3928 | PG12: 3167 | PH12: 7727 | PI12: 2234 | PJ12: 1892 | PK12: 7500 | PL12: 7644 | PM12: 6636 | PN12: 1471 | PO12: 4798 | PP12: 3654 | PQ12: 14339 | PR12: 2762 | PS12: 2815 | PT12: 2071 | PU12: 10761 | PV12: 8356 | PW12: 4769 | PX12: 3637 | PY12: 6001 | PZ12: 19073 | QA12: 5846 | QB12: 5745 | QC12: 2564 | QD12: 2351 | QE12: 13057 | QF12: 202722 | QG12: 20561 | QH12: 8369 | QI12: 3660 | QJ12: 9089 | QK12: 4874 | QL12: 17412 | QM12: 8751 | QN12: 3427 | QO12: 5917 | QP12: 3527 | QQ12: 6137 | QR12: 2285 | QS12: 8716 | QT12: 6286 | QU12: 3151 | QV12: 4166 | QW12: 2399 | QX12: 5340 | QY12: 1129 | QZ12: 1424 | RA12: 1817 | RB12: 1441 | RC12: 12053 | RD12: 2141 | RE12: 2624 | RF12: 2265 | RG12: 1145 | RH12: 3406 | RI12: 5358 | RJ12: 5598 | RK12: 1217 | RL12: 6361 | RM12: 3163 | RN12: 1194 | RO12: 2926 | RP12: 3230 | RQ12: 1339 | RR12: 4255 | RS12: 7204 | RT12: 7721 | RU12: 1066 | RV12: 1287 | RW12: 128826 | RX12: 4883 | RY12: 3599 | RZ12: 0 | SA12: 3150 | SB12: 3861 | SC12: 3777 | SD12: 4967 | SE12: 7000 | SF12: 10808 | SG12: 10945 | SH12: 4512 | SI12: 13148 | SJ12: 1045 | SK12: 10254 | SL12: 2652 | SM12: 2648 | SN12: 3429 | SO12: 13249 | SP12: 3752 | SQ12: 4516 | SR12: 2807 | SS12: 5191 | ST12: 4425 | SU12: 3381 | SV12: 5303 | SW12: 12131 | SX12: 3213 | SY12: 3060 | SZ12: 5092 | TA12: 7644 | TB12: 1336 | TC12: 6780 | TD12: 2343 | TE12: 1866 | TF12: 3245 | TG12: 20905 | TH12: 87860 | TI12: 26009 | TJ12: 10485 | TK12: 4171 | TL12: 3217 | TM12: 10853 | TN12: 3499 | TO12: 3661 | TP12: 7857 | TQ12: 1458 | TR12: 2879 | TS12: 3399 | TT12: 2079 | TU12: 2825 | TV12: 28646 | TW12: 10612 | TX12: 2426 | TY12: 0 | TZ12: 2828 | UA12: 4223 | UB12: 1977 | UC12: 18889 | UD12: 6455 | UE12: 8695 | UF12: 23099 | UG12: 2596 | UH12: 5152 | UI12: 6475 | UJ12: 29449 | UK12: 2596 | UL12: 10528 | UM12: 3736 | UN12: 15907 | UO12: 4643 | UP12: 2728 | UQ12: 8742 | UR12: 6674 | US12: 3208 | UT12: 4910 | UU12: 2197 | UV12: 2393 | UW12: 1914 | UX12: 1407 | UY12: 19683 | UZ12: 2367 | VA12: 2386 | VB12: 7437 | VC12: 10957 | VD12: 8248 | VE12: 3337 | VF12: 4620 | VG12: 16794 | VH12: 2277 | VI12: 7769 | VJ12: 5313 | VK12: 2749 | VL12: 2354 | VM12: 8469 | VN12: 3321 | VO12: 10411 | VP12: 3733 | VQ12: 3538 | VR12: 2199 | VS12: 10324 | VT12: 2094 | VU12: 3840 | VV12: 5220 | VW12: 2315 | VX12: 5390 | VY12: 2598 | VZ12: 2945 | WA12: 62098 | WB12: 26597 | WC12: 52755 | WD12: 686 | WE12: 110316 | WF12: 6072 | WG12: 7883 | WH12: 6031 | WI12: 5755 | WJ12: 4524 | WK12: 6717 | WL12: 1563775 | WM12: 3966 | WN12: 4138 | WO12: 66429 | WP12: 5135 | WQ12: 5030 | WR12: 6194 | WS12: 37698 | WT12: 2753 | WU12: 3397 | WV12: 6642 | WW12: 107965 | WX12: 7428 | WY12: 17812 | WZ12: 9324 | XA12: 11857 | XB12: 324527 | XC12: 322078 | XD12: 20975 | XE12: 12837 | XF12: 9867 | XG12: 3106 | XH12: 35466 | XI12: 1989 | XJ12: 19710 | XK12: 1960 | XL12: 26159 | XM12: 18457 | XN12: 8196 | XO12: 13102 | XP12: 19965 | XQ12: 7006 | XR12: 19704 | XS12: 4021 | XT12: 12297 | XU12: 3474 | XV12: 4448 | XW12: 8862 | XX12: 6649 | XY12: 13529 | XZ12: 11542 | YA12: 9494 | YB12: 3058 | YC12: 2088 | YD12: 10596 | YE12: 1975 | YF12: 3420 | YG12: 26624 | YH12: 3775 | YI12: 2803 | YJ12: 8443 | YK12: 882 | YL12: 5102 | YM12: 2617 | YN12: 2123 | YO12: 2984 | YP12: 19780 | YQ12: 19126 | YR12: 7276 | YS12: 560732 | YT12: 5564 | YU12: 7400 | YV12: 12495 | YW12: 3448 | YX12: 1730 | YY12: 4251 | YZ12: 2575 | ZA12: 9843 | ZB12: 8175 | ZC12: 2511 | ZD12: 133844 | ZE12: 145744 | ZF12: 7391 | ZG12: 3049 | ZH12: 6173 | ZI12: 17804 | ZJ12: 18748 | ZK12: 15361 | ZL12: 7894 | ZM12: 20479 | ZN12: 3167 | ZO12: 3501 | ZP12: 3623 | ZQ12: 17538 | ZR12: 14686 | ZS12: 31440 | ZT12: 21569 | ZU12: 39006 | ZV12: 3259 | ZW12: 5782 | ZX12: 6497 | ZY12: 5419 | ZZ12: 3757 | AAA12: 1525 | AAB12: 4021 | AAC12: 4598 | AAD12: 3810 | AAE12: 5849 | AAF12: 5065 | AAG12: 4824 | AAH12: 2833 | AAI12: 1574 | AAJ12: 10631 | AAK12: 8456
A13: 37 | B13: 1 | C13: X | E13: Biorec04_Sarz_CSHMS.d | F13: 67056 | G13: 610677 | H13: 54295 | I13: 30296 | J13: 37154 | K13: 5930 | L13: 64655 | M13: 59886 | N13: 23200 | O13: 209551 | P13: 70913 | Q13: 132121 | R13: 10197 | S13: 18045 | T13: 42030 | U13: 14896 | V13: 79817 | W13: 128965 | X13: 31854 | Y13: 57882 | Z13: 130466 | AA13: 758 | AB13: 861 | AC13: 2094 | AD13: 2357 | AE13: 11863 | AF13: 73121 | AG13: 26857 | AH13: 6669 | AI13: 11660 | AJ13: 22375 | AK13: 6440 | AL13: 6867 | AM13: 18762 | AN13: 9119 | AO13: 45988 | AP13: 13706 | AQ13: 10330 | AR13: 19032 | AS13: 9769 | AT13: 4692 | AU13: 5864 | AV13: 3678 | AW13: 806326 | AX13: 8166 | AY13: 310332 | AZ13: 98811 | BA13: 142216 | BB13: 2892 | BC13: 9203 | BD13: 36104 | BE13: 2342 | BF13: 7393 | BG13: 8114 | BH13: 7514 | BI13: 5947 | BJ13: 1765 | BK13: 46954 | BL13: 2217 | BM13: 4871 | BN13: 163532 | BO13: 115381 | BP13: 24685 | BQ13: 3949 | BR13: 18637 | BS13: 33709 | BT13: 4768268 | BU13: 65578 | BV13: 7960 | BW13: 20321 | BX13: 76598 | BY13: 10415 | BZ13: 9759 | CA13: 365166 | CB13: 2699068 | CC13: 743883 | CD13: 266999 | CE13: 2229175 | CF13: 2030361 | CG13: 6827 | CH13: 97490 | CI13: 3515 | CJ13: 9058 | CK13: 13108 | CL13: 33310 | CM13: 2932 | CN13: 340128 | CO13: 1403499 | CP13: 311222 | CQ13: 198649 | CR13: 1024094 | CS13: 3087 | CT13: 6871 | CU13: 36305 | CV13: 86262 | CW13: 39527 | CX13: 11563 | CY13: 231660 | CZ13: 55719 | DA13: 9747 | DB13: 16791 | DC13: 2384 | DD13: 2446 | DE13: 21946 | DF13: 60841 | DG13: 30731 | DH13: 117173 | DI13: 36289 | DJ13: 177578 | DK13: 146677 | DL13: 7075 | DM13: 69426 | DN13: 146360 | DO13: 30095 | DP13: 43410 | DQ13: 10721 | DR13: 13026 | DS13: 6663 | DT13: 6142 | DU13: 6096 | DV13: 5196 | DW13: 13464 | DX13: 8640 | DY13: 4479 | DZ13: 14675 | EA13: 16575 | EB13: 13046 | EC13: 2215 | ED13: 44739 | EE13: 4811 | EF13: 27685 | EG13: 36318 | EH13: 887224 | EI13: 127304 | EJ13: 7956 | EK13: 162425 | EL13: 195203 | EM13: 3739 | EN13: 89309 | EO13: 51293 | EP13: 22805 | EQ13: 4881 | ER13: 212770 | ES13: 137729 | ET13: 65189 | EU13: 36200 | EV13: 27392 | EW13: 114410 | EX13: 289707 | EY13: 208512 | EZ13: 2198 | FA13: 5831 | FB13: 2370 | FC13: 9015 | FD13: 42604 | FE13: 48379 | FF13: 24088 | FG13: 2788 | FH13: 117168 | FI13: 208064 | FJ13: 160999 | FK13: 41400 | FL13: 10257 | FM13: 31952 | FN13: 26201 | FO13: 5277 | FP13: 779993 | FQ13: 691129 | FR13: 393424 | FS13: 69212 | FT13: 8706 | FU13: 25540 | FV13: 71047 | FW13: 54188 | FX13: 13631 | FY13: 44451 | FZ13: 305060 | GA13: 2017344 | GB13: 1363219 | GC13: 136568 | GD13: 7171 | GE13: 10888 | GF13: 50085 | GG13: 55680 | GH13: 33528 | GI13: 3622 | GJ13: 71618 | GK13: 268687 | GL13: 673378 | GM13: 848862 | GN13: 211063 | GO13: 593951 | GP13: 146261 | GQ13: 150428 | GR13: 23873 | GS13: 25487 | GT13: 5683 | GU13: 23640 | GV13: 29323 | GW13: 64703 | GX13: 115155 | GY13: 88670 | GZ13: 30202 | HA13: 9173 | HB13: 13263 | HC13: 2356 | HD13: 2106 | HE13: 16005 | HF13: 15892 | HG13: 2668 | HH13: 3902 | HI13: 16433 | HJ13: 1941 | HK13: 7249 | HL13: 2826 | HM13: 4767 | HN13: 10375 | HO13: 7929 | HP13: 1943 | HQ13: 4252 | HR13: 9087 | HS13: 6221 | HT13: 11195 | HU13: 5691 | HV13: 10174 | HW13: 2915 | HX13: 11772 | HY13: 13365 | HZ13: 5862 | IA13: 12585 | IB13: 6295 | IC13: 10940 | ID13: 9271 | IE13: 323223 | IF13: 14266 | IG13: 21204 | IH13: 24930 | II13: 9714 | IJ13: 14693 | IK13: 10512 | IL13: 1668 | IM13: 92388 | IN13: 62264 | IO13: 20683 | IP13: 24038 | IQ13: 14057 | IR13: 9967 | IS13: 13471 | IT13: 10389 | IU13: 18063 | IV13: 11370 | IW13: 11727 | IX13: 11069 | IY13: 16415 | IZ13: 5510 | JA13: 12433 | JB13: 31048 | JC13: 14759 | JD13: 1223 | JE13: 1890 | JF13: 2451 | JG13: 3434 | JH13: 8102 | JI13: 3569 | JJ13: 13649 | JK13: 2343 | JL13: 2500 | JM13: 5835 | JN13: 9341 | JO13: 3610 | JP13: 2280 | JQ13: 519281 | JR13: 79201 | JS13: 110482 | JT13: 35336 | JU13: 41547 | JV13: 134669 | JW13: 2471740 | JX13: 245565 | JY13: 11636 | JZ13: 5962 | KA13: 5149 | KB13: 3758 | KC13: 3894 | KD13: 7107 | KE13: 22682 | KF13: 25629 | KG13: 24557 | KH13: 4546 | KI13: 1307 | KJ13: 1361 | KK13: 12120 | KL13: 8026 | KM13: 2655 | KN13: 3083 | KO13: 4382 | KP13: 2226 | KQ13: 1919 | KR13: 4034 | KS13: 7883 | KT13: 11679 | KU13: 2316 | KV13: 18704 | KW13: 15801 | KX13: 5079 | KY13: 3674 | KZ13: 7435 | LA13: 4904 | LB13: 9622 | LC13: 1225 | LD13: 10625 | LE13: 9725 | LF13: 1646 | LG13: 1353 | LH13: 4406 | LI13: 3743 | LJ13: 887945 | LK13: 76408 | LL13: 24445 | LM13: 132286 | LN13: 136046 | LO13: 4973 | LP13: 169215 | LQ13: 13993 | LR13: 8455 | LS13: 2284 | LT13: 6914 | LU13: 2990 | LV13: 7471 | LW13: 2555 | LX13: 9879 | LY13: 3876 | LZ13: 8568 | MA13: 1512 | MB13: 1599 | MC13: 2414 | MD13: 1162 | ME13: 2753 | MF13: 2026 | MG13: 5277 | MH13: 22656 | MI13: 2305 | MJ13: 202134 | MK13: 4402 | ML13: 9715 | MM13: 1668 | MN13: 3650 | MO13: 6234 | MP13: 1508 | MQ13: 16128 | MR13: 4764 | MS13: 1369 | MT13: 1238 | MU13: 3679 | MV13: 3993 | MW13: 3979 | MX13: 4360 | MY13: 3303 | MZ13: 2032 | NA13: 1410 | NB13: 2195 | NC13: 2677 | ND13: 1912 | NE13: 2261 | NF13: 1568 | NG13: 7112 | NH13: 5961 | NI13: 138320 | NJ13: 5701 | NK13: 3987 | NL13: 13618 | NM13: 10433 | NN13: 8987 | NO13: 5698 | NP13: 5535 | NQ13: 4632 | NR13: 1944 | NS13: 6123 | NT13: 3962 | NU13: 5202 | NV13: 2329 | NW13: 2723 | NX13: 8617 | NY13: 3710 | NZ13: 5628 | OA13: 24850 | OB13: 326062 | OC13: 14625 | OD13: 3227 | OE13: 5175 | OF13: 4910 | OG13: 2635 | OH13: 2682 | OI13: 2140 | OJ13: 17360 | OK13: 6953 | OL13: 10066 | OM13: 4413 | ON13: 3478 | OO13: 2574 | OP13: 11360 | OQ13: 1919 | OR13: 6813 | OS13: 1684 | OT13: 4137 | OU13: 2290 | OV13: 3490 | OW13: 1725 | OX13: 2258 | OY13: 1265 | OZ13: 1422 | PA13: 1358 | PB13: 1390 | PC13: 5596 | PD13: 3357 | PE13: 3665 | PF13: 7517 | PG13: 3222 | PH13: 9101 | PI13: 2416 | PJ13: 1689 | PK13: 421 | PL13: 7516 | PM13: 7611 | PN13: 121816 | PO13: 5189 | PP13: 3390 | PQ13: 13092 | PR13: 2446 | PS13: 2283 | PT13: 2184 | PU13: 9984 | PV13: 8562 | PW13: 4493 | PX13: 3055 | PY13: 6502 | PZ13: 18760 | QA13: 6825 | QB13: 4910 | QC13: 2408 | QD13: 2456 | QE13: 12534 | QF13: 191766 | QG13: 22466 | QH13: 8409 | QI13: 3253 | QJ13: 9340 | QK13: 5066 | QL13: 17173 | QM13: 11896 | QN13: 3329 | QO13: 5375 | QP13: 3214 | QQ13: 5354 | QR13: 2019 | QS13: 9270 | QT13: 6309 | QU13: 2970 | QV13: 4230 | QW13: 2527 | QX13: 4926 | QY13: 1171 | QZ13: 1163 | RA13: 1953 | RB13: 1212 | RC13: 11554 | RD13: 3248 | RE13: 2365 | RF13: 1839 | RG13: 1315 | RH13: 3661 | RI13: 13864 | RJ13: 2594 | RK13: 1143 | RL13: 4843 | RM13: 4182 | RN13: 2540 | RO13: 2799 | RP13: 2411 | RQ13: 1330 | RR13: 4220 | RS13: 7994 | RT13: 7951 | RU13: 823 | RV13: 1992 | RW13: 122099 | RX13: 4916 | RY13: 3490 | RZ13: 0 | SA13: 2933 | SB13: 4078 | SC13: 3539 | SD13: 4835 | SE13: 6557 | SF13: 4540 | SG13: 10631 | SH13: 4571 | SI13: 13645 | SJ13: 1375 | SK13: 11035 | SL13: 3437 | SM13: 2226 | SN13: 5164 | SO13: 3201 | SP13: 4110 | SQ13: 4036 | SR13: 2747 | SS13: 5290 | ST13: 4227 | SU13: 3246 | SV13: 4626 | SW13: 12310 | SX13: 2960 | SY13: 3044 | SZ13: 4641 | TA13: 7211 | TB13: 1527 | TC13: 6364 | TD13: 2166 | TE13: 2129 | TF13: 2754 | TG13: 14626 | TH13: 87748 | TI13: 25822 | TJ13: 10315 | TK13: 4097 | TL13: 3391 | TM13: 14060 | TN13: 3604 | TO13: 3725 | TP13: 6765 | TQ13: 1615 | TR13: 2525 | TS13: 3216 | TT13: 2101 | TU13: 2544 | TV13: 30964 | TW13: 10452 | TX13: 2459 | TY13: 161300 | TZ13: 2705 | UA13: 4137 | UB13: 1974 | UC13: 17522 | UD13: 6140 | UE13: 8199 | UF13: 25110 | UG13: 2823 | UH13: 2829 | UI13: 5792 | UJ13: 28870 | UK13: 2418 | UL13: 8065 | UM13: 3832 | UN13: 16210 | UO13: 5326 | UP13: 2322 | UQ13: 8715 | UR13: 7202 | US13: 2587 | UT13: 4210 | UU13: 2269 | UV13: 2187 | UW13: 329 | UX13: 1460 | UY13: 16214 | UZ13: 1848 | VA13: 2528 | VB13: 7888 | VC13: 29222 | VD13: 7677 | VE13: 4162 | VF13: 4874 | VG13: 16586 | VH13: 1988 | VI13: 1536 | VJ13: 5509 | VK13: 2299 | VL13: 2488 | VM13: 8199 | VN13: 2865 | VO13: 11376 | VP13: 3850 | VQ13: 3015 | VR13: 1614 | VS13: 11260 | VT13: 1871 | VU13: 2539 | VV13: 6667 | VW13: 2315 | VX13: 5222 | VY13: 2836 | VZ13: 3310 | WA13: 59645 | WB13: 25528 | WC13: 12805 | WD13: 645 | WE13: 102868 | WF13: 7754 | WG13: 4560 | WH13: 7397 | WI13: 6013 | WJ13: 4791 | WK13: 2749 | WL13: 1301372 | WM13: 4658 | WN13: 4225 | WO13: 65265 | WP13: 4751 | WQ13: 4849 | WR13: 6287 | WS13: 37472 | WT13: 2582 | WU13: 2955 | WV13: 7251 | WW13: 3052 | WX13: 7410 | WY13: 20735 | WZ13: 9256 | XA13: 11196 | XB13: 320470 | XC13: 317887 | XD13: 10191 | XE13: 10848 | XF13: 9353 | XG13: 2746 | XH13: 34193 | XI13: 1661 | XJ13: 19309 | XK13: 2508 | XL13: 25180 | XM13: 18393 | XN13: 8220 | XO13: 13211 | XP13: 18523 | XQ13: 6571 | XR13: 19158 | XS13: 2399 | XT13: 11924 | XU13: 1834 | XV13: 2437 | XW13: 8502 | XX13: 4621 | XY13: 13258 | XZ13: 7146 | YA13: 9391 | YB13: 1884 | YC13: 1918 | YD13: 10720 | YE13: 1575 | YF13: 3652 | YG13: 27191 | YH13: 3648 | YI13: 2765 | YJ13: 11646 | YK13: 1018 | YL13: 5390 | YM13: 2535 | YN13: 2077 | YO13: 3072 | YP13: 17110 | YQ13: 18638 | YR13: 7334 | YS13: 83191 | YT13: 4170 | YU13: 7569 | YV13: 8655 | YW13: 3758 | YX13: 1604 | YY13: 4350 | YZ13: 3052 | ZA13: 8815 | ZB13: 8028 | ZC13: 2221 | ZD13: 20620 | ZE13: 149031 | ZF13: 7122 | ZG13: 2756 | ZH13: 5882 | ZI13: 17498 | ZJ13: 17659 | ZK13: 6073 | ZL13: 4216 | ZM13: 19300 | ZN13: 3158 | ZO13: 3431 | ZP13: 3610 | ZQ13: 6208 | ZR13: 15103 | ZS13: 32970 | ZT13: 20998 | ZU13: 37498 | ZV13: 3409 | ZW13: 5194 | ZX13: 8319 | ZY13: 7546 | ZZ13: 4116 | AAA13: 1428 | AAB13: 4140 | AAC13: 3967 | AAD13: 6232 | AAE13: 7495 | AAF13: 2338 | AAG13: 4489 | AAH13: 2285 | AAI13: 1645 | AAJ13: 10133 | AAK13: 8189
A14: 49 | B14: 1 | C14: X | E14: Biorec05_Sarz_CSHMS.d | F14: 64178 | G14: 632922 | H14: 51433 | I14: 28375 | J14: 34657 | K14: 5795 | L14: 70988 | M14: 57713 | N14: 24912 | O14: 221507 | P14: 77109 | Q14: 128996 | R14: 10463 | S14: 19458 | T14: 38778 | U14: 14517 | V14: 42824 | W14: 127863 | X14: 30537 | Y14: 44812 | Z14: 94878 | AA14: 538 | AB14: 682 | AC14: 2012 | AD14: 2492 | AE14: 10578 | AF14: 75207 | AG14: 25897 | AH14: 6881 | AI14: 10652 | AJ14: 20286 | AK14: 5411 | AL14: 5903 | AM14: 19170 | AN14: 8672 | AO14: 47048 | AP14: 11286 | AQ14: 9039 | AR14: 15373 | AS14: 9725 | AT14: 4654 | AU14: 5647 | AV14: 3817 | AW14: 739336 | AX14: 6947 | AY14: 290255 | AZ14: 92796 | BA14: 132278 | BB14: 2892 | BC14: 8439 | BD14: 34169 | BE14: 2402 | BF14: 6454 | BG14: 7417 | BH14: 6984 | BI14: 4517 | BJ14: 1812 | BK14: 46148 | BL14: 2049 | BM14: 4924 | BN14: 153147 | BO14: 111397 | BP14: 21910 | BQ14: 3752 | BR14: 18197 | BS14: 31861 | BT14: 4554285 | BU14: 60391 | BV14: 8142 | BW14: 18622 | BX14: 69487 | BY14: 10172 | BZ14: 8788 | CA14: 327587 | CB14: 2576632 | CC14: 1021572 | CD14: 237013 | CE14: 2128087 | CF14: 1931698 | CG14: 6495 | CH14: 88519 | CI14: 3054 | CJ14: 8401 | CK14: 12439 | CL14: 30752 | CM14: 2707 | CN14: 314036 | CO14: 1340099 | CP14: 297324 | CQ14: 189608 | CR14: 944334 | CS14: 2795 | CT14: 3178 | CU14: 33043 | CV14: 70008 | CW14: 37556 | CX14: 11309 | CY14: 211355 | CZ14: 52677 | DA14: 8872 | DB14: 15261 | DC14: 2838 | DD14: 18685 | DE14: 20641 | DF14: 55589 | DG14: 28982 | DH14: 108063 | DI14: 35671 | DJ14: 163807 | DK14: 141114 | DL14: 6532 | DM14: 62840 | DN14: 136018 | DO14: 26981 | DP14: 40577 | DQ14: 9400 | DR14: 12903 | DS14: 6453 | DT14: 7069 | DU14: 6065 | DV14: 4698 | DW14: 13537 | DX14: 8381 | DY14: 4296 | DZ14: 14218 | EA14: 15642 | EB14: 13193 | EC14: 1687 | ED14: 40828 | EE14: 4501 | EF14: 26365 | EG14: 33925 | EH14: 839074 | EI14: 118108 | EJ14: 7125 | EK14: 147900 | EL14: 178057 | EM14: 3243 | EN14: 80173 | EO14: 48451 | EP14: 21556 | EQ14: 3546 | ER14: 189595 | ES14: 123189 | ET14: 59535 | EU14: 34727 | EV14: 22967 | EW14: 104465 | EX14: 258802 | EY14: 187546 | EZ14: 2537 | FA14: 5683 | FB14: 2411 | FC14: 7806 | FD14: 39093 | FE14: 45065 | FF14: 20849 | FG14: 2524 | FH14: 97515 | FI14: 198719 | FJ14: 151248 | FK14: 37424 | FL14: 9234 | FM14: 29665 | FN14: 23398 | FO14: 4568 | FP14: 730345 | FQ14: 660049 | FR14: 364045 | FS14: 61784 | FT14: 7169 | FU14: 24141 | FV14: 65363 | FW14: 52246 | FX14: 12672 | FY14: 30505 | FZ14: 277455 | GA14: 1900762 | GB14: 1283135 | GC14: 128913 | GD14: 6551 | GE14: 10594 | GF14: 46377 | GG14: 52572 | GH14: 29705 | GI14: 3274 | GJ14: 67140 | GK14: 250318 | GL14: 629547 | GM14: 799322 | GN14: 197622 | GO14: 551228 | GP14: 130569 | GQ14: 129334 | GR14: 21776 | GS14: 23395 | GT14: 5475 | GU14: 22374 | GV14: 27849 | GW14: 61573 | GX14: 108148 | GY14: 82245 | GZ14: 28450 | HA14: 8213 | HB14: 12836 | HC14: 2752 | HD14: 3245 | HE14: 14365 | HF14: 15111 | HG14: 2730 | HH14: 4129 | HI14: 13306 | HJ14: 1305 | HK14: 4660 | HL14: 3686 | HM14: 6249 | HN14: 7184 | HO14: 7126 | HP14: 2146 | HQ14: 3335 | HR14: 8321 | HS14: 5522 | HT14: 10038 | HU14: 5044 | HV14: 8127 | HW14: 1912 | HX14: 10833 | HY14: 13101 | HZ14: 5169 | IA14: 11142 | IB14: 5555 | IC14: 10371 | ID14: 8575 | IE14: 313754 | IF14: 12890 | IG14: 20067 | IH14: 23113 | II14: 8672 | IJ14: 16566 | IK14: 11323 | IL14: 1447 | IM14: 89576 | IN14: 57863 | IO14: 18848 | IP14: 16840 | IQ14: 13248 | IR14: 9950 | IS14: 12869 | IT14: 9905 | IU14: 16667 | IV14: 10315 | IW14: 8835 | IX14: 7115 | IY14: 11990 | IZ14: 2909 | JA14: 11590 | JB14: 30505 | JC14: 14050 | JD14: 1388 | JE14: 2027 | JF14: 2196 | JG14: 2395 | JH14: 7464 | JI14: 2743 | JJ14: 12725 | JK14: 1624 | JL14: 1548 | JM14: 3695 | JN14: 7989 | JO14: 3632 | JP14: 2117 | JQ14: 503972 | JR14: 72119 | JS14: 105496 | JT14: 32848 | JU14: 34312 | JV14: 139040 | JW14: 2329654 | JX14: 236192 | JY14: 10645 | JZ14: 5767 | KA14: 5381 | KB14: 3781 | KC14: 4557 | KD14: 7165 | KE14: 21052 | KF14: 23942 | KG14: 21561 | KH14: 5232 | KI14: 1396 | KJ14: 1260 | KK14: 10463 | KL14: 8546 | KM14: 2707 | KN14: 2618 | KO14: 3994 | KP14: 2057 | KQ14: 2070 | KR14: 3574 | KS14: 7057 | KT14: 14077 | KU14: 4350 | KV14: 17895 | KW14: 16564 | KX14: 5146 | KY14: 3538 | KZ14: 7303 | LA14: 4671 | LB14: 11268 | LC14: 1366 | LD14: 10737 | LE14: 9370 | LF14: 1053 | LG14: 1307 | LH14: 3662 | LI14: 3173 | LJ14: 798649 | LK14: 78399 | LL14: 19398 | LM14: 149585 | LN14: 139380 | LO14: 5111 | LP14: 163101 | LQ14: 11784 | LR14: 7467 | LS14: 1148 | LT14: 5870 | LU14: 2452 | LV14: 6620 | LW14: 2869 | LX14: 12199 | LY14: 4275 | LZ14: 6340 | MA14: 995 | MB14: 1704 | MC14: 4622 | MD14: 1074 | ME14: 3020 | MF14: 2160 | MG14: 5100 | MH14: 4733 | MI14: 2307 | MJ14: 176928 | MK14: 3698 | ML14: 6528 | MM14: 1134 | MN14: 4758 | MO14: 2468 | MP14: 1334 | MQ14: 13803 | MR14: 3569 | MS14: 1029 | MT14: 818 | MU14: 3424 | MV14: 3323 | MW14: 5034 | MX14: 4001 | MY14: 2903 | MZ14: 1976 | NA14: 898 | NB14: 2097 | NC14: 2150 | ND14: 1748 | NE14: 2147 | NF14: 1685 | NG14: 6682 | NH14: 6141 | NI14: 151210 | NJ14: 7202 | NK14: 3053 | NL14: 11718 | NM14: 9256 | NN14: 9132 | NO14: 4954 | NP14: 4172 | NQ14: 3556 | NR14: 2022 | NS14: 5102 | NT14: 3361 | NU14: 3099 | NV14: 1845 | NW14: 2303 | NX14: 7655 | NY14: 3622 | NZ14: 5096 | OA14: 22958 | OB14: 314644 | OC14: 13126 | OD14: 3256 | OE14: 5320 | OF14: 3915 | OG14: 2871 | OH14: 2647 | OI14: 2626 | OJ14: 16263 | OK14: 8111 | OL14: 8059 | OM14: 3380 | ON14: 3247 | OO14: 2450 | OP14: 9368 | OQ14: 1652 | OR14: 6297 | OS14: 1480 | OT14: 4843 | OU14: 1539 | OV14: 3448 | OW14: 1791 | OX14: 1772 | OY14: 1240 | OZ14: 1568 | PA14: 984 | PB14: 1020 | PC14: 4717 | PD14: 3473 | PE14: 4291 | PF14: 6296 | PG14: 3122 | PH14: 8266 | PI14: 2017 | PJ14: 1722 | PK14: 443 | PL14: 7077 | PM14: 7853 | PN14: 91044 | PO14: 4640 | PP14: 3690 | PQ14: 11329 | PR14: 2968 | PS14: 2228 | PT14: 1814 | PU14: 9410 | PV14: 7180 | PW14: 5073 | PX14: 3280 | PY14: 5942 | PZ14: 13094 | QA14: 5298 | QB14: 5226 | QC14: 2291 | QD14: 1678 | QE14: 12547 | QF14: 179698 | QG14: 19273 | QH14: 8071 | QI14: 3258 | QJ14: 10047 | QK14: 5125 | QL14: 15881 | QM14: 8523 | QN14: 3578 | QO14: 5851 | QP14: 3183 | QQ14: 4801 | QR14: 1244 | QS14: 9552 | QT14: 5216 | QU14: 3206 | QV14: 3120 | QW14: 1862 | QX14: 4336 | QY14: 865 | QZ14: 942 | RA14: 1747 | RB14: 1100 | RC14: 8711 | RD14: 2530 | RE14: 2390 | RF14: 1751 | RG14: 1623 | RH14: 4904 | RI14: 5258 | RJ14: 2870 | RK14: 1229 | RL14: 4919 | RM14: 2860 | RN14: 2460 | RO14: 2283 | RP14: 1648 | RQ14: 1290 | RR14: 4314 | RS14: 8378 | RT14: 8374 | RU14: 1033 | RV14: 1597 | RW14: 120685 | RX14: 4589 | RY14: 3227 | RZ14: 0 | SA14: 2765 | SB14: 3780 | SC14: 3689 | SD14: 3736 | SE14: 5746 | SF14: 13375 | SG14: 9616 | SH14: 3496 | SI14: 12005 | SJ14: 1260 | SK14: 10129 | SL14: 3439 | SM14: 1918 | SN14: 4848 | SO14: 4151 | SP14: 4125 | SQ14: 3455 | SR14: 2540 | SS14: 4161 | ST14: 4566 | SU14: 2972 | SV14: 4775 | SW14: 11737 | SX14: 3245 | SY14: 3181 | SZ14: 5094 | TA14: 7913 | TB14: 1130 | TC14: 5704 | TD14: 1960 | TE14: 2193 | TF14: 2730 | TG14: 26015 | TH14: 82989 | TI14: 6936 | TJ14: 10004 | TK14: 4100 | TL14: 2902 | TM14: 25589 | TN14: 3554 | TO14: 3407 | TP14: 2805 | TQ14: 1883 | TR14: 2659 | TS14: 3208 | TT14: 1800 | TU14: 2655 | TV14: 32973 | TW14: 9602 | TX14: 2482 | TY14: 149611 | TZ14: 2456 | UA14: 3507 | UB14: 2308 | UC14: 17186 | UD14: 6670 | UE14: 7587 | UF14: 25186 | UG14: 2814 | UH14: 2798 | UI14: 5524 | UJ14: 26994 | UK14: 2533 | UL14: 7192 | UM14: 3292 | UN14: 15524 | UO14: 4929 | UP14: 2014 | UQ14: 7865 | UR14: 7338 | US14: 3423 | UT14: 4758 | UU14: 2144 | UV14: 2174 | UW14: 525 | UX14: 1519 | UY14: 22265 | UZ14: 2177 | VA14: 2212 | VB14: 7700 | VC14: 27964 | VD14: 5483 | VE14: 3807 | VF14: 4348 | VG14: 21183 | VH14: 1637 | VI14: 1987 | VJ14: 5380 | VK14: 2300 | VL14: 2145 | VM14: 8291 | VN14: 2708 | VO14: 11436 | VP14: 4098 | VQ14: 3331 | VR14: 1406 | VS14: 10921 | VT14: 1841 | VU14: 2874 | VV14: 5620 | VW14: 2570 | VX14: 5229 | VY14: 2594 | VZ14: 2988 | WA14: 51159 | WB14: 21495 | WC14: 10843 | WD14: 452 | WE14: 4209 | WF14: 7276 | WG14: 4696 | WH14: 5624 | WI14: 4286 | WJ14: 4519 | WK14: 7957 | WL14: 82286 | WM14: 3302 | WN14: 4197 | WO14: 61047 | WP14: 4747 | WQ14: 4193 | WR14: 6262 | WS14: 35228 | WT14: 2392 | WU14: 2512 | WV14: 6679 | WW14: 94716 | WX14: 7485 | WY14: 19158 | WZ14: 7817 | XA14: 11616 | XB14: 306039 | XC14: 295532 | XD14: 43823 | XE14: 14600 | XF14: 8650 | XG14: 2744 | XH14: 31537 | XI14: 2666 | XJ14: 17780 | XK14: 1878 | XL14: 25589 | XM14: 17053 | XN14: 4996 | XO14: 12541 | XP14: 17941 | XQ14: 7450 | XR14: 17819 | XS14: 3018 | XT14: 11578 | XU14: 3608 | XV14: 2699 | XW14: 8249 | XX14: 4783 | XY14: 12378 | XZ14: 5904 | YA14: 8634 | YB14: 1928 | YC14: 1700 | YD14: 9578 | YE14: 2275 | YF14: 3195 | YG14: 24325 | YH14: 2262 | YI14: 2532 | YJ14: 7222 | YK14: 717 | YL14: 3879 | YM14: 2294 | YN14: 1246 | YO14: 2382 | YP14: 18199 | YQ14: 2984 | YR14: 6877 | YS14: 62833 | YT14: 4146 | YU14: 7160 | YV14: 7424 | YW14: 3612 | YX14: 2612 | YY14: 3674 | YZ14: 2238 | ZA14: 9084 | ZB14: 7524 | ZC14: 2622 | ZD14: 16883 | ZE14: 135553 | ZF14: 6821 | ZG14: 2732 | ZH14: 5715 | ZI14: 17880 | ZJ14: 17179 | ZK14: 5712 | ZL14: 9891 | ZM14: 19217 | ZN14: 1903 | ZO14: 3621 | ZP14: 3270 | ZQ14: 5570 | ZR14: 14404 | ZS14: 29253 | ZT14: 19586 | ZU14: 34521 | ZV14: 3014 | ZW14: 5100 | ZX14: 7044 | ZY14: 7486 | ZZ14: 3638 | AAA14: 1371 | AAB14: 3532 | AAC14: 4091 | AAD14: 3869 | AAE14: 6445 | AAF14: 2410 | AAG14: 4696 | AAH14: 2104 | AAI14: 1307 | AAJ14: 10146 | AAK14: 7804
A15: 73 | B15: 1 | C15: X | E15: Biorec07_Sarz_CSHMS.d | F15: 65303 | G15: 565921 | H15: 57341 | I15: 32212 | J15: 37596 | K15: 6391 | L15: 68312 | M15: 62097 | N15: 25566 | O15: 221887 | P15: 80740 | Q15: 145839 | R15: 11020 | S15: 18544 | T15: 40093 | U15: 15690 | V15: 24895 | W15: 136281 | X15: 34303 | Y15: 40150 | Z15: 85815 | AA15: 869 | AB15: 673 | AC15: 2312 | AD15: 2678 | AE15: 11508 | AF15: 71138 | AG15: 27461 | AH15: 6526 | AI15: 11513 | AJ15: 22664 | AK15: 6163 | AL15: 7355 | AM15: 20324 | AN15: 8615 | AO15: 45938 | AP15: 14497 | AQ15: 12084 | AR15: 19387 | AS15: 10546 | AT15: 4991 | AU15: 6659 | AV15: 4604 | AW15: 945410 | AX15: 9290 | AY15: 352969 | AZ15: 111643 | BA15: 157354 | BB15: 3227 | BC15: 10590 | BD15: 39089 | BE15: 2859 | BF15: 7454 | BG15: 8986 | BH15: 8259 | BI15: 6297 | BJ15: 2167 | BK15: 51196 | BL15: 2476 | BM15: 5068 | BN15: 171753 | BO15: 130747 | BP15: 27013 | BQ15: 4708 | BR15: 20612 | BS15: 37974 | BT15: 4942801 | BU15: 72103 | BV15: 9097 | BW15: 22153 | BX15: 83508 | BY15: 11117 | BZ15: 10739 | CA15: 396906 | CB15: 2869777 | CC15: 1165307 | CD15: 299603 | CE15: 2443273 | CF15: 2137093 | CG15: 7805 | CH15: 109721 | CI15: 3721 | CJ15: 10388 | CK15: 13752 | CL15: 35196 | CM15: 3399 | CN15: 367918 | CO15: 1498851 | CP15: 331792 | CQ15: 215607 | CR15: 1117211 | CS15: 3735 | CT15: 7211 | CU15: 40519 | CV15: 91853 | CW15: 44283 | CX15: 12255 | CY15: 255879 | CZ15: 63306 | DA15: 10752 | DB15: 18246 | DC15: 2466 | DD15: 3673 | DE15: 23733 | DF15: 66207 | DG15: 34600 | DH15: 132085 | DI15: 39049 | DJ15: 199548 | DK15: 160064 | DL15: 7411 | DM15: 73246 | DN15: 162369 | DO15: 31049 | DP15: 44880 | DQ15: 11514 | DR15: 14209 | DS15: 7083 | DT15: 6604 | DU15: 7021 | DV15: 5457 | DW15: 14441 | DX15: 9804 | DY15: 4903 | DZ15: 15641 | EA15: 17563 | EB15: 14288 | EC15: 2113 | ED15: 46530 | EE15: 5904 | EF15: 30462 | EG15: 40096 | EH15: 994532 | EI15: 143541 | EJ15: 7858 | EK15: 178192 | EL15: 222889 | EM15: 3865 | EN15: 96646 | EO15: 55851 | EP15: 25541 | EQ15: 4928 | ER15: 232513 | ES15: 149101 | ET15: 71448 | EU15: 41000 | EV15: 32136 | EW15: 123862 | EX15: 322208 | EY15: 229000 | EZ15: 2874 | FA15: 5734 | FB15: 2317 | FC15: 8893 | FD15: 41805 | FE15: 51301 | FF15: 24357 | FG15: 2976 | FH15: 99730 | FI15: 213724 | FJ15: 168483 | FK15: 43732 | FL15: 10012 | FM15: 33523 | FN15: 27138 | FO15: 4754 | FP15: 798758 | FQ15: 719291 | FR15: 412190 | FS15: 69670 | FT15: 10764 | FU15: 27228 | FV15: 75548 | FW15: 58562 | FX15: 14478 | FY15: 34086 | FZ15: 316839 | GA15: 2059432 | GB15: 1421966 | GC15: 146267 | GD15: 7118 | GE15: 11211 | GF15: 51677 | GG15: 61701 | GH15: 34711 | GI15: 2773 | GJ15: 71735 | GK15: 283183 | GL15: 684458 | GM15: 866587 | GN15: 222778 | GO15: 620291 | GP15: 152247 | GQ15: 157486 | GR15: 24468 | GS15: 26979 | GT15: 5609 | GU15: 25485 | GV15: 31094 | GW15: 68339 | GX15: 117901 | GY15: 93377 | GZ15: 32169 | HA15: 9924 | HB15: 13541 | HC15: 2402 | HD15: 2225 | HE15: 16630 | HF15: 17624 | HG15: 2709 | HH15: 4127 | HI15: 14993 | HJ15: 2278 | HK15: 6894 | HL15: 5029 | HM15: 5029 | HN15: 8846 | HO15: 7799 | HP15: 2268 | HQ15: 4008 | HR15: 10203 | HS15: 6223 | HT15: 12243 | HU15: 5787 | HV15: 9829 | HW15: 2695 | HX15: 12823 | HY15: 13959 | HZ15: 5530 | IA15: 11323 | IB15: 6466 | IC15: 11500 | ID15: 10647 | IE15: 327385 | IF15: 13293 | IG15: 20329 | IH15: 24663 | II15: 8972 | IJ15: 17986 | IK15: 13569 | IL15: 1472 | IM15: 98437 | IN15: 65513 | IO15: 19893 | IP15: 19707 | IQ15: 13632 | IR15: 10929 | IS15: 14287 | IT15: 11706 | IU15: 18385 | IV15: 11052 | IW15: 10030 | IX15: 9218 | IY15: 15002 | IZ15: 4969 | JA15: 11903 | JB15: 29948 | JC15: 14535 | JD15: 1890 | JE15: 1963 | JF15: 2388 | JG15: 1688 | JH15: 8750 | JI15: 3332 | JJ15: 14058 | JK15: 1962 | JL15: 2061 | JM15: 4859 | JN15: 9758 | JO15: 3746 | JP15: 2123 | JQ15: 517662 | JR15: 88992 | JS15: 123045 | JT15: 39433 | JU15: 39212 | JV15: 137697 | JW15: 2540640 | JX15: 236957 | JY15: 12520 | JZ15: 6715 | KA15: 4784 | KB15: 4169 | KC15: 4004 | KD15: 8607 | KE15: 23224 | KF15: 26119 | KG15: 26052 | KH15: 6054 | KI15: 1479 | KJ15: 1284 | KK15: 12480 | KL15: 9663 | KM15: 3001 | KN15: 2665 | KO15: 4567 | KP15: 1573 | KQ15: 2316 | KR15: 3801 | KS15: 7659 | KT15: 15791 | KU15: 3833 | KV15: 18737 | KW15: 16411 | KX15: 5628 | KY15: 3463 | KZ15: 7615 | LA15: 5267 | LB15: 10374 | LC15: 1272 | LD15: 10573 | LE15: 10050 | LF15: 1412 | LG15: 1279 | LH15: 4880 | LI15: 4156 | LJ15: 976704 | LK15: 40475 | LL15: 27386 | LM15: 152655 | LN15: 61449 | LO15: 3854 | LP15: 158445 | LQ15: 12801 | LR15: 8250 | LS15: 2107 | LT15: 7281 | LU15: 3110 | LV15: 8633 | LW15: 2786 | LX15: 11674 | LY15: 4491 | LZ15: 9161 | MA15: 1287 | MB15: 2066 | MC15: 3573 | MD15: 1150 | ME15: 3139 | MF15: 2967 | MG15: 5958 | MH15: 34915 | MI15: 2204 | MJ15: 212584 | MK15: 4384 | ML15: 9228 | MM15: 1552 | MN15: 4758 | MO15: 5661 | MP15: 2293 | MQ15: 16887 | MR15: 4468 | MS15: 1579 | MT15: 1285 | MU15: 4382 | MV15: 4203 | MW15: 5351 | MX15: 4549 | MY15: 2702 | MZ15: 2145 | NA15: 0 | NB15: 2354 | NC15: 3016 | ND15: 1787 | NE15: 1600 | NF15: 2061 | NG15: 7050 | NH15: 5838 | NI15: 170937 | NJ15: 6582 | NK15: 3625 | NL15: 13148 | NM15: 10777 | NN15: 9684 | NO15: 6343 | NP15: 4797 | NQ15: 3969 | NR15: 2016 | NS15: 6078 | NT15: 3388 | NU15: 3880 | NV15: 2750 | NW15: 2619 | NX15: 7934 | NY15: 4202 | NZ15: 5845 | OA15: 23968 | OB15: 339137 | OC15: 15097 | OD15: 1223 | OE15: 4757 | OF15: 4539 | OG15: 2982 | OH15: 2678 | OI15: 3033 | OJ15: 15255 | OK15: 6413 | OL15: 8603 | OM15: 4792 | ON15: 3492 | OO15: 2852 | OP15: 6988 | OQ15: 1735 | OR15: 6831 | OS15: 1650 | OT15: 6111 | OU15: 2601 | OV15: 3907 | OW15: 1785 | OX15: 2088 | OY15: 1835 | OZ15: 1542 | PA15: 1590 | PB15: 1608 | PC15: 6394 | PD15: 2649 | PE15: 4490 | PF15: 4153 | PG15: 3699 | PH15: 10077 | PI15: 2203 | PJ15: 1837 | PK15: 440 | PL15: 6959 | PM15: 7288 | PN15: 132341 | PO15: 4662 | PP15: 3522 | PQ15: 12473 | PR15: 2995 | PS15: 2753 | PT15: 1933 | PU15: 9823 | PV15: 7533 | PW15: 5094 | PX15: 3241 | PY15: 6180 | PZ15: 17652 | QA15: 6563 | QB15: 4968 | QC15: 2866 | QD15: 2106 | QE15: 12167 | QF15: 204285 | QG15: 21947 | QH15: 8891 | QI15: 3379 | QJ15: 9300 | QK15: 4846 | QL15: 16414 | QM15: 8780 | QN15: 2747 | QO15: 3861 | QP15: 3974 | QQ15: 5561 | QR15: 2285 | QS15: 9743 | QT15: 7724 | QU15: 3363 | QV15: 2555 | QW15: 2418 | QX15: 5333 | QY15: 1464 | QZ15: 1145 | RA15: 1973 | RB15: 1315 | RC15: 12394 | RD15: 3191 | RE15: 2736 | RF15: 2966 | RG15: 1337 | RH15: 5886 | RI15: 4339 | RJ15: 4144 | RK15: 1429 | RL15: 7034 | RM15: 3162 | RN15: 3003 | RO15: 2851 | RP15: 2363 | RQ15: 1219 | RR15: 4825 | RS15: 9595 | RT15: 8553 | RU15: 1207 | RV15: 2027 | RW15: 125054 | RX15: 6388 | RY15: 3731 | RZ15: 0 | SA15: 3302 | SB15: 4443 | SC15: 4090 | SD15: 3150 | SE15: 6588 | SF15: 23714 | SG15: 11698 | SH15: 4277 | SI15: 13701 | SJ15: 1114 | SK15: 11301 | SL15: 3556 | SM15: 2025 | SN15: 2378 | SO15: 12256 | SP15: 4398 | SQ15: 3905 | SR15: 3169 | SS15: 4294 | ST15: 5309 | SU15: 2882 | SV15: 4907 | SW15: 13058 | SX15: 3175 | SY15: 3586 | SZ15: 5071 | TA15: 8293 | TB15: 1150 | TC15: 7023 | TD15: 2022 | TE15: 2410 | TF15: 3085 | TG15: 24576 | TH15: 85016 | TI15: 25651 | TJ15: 10694 | TK15: 4050 | TL15: 3201 | TM15: 12829 | TN15: 3201 | TO15: 3751 | TP15: 6200 | TQ15: 1903 | TR15: 2824 | TS15: 3875 | TT15: 2031 | TU15: 2847 | TV15: 25179 | TW15: 10217 | TX15: 2363 | TY15: 146840 | TZ15: 2475 | UA15: 3693 | UB15: 2390 | UC15: 17958 | UD15: 6784 | UE15: 8025 | UF15: 24245 | UG15: 2988 | UH15: 4281 | UI15: 5478 | UJ15: 30279 | UK15: 2332 | UL15: 7828 | UM15: 3883 | UN15: 15632 | UO15: 4951 | UP15: 2884 | UQ15: 8580 | UR15: 7353 | US15: 3178 | UT15: 4748 | UU15: 1884 | UV15: 2190 | UW15: 803 | UX15: 1543 | UY15: 19808 | UZ15: 2184 | VA15: 2518 | VB15: 7179 | VC15: 29094 | VD15: 8027 | VE15: 2741 | VF15: 4271 | VG15: 4858 | VH15: 2221 | VI15: 2193 | VJ15: 5184 | VK15: 2429 | VL15: 2381 | VM15: 8469 | VN15: 3140 | VO15: 12644 | VP15: 4218 | VQ15: 2715 | VR15: 1902 | VS15: 11569 | VT15: 2060 | VU15: 3209 | VV15: 6480 | VW15: 2484 | VX15: 5792 | VY15: 3101 | VZ15: 3109 | WA15: 62178 | WB15: 26569 | WC15: 52656 | WD15: 1310 | WE15: 120472 | WF15: 6255 | WG15: 8076 | WH15: 6380 | WI15: 8660 | WJ15: 5132 | WK15: 3159 | WL15: 1527068 | WM15: 4629 | WN15: 4463 | WO15: 71912 | WP15: 5871 | WQ15: 5297 | WR15: 5900 | WS15: 37159 | WT15: 2874 | WU15: 2886 | WV15: 6905 | WW15: 115269 | WX15: 8054 | WY15: 11929 | WZ15: 9751 | XA15: 11296 | XB15: 322340 | XC15: 321937 | XD15: 16843 | XE15: 16292 | XF15: 10221 | XG15: 2909 | XH15: 38140 | XI15: 3140 | XJ15: 21890 | XK15: 1961 | XL15: 27020 | XM15: 19690 | XN15: 8039 | XO15: 13690 | XP15: 20908 | XQ15: 7019 | XR15: 20120 | XS15: 4374 | XT15: 12040 | XU15: 4004 | XV15: 2719 | XW15: 9476 | XX15: 7252 | XY15: 15236 | XZ15: 7771 | YA15: 10620 | YB15: 3447 | YC15: 2090 | YD15: 11474 | YE15: 2023 | YF15: 3532 | YG15: 27839 | YH15: 3807 | YI15: 2938 | YJ15: 5061 | YK15: 878 | YL15: 4484 | YM15: 2930 | YN15: 2216 | YO15: 3582 | YP15: 15339 | YQ15: 10629 | YR15: 6560 | YS15: 62225 | YT15: 5070 | YU15: 6939 | YV15: 13489 | YW15: 3629 | YX15: 1438 | YY15: 4190 | YZ15: 2326 | ZA15: 9133 | ZB15: 7933 | ZC15: 3184 | ZD15: 15841 | ZE15: 145642 | ZF15: 8007 | ZG15: 3327 | ZH15: 6315 | ZI15: 18269 | ZJ15: 14297 | ZK15: 10706 | ZL15: 4575 | ZM15: 20312 | ZN15: 2517 | ZO15: 2602 | ZP15: 4082 | ZQ15: 5997 | ZR15: 14854 | ZS15: 30818 | ZT15: 23481 | ZU15: 39674 | ZV15: 3187 | ZW15: 5758 | ZX15: 8245 | ZY15: 7404 | ZZ15: 4008 | AAA15: 1268 | AAB15: 3728 | AAC15: 4454 | AAD15: 6272 | AAE15: 8198 | AAF15: 1893 | AAG15: 5638 | AAH15: 2715 | AAI15: 1647 | AAJ15: 10848 | AAK15: 7887
A16: 85 | B16: 1 | C16: X | E16: Biorec08_Sarz_CSHMS.d | F16: 64876 | G16: 552183 | H16: 57791 | I16: 33239 | J16: 37006 | K16: 5593 | L16: 67604 | M16: 61887 | N16: 24346 | O16: 219058 | P16: 74949 | Q16: 143629 | R16: 10556 | S16: 18168 | T16: 39516 | U16: 16243 | V16: 26100 | W16: 134529 | X16: 33358 | Y16: 40850 | Z16: 87555 | AA16: 792 | AB16: 687 | AC16: 2817 | AD16: 2344 | AE16: 10915 | AF16: 69195 | AG16: 27223 | AH16: 6578 | AI16: 11985 | AJ16: 22694 | AK16: 6672 | AL16: 7525 | AM16: 21775 | AN16: 8817 | AO16: 45850 | AP16: 14544 | AQ16: 11479 | AR16: 19348 | AS16: 10236 | AT16: 5104 | AU16: 6384 | AV16: 4232 | AW16: 953456 | AX16: 9428 | AY16: 353072 | AZ16: 111836 | BA16: 155984 | BB16: 3327 | BC16: 10356 | BD16: 39075 | BE16: 2702 | BF16: 7273 | BG16: 8424 | BH16: 8340 | BI16: 6967 | BJ16: 2203 | BK16: 51040 | BL16: 2208 | BM16: 5067 | BN16: 167659 | BO16: 128917 | BP16: 27505 | BQ16: 3515 | BR16: 20929 | BS16: 37127 | BT16: 4946886 | BU16: 72670 | BV16: 9243 | BW16: 21742 | BX16: 84517 | BY16: 11542 | BZ16: 10571 | CA16: 403339 | CB16: 2863140 | CC16: 798608 | CD16: 306759 | CE16: 2461240 | CF16: 2135738 | CG16: 7234 | CH16: 108036 | CI16: 3718 | CJ16: 9858 | CK16: 13939 | CL16: 35620 | CM16: 3089 | CN16: 371088 | CO16: 1500464 | CP16: 331463 | CQ16: 218660 | CR16: 1125882 | CS16: 2816 | CT16: 7387 | CU16: 41205 | CV16: 90926 | CW16: 46237 | CX16: 12730 | CY16: 259767 | CZ16: 63820 | DA16: 10883 | DB16: 17339 | DC16: 2866 | DD16: 3609 | DE16: 22947 | DF16: 66996 | DG16: 34640 | DH16: 130717 | DI16: 38709 | DJ16: 203492 | DK16: 158269 | DL16: 7364 | DM16: 75670 | DN16: 164267 | DO16: 31478 | DP16: 44261 | DQ16: 11799 | DR16: 14211 | DS16: 7057 | DT16: 6519 | DU16: 7222 | DV16: 5660 | DW16: 14558 | DX16: 9925 | DY16: 4997 | DZ16: 15406 | EA16: 17571 | EB16: 13848 | EC16: 2077 | ED16: 47530 | EE16: 5413 | EF16: 31039 | EG16: 39883 | EH16: 816001 | EI16: 144276 | EJ16: 8117 | EK16: 178928 | EL16: 218677 | EM16: 3915 | EN16: 96945 | EO16: 54979 | EP16: 25020 | EQ16: 5746 | ER16: 231562 | ES16: 151902 | ET16: 70308 | EU16: 40460 | EV16: 33751 | EW16: 125026 | EX16: 321394 | EY16: 228679 | EZ16: 3434 | FA16: 5902 | FB16: 2429 | FC16: 9120 | FD16: 40602 | FE16: 51804 | FF16: 24437 | FG16: 3067 | FH16: 99747 | FI16: 213300 | FJ16: 171850 | FK16: 43759 | FL16: 10793 | FM16: 33629 | FN16: 26016 | FO16: 4412 | FP16: 800848 | FQ16: 718601 | FR16: 415510 | FS16: 72013 | FT16: 9304 | FU16: 27997 | FV16: 75340 | FW16: 58800 | FX16: 15015 | FY16: 33236 | FZ16: 321181 | GA16: 2055083 | GB16: 1421802 | GC16: 146168 | GD16: 4411 | GE16: 11188 | GF16: 54312 | GG16: 61677 | GH16: 35413 | GI16: 3947 | GJ16: 73395 | GK16: 284616 | GL16: 689314 | GM16: 881479 | GN16: 223181 | GO16: 621700 | GP16: 154552 | GQ16: 160288 | GR16: 21920 | GS16: 27482 | GT16: 5742 | GU16: 24392 | GV16: 30134 | GW16: 69981 | GX16: 118270 | GY16: 96085 | GZ16: 32546 | HA16: 9738 | HB16: 13788 | HC16: 3103 | HD16: 2438 | HE16: 16558 | HF16: 17558 | HG16: 2978 | HH16: 4176 | HI16: 6815 | HJ16: 2291 | HK16: 7005 | HL16: 5182 | HM16: 4271 | HN16: 9147 | HO16: 6455 | HP16: 2084 | HQ16: 4214 | HR16: 10238 | HS16: 6333 | HT16: 11485 | HU16: 6311 | HV16: 9561 | HW16: 2771 | HX16: 12216 | HY16: 13021 | HZ16: 5303 | IA16: 10879 | IB16: 5916 | IC16: 11526 | ID16: 10408 | IE16: 328852 | IF16: 13355 | IG16: 19291 | IH16: 26545 | II16: 9433 | IJ16: 15524 | IK16: 10395 | IL16: 1668 | IM16: 96943 | IN16: 63640 | IO16: 21387 | IP16: 20160 | IQ16: 13962 | IR16: 11114 | IS16: 13817 | IT16: 11514 | IU16: 17597 | IV16: 11331 | IW16: 10205 | IX16: 10137 | IY16: 14765 | IZ16: 5350 | JA16: 11770 | JB16: 30772 | JC16: 14662 | JD16: 1355 | JE16: 1721 | JF16: 2482 | JG16: 2106 | JH16: 8519 | JI16: 3483 | JJ16: 14245 | JK16: 2259 | JL16: 2445 | JM16: 4724 | JN16: 9206 | JO16: 3910 | JP16: 2115 | JQ16: 510011 | JR16: 89809 | JS16: 124928 | JT16: 39542 | JU16: 40441 | JV16: 132414 | JW16: 2531685 | JX16: 237589 | JY16: 12036 | JZ16: 6857 | KA16: 5214 | KB16: 3636 | KC16: 3493 | KD16: 7310 | KE16: 24062 | KF16: 25823 | KG16: 26720 | KH16: 5688 | KI16: 1413 | KJ16: 1399 | KK16: 11649 | KL16: 6602 | KM16: 2831 | KN16: 3024 | KO16: 5011 | KP16: 2354 | KQ16: 1640 | KR16: 3557 | KS16: 7840 | KT16: 15661 | KU16: 2199 | KV16: 19030 | KW16: 15768 | KX16: 5725 | KY16: 3497 | KZ16: 7424 | LA16: 5104 | LB16: 9826 | LC16: 1160 | LD16: 10296 | LE16: 9612 | LF16: 1332 | LG16: 1478 | LH16: 4870 | LI16: 3955 | LJ16: 7552 | LK16: 35490 | LL16: 6714 | LM16: 133833 | LN16: 133339 | LO16: 5503 | LP16: 163344 | LQ16: 12608 | LR16: 8100 | LS16: 2157 | LT16: 6273 | LU16: 2842 | LV16: 8909 | LW16: 3275 | LX16: 9802 | LY16: 3908 | LZ16: 9785 | MA16: 1479 | MB16: 1779 | MC16: 3356 | MD16: 1240 | ME16: 3304 | MF16: 2553 | MG16: 6185 | MH16: 33016 | MI16: 2575 | MJ16: 214095 | MK16: 4936 | ML16: 9996 | MM16: 2017 | MN16: 5124 | MO16: 6103 | MP16: 1825 | MQ16: 16339 | MR16: 4597 | MS16: 1513 | MT16: 1188 | MU16: 4055 | MV16: 4551 | MW16: 5275 | MX16: 4540 | MY16: 3523 | MZ16: 2073 | NA16: 0 | NB16: 2159 | NC16: 2969 | ND16: 1884 | NE16: 2700 | NF16: 1590 | NG16: 7215 | NH16: 5469 | NI16: 176168 | NJ16: 5915 | NK16: 4255 | NL16: 12730 | NM16: 10733 | NN16: 9111 | NO16: 6201 | NP16: 7565 | NQ16: 5149 | NR16: 2026 | NS16: 6403 | NT16: 3376 | NU16: 4194 | NV16: 2332 | NW16: 3170 | NX16: 8015 | NY16: 4087 | NZ16: 5461 | OA16: 24233 | OB16: 335481 | OC16: 14921 | OD16: 5072 | OE16: 5031 | OF16: 4051 | OG16: 2625 | OH16: 2529 | OI16: 4401 | OJ16: 15532 | OK16: 6165 | OL16: 8834 | OM16: 4631 | ON16: 3561 | OO16: 2913 | OP16: 9170 | OQ16: 1273 | OR16: 7198 | OS16: 1870 | OT16: 6192 | OU16: 2813 | OV16: 3147 | OW16: 1895 | OX16: 2178 | OY16: 1404 | OZ16: 1494 | PA16: 1508 | PB16: 1798 | PC16: 5344 | PD16: 3850 | PE16: 4493 | PF16: 7254 | PG16: 3409 | PH16: 8159 | PI16: 2474 | PJ16: 1541 | PK16: 7139 | PL16: 6623 | PM16: 7409 | PN16: 129811 | PO16: 5150 | PP16: 3326 | PQ16: 12507 | PR16: 2874 | PS16: 2489 | PT16: 2103 | PU16: 9572 | PV16: 7916 | PW16: 4887 | PX16: 3271 | PY16: 6138 | PZ16: 11814 | QA16: 6716 | QB16: 5523 | QC16: 2798 | QD16: 1934 | QE16: 12196 | QF16: 205416 | QG16: 22258 | QH16: 8826 | QI16: 3199 | QJ16: 9188 | QK16: 4757 | QL16: 16393 | QM16: 10769 | QN16: 3314 | QO16: 5706 | QP16: 6202 | QQ16: 6591 | QR16: 2254 | QS16: 9751 | QT16: 7618 | QU16: 3328 | QV16: 3169 | QW16: 2582 | QX16: 3950 | QY16: 1197 | QZ16: 1371 | RA16: 2266 | RB16: 1350 | RC16: 11934 | RD16: 2974 | RE16: 2582 | RF16: 2222 | RG16: 2912 | RH16: 4104 | RI16: 15095 | RJ16: 2997 | RK16: 1641 | RL16: 6265 | RM16: 3488 | RN16: 2993 | RO16: 3119 | RP16: 1995 | RQ16: 1459 | RR16: 4764 | RS16: 9918 | RT16: 8650 | RU16: 1367 | RV16: 2036 | RW16: 123820 | RX16: 5470 | RY16: 3539 | RZ16: 0 | SA16: 3141 | SB16: 4136 | SC16: 4008 | SD16: 6802 | SE16: 6586 | SF16: 23914 | SG16: 11496 | SH16: 4519 | SI16: 14290 | SJ16: 1260 | SK16: 10112 | SL16: 3806 | SM16: 2936 | SN16: 4942 | SO16: 3514 | SP16: 5344 | SQ16: 3868 | SR16: 2575 | SS16: 4303 | ST16: 5251 | SU16: 2948 | SV16: 5364 | SW16: 13252 | SX16: 3258 | SY16: 3642 | SZ16: 5354 | TA16: 9005 | TB16: 1225 | TC16: 6416 | TD16: 2219 | TE16: 1855 | TF16: 2752 | TG16: 7208 | TH16: 84334 | TI16: 25226 | TJ16: 10567 | TK16: 3573 | TL16: 3144 | TM16: 12224 | TN16: 3574 | TO16: 3700 | TP16: 7315 | TQ16: 2008 | TR16: 2778 | TS16: 3469 | TT16: 2026 | TU16: 2803 | TV16: 25142 | TW16: 9863 | TX16: 2364 | TY16: 163703 | TZ16: 2647 | UA16: 3615 | UB16: 2787 | UC16: 17537 | UD16: 6492 | UE16: 7808 | UF16: 22990 | UG16: 2913 | UH16: 3037 | UI16: 5839 | UJ16: 29421 | UK16: 2219 | UL16: 7902 | UM16: 3620 | UN16: 18234 | UO16: 5062 | UP16: 6538 | UQ16: 8918 | UR16: 7201 | US16: 2195 | UT16: 4765 | UU16: 1820 | UV16: 2371 | UW16: 0 | UX16: 1299 | UY16: 20407 | UZ16: 2120 | VA16: 2249 | VB16: 7163 | VC16: 26758 | VD16: 7381 | VE16: 2796 | VF16: 2726 | VG16: 18277 | VH16: 2530 | VI16: 2601 | VJ16: 6426 | VK16: 2384 | VL16: 2344 | VM16: 7584 | VN16: 2871 | VO16: 12802 | VP16: 3589 | VQ16: 3713 | VR16: 2057 | VS16: 11648 | VT16: 1683 | VU16: 3207 | VV16: 5878 | VW16: 2048 | VX16: 5607 | VY16: 3333 | VZ16: 2989 | WA16: 61766 | WB16: 26687 | WC16: 13999 | WD16: 1242 | WE16: 3949 | WF16: 7037 | WG16: 8651 | WH16: 7850 | WI16: 5952 | WJ16: 4928 | WK16: 7389 | WL16: 96873 | WM16: 4813 | WN16: 3746 | WO16: 72457 | WP16: 5976 | WQ16: 5266 | WR16: 7028 | WS16: 37014 | WT16: 3364 | WU16: 2800 | WV16: 7289 | WW16: 3649 | WX16: 7690 | WY16: 18266 | WZ16: 10012 | XA16: 11407 | XB16: 320234 | XC16: 319514 | XD16: 35682 | XE16: 16232 | XF16: 10069 | XG16: 3118 | XH16: 36897 | XI16: 2351 | XJ16: 21891 | XK16: 1742 | XL16: 26493 | XM16: 20736 | XN16: 3608 | XO16: 13827 | XP16: 20683 | XQ16: 7024 | XR16: 19212 | XS16: 3528 | XT16: 12718 | XU16: 3801 | XV16: 3052 | XW16: 10314 | XX16: 7733 | XY16: 14555 | XZ16: 11433 | YA16: 10090 | YB16: 3438 | YC16: 1809 | YD16: 11634 | YE16: 2809 | YF16: 3864 | YG16: 27934 | YH16: 4174 | YI16: 2649 | YJ16: 4017 | YK16: 916 | YL16: 5208 | YM16: 3099 | YN16: 2367 | YO16: 3534 | YP16: 15057 | YQ16: 18223 | YR16: 6005 | YS16: 61824 | YT16: 4922 | YU16: 7276 | YV16: 11485 | YW16: 3668 | YX16: 2175 | YY16: 3971 | YZ16: 3062 | ZA16: 8984 | ZB16: 8206 | ZC16: 2627 | ZD16: 15895 | ZE16: 143036 | ZF16: 7630 | ZG16: 2983 | ZH16: 6476 | ZI16: 17718 | ZJ16: 16762 | ZK16: 13676 | ZL16: 6882 | ZM16: 20961 | ZN16: 2700 | ZO16: 3623 | ZP16: 4011 | ZQ16: 5501 | ZR16: 9217 | ZS16: 35346 | ZT16: 22437 | ZU16: 40707 | ZV16: 2896 | ZW16: 5932 | ZX16: 7938 | ZY16: 7272 | ZZ16: 4340 | AAA16: 2745 | AAB16: 3886 | AAC16: 4253 | AAD16: 6302 | AAE16: 8289 | AAF16: 1801 | AAG16: 4478 | AAH16: 2546 | AAI16: 1631 | AAJ16: 10705 | AAK16: 8186
A17: 109 | B17: 1 | C17: X | E17: Biorec10_Sarz_CSHMS.d | F17: 62174 | G17: 542021 | H17: 48365 | I17: 27497 | J17: 35297 | K17: 5719 | L17: 63870 | M17: 54688 | N17: 21477 | O17: 198349 | P17: 67098 | Q17: 123206 | R17: 8875 | S17: 16440 | T17: 39498 | U17: 13449 | V17: 23857 | W17: 115547 | X17: 28955 | Y17: 29466 | Z17: 60866 | AA17: 746 | AB17: 925 | AC17: 2294 | AD17: 2605 | AE17: 10593 | AF17: 71570 | AG17: 26998 | AH17: 6391 | AI17: 11043 | AJ17: 22167 | AK17: 5969 | AL17: 6854 | AM17: 19248 | AN17: 8396 | AO17: 44402 | AP17: 13497 | AQ17: 10032 | AR17: 17450 | AS17: 9263 | AT17: 4646 | AU17: 5948 | AV17: 3708 | AW17: 820899 | AX17: 7920 | AY17: 316642 | AZ17: 103335 | BA17: 143983 | BB17: 3083 | BC17: 10173 | BD17: 35797 | BE17: 2635 | BF17: 7190 | BG17: 7742 | BH17: 7441 | BI17: 3251 | BJ17: 2356 | BK17: 47346 | BL17: 2320 | BM17: 4814 | BN17: 155710 | BO17: 121942 | BP17: 25672 | BQ17: 3643 | BR17: 18532 | BS17: 35602 | BT17: 4693136 | BU17: 66495 | BV17: 8728 | BW17: 20743 | BX17: 76943 | BY17: 10996 | BZ17: 10007 | CA17: 363106 | CB17: 2691382 | CC17: 1090538 | CD17: 273315 | CE17: 2307446 | CF17: 2009906 | CG17: 7355 | CH17: 99726 | CI17: 3540 | CJ17: 9245 | CK17: 13076 | CL17: 32482 | CM17: 3009 | CN17: 342933 | CO17: 1412074 | CP17: 314659 | CQ17: 205032 | CR17: 1043542 | CS17: 2554 | CT17: 6748 | CU17: 37271 | CV17: 86537 | CW17: 41960 | CX17: 11901 | CY17: 240407 | CZ17: 57836 | DA17: 9181 | DB17: 17750 | DC17: 2388 | DD17: 3584 | DE17: 22405 | DF17: 60671 | DG17: 32004 | DH17: 120815 | DI17: 35336 | DJ17: 180813 | DK17: 147676 | DL17: 3810 | DM17: 67787 | DN17: 150495 | DO17: 29167 | DP17: 43104 | DQ17: 10632 | DR17: 14091 | DS17: 6744 | DT17: 6356 | DU17: 6575 | DV17: 5255 | DW17: 13799 | DX17: 8261 | DY17: 4611 | DZ17: 13273 | EA17: 16360 | EB17: 13074 | EC17: 1679 | ED17: 43206 | EE17: 4989 | EF17: 27612 | EG17: 37214 | EH17: 914484 | EI17: 132964 | EJ17: 7340 | EK17: 165798 | EL17: 199294 | EM17: 3670 | EN17: 86332 | EO17: 51612 | EP17: 22809 | EQ17: 5403 | ER17: 209008 | ES17: 134259 | ET17: 64557 | EU17: 37025 | EV17: 31005 | EW17: 115918 | EX17: 287220 | EY17: 207505 | EZ17: 2733 | FA17: 5846 | FB17: 2133 | FC17: 8582 | FD17: 39338 | FE17: 47798 | FF17: 23736 | FG17: 2767 | FH17: 94518 | FI17: 207923 | FJ17: 159896 | FK17: 41553 | FL17: 10333 | FM17: 32615 | FN17: 25291 | FO17: 5225 | FP17: 772361 | FQ17: 684959 | FR17: 390615 | FS17: 66678 | FT17: 9186 | FU17: 26217 | FV17: 73281 | FW17: 55809 | FX17: 13640 | FY17: 33499 | FZ17: 306869 | GA17: 1984310 | GB17: 1351998 | GC17: 135612 | GD17: 7240 | GE17: 10671 | GF17: 50191 | GG17: 60692 | GH17: 33285 | GI17: 2704 | GJ17: 70858 | GK17: 273570 | GL17: 658221 | GM17: 839053 | GN17: 217328 | GO17: 590158 | GP17: 143271 | GQ17: 149486 | GR17: 23523 | GS17: 26500 | GT17: 5841 | GU17: 24486 | GV17: 30327 | GW17: 67048 | GX17: 113866 | GY17: 89611 | GZ17: 30404 | HA17: 9418 | HB17: 13612 | HC17: 2945 | HD17: 2320 | HE17: 16085 | HF17: 15876 | HG17: 2812 | HH17: 4198 | HI17: 14416 | HJ17: 1729 | HK17: 7381 | HL17: 3778 | HM17: 3776 | HN17: 9189 | HO17: 7684 | HP17: 2468 | HQ17: 3913 | HR17: 9722 | HS17: 6091 | HT17: 11466 | HU17: 4297 | HV17: 8831 | HW17: 2727 | HX17: 12040 | HY17: 12813 | HZ17: 5101 | IA17: 10615 | IB17: 5970 | IC17: 10996 | ID17: 9710 | IE17: 315318 | IF17: 12800 | IG17: 19514 | IH17: 24084 | II17: 9590 | IJ17: 12060 | IK17: 10283 | IL17: 1602 | IM17: 92988 | IN17: 62823 | IO17: 19439 | IP17: 20822 | IQ17: 14054 | IR17: 10498 | IS17: 12609 | IT17: 10758 | IU17: 14893 | IV17: 10821 | IW17: 11496 | IX17: 9287 | IY17: 15191 | IZ17: 4531 | JA17: 12202 | JB17: 29857 | JC17: 13889 | JD17: 1319 | JE17: 1793 | JF17: 2275 | JG17: 1741 | JH17: 8655 | JI17: 3540 | JJ17: 14134 | JK17: 1703 | JL17: 2381 | JM17: 4136 | JN17: 8832 | JO17: 4051 | JP17: 2512 | JQ17: 497768 | JR17: 81671 | JS17: 117269 | JT17: 34665 | JU17: 36145 | JV17: 130350 | JW17: 2472051 | JX17: 229058 | JY17: 11451 | JZ17: 6383 | KA17: 5124 | KB17: 3966 | KC17: 3860 | KD17: 7057 | KE17: 22602 | KF17: 25912 | KG17: 25241 | KH17: 5526 | KI17: 1379 | KJ17: 1174 | KK17: 12010 | KL17: 9345 | KM17: 2883 | KN17: 2572 | KO17: 3822 | KP17: 1866 | KQ17: 2068 | KR17: 2750 | KS17: 7039 | KT17: 14940 | KU17: 2879 | KV17: 17514 | KW17: 15604 | KX17: 5505 | KY17: 3568 | KZ17: 7312 | LA17: 5236 | LB17: 9569 | LC17: 1274 | LD17: 10194 | LE17: 10176 | LF17: 1161 | LG17: 1333 | LH17: 4722 | LI17: 3590 | LJ17: 923041 | LK17: 71299 | LL17: 24100 | LM17: 115245 | LN17: 131722 | LO17: 4857 | LP17: 158121 | LQ17: 12484 | LR17: 7945 | LS17: 1388 | LT17: 5921 | LU17: 3217 | LV17: 7250 | LW17: 1572 | LX17: 7747 | LY17: 4136 | LZ17: 4732 | MA17: 858 | MB17: 1682 | MC17: 2926 | MD17: 1147 | ME17: 2752 | MF17: 2293 | MG17: 5024 | MH17: 32900 | MI17: 2140 | MJ17: 200563 | MK17: 4290 | ML17: 9067 | MM17: 2156 | MN17: 3708 | MO17: 6042 | MP17: 1790 | MQ17: 13170 | MR17: 5177 | MS17: 1526 | MT17: 1243 | MU17: 3630 | MV17: 4762 | MW17: 4431 | MX17: 4173 | MY17: 3147 | MZ17: 1902 | NA17: 2515 | NB17: 2222 | NC17: 2930 | ND17: 1983 | NE17: 2207 | NF17: 1820 | NG17: 6744 | NH17: 5510 | NI17: 164464 | NJ17: 6913 | NK17: 3584 | NL17: 13655 | NM17: 10496 | NN17: 8930 | NO17: 5596 | NP17: 7516 | NQ17: 3665 | NR17: 2047 | NS17: 5966 | NT17: 3327 | NU17: 5650 | NV17: 2564 | NW17: 2360 | NX17: 8451 | NY17: 3709 | NZ17: 5151 | OA17: 23161 | OB17: 316953 | OC17: 13512 | OD17: 4322 | OE17: 4275 | OF17: 4636 | OG17: 2468 | OH17: 2422 | OI17: 2745 | OJ17: 16125 | OK17: 6403 | OL17: 8827 | OM17: 4513 | ON17: 3180 | OO17: 2464 | OP17: 9147 | OQ17: 1891 | OR17: 7564 | OS17: 1415 | OT17: 5628 | OU17: 1543 | OV17: 2658 | OW17: 2153 | OX17: 2037 | OY17: 1818 | OZ17: 1362 | PA17: 1412 | PB17: 1256 | PC17: 5533 | PD17: 3637 | PE17: 5018 | PF17: 5245 | PG17: 3188 | PH17: 7749 | PI17: 2333 | PJ17: 1841 | PK17: 7770 | PL17: 7038 | PM17: 4665 | PN17: 108764 | PO17: 4393 | PP17: 3543 | PQ17: 12398 | PR17: 2462 | PS17: 2419 | PT17: 1867 | PU17: 9690 | PV17: 7335 | PW17: 4657 | PX17: 2867 | PY17: 6030 | PZ17: 27536 | QA17: 6286 | QB17: 4974 | QC17: 2718 | QD17: 1907 | QE17: 12487 | QF17: 190987 | QG17: 19537 | QH17: 7686 | QI17: 3636 | QJ17: 8564 | QK17: 4132 | QL17: 17024 | QM17: 10367 | QN17: 3105 | QO17: 4417 | QP17: 4285 | QQ17: 5884 | QR17: 2764 | QS17: 9833 | QT17: 6985 | QU17: 2964 | QV17: 2805 | QW17: 2420 | QX17: 3823 | QY17: 1059 | QZ17: 1248 | RA17: 1711 | RB17: 1038 | RC17: 11106 | RD17: 2534 | RE17: 2324 | RF17: 2271 | RG17: 1599 | RH17: 3373 | RI17: 13152 | RJ17: 3370 | RK17: 1195 | RL17: 4277 | RM17: 3006 | RN17: 2925 | RO17: 2825 | RP17: 2633 | RQ17: 1340 | RR17: 4370 | RS17: 8887 | RT17: 9174 | RU17: 1286 | RV17: 2023 | RW17: 121450 | RX17: 5902 | RY17: 3179 | RZ17: 0 | SA17: 3357 | SB17: 3985 | SC17: 3796 | SD17: 5840 | SE17: 6202 | SF17: 23058 | SG17: 10702 | SH17: 4494 | SI17: 13060 | SJ17: 1008 | SK17: 10935 | SL17: 3298 | SM17: 2184 | SN17: 2439 | SO17: 11251 | SP17: 3796 | SQ17: 3588 | SR17: 2907 | SS17: 4202 | ST17: 4415 | SU17: 2564 | SV17: 4603 | SW17: 11824 | SX17: 3114 | SY17: 3420 | SZ17: 5586 | TA17: 8659 | TB17: 1141 | TC17: 5898 | TD17: 1701 | TE17: 2290 | TF17: 3001 | TG17: 24174 | TH17: 83078 | TI17: 24643 | TJ17: 9667 | TK17: 3654 | TL17: 2676 | TM17: 10045 | TN17: 3511 | TO17: 3776 | TP17: 6282 | TQ17: 1792 | TR17: 2971 | TS17: 3265 | TT17: 1976 | TU17: 2657 | TV17: 24576 | TW17: 11116 | TX17: 2241 | TY17: 140516 | TZ17: 2727 | UA17: 3828 | UB17: 2119 | UC17: 17737 | UD17: 6899 | UE17: 7297 | UF17: 23896 | UG17: 3034 | UH17: 2962 | UI17: 5332 | UJ17: 15052 | UK17: 2351 | UL17: 8846 | UM17: 3386 | UN17: 18257 | UO17: 4844 | UP17: 3166 | UQ17: 8096 | UR17: 7656 | US17: 1963 | UT17: 4711 | UU17: 1691 | UV17: 2182 | UW17: 1834 | UX17: 1432 | UY17: 18603 | UZ17: 1905 | VA17: 2094 | VB17: 7516 | VC17: 29812 | VD17: 7700 | VE17: 2597 | VF17: 2671 | VG17: 16731 | VH17: 2783 | VI17: 1809 | VJ17: 5154 | VK17: 2582 | VL17: 2382 | VM17: 7964 | VN17: 3183 | VO17: 11434 | VP17: 4081 | VQ17: 3531 | VR17: 1744 | VS17: 10597 | VT17: 1972 | VU17: 2406 | VV17: 5721 | VW17: 2013 | VX17: 5473 | VY17: 2845 | VZ17: 2944 | WA17: 55546 | WB17: 23713 | WC17: 70416 | WD17: 681 | WE17: 111284 | WF17: 6637 | WG17: 7614 | WH17: 5269 | WI17: 6675 | WJ17: 4565 | WK17: 6655 | WL17: 90723 | WM17: 3660 | WN17: 4361 | WO17: 66893 | WP17: 5320 | WQ17: 4898 | WR17: 5520 | WS17: 35541 | WT17: 2689 | WU17: 2267 | WV17: 6980 | WW17: 3585 | WX17: 11276 | WY17: 20644 | WZ17: 8841 | XA17: 10940 | XB17: 313080 | XC17: 310484 | XD17: 15872 | XE17: 80814 | XF17: 9268 | XG17: 2985 | XH17: 34693 | XI17: 1778 | XJ17: 19535 | XK17: 2113 | XL17: 24017 | XM17: 18316 | XN17: 2693 | XO17: 13366 | XP17: 19126 | XQ17: 6469 | XR17: 19245 | XS17: 3179 | XT17: 11622 | XU17: 1694 | XV17: 2378 | XW17: 9139 | XX17: 6389 | XY17: 14011 | XZ17: 10583 | YA17: 9197 | YB17: 2310 | YC17: 1815 | YD17: 10920 | YE17: 1779 | YF17: 3711 | YG17: 27123 | YH17: 3734 | YI17: 2377 | YJ17: 4052 | YK17: 777 | YL17: 5923 | YM17: 2923 | YN17: 2588 | YO17: 3511 | YP17: 14916 | YQ17: 6612 | YR17: 6723 | YS17: 59811 | YT17: 4568 | YU17: 6752 | YV17: 8056 | YW17: 3655 | YX17: 1409 | YY17: 4015 | YZ17: 2082 | ZA17: 8763 | ZB17: 7757 | ZC17: 2187 | ZD17: 15205 | ZE17: 145391 | ZF17: 7114 | ZG17: 2495 | ZH17: 6434 | ZI17: 17525 | ZJ17: 16874 | ZK17: 10770 | ZL17: 8271 | ZM17: 19902 | ZN17: 2684 | ZO17: 3627 | ZP17: 3586 | ZQ17: 5607 | ZR17: 14292 | ZS17: 32832 | ZT17: 21067 | ZU17: 37690 | ZV17: 2981 | ZW17: 5555 | ZX17: 8511 | ZY17: 7536 | ZZ17: 3605 | AAA17: 1569 | AAB17: 3642 | AAC17: 4265 | AAD17: 3644 | AAE17: 7756 | AAF17: 1667 | AAG17: 4130 | AAH17: 1840 | AAI17: 1848 | AAJ17: 10697 | AAK17: 8126
A18: 121 | B18: 1 | C18: X | E18: Biorec11_Sarz_CSHMS.d | F18: 61026 | G18: 543550 | H18: 48785 | I18: 27224 | J18: 36646 | K18: 4869 | L18: 65077 | M18: 56225 | N18: 21173 | O18: 196357 | P18: 68756 | Q18: 124050 | R18: 9120 | S18: 16103 | T18: 39164 | U18: 13798 | V18: 27188 | W18: 120476 | X18: 30039 | Y18: 30095 | Z18: 63747 | AA18: 591 | AB18: 787 | AC18: 2016 | AD18: 2516 | AE18: 10927 | AF18: 66891 | AG18: 26064 | AH18: 6211 | AI18: 11065 | AJ18: 21155 | AK18: 5744 | AL18: 6794 | AM18: 19832 | AN18: 8300 | AO18: 43579 | AP18: 13333 | AQ18: 9754 | AR18: 17088 | AS18: 9114 | AT18: 4724 | AU18: 5898 | AV18: 3425 | AW18: 801848 | AX18: 7974 | AY18: 311017 | AZ18: 98503 | BA18: 141461 | BB18: 2499 | BC18: 9047 | BD18: 35791 | BE18: 2577 | BF18: 6945 | BG18: 8115 | BH18: 6851 | BI18: 2400 | BJ18: 2640 | BK18: 44765 | BL18: 2147 | BM18: 4600 | BN18: 150987 | BO18: 115023 | BP18: 24746 | BQ18: 3506 | BR18: 18616 | BS18: 33368 | BT18: 4599682 | BU18: 66149 | BV18: 8275 | BW18: 20363 | BX18: 74799 | BY18: 10265 | BZ18: 9736 | CA18: 355930 | CB18: 2620559 | CC18: 1075388 | CD18: 268239 | CE18: 2231646 | CF18: 1963522 | CG18: 7125 | CH18: 98649 | CI18: 3533 | CJ18: 8972 | CK18: 12893 | CL18: 32501 | CM18: 3057 | CN18: 335210 | CO18: 1380538 | CP18: 308410 | CQ18: 198423 | CR18: 1012796 | CS18: 2765 | CT18: 6434 | CU18: 35957 | CV18: 83231 | CW18: 40699 | CX18: 11475 | CY18: 231345 | CZ18: 55871 | DA18: 9188 | DB18: 16302 | DC18: 2568 | DD18: 18328 | DE18: 21278 | DF18: 60776 | DG18: 30825 | DH18: 114604 | DI18: 34885 | DJ18: 175098 | DK18: 148158 | DL18: 3001 | DM18: 67588 | DN18: 144554 | DO18: 29069 | DP18: 42928 | DQ18: 10117 | DR18: 13426 | DS18: 6335 | DT18: 6357 | DU18: 6165 | DV18: 5124 | DW18: 14167 | DX18: 7979 | DY18: 4332 | DZ18: 13898 | EA18: 15845 | EB18: 12936 | EC18: 1633 | ED18: 42295 | EE18: 5367 | EF18: 28046 | EG18: 35278 | EH18: 905991 | EI18: 127251 | EJ18: 7388 | EK18: 162131 | EL18: 195271 | EM18: 3516 | EN18: 86127 | EO18: 49528 | EP18: 21783 | EQ18: 3949 | ER18: 205270 | ES18: 132888 | ET18: 63439 | EU18: 35974 | EV18: 28433 | EW18: 111436 | EX18: 282066 | EY18: 205629 | EZ18: 2360 | FA18: 5477 | FB18: 2156 | FC18: 8182 | FD18: 38111 | FE18: 47459 | FF18: 22501 | FG18: 1637 | FH18: 89736 | FI18: 199110 | FJ18: 154546 | FK18: 39221 | FL18: 9544 | FM18: 31047 | FN18: 24489 | FO18: 4378 | FP18: 746481 | FQ18: 663269 | FR18: 376866 | FS18: 65327 | FT18: 8395 | FU18: 24730 | FV18: 68278 | FW18: 53345 | FX18: 13929 | FY18: 31402 | FZ18: 290698 | GA18: 1922340 | GB18: 1310816 | GC18: 134986 | GD18: 6433 | GE18: 9448 | GF18: 48326 | GG18: 56150 | GH18: 31649 | GI18: 3363 | GJ18: 67522 | GK18: 260816 | GL18: 639280 | GM18: 813309 | GN18: 204339 | GO18: 570401 | GP18: 143530 | GQ18: 128975 | GR18: 22598 | GS18: 24682 | GT18: 5532 | GU18: 22434 | GV18: 27966 | GW18: 63337 | GX18: 113331 | GY18: 87656 | GZ18: 30888 | HA18: 8928 | HB18: 12613 | HC18: 2716 | HD18: 2299 | HE18: 15082 | HF18: 16410 | HG18: 2775 | HH18: 3931 | HI18: 14024 | HJ18: 1913 | HK18: 7067 | HL18: 3664 | HM18: 3734 | HN18: 9464 | HO18: 5741 | HP18: 1843 | HQ18: 3293 | HR18: 8925 | HS18: 6032 | HT18: 10978 | HU18: 5451 | HV18: 8489 | HW18: 2982 | HX18: 11986 | HY18: 12535 | HZ18: 5197 | IA18: 10993 | IB18: 5597 | IC18: 10039 | ID18: 9168 | IE18: 300229 | IF18: 12504 | IG18: 18879 | IH18: 23191 | II18: 7999 | IJ18: 15337 | IK18: 13561 | IL18: 1709 | IM18: 91126 | IN18: 60690 | IO18: 18493 | IP18: 20561 | IQ18: 13590 | IR18: 10266 | IS18: 13147 | IT18: 10232 | IU18: 14119 | IV18: 9917 | IW18: 10077 | IX18: 9817 | IY18: 14802 | IZ18: 4761 | JA18: 11054 | JB18: 29061 | JC18: 13725 | JD18: 1924 | JE18: 1605 | JF18: 2492 | JG18: 1660 | JH18: 7602 | JI18: 3470 | JJ18: 13374 | JK18: 1550 | JL18: 2329 | JM18: 3905 | JN18: 8908 | JO18: 3743 | JP18: 2120 | JQ18: 474882 | JR18: 79491 | JS18: 111303 | JT18: 34300 | JU18: 36806 | JV18: 130668 | JW18: 2384144 | JX18: 220988 | JY18: 11333 | JZ18: 5905 | KA18: 4602 | KB18: 3697 | KC18: 3379 | KD18: 7034 | KE18: 22132 | KF18: 24155 | KG18: 24395 | KH18: 5473 | KI18: 1545 | KJ18: 1147 | KK18: 10963 | KL18: 8776 | KM18: 2422 | KN18: 2984 | KO18: 4222 | KP18: 2287 | KQ18: 1702 | KR18: 3457 | KS18: 7089 | KT18: 13767 | KU18: 3542 | KV18: 18045 | KW18: 15623 | KX18: 5077 | KY18: 3463 | KZ18: 7254 | LA18: 4707 | LB18: 9992 | LC18: 1316 | LD18: 10949 | LE18: 10015 | LF18: 1495 | LG18: 1286 | LH18: 4587 | LI18: 4210 | LJ18: 916162 | LK18: 68670 | LL18: 8138 | LM18: 133729 | LN18: 126619 | LO18: 5311 | LP18: 109397 | LQ18: 11950 | LR18: 7381 | LS18: 1409 | LT18: 5925 | LU18: 2469 | LV18: 7908 | LW18: 1445 | LX18: 8666 | LY18: 4226 | LZ18: 3956 | MA18: 935 | MB18: 2186 | MC18: 2525 | MD18: 1022 | ME18: 2692 | MF18: 1901 | MG18: 5551 | MH18: 4851 | MI18: 2228 | MJ18: 196083 | MK18: 4222 | ML18: 9001 | MM18: 1735 | MN18: 3444 | MO18: 5241 | MP18: 1598 | MQ18: 12402 | MR18: 3851 | MS18: 1447 | MT18: 1332 | MU18: 3598 | MV18: 3888 | MW18: 4608 | MX18: 4746 | MY18: 3148 | MZ18: 1704 | NA18: 2402 | NB18: 2191 | NC18: 2599 | ND18: 1886 | NE18: 2303 | NF18: 1969 | NG18: 7129 | NH18: 5669 | NI18: 137752 | NJ18: 4175 | NK18: 3874 | NL18: 13383 | NM18: 9861 | NN18: 8792 | NO18: 5632 | NP18: 6790 | NQ18: 3925 | NR18: 2123 | NS18: 5596 | NT18: 3212 | NU18: 6914 | NV18: 2236 | NW18: 2709 | NX18: 8347 | NY18: 4147 | NZ18: 5215 | OA18: 22353 | OB18: 311490 | OC18: 13320 | OD18: 3983 | OE18: 5060 | OF18: 4624 | OG18: 2805 | OH18: 2545 | OI18: 1966 | OJ18: 16105 | OK18: 6195 | OL18: 9215 | OM18: 4697 | ON18: 3280 | OO18: 2413 | OP18: 9828 | OQ18: 1792 | OR18: 6237 | OS18: 1792 | OT18: 5341 | OU18: 1625 | OV18: 3076 | OW18: 2001 | OX18: 1796 | OY18: 1519 | OZ18: 1290 | PA18: 1315 | PB18: 1494 | PC18: 5398 | PD18: 3368 | PE18: 3328 | PF18: 7059 | PG18: 3118 | PH18: 6540 | PI18: 2098 | PJ18: 2310 | PK18: 641 | PL18: 6951 | PM18: 6701 | PN18: 90382 | PO18: 4064 | PP18: 3385 | PQ18: 11508 | PR18: 2927 | PS18: 2379 | PT18: 1862 | PU18: 9303 | PV18: 7589 | PW18: 4811 | PX18: 2752 | PY18: 5811 | PZ18: 10439 | QA18: 6234 | QB18: 5149 | QC18: 2612 | QD18: 2023 | QE18: 10760 | QF18: 183136 | QG18: 2566 | QH18: 8112 | QI18: 3312 | QJ18: 8741 | QK18: 4574 | QL18: 16787 | QM18: 8060 | QN18: 2351 | QO18: 5294 | QP18: 6082 | QQ18: 6194 | QR18: 2067 | QS18: 9008 | QT18: 6779 | QU18: 3200 | QV18: 2276 | QW18: 2649 | QX18: 4211 | QY18: 1020 | QZ18: 1121 | RA18: 1882 | RB18: 1132 | RC18: 11473 | RD18: 2842 | RE18: 2128 | RF18: 1879 | RG18: 1284 | RH18: 5490 | RI18: 12493 | RJ18: 3028 | RK18: 1018 | RL18: 4928 | RM18: 3139 | RN18: 2778 | RO18: 2408 | RP18: 1843 | RQ18: 1542 | RR18: 4060 | RS18: 8308 | RT18: 7146 | RU18: 1108 | RV18: 1616 | RW18: 116955 | RX18: 5429 | RY18: 3310 | RZ18: 0 | SA18: 3335 | SB18: 3919 | SC18: 3843 | SD18: 4427 | SE18: 6272 | SF18: 6492 | SG18: 10091 | SH18: 4252 | SI18: 12711 | SJ18: 1316 | SK18: 10334 | SL18: 2605 | SM18: 1865 | SN18: 4613 | SO18: 10668 | SP18: 4484 | SQ18: 4553 | SR18: 3053 | SS18: 4258 | ST18: 4391 | SU18: 2473 | SV18: 4620 | SW18: 11559 | SX18: 3111 | SY18: 3533 | SZ18: 5027 | TA18: 8661 | TB18: 1402 | TC18: 6148 | TD18: 1773 | TE18: 1764 | TF18: 2185 | TG18: 24885 | TH18: 80887 | TI18: 25172 | TJ18: 9789 | TK18: 3745 | TL18: 3288 | TM18: 23251 | TN18: 3606 | TO18: 3343 | TP18: 3372 | TQ18: 1558 | TR18: 3010 | TS18: 2782 | TT18: 1738 | TU18: 2692 | TV18: 23288 | TW18: 9617 | TX18: 2269 | TY18: 119434 | TZ18: 2438 | UA18: 3572 | UB18: 2275 | UC18: 16563 | UD18: 6748 | UE18: 7879 | UF18: 24471 | UG18: 2818 | UH18: 3025 | UI18: 5249 | UJ18: 14933 | UK18: 2228 | UL18: 7320 | UM18: 3292 | UN18: 14274 | UO18: 4910 | UP18: 2832 | UQ18: 8518 | UR18: 7310 | US18: 2196 | UT18: 3730 | UU18: 1814 | UV18: 2201 | UW18: 984 | UX18: 1466 | UY18: 16655 | UZ18: 1810 | VA18: 2094 | VB18: 7081 | VC18: 27237 | VD18: 7888 | VE18: 3312 | VF18: 2480 | VG18: 16001 | VH18: 2661 | VI18: 1675 | VJ18: 5156 | VK18: 2439 | VL18: 2261 | VM18: 8155 | VN18: 2779 | VO18: 10217 | VP18: 3522 | VQ18: 3090 | VR18: 1525 | VS18: 10733 | VT18: 1743 | VU18: 2925 | VV18: 5764 | VW18: 2151 | VX18: 5106 | VY18: 2876 | VZ18: 2854 | WA18: 53418 | WB18: 22666 | WC18: 47885 | WD18: 1113 | WE18: 4003 | WF18: 5692 | WG18: 7099 | WH18: 6235 | WI18: 6054 | WJ18: 5173 | WK18: 6883 | WL18: 88938 | WM18: 3692 | WN18: 4113 | WO18: 63765 | WP18: 4662 | WQ18: 4731 | WR18: 6790 | WS18: 35794 | WT18: 2460 | WU18: 2188 | WV18: 6151 | WW18: 99737 | WX18: 11458 | WY18: 19511 | WZ18: 8780 | XA18: 10293 | XB18: 308305 | XC18: 305719 | XD18: 32336 | XE18: 22211 | XF18: 9464 | XG18: 2805 | XH18: 33497 | XI18: 2209 | XJ18: 19601 | XK18: 1806 | XL18: 23007 | XM18: 17420 | XN18: 7725 | XO18: 13430 | XP18: 18655 | XQ18: 7040 | XR18: 27064 | XS18: 2730 | XT18: 11610 | XU18: 3537 | XV18: 2695 | XW18: 8645 | XX18: 4416 | XY18: 13034 | XZ18: 6754 | YA18: 9094 | YB18: 2164 | YC18: 1896 | YD18: 10141 | YE18: 2183 | YF18: 3571 | YG18: 26517 | YH18: 2609 | YI18: 2905 | YJ18: 8904 | YK18: 879 | YL18: 5301 | YM18: 2697 | YN18: 2670 | YO18: 3068 | YP18: 18927 | YQ18: 16917 | YR18: 6425 | YS18: 56317 | YT18: 4462 | YU18: 6720 | YV18: 8522 | YW18: 3688 | YX18: 1642 | YY18: 3765 | YZ18: 2650 | ZA18: 8665 | ZB18: 8078 | ZC18: 2050 | ZD18: 14761 | ZE18: 133390 | ZF18: 6470 | ZG18: 2774 | ZH18: 5883 | ZI18: 17490 | ZJ18: 16748 | ZK18: 4147 | ZL18: 7159 | ZM18: 20231 | ZN18: 2824 | ZO18: 3805 | ZP18: 3165 | ZQ18: 5451 | ZR18: 12916 | ZS18: 31139 | ZT18: 22366 | ZU18: 35432 | ZV18: 3018 | ZW18: 5395 | ZX18: 5750 | ZY18: 7232 | ZZ18: 3435 | AAA18: 1380 | AAB18: 3911 | AAC18: 3921 | AAD18: 5404 | AAE18: 6872 | AAF18: 1825 | AAG18: 4444 | AAH18: 2238 | AAI18: 1584 | AAJ18: 10316 | AAK18: 7380
A19: 144 | B19: 1 | C19: X | E19: Biorec13_Sarz_CSHMS.d | F19: 63106 | G19: 540557 | H19: 48973 | I19: 28396 | J19: 34601 | K19: 5248 | L19: 64196 | M19: 54548 | N19: 18867 | O19: 192449 | P19: 63948 | Q19: 121415 | R19: 8632 | S19: 15747 | T19: 40373 | U19: 13880 | V19: 40133 | W19: 116607 | X19: 32017 | Y19: 39955 | Z19: 89167 | AA19: 643 | AB19: 822 | AC19: 2131 | AD19: 2484 | AE19: 11143 | AF19: 69658 | AG19: 27599 | AH19: 6301 | AI19: 12142 | AJ19: 22730 | AK19: 6143 | AL19: 7789 | AM19: 21714 | AN19: 8829 | AO19: 45778 | AP19: 14701 | AQ19: 11552 | AR19: 19646 | AS19: 9811 | AT19: 5397 | AU19: 6561 | AV19: 3993 | AW19: 946499 | AX19: 8625 | AY19: 355109 | AZ19: 112672 | BA19: 159319 | BB19: 3166 | BC19: 10065 | BD19: 40380 | BE19: 2576 | BF19: 7870 | BG19: 8839 | BH19: 8056 | BI19: 3200 | BJ19: 1937 | BK19: 51302 | BL19: 2431 | BM19: 5797 | BN19: 173334 | BO19: 131897 | BP19: 28397 | BQ19: 4036 | BR19: 20971 | BS19: 37878 | BT19: 4980531 | BU19: 75050 | BV19: 9136 | BW19: 22679 | BX19: 85953 | BY19: 12443 | BZ19: 10421 | CA19: 411585 | CB19: 2879721 | CC19: 805153 | CD19: 297673 | CE19: 2474421 | CF19: 2148928 | CG19: 7832 | CH19: 110569 | CI19: 4222 | CJ19: 10621 | CK19: 13771 | CL19: 37401 | CM19: 3122 | CN19: 375668 | CO19: 1508466 | CP19: 340556 | CQ19: 222498 | CR19: 1135758 | CS19: 3868 | CT19: 7016 | CU19: 42499 | CV19: 93133 | CW19: 47237 | CX19: 12745 | CY19: 266875 | CZ19: 64351 | DA19: 10462 | DB19: 18239 | DC19: 2931 | DD19: 3152 | DE19: 24368 | DF19: 66745 | DG19: 34836 | DH19: 134797 | DI19: 36957 | DJ19: 204274 | DK19: 164478 | DL19: 7578 | DM19: 75569 | DN19: 170508 | DO19: 32347 | DP19: 46619 | DQ19: 11576 | DR19: 14953 | DS19: 7018 | DT19: 3145 | DU19: 7055 | DV19: 5544 | DW19: 15047 | DX19: 9317 | DY19: 5258 | DZ19: 15104 | EA19: 18986 | EB19: 14088 | EC19: 1891 | ED19: 48289 | EE19: 5944 | EF19: 31482 | EG19: 40214 | EH19: 823306 | EI19: 142629 | EJ19: 8342 | EK19: 184249 | EL19: 221861 | EM19: 3984 | EN19: 100853 | EO19: 55255 | EP19: 26361 | EQ19: 5350 | ER19: 239229 | ES19: 155063 | ET19: 71909 | EU19: 41316 | EV19: 32115 | EW19: 129408 | EX19: 328799 | EY19: 238091 | EZ19: 2873 | FA19: 6221 | FB19: 2379 | FC19: 8883 | FD19: 40594 | FE19: 51557 | FF19: 24767 | FG19: 3077 | FH19: 99294 | FI19: 216735 | FJ19: 170818 | FK19: 43392 | FL19: 9612 | FM19: 34419 | FN19: 25886 | FO19: 4868 | FP19: 817567 | FQ19: 714365 | FR19: 419683 | FS19: 71995 | FT19: 7854 | FU19: 28033 | FV19: 75472 | FW19: 59033 | FX19: 15133 | FY19: 33903 | FZ19: 327827 | GA19: 2083073 | GB19: 1429680 | GC19: 145768 | GD19: 7164 | GE19: 11421 | GF19: 52056 | GG19: 62398 | GH19: 35277 | GI19: 3536 | GJ19: 74237 | GK19: 290277 | GL19: 686733 | GM19: 880583 | GN19: 225709 | GO19: 620335 | GP19: 153986 | GQ19: 160241 | GR19: 24732 | GS19: 27088 | GT19: 6085 | GU19: 25176 | GV19: 31261 | GW19: 72040 | GX19: 121238 | GY19: 96429 | GZ19: 32556 | HA19: 9814 | HB19: 14501 | HC19: 2905 | HD19: 2024 | HE19: 16274 | HF19: 17898 | HG19: 2719 | HH19: 4004 | HI19: 2676 | HJ19: 2481 | HK19: 7506 | HL19: 4410 | HM19: 3161 | HN19: 10060 | HO19: 6774 | HP19: 2325 | HQ19: 4001 | HR19: 10472 | HS19: 6763 | HT19: 12331 | HU19: 6069 | HV19: 9470 | HW19: 3558 | HX19: 12581 | HY19: 13184 | HZ19: 5010 | IA19: 10783 | IB19: 6007 | IC19: 11492 | ID19: 10721 | IE19: 316480 | IF19: 13026 | IG19: 20076 | IH19: 25906 | II19: 9142 | IJ19: 18579 | IK19: 13071 | IL19: 1895 | IM19: 99025 | IN19: 67102 | IO19: 20932 | IP19: 21167 | IQ19: 14313 | IR19: 11660 | IS19: 13956 | IT19: 11751 | IU19: 15886 | IV19: 11509 | IW19: 11275 | IX19: 10636 | IY19: 16297 | IZ19: 5361 | JA19: 12500 | JB19: 29241 | JC19: 14716 | JD19: 1245 | JE19: 1833 | JF19: 2468 | JG19: 1914 | JH19: 9075 | JI19: 3626 | JJ19: 13975 | JK19: 2369 | JL19: 2573 | JM19: 5905 | JN19: 9450 | JO19: 4277 | JP19: 2185 | JQ19: 500243 | JR19: 91142 | JS19: 128507 | JT19: 38372 | JU19: 42686 | JV19: 132696 | JW19: 2578439 | JX19: 230012 | JY19: 12343 | JZ19: 6641 | KA19: 6042 | KB19: 4316 | KC19: 3002 | KD19: 7670 | KE19: 23643 | KF19: 26253 | KG19: 25969 | KH19: 5526 | KI19: 1620 | KJ19: 1290 | KK19: 12060 | KL19: 9322 | KM19: 3018 | KN19: 3285 | KO19: 4742 | KP19: 1884 | KQ19: 1981 | KR19: 3663 | KS19: 7547 | KT19: 11561 | KU19: 2228 | KV19: 18513 | KW19: 16302 | KX19: 6034 | KY19: 4024 | KZ19: 7145 | LA19: 5412 | LB19: 9543 | LC19: 925 | LD19: 11472 | LE19: 10391 | LF19: 1640 | LG19: 1877 | LH19: 5097 | LI19: 4488 | LJ19: 1025667 | LK19: 70512 | LL19: 8698 | LM19: 105862 | LN19: 131454 | LO19: 4939 | LP19: 130109 | LQ19: 12779 | LR19: 8374 | LS19: 1594 | LT19: 6126 | LU19: 3129 | LV19: 8285 | LW19: 2070 | LX19: 7460 | LY19: 4019 | LZ19: 4883 | MA19: 1294 | MB19: 1627 | MC19: 2359 | MD19: 1245 | ME19: 2861 | MF19: 2510 | MG19: 6522 | MH19: 4802 | MI19: 3050 | MJ19: 219081 | MK19: 4747 | ML19: 10880 | MM19: 2024 | MN19: 6175 | MO19: 3381 | MP19: 2198 | MQ19: 12972 | MR19: 4450 | MS19: 2005 | MT19: 1655 | MU19: 3977 | MV19: 4270 | MW19: 4108 | MX19: 4817 | MY19: 3307 | MZ19: 1938 | NA19: 3015 | NB19: 2488 | NC19: 3081 | ND19: 1876 | NE19: 2255 | NF19: 2072 | NG19: 6792 | NH19: 5270 | NI19: 177597 | NJ19: 7737 | NK19: 4368 | NL19: 13105 | NM19: 11135 | NN19: 9356 | NO19: 6399 | NP19: 7667 | NQ19: 4525 | NR19: 2362 | NS19: 6247 | NT19: 3618 | NU19: 7316 | NV19: 2826 | NW19: 3050 | NX19: 7699 | NY19: 3738 | NZ19: 5876 | OA19: 23680 | OB19: 336272 | OC19: 14681 | OD19: 3997 | OE19: 5293 | OF19: 4011 | OG19: 2842 | OH19: 2778 | OI19: 4066 | OJ19: 15779 | OK19: 6052 | OL19: 9373 | OM19: 4874 | ON19: 3626 | OO19: 2629 | OP19: 6867 | OQ19: 1539 | OR19: 6866 | OS19: 1824 | OT19: 5641 | OU19: 2816 | OV19: 3832 | OW19: 1799 | OX19: 2463 | OY19: 1789 | OZ19: 1371 | PA19: 1661 | PB19: 1524 | PC19: 7227 | PD19: 3444 | PE19: 4123 | PF19: 8739 | PG19: 4006 | PH19: 8667 | PI19: 2482 | PJ19: 1689 | PK19: 7534 | PL19: 7272 | PM19: 6831 | PN19: 131644 | PO19: 5026 | PP19: 2958 | PQ19: 12221 | PR19: 3108 | PS19: 2522 | PT19: 2091 | PU19: 9732 | PV19: 7421 | PW19: 5140 | PX19: 2555 | PY19: 6223 | PZ19: 19877 | QA19: 6221 | QB19: 4946 | QC19: 2646 | QD19: 1933 | QE19: 12292 | QF19: 207277 | QG19: 21310 | QH19: 7103 | QI19: 4264 | QJ19: 8750 | QK19: 5338 | QL19: 16977 | QM19: 8799 | QN19: 1933 | QO19: 4864 | QP19: 4543 | QQ19: 7099 | QR19: 1857 | QS19: 9001 | QT19: 7547 | QU19: 3218 | QV19: 2562 | QW19: 2845 | QX19: 4700 | QY19: 1682 | QZ19: 1601 | RA19: 1957 | RB19: 1455 | RC19: 13007 | RD19: 2803 | RE19: 2542 | RF19: 2424 | RG19: 1790 | RH19: 5618 | RI19: 15822 | RJ19: 3648 | RK19: 2004 | RL19: 5683 | RM19: 3073 | RN19: 1996 | RO19: 3269 | RP19: 3099 | RQ19: 1479 | RR19: 4967 | RS19: 8392 | RT19: 8171 | RU19: 1172 | RV19: 1443 | RW19: 124096 | RX19: 5903 | RY19: 3514 | RZ19: 0 | SA19: 2445 | SB19: 4261 | SC19: 4862 | SD19: 5464 | SE19: 6396 | SF19: 4459 | SG19: 11563 | SH19: 4518 | SI19: 14291 | SJ19: 1353 | SK19: 11022 | SL19: 2959 | SM19: 2936 | SN19: 5045 | SO19: 3728 | SP19: 3792 | SQ19: 4197 | SR19: 2908 | SS19: 4865 | ST19: 4806 | SU19: 2680 | SV19: 4964 | SW19: 12728 | SX19: 3434 | SY19: 3528 | SZ19: 5814 | TA19: 8543 | TB19: 997 | TC19: 6411 | TD19: 2343 | TE19: 1933 | TF19: 3159 | TG19: 20536 | TH19: 82084 | TI19: 24720 | TJ19: 10304 | TK19: 3752 | TL19: 2932 | TM19: 23301 | TN19: 3257 | TO19: 3982 | TP19: 7242 | TQ19: 1908 | TR19: 3117 | TS19: 3253 | TT19: 2218 | TU19: 2494 | TV19: 25931 | TW19: 11686 | TX19: 2385 | TY19: 145015 | TZ19: 3464 | UA19: 3255 | UB19: 2614 | UC19: 17603 | UD19: 7196 | UE19: 8141 | UF19: 23787 | UG19: 2999 | UH19: 4338 | UI19: 5804 | UJ19: 16827 | UK19: 2766 | UL19: 8707 | UM19: 3407 | UN19: 15642 | UO19: 5406 | UP19: 3214 | UQ19: 8835 | UR19: 7841 | US19: 3196 | UT19: 4482 | UU19: 2061 | UV19: 2184 | UW19: 0 | UX19: 1327 | UY19: 23814 | UZ19: 2032 | VA19: 2246 | VB19: 7357 | VC19: 28554 | VD19: 7287 | VE19: 2912 | VF19: 2257 | VG19: 15111 | VH19: 2417 | VI19: 2295 | VJ19: 5601 | VK19: 2519 | VL19: 2707 | VM19: 6998 | VN19: 2872 | VO19: 12439 | VP19: 4254 | VQ19: 2867 | VR19: 1804 | VS19: 10074 | VT19: 1915 | VU19: 2977 | VV19: 5814 | VW19: 2245 | VX19: 5362 | VY19: 2742 | VZ19: 2793 | WA19: 61651 | WB19: 26654 | WC19: 53971 | WD19: 753 | WE19: 120377 | WF19: 7222 | WG19: 9434 | WH19: 4493 | WI19: 5802 | WJ19: 3831 | WK19: 3293 | WL19: 99385 | WM19: 4260 | WN19: 4377 | WO19: 72844 | WP19: 5857 | WQ19: 5579 | WR19: 5922 | WS19: 37949 | WT19: 2579 | WU19: 2869 | WV19: 7248 | WW19: 116449 | WX19: 8905 | WY19: 24384 | WZ19: 10904 | XA19: 11692 | XB19: 320788 | XC19: 323002 | XD19: 21507 | XE19: 11323 | XF19: 9732 | XG19: 2994 | XH19: 38197 | XI19: 2312 | XJ19: 21978 | XK19: 2980 | XL19: 26274 | XM19: 21365 | XN19: 8117 | XO19: 14005 | XP19: 21515 | XQ19: 9156 | XR19: 20358 | XS19: 4409 | XT19: 12873 | XU19: 3937 | XV19: 4459 | XW19: 10457 | XX19: 7470 | XY19: 15451 | XZ19: 11768 | YA19: 10286 | YB19: 3534 | YC19: 2075 | YD19: 11560 | YE19: 3173 | YF19: 4137 | YG19: 28819 | YH19: 4169 | YI19: 2905 | YJ19: 10743 | YK19: 981 | YL19: 5908 | YM19: 3326 | YN19: 2343 | YO19: 3572 | YP19: 16631 | YQ19: 19199 | YR19: 6530 | YS19: 62677 | YT19: 4863 | YU19: 6928 | YV19: 9937 | YW19: 3870 | YX19: 1719 | YY19: 3988 | YZ19: 2059 | ZA19: 9486 | ZB19: 8434 | ZC19: 2535 | ZD19: 16412 | ZE19: 146149 | ZF19: 7925 | ZG19: 3402 | ZH19: 6930 | ZI19: 18434 | ZJ19: 18495 | ZK19: 14853 | ZL19: 7569 | ZM19: 20994 | ZN19: 2880 | ZO19: 3033 | ZP19: 3211 | ZQ19: 5739 | ZR19: 14932 | ZS19: 35118 | ZT19: 22424 | ZU19: 39672 | ZV19: 3019 | ZW19: 6527 | ZX19: 8509 | ZY19: 7698 | ZZ19: 4512 | AAA19: 1383 | AAB19: 4090 | AAC19: 4360 | AAD19: 5862 | AAE19: 8442 | AAF19: 5491 | AAG19: 4730 | AAH19: 2108 | AAI19: 1652 | AAJ19: 10916 | AAK19: 8547
A20: 156 | B20: 1 | C20: X | E20: Biorec14_Sarz_CSHMS.d | F20: 63664 | G20: 536100 | H20: 49676 | I20: 28668 | J20: 36486 | K20: 4940 | L20: 63764 | M20: 52934 | N20: 19026 | O20: 194338 | P20: 65481 | Q20: 123364 | R20: 9281 | S20: 15972 | T20: 40593 | U20: 13304 | V20: 41478 | W20: 119348 | X20: 32191 | Y20: 40822 | Z20: 89834 | AA20: 1133 | AB20: 662 | AC20: 1995 | AD20: 2703 | AE20: 10758 | AF20: 68999 | AG20: 27486 | AH20: 5945 | AI20: 12798 | AJ20: 23692 | AK20: 6525 | AL20: 7836 | AM20: 22666 | AN20: 9592 | AO20: 43647 | AP20: 14992 | AQ20: 11433 | AR20: 20781 | AS20: 10270 | AT20: 5180 | AU20: 6607 | AV20: 4059 | AW20: 981485 | AX20: 9466 | AY20: 362501 | AZ20: 115658 | BA20: 163431 | BB20: 3183 | BC20: 10228 | BD20: 40368 | BE20: 2967 | BF20: 8289 | BG20: 8652 | BH20: 8419 | BI20: 3159 | BJ20: 2341 | BK20: 52338 | BL20: 2239 | BM20: 5528 | BN20: 173214 | BO20: 133542 | BP20: 29150 | BQ20: 3362 | BR20: 21310 | BS20: 37943 | BT20: 5018527 | BU20: 75913 | BV20: 9745 | BW20: 22179 | BX20: 87315 | BY20: 12438 | BZ20: 11404 | CA20: 426539 | CB20: 2934362 | CC20: 817164 | CD20: 312810 | CE20: 2509934 | CF20: 2179717 | CG20: 7898 | CH20: 114346 | CI20: 3961 | CJ20: 10437 | CK20: 13728 | CL20: 38132 | CM20: 3373 | CN20: 385530 | CO20: 1533320 | CP20: 348081 | CQ20: 225698 | CR20: 1174759 | CS20: 2517 | CT20: 7274 | CU20: 43873 | CV20: 94370 | CW20: 48044 | CX20: 12423 | CY20: 273383 | CZ20: 65164 | DA20: 10309 | DB20: 19153 | DC20: 2966 | DD20: 3282 | DE20: 24822 | DF20: 69117 | DG20: 35373 | DH20: 137965 | DI20: 38542 | DJ20: 211782 | DK20: 162604 | DL20: 7238 | DM20: 77900 | DN20: 169744 | DO20: 32770 | DP20: 51349 | DQ20: 11953 | DR20: 14653 | DS20: 6640 | DT20: 6536 | DU20: 6855 | DV20: 5367 | DW20: 15922 | DX20: 9169 | DY20: 5305 | DZ20: 15654 | EA20: 19016 | EB20: 14932 | EC20: 1978 | ED20: 48321 | EE20: 6309 | EF20: 31931 | EG20: 42206 | EH20: 1039102 | EI20: 144938 | EJ20: 8530 | EK20: 185287 | EL20: 223915 | EM20: 3978 | EN20: 100869 | EO20: 54905 | EP20: 26167 | EQ20: 4502 | ER20: 250011 | ES20: 158759 | ET20: 74870 | EU20: 42397 | EV20: 31307 | EW20: 133001 | EX20: 343507 | EY20: 245314 | EZ20: 2699 | FA20: 7135 | FB20: 2594 | FC20: 9475 | FD20: 41794 | FE20: 53022 | FF20: 24606 | FG20: 2968 | FH20: 101153 | FI20: 220999 | FJ20: 176161 | FK20: 44766 | FL20: 10954 | FM20: 35466 | FN20: 28061 | FO20: 5159 | FP20: 838465 | FQ20: 723042 | FR20: 433540 | FS20: 75286 | FT20: 8942 | FU20: 29166 | FV20: 80125 | FW20: 62332 | FX20: 15461 | FY20: 36271 | FZ20: 339354 | GA20: 2135727 | GB20: 1476581 | GC20: 152680 | GD20: 7485 | GE20: 11501 | GF20: 55504 | GG20: 65488 | GH20: 36323 | GI20: 3846 | GJ20: 76824 | GK20: 302036 | GL20: 706399 | GM20: 899058 | GN20: 232128 | GO20: 634467 | GP20: 161189 | GQ20: 169053 | GR20: 25285 | GS20: 28379 | GT20: 6394 | GU20: 25617 | GV20: 32011 | GW20: 73423 | GX20: 125177 | GY20: 100295 | GZ20: 33442 | HA20: 10398 | HB20: 14275 | HC20: 3030 | HD20: 2057 | HE20: 17156 | HF20: 19136 | HG20: 3142 | HH20: 4189 | HI20: 13592 | HJ20: 2482 | HK20: 8186 | HL20: 4319 | HM20: 3167 | HN20: 9247 | HO20: 8745 | HP20: 2416 | HQ20: 4117 | HR20: 10827 | HS20: 6577 | HT20: 12670 | HU20: 6237 | HV20: 9275 | HW20: 3750 | HX20: 12416 | HY20: 12968 | HZ20: 5427 | IA20: 10992 | IB20: 6076 | IC20: 11983 | ID20: 10897 | IE20: 318225 | IF20: 13115 | IG20: 19672 | IH20: 27337 | II20: 9008 | IJ20: 18303 | IK20: 13196 | IL20: 1703 | IM20: 100732 | IN20: 68431 | IO20: 22034 | IP20: 20831 | IQ20: 13987 | IR20: 11986 | IS20: 13429 | IT20: 11563 | IU20: 16170 | IV20: 11433 | IW20: 11633 | IX20: 10653 | IY20: 15541 | IZ20: 5753 | JA20: 12152 | JB20: 30409 | JC20: 14684 | JD20: 1465 | JE20: 2164 | JF20: 2657 | JG20: 2021 | JH20: 9369 | JI20: 3696 | JJ20: 14313 | JK20: 2184 | JL20: 2380 | JM20: 5417 | JN20: 10301 | JO20: 4520 | JP20: 2134 | JQ20: 507458 | JR20: 95249 | JS20: 131317 | JT20: 41158 | JU20: 41472 | JV20: 133113 | JW20: 2635017 | JX20: 235179 | JY20: 12070 | JZ20: 7076 | KA20: 5630 | KB20: 4019 | KC20: 3835 | KD20: 7802 | KE20: 25449 | KF20: 27023 | KG20: 27915 | KH20: 4864 | KI20: 1297 | KJ20: 1470 | KK20: 12427 | KL20: 9396 | KM20: 2656 | KN20: 2795 | KO20: 4365 | KP20: 2403 | KQ20: 1743 | KR20: 3772 | KS20: 7523 | KT20: 13183 | KU20: 3926 | KV20: 19566 | KW20: 16126 | KX20: 5819 | KY20: 3929 | KZ20: 7879 | LA20: 5512 | LB20: 9442 | LC20: 1451 | LD20: 10886 | LE20: 10310 | LF20: 1637 | LG20: 2252 | LH20: 5256 | LI20: 4567 | LJ20: 1033272 | LK20: 17436 | LL20: 29746 | LM20: 118407 | LN20: 128424 | LO20: 5434 | LP20: 75014 | LQ20: 12747 | LR20: 9275 | LS20: 2119 | LT20: 6549 | LU20: 3322 | LV20: 8779 | LW20: 2184 | LX20: 8226 | LY20: 4757 | LZ20: 4866 | MA20: 1363 | MB20: 1915 | MC20: 2535 | MD20: 1288 | ME20: 2730 | MF20: 1666 | MG20: 6334 | MH20: 33430 | MI20: 2779 | MJ20: 221851 | MK20: 4420 | ML20: 10768 | MM20: 2225 | MN20: 5897 | MO20: 6672 | MP20: 2093 | MQ20: 15290 | MR20: 4529 | MS20: 1857 | MT20: 1491 | MU20: 4202 | MV20: 4118 | MW20: 4921 | MX20: 4846 | MY20: 3748 | MZ20: 2313 | NA20: 2991 | NB20: 2095 | NC20: 3024 | ND20: 1745 | NE20: 2693 | NF20: 1957 | NG20: 6936 | NH20: 5217 | NI20: 179723 | NJ20: 8253 | NK20: 3665 | NL20: 14102 | NM20: 11665 | NN20: 9339 | NO20: 6819 | NP20: 6080 | NQ20: 5066 | NR20: 2242 | NS20: 6439 | NT20: 3397 | NU20: 7681 | NV20: 2911 | NW20: 2942 | NX20: 5495 | NY20: 3937 | NZ20: 5608 | OA20: 24583 | OB20: 340531 | OC20: 14674 | OD20: 4275 | OE20: 4402 | OF20: 4024 | OG20: 2641 | OH20: 2670 | OI20: 3660 | OJ20: 15809 | OK20: 6850 | OL20: 8959 | OM20: 4903 | ON20: 3672 | OO20: 2876 | OP20: 9856 | OQ20: 1978 | OR20: 6529 | OS20: 2157 | OT20: 3806 | OU20: 2133 | OV20: 3751 | OW20: 2002 | OX20: 2352 | OY20: 2023 | OZ20: 1761 | PA20: 1263 | PB20: 1540 | PC20: 6314 | PD20: 4067 | PE20: 6554 | PF20: 8890 | PG20: 3821 | PH20: 8202 | PI20: 2756 | PJ20: 1939 | PK20: 7505 | PL20: 7244 | PM20: 7254 | PN20: 133182 | PO20: 4258 | PP20: 3882 | PQ20: 12682 | PR20: 3082 | PS20: 2551 | PT20: 2025 | PU20: 9586 | PV20: 7872 | PW20: 4827 | PX20: 2691 | PY20: 6205 | PZ20: 17905 | QA20: 6625 | QB20: 4973 | QC20: 2764 | QD20: 2580 | QE20: 13110 | QF20: 189275 | QG20: 21450 | QH20: 9212 | QI20: 3568 | QJ20: 9278 | QK20: 5370 | QL20: 16794 | QM20: 9786 | QN20: 2352 | QO20: 5078 | QP20: 6739 | QQ20: 7434 | QR20: 1929 | QS20: 9284 | QT20: 7634 | QU20: 4167 | QV20: 5149 | QW20: 2621 | QX20: 4759 | QY20: 1634 | QZ20: 1487 | RA20: 2471 | RB20: 1716 | RC20: 12775 | RD20: 2259 | RE20: 2768 | RF20: 2317 | RG20: 1559 | RH20: 4046 | RI20: 18350 | RJ20: 2985 | RK20: 1865 | RL20: 6557 | RM20: 4721 | RN20: 3042 | RO20: 2897 | RP20: 3492 | RQ20: 2048 | RR20: 5196 | RS20: 7716 | RT20: 6759 | RU20: 1025 | RV20: 1669 | RW20: 132879 | RX20: 6072 | RY20: 3622 | RZ20: 0 | SA20: 2321 | SB20: 4243 | SC20: 4007 | SD20: 4634 | SE20: 6809 | SF20: 25427 | SG20: 12115 | SH20: 4620 | SI20: 14138 | SJ20: 1126 | SK20: 11558 | SL20: 2848 | SM20: 2385 | SN20: 5332 | SO20: 5045 | SP20: 3772 | SQ20: 3623 | SR20: 2686 | SS20: 4794 | ST20: 4694 | SU20: 3095 | SV20: 4915 | SW20: 12650 | SX20: 4071 | SY20: 3212 | SZ20: 5976 | TA20: 9356 | TB20: 1151 | TC20: 6733 | TD20: 2182 | TE20: 2649 | TF20: 2628 | TG20: 16700 | TH20: 83532 | TI20: 25150 | TJ20: 10163 | TK20: 3480 | TL20: 2803 | TM20: 4350 | TN20: 3485 | TO20: 3985 | TP20: 7143 | TQ20: 1777 | TR20: 2825 | TS20: 3257 | TT20: 2005 | TU20: 2655 | TV20: 36390 | TW20: 10149 | TX20: 2596 | TY20: 173299 | TZ20: 2939 | UA20: 3142 | UB20: 2719 | UC20: 17756 | UD20: 7584 | UE20: 7816 | UF20: 24341 | UG20: 3183 | UH20: 3046 | UI20: 5982 | UJ20: 17606 | UK20: 2850 | UL20: 9176 | UM20: 3658 | UN20: 17815 | UO20: 5698 | UP20: 6770 | UQ20: 8934 | UR20: 8097 | US20: 3174 | UT20: 4461 | UU20: 2003 | UV20: 2271 | UW20: 599 | UX20: 1398 | UY20: 17543 | UZ20: 2506 | VA20: 2552 | VB20: 7662 | VC20: 30334 | VD20: 7860 | VE20: 4272 | VF20: 2607 | VG20: 17396 | VH20: 2931 | VI20: 2343 | VJ20: 5757 | VK20: 2700 | VL20: 2674 | VM20: 6934 | VN20: 3623 | VO20: 12334 | VP20: 4321 | VQ20: 3037 | VR20: 1740 | VS20: 11823 | VT20: 1918 | VU20: 3373 | VV20: 6609 | VW20: 2374 | VX20: 5525 | VY20: 3099 | VZ20: 2646 | WA20: 64352 | WB20: 26780 | WC20: 14107 | WD20: 1040 | WE20: 120859 | WF20: 7066 | WG20: 9045 | WH20: 4996 | WI20: 7585 | WJ20: 3139 | WK20: 3101 | WL20: 101199 | WM20: 3867 | WN20: 4934 | WO20: 75504 | WP20: 5367 | WQ20: 5242 | WR20: 6581 | WS20: 38579 | WT20: 3187 | WU20: 2706 | WV20: 7224 | WW20: 3472 | WX20: 12997 | WY20: 27701 | WZ20: 10552 | XA20: 11515 | XB20: 316504 | XC20: 320946 | XD20: 22459 | XE20: 14350 | XF20: 9669 | XG20: 2973 | XH20: 38616 | XI20: 2950 | XJ20: 21702 | XK20: 2526 | XL20: 27531 | XM20: 21537 | XN20: 8508 | XO20: 14928 | XP20: 21206 | XQ20: 7458 | XR20: 21107 | XS20: 4450 | XT20: 12247 | XU20: 4226 | XV20: 3022 | XW20: 10306 | XX20: 8145 | XY20: 14985 | XZ20: 11497 | YA20: 11035 | YB20: 3734 | YC20: 2066 | YD20: 12045 | YE20: 1958 | YF20: 4214 | YG20: 28930 | YH20: 3982 | YI20: 2549 | YJ20: 9722 | YK20: 1082 | YL20: 6187 | YM20: 3029 | YN20: 2256 | YO20: 4108 | YP20: 21374 | YQ20: 4652 | YR20: 6706 | YS20: 65637 | YT20: 5502 | YU20: 6831 | YV20: 9738 | YW20: 3956 | YX20: 2310 | YY20: 4105 | YZ20: 2790 | ZA20: 9562 | ZB20: 8850 | ZC20: 2477 | ZD20: 17011 | ZE20: 130782 | ZF20: 12176 | ZG20: 3507 | ZH20: 6923 | ZI20: 18771 | ZJ20: 18778 | ZK20: 15380 | ZL20: 3790 | ZM20: 21434 | ZN20: 3259 | ZO20: 4214 | ZP20: 4003 | ZQ20: 6189 | ZR20: 14710 | ZS20: 36964 | ZT20: 22916 | ZU20: 42796 | ZV20: 3291 | ZW20: 6602 | ZX20: 8405 | ZY20: 6251 | ZZ20: 4322 | AAA20: 1544 | AAB20: 3917 | AAC20: 4360 | AAD20: 6140 | AAE20: 7333 | AAF20: 2657 | AAG20: 6225 | AAH20: 2186 | AAI20: 1506 | AAJ20: 11009 | AAK20: 9036
A21: 181 | B21: 1 | C21: X | E21: Biorec16_Sarz_CSHMS.d | F21: 62299 | G21: 542610 | H21: 46719 | I21: 27649 | J21: 34640 | K21: 5354 | L21: 58344 | M21: 54990 | N21: 20684 | O21: 196511 | P21: 68347 | Q21: 116957 | R21: 8816 | S21: 15148 | T21: 37265 | U21: 13594 | V21: 30581 | W21: 116746 | X21: 28879 | Y21: 39922 | Z21: 91181 | AA21: 898 | AB21: 849 | AC21: 1811 | AD21: 1855 | AE21: 11336 | AF21: 69548 | AG21: 28962 | AH21: 6097 | AI21: 12374 | AJ21: 24464 | AK21: 6051 | AL21: 7675 | AM21: 20920 | AN21: 8854 | AO21: 43088 | AP21: 14915 | AQ21: 11544 | AR21: 19839 | AS21: 9027 | AT21: 4749 | AU21: 5770 | AV21: 3664 | AW21: 866614 | AX21: 8202 | AY21: 332128 | AZ21: 106343 | BA21: 148515 | BB21: 2972 | BC21: 9759 | BD21: 36495 | BE21: 2806 | BF21: 7211 | BG21: 8098 | BH21: 7656 | BI21: 892 | BJ21: 2015 | BK21: 50693 | BL21: 2491 | BM21: 4847 | BN21: 160477 | BO21: 125241 | BP21: 26867 | BQ21: 3201 | BR21: 20895 | BS21: 35846 | BT21: 4824552 | BU21: 72461 | BV21: 8947 | BW21: 21062 | BX21: 84171 | BY21: 11609 | BZ21: 10812 | CA21: 390159 | CB21: 2785561 | CC21: 776308 | CD21: 305229 | CE21: 2388159 | CF21: 2078194 | CG21: 3691 | CH21: 109093 | CI21: 3875 | CJ21: 9804 | CK21: 13172 | CL21: 34458 | CM21: 2973 | CN21: 364768 | CO21: 1471833 | CP21: 333446 | CQ21: 212395 | CR21: 1132223 | CS21: 2400 | CT21: 7012 | CU21: 41366 | CV21: 88597 | CW21: 45773 | CX21: 12187 | CY21: 261372 | CZ21: 63205 | DA21: 10155 | DB21: 17335 | DC21: 2753 | DD21: 3393 | DE21: 22932 | DF21: 64175 | DG21: 34771 | DH21: 130840 | DI21: 35320 | DJ21: 197820 | DK21: 157785 | DL21: 6957 | DM21: 74470 | DN21: 165046 | DO21: 31300 | DP21: 45984 | DQ21: 10528 | DR21: 14266 | DS21: 6609 | DT21: 6232 | DU21: 6702 | DV21: 5413 | DW21: 15560 | DX21: 9033 | DY21: 4778 | DZ21: 15006 | EA21: 18920 | EB21: 14646 | EC21: 1987 | ED21: 46426 | EE21: 5529 | EF21: 29779 | EG21: 38864 | EH21: 847615 | EI21: 138745 | EJ21: 8368 | EK21: 179235 | EL21: 212137 | EM21: 4232 | EN21: 94347 | EO21: 53492 | EP21: 24348 | EQ21: 5124 | ER21: 227979 | ES21: 149051 | ET21: 67947 | EU21: 40603 | EV21: 39029 | EW21: 122351 | EX21: 317814 | EY21: 228413 | EZ21: 2479 | FA21: 6388 | FB21: 2406 | FC21: 9660 | FD21: 41561 | FE21: 53503 | FF21: 25587 | FG21: 3016 | FH21: 100629 | FI21: 218553 | FJ21: 176344 | FK21: 45971 | FL21: 10178 | FM21: 36445 | FN21: 27128 | FO21: 5093 | FP21: 819330 | FQ21: 726489 | FR21: 428192 | FS21: 72067 | FT21: 8921 | FU21: 28773 | FV21: 77628 | FW21: 60916 | FX21: 15678 | FY21: 35693 | FZ21: 337618 | GA21: 2081848 | GB21: 1455839 | GC21: 151198 | GD21: 7451 | GE21: 11691 | GF21: 53668 | GG21: 63529 | GH21: 35923 | GI21: 3710 | GJ21: 76167 | GK21: 298142 | GL21: 693625 | GM21: 883133 | GN21: 231754 | GO21: 632594 | GP21: 158828 | GQ21: 158008 | GR21: 25471 | GS21: 27619 | GT21: 6178 | GU21: 25235 | GV21: 31413 | GW21: 71368 | GX21: 120868 | GY21: 97603 | GZ21: 32030 | HA21: 10025 | HB21: 14398 | HC21: 2928 | HD21: 2667 | HE21: 16848 | HF21: 17959 | HG21: 2869 | HH21: 4156 | HI21: 12541 | HJ21: 2465 | HK21: 7782 | HL21: 3347 | HM21: 3099 | HN21: 9958 | HO21: 5568 | HP21: 2360 | HQ21: 3987 | HR21: 9674 | HS21: 6937 | HT21: 12080 | HU21: 6105 | HV21: 9925 | HW21: 3282 | HX21: 13053 | HY21: 12931 | HZ21: 5606 | IA21: 10758 | IB21: 6120 | IC21: 10732 | ID21: 9944 | IE21: 319770 | IF21: 13355 | IG21: 19396 | IH21: 26982 | II21: 9745 | IJ21: 18805 | IK21: 9885 | IL21: 2254 | IM21: 98925 | IN21: 64871 | IO21: 21371 | IP21: 21928 | IQ21: 14638 | IR21: 11661 | IS21: 13727 | IT21: 11825 | IU21: 14446 | IV21: 10741 | IW21: 11730 | IX21: 10151 | IY21: 15306 | IZ21: 5493 | JA21: 12714 | JB21: 29058 | JC21: 14111 | JD21: 1610 | JE21: 1900 | JF21: 2762 | JG21: 1980 | JH21: 8799 | JI21: 4017 | JJ21: 14536 | JK21: 1228 | JL21: 1664 | JM21: 3020 | JN21: 10529 | JO21: 4265 | JP21: 2287 | JQ21: 508377 | JR21: 89093 | JS21: 126966 | JT21: 37633 | JU21: 39555 | JV21: 131825 | JW21: 2581392 | JX21: 231510 | JY21: 12507 | JZ21: 6937 | KA21: 4797 | KB21: 4115 | KC21: 3685 | KD21: 8069 | KE21: 24963 | KF21: 27526 | KG21: 27209 | KH21: 4456 | KI21: 1548 | KJ21: 1432 | KK21: 12089 | KL21: 9528 | KM21: 2907 | KN21: 3021 | KO21: 4433 | KP21: 1998 | KQ21: 1696 | KR21: 3891 | KS21: 7969 | KT21: 15963 | KU21: 3662 | KV21: 19313 | KW21: 15778 | KX21: 5748 | KY21: 4147 | KZ21: 7618 | LA21: 5505 | LB21: 9530 | LC21: 1177 | LD21: 11015 | LE21: 9787 | LF21: 1529 | LG21: 1468 | LH21: 5566 | LI21: 4649 | LJ21: 1015504 | LK21: 28322 | LL21: 12011 | LM21: 95936 | LN21: 124113 | LO21: 5115 | LP21: 95780 | LQ21: 12743 | LR21: 7984 | LS21: 1633 | LT21: 6699 | LU21: 2984 | LV21: 7479 | LW21: 1592 | LX21: 8405 | LY21: 3843 | LZ21: 1627 | MA21: 924 | MB21: 1641 | MC21: 2588 | MD21: 947 | ME21: 2610 | MF21: 2016 | MG21: 5819 | MH21: 3102 | MI21: 2609 | MJ21: 214681 | MK21: 4729 | ML21: 10429 | MM21: 2306 | MN21: 4440 | MO21: 6407 | MP21: 2483 | MQ21: 13181 | MR21: 4272 | MS21: 1588 | MT21: 1317 | MU21: 4075 | MV21: 4967 | MW21: 4511 | MX21: 4623 | MY21: 4032 | MZ21: 2432 | NA21: 2747 | NB21: 2145 | NC21: 2950 | ND21: 2177 | NE21: 1534 | NF21: 1571 | NG21: 6757 | NH21: 4929 | NI21: 170925 | NJ21: 7107 | NK21: 6868 | NL21: 12102 | NM21: 11052 | NN21: 8957 | NO21: 6542 | NP21: 4152 | NQ21: 4491 | NR21: 2292 | NS21: 6477 | NT21: 3499 | NU21: 7296 | NV21: 2371 | NW21: 3349 | NX21: 7584 | NY21: 3974 | NZ21: 5713 | OA21: 23407 | OB21: 324947 | OC21: 14033 | OD21: 3982 | OE21: 4855 | OF21: 5024 | OG21: 2557 | OH21: 2646 | OI21: 3162 | OJ21: 15866 | OK21: 6509 | OL21: 8811 | OM21: 5319 | ON21: 3714 | OO21: 2453 | OP21: 10679 | OQ21: 1978 | OR21: 7243 | OS21: 1771 | OT21: 5218 | OU21: 2535 | OV21: 3775 | OW21: 1721 | OX21: 2171 | OY21: 2249 | OZ21: 1229 | PA21: 1817 | PB21: 1564 | PC21: 5863 | PD21: 3541 | PE21: 3527 | PF21: 7831 | PG21: 3418 | PH21: 9379 | PI21: 2468 | PJ21: 1526 | PK21: 648 | PL21: 7163 | PM21: 7369 | PN21: 125236 | PO21: 5237 | PP21: 3069 | PQ21: 12592 | PR21: 2550 | PS21: 2520 | PT21: 1921 | PU21: 9662 | PV21: 7466 | PW21: 4829 | PX21: 2710 | PY21: 5632 | PZ21: 21979 | QA21: 6460 | QB21: 4844 | QC21: 3056 | QD21: 1875 | QE21: 11586 | QF21: 166208 | QG21: 20005 | QH21: 8478 | QI21: 2896 | QJ21: 8625 | QK21: 4682 | QL21: 16075 | QM21: 9057 | QN21: 1803 | QO21: 4343 | QP21: 3436 | QQ21: 6188 | QR21: 3158 | QS21: 9294 | QT21: 7379 | QU21: 3149 | QV21: 2693 | QW21: 2749 | QX21: 4618 | QY21: 1292 | QZ21: 1228 | RA21: 2045 | RB21: 1350 | RC21: 13782 | RD21: 2953 | RE21: 2908 | RF21: 2268 | RG21: 1549 | RH21: 3822 | RI21: 15628 | RJ21: 3991 | RK21: 1232 | RL21: 6850 | RM21: 3776 | RN21: 2953 | RO21: 2851 | RP21: 2480 | RQ21: 1498 | RR21: 4612 | RS21: 7277 | RT21: 7000 | RU21: 1140 | RV21: 1364 | RW21: 125685 | RX21: 5315 | RY21: 3563 | RZ21: 0 | SA21: 3423 | SB21: 4009 | SC21: 3794 | SD21: 6062 | SE21: 6517 | SF21: 24795 | SG21: 12142 | SH21: 4569 | SI21: 14724 | SJ21: 1393 | SK21: 10820 | SL21: 3038 | SM21: 2520 | SN21: 4897 | SO21: 4316 | SP21: 3734 | SQ21: 3742 | SR21: 2995 | SS21: 4431 | ST21: 4915 | SU21: 2933 | SV21: 4747 | SW21: 13055 | SX21: 3859 | SY21: 3479 | SZ21: 6007 | TA21: 9247 | TB21: 1114 | TC21: 6464 | TD21: 1745 | TE21: 1687 | TF21: 2993 | TG21: 23457 | TH21: 83057 | TI21: 23961 | TJ21: 9919 | TK21: 3484 | TL21: 3161 | TM21: 23834 | TN21: 3845 | TO21: 3905 | TP21: 6729 | TQ21: 1900 | TR21: 2886 | TS21: 3574 | TT21: 2036 | TU21: 2400 | TV21: 26158 | TW21: 11213 | TX21: 2268 | TY21: 166071 | TZ21: 2374 | UA21: 2864 | UB21: 2807 | UC21: 17231 | UD21: 7847 | UE21: 8294 | UF21: 23855 | UG21: 3191 | UH21: 2779 | UI21: 5819 | UJ21: 28029 | UK21: 2362 | UL21: 7832 | UM21: 3589 | UN21: 22449 | UO21: 5058 | UP21: 3224 | UQ21: 8581 | UR21: 7830 | US21: 2711 | UT21: 4443 | UU21: 1661 | UV21: 2293 | UW21: 887 | UX21: 1629 | UY21: 18885 | UZ21: 2124 | VA21: 1694 | VB21: 7993 | VC21: 30466 | VD21: 4151 | VE21: 3124 | VF21: 4179 | VG21: 15522 | VH21: 2672 | VI21: 2328 | VJ21: 5551 | VK21: 2645 | VL21: 2707 | VM21: 8427 | VN21: 2957 | VO21: 13290 | VP21: 3893 | VQ21: 3319 | VR21: 2236 | VS21: 11486 | VT21: 2273 | VU21: 3152 | VV21: 6526 | VW21: 2230 | VX21: 5841 | VY21: 3213 | VZ21: 2755 | WA21: 57830 | WB21: 24820 | WC21: 97161 | WD21: 890 | WE21: 113999 | WF21: 6704 | WG21: 8024 | WH21: 6027 | WI21: 5329 | WJ21: 6043 | WK21: 3345 | WL21: 98366 | WM21: 4061 | WN21: 4490 | WO21: 70716 | WP21: 5116 | WQ21: 4709 | WR21: 6856 | WS21: 37277 | WT21: 2571 | WU21: 2285 | WV21: 7055 | WW21: 3110 | WX21: 7309 | WY21: 13184 | WZ21: 10392 | XA21: 12220 | XB21: 315564 | XC21: 323972 | XD21: 23505 | XE21: 124108 | XF21: 9358 | XG21: 2964 | XH21: 35972 | XI21: 1853 | XJ21: 20761 | XK21: 2290 | XL21: 26190 | XM21: 19272 | XN21: 8279 | XO21: 13682 | XP21: 19789 | XQ21: 8556 | XR21: 19564 | XS21: 4296 | XT21: 12292 | XU21: 3692 | XV21: 3155 | XW21: 9192 | XX21: 7351 | XY21: 14779 | XZ21: 10959 | YA21: 10361 | YB21: 3473 | YC21: 1816 | YD21: 11416 | YE21: 1888 | YF21: 3871 | YG21: 29047 | YH21: 4271 | YI21: 2803 | YJ21: 5584 | YK21: 801 | YL21: 5495 | YM21: 3172 | YN21: 2855 | YO21: 3326 | YP21: 20680 | YQ21: 6398 | YR21: 6400 | YS21: 63571 | YT21: 4910 | YU21: 6824 | YV21: 10616 | YW21: 4028 | YX21: 1590 | YY21: 3958 | YZ21: 2549 | ZA21: 9602 | ZB21: 8472 | ZC21: 2542 | ZD21: 16992 | ZE21: 146366 | ZF21: 9585 | ZG21: 3090 | ZH21: 7031 | ZI21: 18422 | ZJ21: 17780 | ZK21: 14947 | ZL21: 7358 | ZM21: 22338 | ZN21: 3012 | ZO21: 3895 | ZP21: 3735 | ZQ21: 6084 | ZR21: 14636 | ZS21: 36724 | ZT21: 23040 | ZU21: 41809 | ZV21: 3220 | ZW21: 6679 | ZX21: 8417 | ZY21: 7623 | ZZ21: 4319 | AAA21: 1679 | AAB21: 3835 | AAC21: 4212 | AAD21: 6076 | AAE21: 8571 | AAF21: 2274 | AAG21: 4700 | AAH21: 2552 | AAI21: 1670 | AAJ21: 11016 | AAK21: 9118
A22: 193 | B22: 1 | C22: X | E22: Biorec17_Sarz_CSHMS.d | F22: 60998 | G22: 542695 | H22: 50164 | I22: 28785 | J22: 35556 | K22: 5362 | L22: 61972 | M22: 56461 | N22: 20811 | O22: 204504 | P22: 71397 | Q22: 124064 | R22: 10345 | S22: 16314 | T22: 40374 | U22: 13618 | V22: 25125 | W22: 118795 | X22: 31940 | Y22: 20647 | Z22: 43575 | AA22: 774 | AB22: 752 | AC22: 2160 | AD22: 2362 | AE22: 11330 | AF22: 71271 | AG22: 28912 | AH22: 6261 | AI22: 12455 | AJ22: 24871 | AK22: 6604 | AL22: 7331 | AM22: 20753 | AN22: 9481 | AO22: 43369 | AP22: 15569 | AQ22: 12485 | AR22: 20686 | AS22: 9470 | AT22: 5209 | AU22: 6374 | AV22: 3941 | AW22: 941516 | AX22: 9056 | AY22: 351474 | AZ22: 112449 | BA22: 157747 | BB22: 3090 | BC22: 10140 | BD22: 39412 | BE22: 2548 | BF22: 7459 | BG22: 8549 | BH22: 8505 | BI22: 798 | BJ22: 2293 | BK22: 51256 | BL22: 2361 | BM22: 5432 | BN22: 168673 | BO22: 131032 | BP22: 27654 | BQ22: 3230 | BR22: 20447 | BS22: 37524 | BT22: 4973595 | BU22: 75183 | BV22: 9473 | BW22: 22251 | BX22: 88355 | BY22: 11967 | BZ22: 10788 | CA22: 415562 | CB22: 2891620 | CC22: 1179956 | CD22: 310960 | CE22: 2509477 | CF22: 2139209 | CG22: 7632 | CH22: 111664 | CI22: 3440 | CJ22: 10506 | CK22: 13987 | CL22: 36425 | CM22: 3181 | CN22: 377264 | CO22: 1510089 | CP22: 341193 | CQ22: 223793 | CR22: 1158237 | CS22: 2947 | CT22: 6971 | CU22: 44094 | CV22: 93633 | CW22: 46543 | CX22: 13196 | CY22: 269405 | CZ22: 66186 | DA22: 9863 | DB22: 17889 | DC22: 2682 | DD22: 3236 | DE22: 24258 | DF22: 67275 | DG22: 36017 | DH22: 135647 | DI22: 36108 | DJ22: 206603 | DK22: 161527 | DL22: 7584 | DM22: 76423 | DN22: 168969 | DO22: 31313 | DP22: 46300 | DQ22: 11415 | DR22: 14456 | DS22: 6930 | DT22: 6248 | DU22: 7341 | DV22: 6118 | DW22: 16003 | DX22: 9716 | DY22: 5405 | DZ22: 15763 | EA22: 19938 | EB22: 15753 | EC22: 1781 | ED22: 49451 | EE22: 5744 | EF22: 31087 | EG22: 40345 | EH22: 1017948 | EI22: 145171 | EJ22: 8383 | EK22: 185351 | EL22: 224155 | EM22: 3882 | EN22: 99941 | EO22: 55261 | EP22: 25898 | EQ22: 5698 | ER22: 241393 | ES22: 158375 | ET22: 72943 | EU22: 40531 | EV22: 34654 | EW22: 129873 | EX22: 335286 | EY22: 241442 | EZ22: 3396 | FA22: 6391 | FB22: 2442 | FC22: 8836 | FD22: 41419 | FE22: 51848 | FF22: 25603 | FG22: 2892 | FH22: 99888 | FI22: 221767 | FJ22: 175895 | FK22: 44621 | FL22: 10427 | FM22: 36509 | FN22: 26933 | FO22: 4992 | FP22: 832961 | FQ22: 725551 | FR22: 436660 | FS22: 73012 | FT22: 9130 | FU22: 29380 | FV22: 80417 | FW22: 60860 | FX22: 15711 | FY22: 34827 | FZ22: 339660 | GA22: 2129845 | GB22: 1497241 | GC22: 152088 | GD22: 7763 | GE22: 11680 | GF22: 54793 | GG22: 64626 | GH22: 36231 | GI22: 4143 | GJ22: 76346 | GK22: 303054 | GL22: 701987 | GM22: 900788 | GN22: 236527 | GO22: 631814 | GP22: 161953 | GQ22: 122722 | GR22: 25420 | GS22: 28209 | GT22: 6159 | GU22: 24858 | GV22: 31017 | GW22: 73262 | GX22: 123509 | GY22: 97984 | GZ22: 32773 | HA22: 10465 | HB22: 14715 | HC22: 2132 | HD22: 1875 | HE22: 16574 | HF22: 18442 | HG22: 2938 | HH22: 4092 | HI22: 16151 | HJ22: 2621 | HK22: 7508 | HL22: 3467 | HM22: 2681 | HN22: 9409 | HO22: 8696 | HP22: 2039 | HQ22: 3966 | HR22: 10410 | HS22: 6412 | HT22: 13073 | HU22: 6194 | HV22: 9869 | HW22: 3332 | HX22: 12534 | HY22: 13394 | HZ22: 5228 | IA22: 11287 | IB22: 6258 | IC22: 11475 | ID22: 11236 | IE22: 324103 | IF22: 13377 | IG22: 19787 | IH22: 26868 | II22: 9990 | IJ22: 15710 | IK22: 9934 | IL22: 1897 | IM22: 100769 | IN22: 67484 | IO22: 20477 | IP22: 21774 | IQ22: 14448 | IR22: 12101 | IS22: 13867 | IT22: 11511 | IU22: 14333 | IV22: 11221 | IW22: 11431 | IX22: 10135 | IY22: 16085 | IZ22: 5907 | JA22: 12465 | JB22: 29051 | JC22: 14599 | JD22: 1278 | JE22: 1924 | JF22: 2259 | JG22: 1761 | JH22: 9518 | JI22: 3859 | JJ22: 14735 | JK22: 1723 | JL22: 1764 | JM22: 3582 | JN22: 9842 | JO22: 4139 | JP22: 2404 | JQ22: 517283 | JR22: 91630 | JS22: 129168 | JT22: 40032 | JU22: 40717 | JV22: 133212 | JW22: 2645389 | JX22: 232767 | JY22: 12873 | JZ22: 6582 | KA22: 5350 | KB22: 4460 | KC22: 3856 | KD22: 7785 | KE22: 24699 | KF22: 28520 | KG22: 27186 | KH22: 4014 | KI22: 2101 | KJ22: 1313 | KK22: 11594 | KL22: 8730 | KM22: 2813 | KN22: 2700 | KO22: 4613 | KP22: 2418 | KQ22: 2177 | KR22: 3624 | KS22: 7709 | KT22: 12794 | KU22: 2085 | KV22: 19949 | KW22: 16698 | KX22: 5963 | KY22: 4089 | KZ22: 7827 | LA22: 5489 | LB22: 9570 | LC22: 1199 | LD22: 11716 | LE22: 10202 | LF22: 1707 | LG22: 1617 | LH22: 5881 | LI22: 4369 | LJ22: 6845 | LK22: 70556 | LL22: 30408 | LM22: 107462 | LN22: 60360 | LO22: 5350 | LP22: 117410 | LQ22: 13093 | LR22: 8468 | LS22: 1906 | LT22: 6120 | LU22: 2439 | LV22: 8724 | LW22: 1815 | LX22: 8927 | LY22: 4090 | LZ22: 1563 | MA22: 745 | MB22: 1868 | MC22: 2404 | MD22: 1131 | ME22: 2628 | MF22: 3388 | MG22: 5855 | MH22: 37827 | MI22: 2761 | MJ22: 220118 | MK22: 4322 | ML22: 10602 | MM22: 2129 | MN22: 5251 | MO22: 6080 | MP22: 2319 | MQ22: 14187 | MR22: 4490 | MS22: 1972 | MT22: 1714 | MU22: 3777 | MV22: 4684 | MW22: 4225 | MX22: 4877 | MY22: 3760 | MZ22: 2461 | NA22: 3144 | NB22: 2536 | NC22: 2664 | ND22: 1702 | NE22: 2377 | NF22: 1733 | NG22: 6978 | NH22: 4979 | NI22: 180920 | NJ22: 7406 | NK22: 3530 | NL22: 13472 | NM22: 11134 | NN22: 9627 | NO22: 6844 | NP22: 4555 | NQ22: 3815 | NR22: 2276 | NS22: 5959 | NT22: 3767 | NU22: 7824 | NV22: 2300 | NW22: 2785 | NX22: 7690 | NY22: 4123 | NZ22: 5612 | OA22: 22367 | OB22: 337790 | OC22: 14464 | OD22: 5000 | OE22: 4354 | OF22: 4304 | OG22: 2629 | OH22: 2641 | OI22: 3945 | OJ22: 14954 | OK22: 6318 | OL22: 9462 | OM22: 4899 | ON22: 3709 | OO22: 3072 | OP22: 11213 | OQ22: 1917 | OR22: 6211 | OS22: 1946 | OT22: 4739 | OU22: 2946 | OV22: 3877 | OW22: 2318 | OX22: 2597 | OY22: 1910 | OZ22: 1364 | PA22: 1556 | PB22: 1690 | PC22: 1477 | PD22: 4410 | PE22: 5707 | PF22: 9379 | PG22: 3744 | PH22: 10659 | PI22: 2581 | PJ22: 2027 | PK22: 585 | PL22: 7425 | PM22: 7219 | PN22: 130263 | PO22: 5398 | PP22: 3983 | PQ22: 12044 | PR22: 2689 | PS22: 2372 | PT22: 2121 | PU22: 9478 | PV22: 7657 | PW22: 4733 | PX22: 2923 | PY22: 6274 | PZ22: 14653 | QA22: 6342 | QB22: 4681 | QC22: 3053 | QD22: 2459 | QE22: 11634 | QF22: 0 | QG22: 21567 | QH22: 7150 | QI22: 3658 | QJ22: 9176 | QK22: 5101 | QL22: 17130 | QM22: 10710 | QN22: 2822 | QO22: 4646 | QP22: 3846 | QQ22: 7519 | QR22: 2158 | QS22: 9313 | QT22: 7768 | QU22: 2246 | QV22: 2993 | QW22: 2715 | QX22: 2138 | QY22: 1523 | QZ22: 1601 | RA22: 2124 | RB22: 1560 | RC22: 13828 | RD22: 3101 | RE22: 2704 | RF22: 2064 | RG22: 1115 | RH22: 5897 | RI22: 17516 | RJ22: 3312 | RK22: 2395 | RL22: 6974 | RM22: 3218 | RN22: 1769 | RO22: 3287 | RP22: 2211 | RQ22: 1818 | RR22: 4818 | RS22: 6659 | RT22: 5994 | RU22: 974 | RV22: 1182 | RW22: 128773 | RX22: 5615 | RY22: 3839 | RZ22: 0 | SA22: 2116 | SB22: 4232 | SC22: 4318 | SD22: 4701 | SE22: 6626 | SF22: 25168 | SG22: 12421 | SH22: 4821 | SI22: 14638 | SJ22: 1115 | SK22: 11425 | SL22: 3849 | SM22: 3004 | SN22: 5397 | SO22: 12370 | SP22: 2957 | SQ22: 3661 | SR22: 2753 | SS22: 4417 | ST22: 5408 | SU22: 3051 | SV22: 4566 | SW22: 12911 | SX22: 4183 | SY22: 3585 | SZ22: 4826 | TA22: 9383 | TB22: 1226 | TC22: 6292 | TD22: 2141 | TE22: 2461 | TF22: 1804 | TG22: 7851 | TH22: 83030 | TI22: 23777 | TJ22: 10316 | TK22: 3521 | TL22: 3202 | TM22: 16984 | TN22: 3437 | TO22: 3891 | TP22: 7111 | TQ22: 1969 | TR22: 2749 | TS22: 3006 | TT22: 2585 | TU22: 3146 | TV22: 26753 | TW22: 9901 | TX22: 2477 | TY22: 152811 | TZ22: 3026 | UA22: 3756 | UB22: 1843 | UC22: 17731 | UD22: 7654 | UE22: 8096 | UF22: 24330 | UG22: 3311 | UH22: 3155 | UI22: 5984 | UJ22: 30927 | UK22: 2342 | UL22: 8525 | UM22: 3152 | UN22: 18511 | UO22: 5286 | UP22: 3687 | UQ22: 8908 | UR22: 8178 | US22: 3346 | UT22: 4352 | UU22: 2124 | UV22: 2264 | UW22: 932 | UX22: 1471 | UY22: 23481 | UZ22: 2018 | VA22: 1925 | VB22: 7551 | VC22: 33247 | VD22: 7762 | VE22: 3011 | VF22: 3018 | VG22: 7929 | VH22: 3036 | VI22: 2160 | VJ22: 5594 | VK22: 2654 | VL22: 2630 | VM22: 7434 | VN22: 3091 | VO22: 12015 | VP22: 4501 | VQ22: 4271 | VR22: 2092 | VS22: 12018 | VT22: 2082 | VU22: 3304 | VV22: 6229 | VW22: 2539 | VX22: 5923 | VY22: 3198 | VZ22: 2681 | WA22: 60169 | WB22: 25606 | WC22: 55404 | WD22: 1062 | WE22: 7201 | WF22: 7872 | WG22: 3948 | WH22: 6118 | WI22: 5847 | WJ22: 5946 | WK22: 8758 | WL22: 101935 | WM22: 4584 | WN22: 4752 | WO22: 72767 | WP22: 5403 | WQ22: 5710 | WR22: 6313 | WS22: 38018 | WT22: 2849 | WU22: 2591 | WV22: 7202 | WW22: 3236 | WX22: 11964 | WY22: 13092 | WZ22: 10815 | XA22: 11199 | XB22: 316617 | XC22: 319887 | XD22: 27998 | XE22: 174746 | XF22: 10015 | XG22: 2974 | XH22: 38552 | XI22: 2264 | XJ22: 21068 | XK22: 2054 | XL22: 24996 | XM22: 20315 | XN22: 5909 | XO22: 14177 | XP22: 22286 | XQ22: 7102 | XR22: 20504 | XS22: 3018 | XT22: 12948 | XU22: 2124 | XV22: 2588 | XW22: 9809 | XX22: 7587 | XY22: 14739 | XZ22: 10989 | YA22: 10677 | YB22: 3613 | YC22: 2008 | YD22: 11995 | YE22: 2780 | YF22: 4214 | YG22: 28928 | YH22: 4033 | YI22: 2614 | YJ22: 5172 | YK22: 835 | YL22: 5683 | YM22: 3029 | YN22: 2656 | YO22: 3334 | YP22: 14896 | YQ22: 13471 | YR22: 6491 | YS22: 64054 | YT22: 4762 | YU22: 7061 | YV22: 10251 | YW22: 3947 | YX22: 1965 | YY22: 3990 | YZ22: 2632 | ZA22: 9457 | ZB22: 9193 | ZC22: 2156 | ZD22: 16391 | ZE22: 147921 | ZF22: 7749 | ZG22: 2948 | ZH22: 7039 | ZI22: 18879 | ZJ22: 18628 | ZK22: 9755 | ZL22: 8222 | ZM22: 22261 | ZN22: 3270 | ZO22: 3848 | ZP22: 3842 | ZQ22: 5797 | ZR22: 14864 | ZS22: 36794 | ZT22: 22794 | ZU22: 41684 | ZV22: 3041 | ZW22: 6688 | ZX22: 5971 | ZY22: 8324 | ZZ22: 2983 | AAA22: 1576 | AAB22: 3744 | AAC22: 4177 | AAD22: 6371 | AAE22: 7182 | AAF22: 1944 | AAG22: 5248 | AAH22: 2586 | AAI22: 1463 | AAJ22: 11750 | AAK22: 8943
A23: 217 | B23: 1 | C23: X | E23: Biorec19_Sarz_CSHMS.d | F23: 61663 | G23: 553634 | H23: 48299 | I23: 27120 | J23: 34870 | K23: 4844 | L23: 66980 | M23: 51491 | N23: 21002 | O23: 195858 | P23: 72638 | Q23: 115135 | R23: 8736 | S23: 15834 | T23: 35399 | U23: 13215 | V23: 23665 | W23: 114616 | X23: 28527 | Y23: 21830 | Z23: 46488 | AA23: 746 | AB23: 1059 | AC23: 2349 | AD23: 2944 | AE23: 11820 | AF23: 76968 | AG23: 28681 | AH23: 6744 | AI23: 11473 | AJ23: 21745 | AK23: 5416 | AL23: 6507 | AM23: 20903 | AN23: 7948 | AO23: 43580 | AP23: 12895 | AQ23: 9963 | AR23: 17478 | AS23: 8958 | AT23: 5224 | AU23: 6528 | AV23: 3635 | AW23: 839332 | AX23: 8176 | AY23: 314296 | AZ23: 102083 | BA23: 143782 | BB23: 2872 | BC23: 9665 | BD23: 35872 | BE23: 2514 | BF23: 7169 | BG23: 7636 | BH23: 7283 | BI23: 1140 | BJ23: 2206 | BK23: 49005 | BL23: 2164 | BM23: 4993 | BN23: 158224 | BO23: 124817 | BP23: 25575 | BQ23: 3692 | BR23: 19555 | BS23: 34944 | BT23: 4799247 | BU23: 69497 | BV23: 9104 | BW23: 21029 | BX23: 81570 | BY23: 11283 | BZ23: 9777 | CA23: 380231 | CB23: 2775047 | CC23: 1119046 | CD23: 281412 | CE23: 2379911 | CF23: 2065618 | CG23: 7219 | CH23: 101374 | CI23: 3134 | CJ23: 9744 | CK23: 13117 | CL23: 33313 | CM23: 2957 | CN23: 350852 | CO23: 1462242 | CP23: 335130 | CQ23: 216640 | CR23: 1067109 | CS23: 3119 | CT23: 4063 | CU23: 38875 | CV23: 90348 | CW23: 43226 | CX23: 12067 | CY23: 248811 | CZ23: 62144 | DA23: 9796 | DB23: 16898 | DC23: 2719 | DD23: 3620 | DE23: 22185 | DF23: 63806 | DG23: 32972 | DH23: 123550 | DI23: 35970 | DJ23: 186645 | DK23: 157168 | DL23: 6668 | DM23: 71740 | DN23: 158068 | DO23: 30564 | DP23: 45756 | DQ23: 10822 | DR23: 14376 | DS23: 6560 | DT23: 7519 | DU23: 6596 | DV23: 5809 | DW23: 16309 | DX23: 9491 | DY23: 5252 | DZ23: 15986 | EA23: 19065 | EB23: 14290 | EC23: 2006 | ED23: 44846 | EE23: 5146 | EF23: 28126 | EG23: 39327 | EH23: 969805 | EI23: 130774 | EJ23: 8029 | EK23: 168747 | EL23: 208026 | EM23: 3894 | EN23: 90255 | EO23: 52525 | EP23: 24977 | EQ23: 4634 | ER23: 223376 | ES23: 143059 | ET23: 65588 | EU23: 38918 | EV23: 28518 | EW23: 120311 | EX23: 305684 | EY23: 218778 | EZ23: 2959 | FA23: 5997 | FB23: 2494 | FC23: 8726 | FD23: 40793 | FE23: 50901 | FF23: 23718 | FG23: 1750 | FH23: 99195 | FI23: 215208 | FJ23: 167498 | FK23: 40788 | FL23: 9755 | FM23: 34188 | FN23: 25440 | FO23: 4758 | FP23: 804890 | FQ23: 704919 | FR23: 414724 | FS23: 68385 | FT23: 7236 | FU23: 28721 | FV23: 77268 | FW23: 58198 | FX23: 14388 | FY23: 34082 | FZ23: 320611 | GA23: 2068527 | GB23: 1412632 | GC23: 140494 | GD23: 6980 | GE23: 11468 | GF23: 52282 | GG23: 61632 | GH23: 35051 | GI23: 3045 | GJ23: 72228 | GK23: 285595 | GL23: 674838 | GM23: 876701 | GN23: 224269 | GO23: 615189 | GP23: 150797 | GQ23: 149833 | GR23: 22980 | GS23: 27497 | GT23: 6097 | GU23: 25348 | GV23: 31445 | GW23: 69840 | GX23: 120068 | GY23: 94714 | GZ23: 30824 | HA23: 8770 | HB23: 14485 | HC23: 3107 | HD23: 2225 | HE23: 16168 | HF23: 16323 | HG23: 2744 | HH23: 4026 | HI23: 11762 | HJ23: 1486 | HK23: 4778 | HL23: 3536 | HM23: 3805 | HN23: 6677 | HO23: 8337 | HP23: 1898 | HQ23: 3392 | HR23: 9811 | HS23: 5960 | HT23: 12155 | HU23: 5905 | HV23: 7623 | HW23: 2356 | HX23: 11772 | HY23: 12988 | HZ23: 4972 | IA23: 10653 | IB23: 6022 | IC23: 10942 | ID23: 10514 | IE23: 319346 | IF23: 12882 | IG23: 18213 | IH23: 26411 | II23: 8939 | IJ23: 14361 | IK23: 11561 | IL23: 1754 | IM23: 95793 | IN23: 65844 | IO23: 20871 | IP23: 14536 | IQ23: 14137 | IR23: 11599 | IS23: 13092 | IT23: 10604 | IU23: 13130 | IV23: 11073 | IW23: 8094 | IX23: 6295 | IY23: 10864 | IZ23: 2934 | JA23: 13146 | JB23: 28743 | JC23: 14126 | JD23: 1489 | JE23: 1668 | JF23: 2580 | JG23: 1645 | JH23: 8937 | JI23: 2453 | JJ23: 15069 | JK23: 1191 | JL23: 1588 | JM23: 3538 | JN23: 8380 | JO23: 3461 | JP23: 2488 | JQ23: 535084 | JR23: 83881 | JS23: 119705 | JT23: 37075 | JU23: 34614 | JV23: 139845 | JW23: 2535287 | JX23: 236484 | JY23: 12685 | JZ23: 6551 | KA23: 5420 | KB23: 4152 | KC23: 4581 | KD23: 7953 | KE23: 23384 | KF23: 26287 | KG23: 24444 | KH23: 4679 | KI23: 1108 | KJ23: 1313 | KK23: 12000 | KL23: 9239 | KM23: 2798 | KN23: 3400 | KO23: 4626 | KP23: 2535 | KQ23: 1841 | KR23: 3383 | KS23: 7639 | KT23: 12118 | KU23: 2311 | KV23: 20360 | KW23: 16575 | KX23: 5702 | KY23: 3557 | KZ23: 7771 | LA23: 5582 | LB23: 11217 | LC23: 1335 | LD23: 10269 | LE23: 9779 | LF23: 1427 | LG23: 1356 | LH23: 4978 | LI23: 3588 | LJ23: 965130 | LK23: 20094 | LL23: 29259 | LM23: 117394 | LN23: 123447 | LO23: 5216 | LP23: 151538 | LQ23: 11943 | LR23: 6705 | LS23: 1792 | LT23: 7362 | LU23: 1830 | LV23: 6959 | LW23: 2483 | LX23: 11521 | LY23: 3752 | LZ23: 1886 | MA23: 962 | MB23: 1721 | MC23: 3906 | MD23: 964 | ME23: 3238 | MF23: 1734 | MG23: 5957 | MH23: 6436 | MI23: 2391 | MJ23: 197911 | MK23: 4081 | ML23: 6260 | MM23: 1527 | MN23: 3294 | MO23: 5434 | MP23: 1863 | MQ23: 15480 | MR23: 3619 | MS23: 1337 | MT23: 1453 | MU23: 4650 | MV23: 3705 | MW23: 4545 | MX23: 4669 | MY23: 3287 | MZ23: 2307 | NA23: 3570 | NB23: 2450 | NC23: 2792 | ND23: 1713 | NE23: 2229 | NF23: 1924 | NG23: 6272 | NH23: 6116 | NI23: 171306 | NJ23: 7132 | NK23: 3131 | NL23: 12086 | NM23: 10264 | NN23: 10041 | NO23: 5923 | NP23: 7220 | NQ23: 4281 | NR23: 2213 | NS23: 5493 | NT23: 3340 | NU23: 4455 | NV23: 2341 | NW23: 2587 | NX23: 3329 | NY23: 3821 | NZ23: 5796 | OA23: 21064 | OB23: 333978 | OC23: 14189 | OD23: 4249 | OE23: 5407 | OF23: 4777 | OG23: 2954 | OH23: 2988 | OI23: 3262 | OJ23: 14723 | OK23: 7058 | OL23: 7092 | OM23: 4295 | ON23: 3172 | OO23: 2671 | OP23: 7600 | OQ23: 1435 | OR23: 5709 | OS23: 1927 | OT23: 3600 | OU23: 1604 | OV23: 4004 | OW23: 2338 | OX23: 1786 | OY23: 1738 | OZ23: 1539 | PA23: 1339 | PB23: 1417 | PC23: 592 | PD23: 3792 | PE23: 4247 | PF23: 3178 | PG23: 3400 | PH23: 9795 | PI23: 1913 | PJ23: 2203 | PK23: 7800 | PL23: 7137 | PM23: 7874 | PN23: 128222 | PO23: 4774 | PP23: 2763 | PQ23: 11430 | PR23: 2768 | PS23: 2591 | PT23: 1833 | PU23: 9108 | PV23: 7027 | PW23: 5779 | PX23: 3276 | PY23: 5420 | PZ23: 18479 | QA23: 5538 | QB23: 5078 | QC23: 2303 | QD23: 1964 | QE23: 10985 | QF23: 0 | QG23: 21570 | QH23: 8391 | QI23: 4111 | QJ23: 9653 | QK23: 5293 | QL23: 15909 | QM23: 6651 | QN23: 3178 | QO23: 5471 | QP23: 6031 | QQ23: 6575 | QR23: 1579 | QS23: 10254 | QT23: 6638 | QU23: 2138 | QV23: 2355 | QW23: 1786 | QX23: 2483 | QY23: 1114 | QZ23: 1230 | RA23: 2091 | RB23: 1455 | RC23: 12115 | RD23: 2497 | RE23: 2497 | RF23: 2060 | RG23: 1727 | RH23: 4053 | RI23: 13459 | RJ23: 5314 | RK23: 1169 | RL23: 4640 | RM23: 3890 | RN23: 3389 | RO23: 2806 | RP23: 1538 | RQ23: 1348 | RR23: 4826 | RS23: 6802 | RT23: 7658 | RU23: 1261 | RV23: 1545 | RW23: 120766 | RX23: 4973 | RY23: 3362 | RZ23: 0 | SA23: 3132 | SB23: 3639 | SC23: 3988 | SD23: 4736 | SE23: 5292 | SF23: 2740 | SG23: 10523 | SH23: 3637 | SI23: 12485 | SJ23: 1281 | SK23: 10408 | SL23: 3351 | SM23: 2693 | SN23: 4601 | SO23: 10638 | SP23: 3485 | SQ23: 4234 | SR23: 2797 | SS23: 3755 | ST23: 5285 | SU23: 2597 | SV23: 4954 | SW23: 12884 | SX23: 3692 | SY23: 3239 | SZ23: 6051 | TA23: 9408 | TB23: 1068 | TC23: 6178 | TD23: 1796 | TE23: 2561 | TF23: 2942 | TG23: 25030 | TH23: 85544 | TI23: 24090 | TJ23: 10709 | TK23: 3050 | TL23: 2828 | TM23: 3674 | TN23: 3693 | TO23: 3682 | TP23: 6226 | TQ23: 1932 | TR23: 2862 | TS23: 3384 | TT23: 2616 | TU23: 2525 | TV23: 32538 | TW23: 11804 | TX23: 2466 | TY23: 167785 | TZ23: 2735 | UA23: 3852 | UB23: 2816 | UC23: 18932 | UD23: 7591 | UE23: 8316 | UF23: 26236 | UG23: 3223 | UH23: 2756 | UI23: 6073 | UJ23: 28873 | UK23: 2267 | UL23: 7655 | UM23: 3418 | UN23: 23424 | UO23: 4720 | UP23: 3841 | UQ23: 8852 | UR23: 8180 | US23: 1949 | UT23: 4523 | UU23: 1885 | UV23: 2274 | UW23: 1387 | UX23: 1494 | UY23: 19878 | UZ23: 2902 | VA23: 2083 | VB23: 8094 | VC23: 31281 | VD23: 4377 | VE23: 3234 | VF23: 2506 | VG23: 17111 | VH23: 2848 | VI23: 2147 | VJ23: 5304 | VK23: 2452 | VL23: 2546 | VM23: 7640 | VN23: 3354 | VO23: 11021 | VP23: 4438 | VQ23: 3750 | VR23: 1691 | VS23: 11981 | VT23: 2298 | VU23: 3103 | VV23: 5143 | VW23: 2044 | VX23: 5660 | VY23: 2963 | VZ23: 3005 | WA23: 54611 | WB23: 24231 | WC23: 12867 | WD23: 1169 | WE23: 5536 | WF23: 7064 | WG23: 4842 | WH23: 7782 | WI23: 4644 | WJ23: 5206 | WK23: 8184 | WL23: 97403 | WM23: 2948 | WN23: 4380 | WO23: 69937 | WP23: 4595 | WQ23: 4649 | WR23: 5599 | WS23: 35940 | WT23: 2488 | WU23: 2350 | WV23: 7324 | WW23: 3434 | WX23: 11158 | WY23: 11885 | WZ23: 8751 | XA23: 10525 | XB23: 311057 | XC23: 303630 | XD23: 33859 | XE23: 117188 | XF23: 9422 | XG23: 2578 | XH23: 35432 | XI23: 3094 | XJ23: 19826 | XK23: 2504 | XL23: 24337 | XM23: 18859 | XN23: 8009 | XO23: 12898 | XP23: 20023 | XQ23: 5984 | XR23: 28534 | XS23: 4255 | XT23: 12226 | XU23: 1913 | XV23: 2878 | XW23: 9426 | XX23: 7260 | XY23: 14381 | XZ23: 10829 | YA23: 9740 | YB23: 3219 | YC23: 1868 | YD23: 10751 | YE23: 1963 | YF23: 4029 | YG23: 25858 | YH23: 3431 | YI23: 2188 | YJ23: 5891 | YK23: 939 | YL23: 5311 | YM23: 2441 | YN23: 1356 | YO23: 2576 | YP23: 17649 | YQ23: 7556 | YR23: 5740 | YS23: 60935 | YT23: 4596 | YU23: 6473 | YV23: 12455 | YW23: 4042 | YX23: 2474 | YY23: 3529 | YZ23: 2453 | ZA23: 9803 | ZB23: 9492 | ZC23: 2786 | ZD23: 18951 | ZE23: 149136 | ZF23: 7293 | ZG23: 2859 | ZH23: 7089 | ZI23: 19737 | ZJ23: 19972 | ZK23: 9715 | ZL23: 9707 | ZM23: 22384 | ZN23: 2689 | ZO23: 3747 | ZP23: 3606 | ZQ23: 9195 | ZR23: 9763 | ZS23: 35338 | ZT23: 22908 | ZU23: 40300 | ZV23: 3188 | ZW23: 6605 | ZX23: 8468 | ZY23: 8785 | ZZ23: 4139 | AAA23: 1602 | AAB23: 3433 | AAC23: 4279 | AAD23: 3838 | AAE23: 7995 | AAF23: 2985 | AAG23: 6127 | AAH23: 2496 | AAI23: 1852 | AAJ23: 11439 | AAK23: 8667
A24: 229 | B24: 1 | C24: X | E24: Biorec20_Sarz_CSHMS.d | F24: 62276 | G24: 564243 | H24: 48833 | I24: 27132 | J24: 35386 | K24: 4912 | L24: 66945 | M24: 54121 | N24: 20904 | O24: 194806 | P24: 72031 | Q24: 119456 | R24: 9142 | S24: 15976 | T24: 36156 | U24: 12755 | V24: 23612 | W24: 116098 | X24: 28771 | Y24: 22212 | Z24: 47850 | AA24: 669 | AB24: 873 | AC24: 2100 | AD24: 2558 | AE24: 11431 | AF24: 78550 | AG24: 29903 | AH24: 7215 | AI24: 12101 | AJ24: 22106 | AK24: 5562 | AL24: 6623 | AM24: 20038 | AN24: 7774 | AO24: 41619 | AP24: 13022 | AQ24: 9899 | AR24: 17156 | AS24: 9765 | AT24: 4347 | AU24: 6312 | AV24: 3597 | AW24: 865697 | AX24: 8188 | AY24: 325323 | AZ24: 105924 | BA24: 145016 | BB24: 2487 | BC24: 9980 | BD24: 36689 | BE24: 2483 | BF24: 7127 | BG24: 7832 | BH24: 7803 | BI24: 1102 | BJ24: 2003 | BK24: 48420 | BL24: 2099 | BM24: 5272 | BN24: 161959 | BO24: 125332 | BP24: 26287 | BQ24: 3948 | BR24: 19566 | BS24: 37100 | BT24: 4857561 | BU24: 68383 | BV24: 8876 | BW24: 21090 | BX24: 82057 | BY24: 10959 | BZ24: 10323 | CA24: 385265 | CB24: 2834990 | CC24: 774936 | CD24: 295887 | CE24: 2431627 | CF24: 2101081 | CG24: 6863 | CH24: 93073 | CI24: 3510 | CJ24: 9730 | CK24: 13376 | CL24: 34289 | CM24: 3226 | CN24: 354393 | CO24: 1491055 | CP24: 337866 | CQ24: 214663 | CR24: 1103240 | CS24: 3046 | CT24: 6932 | CU24: 40450 | CV24: 93511 | CW24: 44569 | CX24: 12236 | CY24: 250165 | CZ24: 62552 | DA24: 9533 | DB24: 17023 | DC24: 2417 | DD24: 3232 | DE24: 23490 | DF24: 64487 | DG24: 34100 | DH24: 127102 | DI24: 36244 | DJ24: 190371 | DK24: 157720 | DL24: 6974 | DM24: 73180 | DN24: 157352 | DO24: 30608 | DP24: 46252 | DQ24: 10854 | DR24: 14265 | DS24: 3891 | DT24: 7087 | DU24: 7041 | DV24: 5582 | DW24: 16550 | DX24: 9631 | DY24: 5265 | DZ24: 15758 | EA24: 19432 | EB24: 14967 | EC24: 2354 | ED24: 44909 | EE24: 5998 | EF24: 30364 | EG24: 39214 | EH24: 993032 | EI24: 133986 | EJ24: 7934 | EK24: 172933 | EL24: 211614 | EM24: 3911 | EN24: 92755 | EO24: 52902 | EP24: 23782 | EQ24: 5437 | ER24: 226936 | ES24: 146414 | ET24: 69003 | EU24: 38058 | EV24: 31516 | EW24: 122358 | EX24: 312257 | EY24: 222266 | EZ24: 2949 | FA24: 5365 | FB24: 2853 | FC24: 8713 | FD24: 41494 | FE24: 51912 | FF24: 22982 | FG24: 1637 | FH24: 97563 | FI24: 217912 | FJ24: 172851 | FK24: 41425 | FL24: 10579 | FM24: 34499 | FN24: 25926 | FO24: 4937 | FP24: 816610 | FQ24: 720359 | FR24: 423970 | FS24: 67639 | FT24: 6905 | FU24: 28965 | FV24: 79054 | FW24: 58536 | FX24: 14954 | FY24: 34511 | FZ24: 331500 | GA24: 2098978 | GB24: 1466817 | GC24: 144740 | GD24: 7283 | GE24: 11340 | GF24: 54834 | GG24: 64204 | GH24: 36061 | GI24: 3486 | GJ24: 74479 | GK24: 295307 | GL24: 687934 | GM24: 887186 | GN24: 231646 | GO24: 626786 | GP24: 153446 | GQ24: 129370 | GR24: 23831 | GS24: 26788 | GT24: 5893 | GU24: 24439 | GV24: 30332 | GW24: 71462 | GX24: 123171 | GY24: 98145 | GZ24: 32652 | HA24: 8436 | HB24: 14407 | HC24: 2788 | HD24: 2419 | HE24: 17023 | HF24: 17264 | HG24: 2679 | HH24: 3953 | HI24: 13094 | HJ24: 1323 | HK24: 4752 | HL24: 3639 | HM24: 3595 | HN24: 6304 | HO24: 6534 | HP24: 2014 | HQ24: 3388 | HR24: 10266 | HS24: 5564 | HT24: 12046 | HU24: 4348 | HV24: 7618 | HW24: 2547 | HX24: 10940 | HY24: 13075 | HZ24: 5009 | IA24: 10615 | IB24: 5710 | IC24: 10897 | ID24: 10324 | IE24: 321770 | IF24: 12815 | IG24: 19047 | IH24: 28912 | II24: 10061 | IJ24: 13826 | IK24: 14521 | IL24: 2002 | IM24: 94357 | IN24: 65830 | IO24: 19964 | IP24: 14373 | IQ24: 14486 | IR24: 12232 | IS24: 13861 | IT24: 11219 | IU24: 14092 | IV24: 10865 | IW24: 7865 | IX24: 6318 | IY24: 10236 | IZ24: 2713 | JA24: 13523 | JB24: 29181 | JC24: 13919 | JD24: 2178 | JE24: 1639 | JF24: 2404 | JG24: 1769 | JH24: 8862 | JI24: 2574 | JJ24: 15003 | JK24: 1493 | JL24: 1660 | JM24: 3825 | JN24: 8933 | JO24: 3637 | JP24: 2358 | JQ24: 546541 | JR24: 84315 | JS24: 120597 | JT24: 34020 | JU24: 38024 | JV24: 141595 | JW24: 2530900 | JX24: 245240 | JY24: 11662 | JZ24: 6871 | KA24: 5210 | KB24: 4535 | KC24: 4134 | KD24: 7712 | KE24: 23676 | KF24: 26349 | KG24: 23928 | KH24: 4449 | KI24: 1512 | KJ24: 1376 | KK24: 12181 | KL24: 8917 | KM24: 2791 | KN24: 3190 | KO24: 4406 | KP24: 2020 | KQ24: 1970 | KR24: 3861 | KS24: 7781 | KT24: 11849 | KU24: 3753 | KV24: 19913 | KW24: 17874 | KX24: 6382 | KY24: 3606 | KZ24: 8088 | LA24: 5603 | LB24: 11238 | LC24: 1478 | LD24: 10733 | LE24: 9913 | LF24: 1472 | LG24: 1430 | LH24: 4585 | LI24: 4115 | LJ24: 5012 | LK24: 68250 | LL24: 9622 | LM24: 127750 | LN24: 129354 | LO24: 5436 | LP24: 80085 | LQ24: 11910 | LR24: 9255 | LS24: 1163 | LT24: 7065 | LU24: 1573 | LV24: 8081 | LW24: 2264 | LX24: 10392 | LY24: 3589 | LZ24: 1911 | MA24: 1190 | MB24: 1782 | MC24: 5014 | MD24: 1093 | ME24: 2895 | MF24: 1985 | MG24: 5634 | MH24: 32508 | MI24: 2561 | MJ24: 197509 | MK24: 3938 | ML24: 6622 | MM24: 1516 | MN24: 4297 | MO24: 5959 | MP24: 1659 | MQ24: 13165 | MR24: 3571 | MS24: 1375 | MT24: 1509 | MU24: 4539 | MV24: 3543 | MW24: 4846 | MX24: 4562 | MY24: 4734 | MZ24: 2118 | NA24: 3261 | NB24: 2551 | NC24: 2210 | ND24: 1748 | NE24: 1261 | NF24: 1500 | NG24: 6428 | NH24: 6522 | NI24: 175526 | NJ24: 7405 | NK24: 4159 | NL24: 12214 | NM24: 10696 | NN24: 10574 | NO24: 5849 | NP24: 7845 | NQ24: 3703 | NR24: 2707 | NS24: 5892 | NT24: 3217 | NU24: 3597 | NV24: 2067 | NW24: 2708 | NX24: 7102 | NY24: 4035 | NZ24: 5370 | OA24: 21474 | OB24: 339815 | OC24: 13778 | OD24: 3700 | OE24: 5545 | OF24: 4393 | OG24: 2831 | OH24: 2827 | OI24: 2901 | OJ24: 15532 | OK24: 7023 | OL24: 7651 | OM24: 4731 | ON24: 3197 | OO24: 2645 | OP24: 15024 | OQ24: 1891 | OR24: 5551 | OS24: 1363 | OT24: 5481 | OU24: 2769 | OV24: 3891 | OW24: 1775 | OX24: 2209 | OY24: 1775 | OZ24: 1689 | PA24: 1411 | PB24: 1258 | PC24: 1394 | PD24: 3780 | PE24: 5277 | PF24: 7448 | PG24: 3345 | PH24: 9769 | PI24: 2047 | PJ24: 1857 | PK24: 6796 | PL24: 7223 | PM24: 5631 | PN24: 129724 | PO24: 5756 | PP24: 3471 | PQ24: 11443 | PR24: 2754 | PS24: 2828 | PT24: 1915 | PU24: 8339 | PV24: 7071 | PW24: 5936 | PX24: 3407 | PY24: 5785 | PZ24: 30178 | QA24: 5952 | QB24: 4689 | QC24: 2590 | QD24: 2193 | QE24: 12089 | QF24: 198099 | QG24: 23425 | QH24: 8728 | QI24: 3703 | QJ24: 10217 | QK24: 5246 | QL24: 15643 | QM24: 7466 | QN24: 3633 | QO24: 6030 | QP24: 3889 | QQ24: 12673 | QR24: 1494 | QS24: 10253 | QT24: 6498 | QU24: 3927 | QV24: 4398 | QW24: 1649 | QX24: 4629 | QY24: 1342 | QZ24: 1249 | RA24: 1962 | RB24: 1439 | RC24: 11767 | RD24: 2352 | RE24: 2417 | RF24: 1867 | RG24: 2867 | RH24: 3715 | RI24: 4782 | RJ24: 3213 | RK24: 1421 | RL24: 6126 | RM24: 2965 | RN24: 3123 | RO24: 6035 | RP24: 1545 | RQ24: 1385 | RR24: 4602 | RS24: 6933 | RT24: 7125 | RU24: 925 | RV24: 1540 | RW24: 125280 | RX24: 4851 | RY24: 3212 | RZ24: 0 | SA24: 3019 | SB24: 3487 | SC24: 4106 | SD24: 3897 | SE24: 5673 | SF24: 23225 | SG24: 10528 | SH24: 3028 | SI24: 12554 | SJ24: 1167 | SK24: 10950 | SL24: 3611 | SM24: 3045 | SN24: 2824 | SO24: 11148 | SP24: 3780 | SQ24: 3489 | SR24: 2848 | SS24: 4132 | ST24: 5297 | SU24: 2564 | SV24: 4294 | SW24: 12650 | SX24: 3747 | SY24: 3205 | SZ24: 6528 | TA24: 9399 | TB24: 1068 | TC24: 6267 | TD24: 2222 | TE24: 1673 | TF24: 3005 | TG24: 25328 | TH24: 88498 | TI24: 8335 | TJ24: 10398 | TK24: 3109 | TL24: 2993 | TM24: 24983 | TN24: 3294 | TO24: 3969 | TP24: 2827 | TQ24: 1898 | TR24: 2336 | TS24: 3338 | TT24: 2853 | TU24: 2516 | TV24: 21786 | TW24: 8516 | TX24: 2510 | TY24: 0 | TZ24: 2513 | UA24: 2936 | UB24: 2031 | UC24: 19247 | UD24: 7887 | UE24: 8601 | UF24: 26273 | UG24: 3190 | UH24: 2900 | UI24: 5744 | UJ24: 31047 | UK24: 2396 | UL24: 7930 | UM24: 3295 | UN24: 17133 | UO24: 4751 | UP24: 3300 | UQ24: 8666 | UR24: 8382 | US24: 2399 | UT24: 4580 | UU24: 1830 | UV24: 2267 | UW24: 688 | UX24: 1508 | UY24: 20286 | UZ24: 2107 | VA24: 2541 | VB24: 8636 | VC24: 29134 | VD24: 8101 | VE24: 4128 | VF24: 2414 | VG24: 7318 | VH24: 2305 | VI24: 2243 | VJ24: 5454 | VK24: 2789 | VL24: 2766 | VM24: 7547 | VN24: 3019 | VO24: 12162 | VP24: 4254 | VQ24: 3862 | VR24: 1840 | VS24: 12168 | VT24: 2175 | VU24: 2962 | VV24: 5430 | VW24: 2071 | VX24: 6307 | VY24: 3339 | VZ24: 3117 | WA24: 59944 | WB24: 24174 | WC24: 13136 | WD24: 1148 | WE24: 5912 | WF24: 7161 | WG24: 5478 | WH24: 6296 | WI24: 4700 | WJ24: 5353 | WK24: 8896 | WL24: 99826 | WM24: 6719 | WN24: 5063 | WO24: 70583 | WP24: 5222 | WQ24: 4561 | WR24: 6088 | WS24: 36500 | WT24: 2867 | WU24: 2210 | WV24: 7788 | WW24: 3354 | WX24: 12571 | WY24: 12207 | WZ24: 8818 | XA24: 11615 | XB24: 310944 | XC24: 306109 | XD24: 33015 | XE24: 61304 | XF24: 9497 | XG24: 3041 | XH24: 36848 | XI24: 2044 | XJ24: 20738 | XK24: 2042 | XL24: 24434 | XM24: 19041 | XN24: 8112 | XO24: 14184 | XP24: 20562 | XQ24: 8352 | XR24: 19733 | XS24: 4071 | XT24: 12395 | XU24: 3587 | XV24: 2016 | XW24: 9836 | XX24: 7163 | XY24: 14191 | XZ24: 6761 | YA24: 9844 | YB24: 3307 | YC24: 2101 | YD24: 10932 | YE24: 2188 | YF24: 3839 | YG24: 27268 | YH24: 3527 | YI24: 2320 | YJ24: 2880 | YK24: 780 | YL24: 5682 | YM24: 2274 | YN24: 1530 | YO24: 2470 | YP24: 4291 | YQ24: 20460 | YR24: 5788 | YS24: 61384 | YT24: 4918 | YU24: 6504 | YV24: 8260 | YW24: 4346 | YX24: 1596 | YY24: 3723 | YZ24: 2304 | ZA24: 10064 | ZB24: 8803 | ZC24: 2352 | ZD24: 18294 | ZE24: 150801 | ZF24: 7464 | ZG24: 3064 | ZH24: 7297 | ZI24: 20946 | ZJ24: 19517 | ZK24: 11487 | ZL24: 8714 | ZM24: 22238 | ZN24: 2842 | ZO24: 3985 | ZP24: 3633 | ZQ24: 8848 | ZR24: 14904 | ZS24: 36432 | ZT24: 22513 | ZU24: 41479 | ZV24: 3526 | ZW24: 6670 | ZX24: 5545 | ZY24: 8663 | ZZ24: 4487 | AAA24: 1586 | AAB24: 3973 | AAC24: 4504 | AAD24: 5974 | AAE24: 8566 | AAF24: 2616 | AAG24: 5082 | AAH24: 2959 | AAI24: 2025 | AAJ24: 11801 | AAK24: 8893
A25: 252 | B25: 1 | C25: X | E25: Biorec22_Sarz_CSHMS.d | F25: 61817 | G25: 533516 | H25: 47153 | I25: 26611 | J25: 35647 | K25: 5164 | L25: 68995 | M25: 53339 | N25: 21077 | O25: 192051 | P25: 70193 | Q25: 113720 | R25: 9007 | S25: 15729 | T25: 37945 | U25: 12701 | V25: 22521 | W25: 115092 | X25: 28487 | Y25: 11737 | Z25: 21871 | AA25: 704 | AB25: 859 | AC25: 2314 | AD25: 2599 | AE25: 10062 | AF25: 70128 | AG25: 25710 | AH25: 6093 | AI25: 10642 | AJ25: 21251 | AK25: 5746 | AL25: 6503 | AM25: 19981 | AN25: 8187 | AO25: 43978 | AP25: 12715 | AQ25: 9846 | AR25: 16661 | AS25: 8684 | AT25: 4753 | AU25: 5719 | AV25: 3302 | AW25: 817658 | AX25: 7832 | AY25: 305201 | AZ25: 99290 | BA25: 139995 | BB25: 2731 | BC25: 9345 | BD25: 35366 | BE25: 2556 | BF25: 6690 | BG25: 7847 | BH25: 7165 | BI25: 1477 | BJ25: 2237 | BK25: 46923 | BL25: 2246 | BM25: 5025 | BN25: 154486 | BO25: 115651 | BP25: 24692 | BQ25: 3873 | BR25: 18305 | BS25: 33386 | BT25: 4696407 | BU25: 66572 | BV25: 8467 | BW25: 20893 | BX25: 76967 | BY25: 10865 | BZ25: 10219 | CA25: 367231 | CB25: 2651070 | CC25: 719529 | CD25: 276389 | CE25: 2314368 | CF25: 1978666 | CG25: 6670 | CH25: 97503 | CI25: 3538 | CJ25: 9133 | CK25: 13072 | CL25: 33226 | CM25: 2893 | CN25: 333979 | CO25: 1405169 | CP25: 321155 | CQ25: 206685 | CR25: 1050470 | CS25: 2634 | CT25: 7113 | CU25: 38559 | CV25: 89604 | CW25: 41453 | CX25: 11660 | CY25: 235374 | CZ25: 57994 | DA25: 8894 | DB25: 16348 | DC25: 2417 | DD25: 18911 | DE25: 21562 | DF25: 61036 | DG25: 31950 | DH25: 118335 | DI25: 33153 | DJ25: 182478 | DK25: 146754 | DL25: 2959 | DM25: 68757 | DN25: 149191 | DO25: 29447 | DP25: 43123 | DQ25: 10337 | DR25: 13433 | DS25: 6756 | DT25: 6009 | DU25: 6439 | DV25: 5303 | DW25: 14891 | DX25: 8914 | DY25: 5237 | DZ25: 15202 | EA25: 17692 | EB25: 14419 | EC25: 1772 | ED25: 42082 | EE25: 5242 | EF25: 28307 | EG25: 37030 | EH25: 911475 | EI25: 129150 | EJ25: 7969 | EK25: 163106 | EL25: 196916 | EM25: 3917 | EN25: 90754 | EO25: 50140 | EP25: 23496 | EQ25: 3698 | ER25: 210438 | ES25: 138805 | ET25: 65643 | EU25: 35588 | EV25: 27065 | EW25: 114312 | EX25: 289280 | EY25: 211540 | EZ25: 2733 | FA25: 5594 | FB25: 2513 | FC25: 8429 | FD25: 39404 | FE25: 49783 | FF25: 23318 | FG25: 2723 | FH25: 93165 | FI25: 210473 | FJ25: 161807 | FK25: 42650 | FL25: 10331 | FM25: 33153 | FN25: 25632 | FO25: 5153 | FP25: 783465 | FQ25: 694174 | FR25: 399300 | FS25: 68857 | FT25: 6774 | FU25: 27046 | FV25: 75031 | FW25: 56129 | FX25: 14651 | FY25: 33983 | FZ25: 309615 | GA25: 2023083 | GB25: 1366084 | GC25: 139688 | GD25: 4104 | GE25: 11104 | GF25: 49757 | GG25: 59712 | GH25: 33639 | GI25: 3662 | GJ25: 71000 | GK25: 276711 | GL25: 662610 | GM25: 850494 | GN25: 219725 | GO25: 595615 | GP25: 150124 | GQ25: 139582 | GR25: 23068 | GS25: 26279 | GT25: 6212 | GU25: 24529 | GV25: 30741 | GW25: 66299 | GX25: 116503 | GY25: 91103 | GZ25: 31436 | HA25: 8843 | HB25: 13911 | HC25: 2317 | HD25: 3035 | HE25: 15816 | HF25: 16590 | HG25: 2810 | HH25: 3800 | HI25: 13064 | HJ25: 1665 | HK25: 5177 | HL25: 3299 | HM25: 2732 | HN25: 7457 | HO25: 6829 | HP25: 1986 | HQ25: 3660 | HR25: 9053 | HS25: 6004 | HT25: 11309 | HU25: 5690 | HV25: 8866 | HW25: 2706 | HX25: 11523 | HY25: 13512 | HZ25: 4948 | IA25: 11361 | IB25: 5548 | IC25: 10569 | ID25: 9333 | IE25: 304163 | IF25: 13058 | IG25: 19310 | IH25: 24766 | II25: 9335 | IJ25: 15276 | IK25: 9292 | IL25: 2044 | IM25: 90624 | IN25: 63100 | IO25: 19154 | IP25: 16066 | IQ25: 14695 | IR25: 11853 | IS25: 13929 | IT25: 10647 | IU25: 13067 | IV25: 10776 | IW25: 9432 | IX25: 7854 | IY25: 13111 | IZ25: 3680 | JA25: 12288 | JB25: 28947 | JC25: 13880 | JD25: 1411 | JE25: 2057 | JF25: 2159 | JG25: 1364 | JH25: 8713 | JI25: 2904 | JJ25: 14155 | JK25: 1564 | JL25: 2593 | JM25: 4051 | JN25: 9150 | JO25: 3352 | JP25: 2423 | JQ25: 499870 | JR25: 79785 | JS25: 115526 | JT25: 35718 | JU25: 34710 | JV25: 132685 | JW25: 2474018 | JX25: 223836 | JY25: 11405 | JZ25: 6638 | KA25: 5237 | KB25: 4061 | KC25: 3158 | KD25: 7187 | KE25: 23455 | KF25: 24870 | KG25: 24699 | KH25: 3551 | KI25: 1451 | KJ25: 1049 | KK25: 11329 | KL25: 6679 | KM25: 2740 | KN25: 3075 | KO25: 4007 | KP25: 2206 | KQ25: 1693 | KR25: 3617 | KS25: 7519 | KT25: 14910 | KU25: 3427 | KV25: 19361 | KW25: 16649 | KX25: 6153 | KY25: 3796 | KZ25: 7973 | LA25: 5242 | LB25: 10401 | LC25: 1423 | LD25: 10861 | LE25: 10534 | LF25: 1573 | LG25: 1625 | LH25: 4991 | LI25: 4466 | LJ25: 881458 | LK25: 73045 | LL25: 30024 | LM25: 156256 | LN25: 124949 | LO25: 5273 | LP25: 156492 | LQ25: 12337 | LR25: 8683 | LS25: 1460 | LT25: 6564 | LU25: 2296 | LV25: 6962 | LW25: 2337 | LX25: 8736 | LY25: 3400 | LZ25: 2144 | MA25: 1094 | MB25: 1944 | MC25: 2841 | MD25: 1159 | ME25: 2619 | MF25: 2061 | MG25: 5493 | MH25: 4528 | MI25: 2138 | MJ25: 197336 | MK25: 4406 | ML25: 7483 | MM25: 1953 | MN25: 5208 | MO25: 5946 | MP25: 1964 | MQ25: 13920 | MR25: 4741 | MS25: 1314 | MT25: 1400 | MU25: 3854 | MV25: 3500 | MW25: 4303 | MX25: 4362 | MY25: 4752 | MZ25: 2299 | NA25: 2830 | NB25: 2145 | NC25: 2356 | ND25: 1738 | NE25: 1083 | NF25: 1594 | NG25: 6781 | NH25: 5757 | NI25: 165395 | NJ25: 6884 | NK25: 2868 | NL25: 12970 | NM25: 10806 | NN25: 9973 | NO25: 5943 | NP25: 7404 | NQ25: 4281 | NR25: 2264 | NS25: 4675 | NT25: 3344 | NU25: 5319 | NV25: 2326 | NW25: 2858 | NX25: 7920 | NY25: 3975 | NZ25: 5478 | OA25: 21690 | OB25: 325458 | OC25: 14345 | OD25: 4944 | OE25: 5662 | OF25: 4690 | OG25: 2765 | OH25: 2515 | OI25: 2875 | OJ25: 15774 | OK25: 7344 | OL25: 8262 | OM25: 5068 | ON25: 3418 | OO25: 2314 | OP25: 6318 | OQ25: 1736 | OR25: 5963 | OS25: 1690 | OT25: 3133 | OU25: 2252 | OV25: 3485 | OW25: 1718 | OX25: 2071 | OY25: 1759 | OZ25: 1576 | PA25: 1455 | PB25: 1335 | PC25: 1618 | PD25: 3840 | PE25: 4969 | PF25: 3836 | PG25: 3601 | PH25: 9228 | PI25: 2238 | PJ25: 1828 | PK25: 579 | PL25: 7047 | PM25: 7412 | PN25: 121352 | PO25: 5433 | PP25: 3579 | PQ25: 12375 | PR25: 2705 | PS25: 2484 | PT25: 1686 | PU25: 8779 | PV25: 6530 | PW25: 4947 | PX25: 3432 | PY25: 5880 | PZ25: 22787 | QA25: 6103 | QB25: 5031 | QC25: 2242 | QD25: 2252 | QE25: 10825 | QF25: 0 | QG25: 22913 | QH25: 8408 | QI25: 3380 | QJ25: 9528 | QK25: 5066 | QL25: 16147 | QM25: 8960 | QN25: 3366 | QO25: 4748 | QP25: 3217 | QQ25: 7022 | QR25: 1619 | QS25: 9464 | QT25: 7520 | QU25: 2496 | QV25: 2665 | QW25: 1791 | QX25: 2036 | QY25: 1285 | QZ25: 973 | RA25: 1770 | RB25: 1206 | RC25: 10663 | RD25: 2330 | RE25: 2882 | RF25: 2202 | RG25: 1567 | RH25: 3453 | RI25: 13453 | RJ25: 3263 | RK25: 1285 | RL25: 5349 | RM25: 3212 | RN25: 2651 | RO25: 5728 | RP25: 1500 | RQ25: 1300 | RR25: 4631 | RS25: 5980 | RT25: 6410 | RU25: 1105 | RV25: 1490 | RW25: 123160 | RX25: 4829 | RY25: 3320 | RZ25: 0 | SA25: 2938 | SB25: 3914 | SC25: 3826 | SD25: 4288 | SE25: 5673 | SF25: 22502 | SG25: 11064 | SH25: 3859 | SI25: 12731 | SJ25: 1201 | SK25: 10712 | SL25: 2783 | SM25: 2433 | SN25: 2909 | SO25: 4135 | SP25: 5179 | SQ25: 5245 | SR25: 2670 | SS25: 4196 | ST25: 5249 | SU25: 3001 | SV25: 5197 | SW25: 11825 | SX25: 3245 | SY25: 3662 | SZ25: 6058 | TA25: 9460 | TB25: 901 | TC25: 6208 | TD25: 1964 | TE25: 1714 | TF25: 2919 | TG25: 24464 | TH25: 80758 | TI25: 24936 | TJ25: 10511 | TK25: 3242 | TL25: 3102 | TM25: 24139 | TN25: 2696 | TO25: 3636 | TP25: 6928 | TQ25: 1740 | TR25: 2379 | TS25: 3551 | TT25: 1952 | TU25: 2696 | TV25: 27820 | TW25: 10204 | TX25: 2542 | TY25: 0 | TZ25: 2796 | UA25: 2633 | UB25: 2663 | UC25: 18242 | UD25: 8162 | UE25: 7880 | UF25: 26019 | UG25: 3320 | UH25: 3291 | UI25: 5723 | UJ25: 15418 | UK25: 2364 | UL25: 8817 | UM25: 3381 | UN25: 19242 | UO25: 5195 | UP25: 2876 | UQ25: 8934 | UR25: 8355 | US25: 1792 | UT25: 4611 | UU25: 1798 | UV25: 2291 | UW25: 428 | UX25: 1490 | UY25: 22329 | UZ25: 2314 | VA25: 1882 | VB25: 7568 | VC25: 28549 | VD25: 7270 | VE25: 3099 | VF25: 2660 | VG25: 16211 | VH25: 2617 | VI25: 2290 | VJ25: 5514 | VK25: 2230 | VL25: 2806 | VM25: 8757 | VN25: 2827 | VO25: 11431 | VP25: 4292 | VQ25: 3350 | VR25: 1742 | VS25: 11213 | VT25: 1878 | VU25: 3179 | VV25: 5662 | VW25: 2087 | VX25: 5394 | VY25: 2643 | VZ25: 2983 | WA25: 53431 | WB25: 21767 | WC25: 12220 | WD25: 1013 | WE25: 105724 | WF25: 6795 | WG25: 7784 | WH25: 6464 | WI25: 5504 | WJ25: 4961 | WK25: 8489 | WL25: 95342 | WM25: 3488 | WN25: 4539 | WO25: 65558 | WP25: 5247 | WQ25: 4420 | WR25: 5665 | WS25: 36292 | WT25: 2734 | WU25: 2375 | WV25: 6753 | WW25: 2973 | WX25: 11209 | WY25: 32576 | WZ25: 8696 | XA25: 11122 | XB25: 305627 | XC25: 305830 | XD25: 6641 | XE25: 41483 | XF25: 9461 | XG25: 2952 | XH25: 34322 | XI25: 2070 | XJ25: 19368 | XK25: 1720 | XL25: 24126 | XM25: 17464 | XN25: 7407 | XO25: 13406 | XP25: 18494 | XQ25: 7725 | XR25: 19010 | XS25: 4207 | XT25: 11784 | XU25: 2361 | XV25: 2778 | XW25: 8785 | XX25: 6674 | XY25: 13834 | XZ25: 6912 | YA25: 9578 | YB25: 3073 | YC25: 1910 | YD25: 10490 | YE25: 2884 | YF25: 3758 | YG25: 26394 | YH25: 2176 | YI25: 2443 | YJ25: 3162 | YK25: 870 | YL25: 5811 | YM25: 2392 | YN25: 1825 | YO25: 2788 | YP25: 4145 | YQ25: 12701 | YR25: 5980 | YS25: 57873 | YT25: 4914 | YU25: 7077 | YV25: 7950 | YW25: 4199 | YX25: 1858 | YY25: 3537 | YZ25: 2219 | ZA25: 10125 | ZB25: 8974 | ZC25: 2325 | ZD25: 15341 | ZE25: 142066 | ZF25: 10065 | ZG25: 2804 | ZH25: 6849 | ZI25: 19399 | ZJ25: 19397 | ZK25: 16968 | ZL25: 8503 | ZM25: 22176 | ZN25: 2076 | ZO25: 3754 | ZP25: 3628 | ZQ25: 6021 | ZR25: 12601 | ZS25: 34553 | ZT25: 23187 | ZU25: 38268 | ZV25: 3541 | ZW25: 6020 | ZX25: 9067 | ZY25: 8255 | ZZ25: 3967 | AAA25: 1302 | AAB25: 3821 | AAC25: 4048 | AAD25: 4024 | AAE25: 8198 | AAF25: 2832 | AAG25: 4453 | AAH25: 2093 | AAI25: 1479 | AAJ25: 10833 | AAK25: 7992
A26: 265 | B26: 1 | C26: X | E26: Biorec23_Sarz_CSHMS.d | F26: 60485 | G26: 545942 | H26: 48236 | I26: 27732 | J26: 31388 | K26: 4336 | L26: 73443 | M26: 47201 | N26: 21350 | O26: 185481 | P26: 69288 | Q26: 116648 | R26: 9199 | S26: 16213 | T26: 30882 | U26: 13022 | V26: 22759 | W26: 115408 | X26: 27743 | Y26: 9262 | Z26: 22257 | AA26: 579 | AB26: 931 | AC26: 2165 | AD26: 2617 | AE26: 10710 | AF26: 70011 | AG26: 27684 | AH26: 6419 | AI26: 10770 | AJ26: 19979 | AK26: 5123 | AL26: 5963 | AM26: 19842 | AN26: 7139 | AO26: 43587 | AP26: 10982 | AQ26: 8067 | AR26: 14488 | AS26: 8596 | AT26: 4169 | AU26: 5178 | AV26: 3325 | AW26: 831732 | AX26: 7309 | AY26: 305882 | AZ26: 98956 | BA26: 136019 | BB26: 2666 | BC26: 9222 | BD26: 34721 | BE26: 2531 | BF26: 7185 | BG26: 7858 | BH26: 7102 | BI26: 1684 | BJ26: 2109 | BK26: 47227 | BL26: 2239 | BM26: 4985 | BN26: 151130 | BO26: 116573 | BP26: 24559 | BQ26: 3326 | BR26: 19317 | BS26: 34906 | BT26: 4703039 | BU26: 65261 | BV26: 8213 | BW26: 19844 | BX26: 79677 | BY26: 10676 | BZ26: 9648 | CA26: 362260 | CB26: 2729611 | CC26: 735033 | CD26: 277087 | CE26: 2345041 | CF26: 2022070 | CG26: 6901 | CH26: 98355 | CI26: 3488 | CJ26: 9257 | CK26: 12673 | CL26: 32458 | CM26: 2885 | CN26: 338053 | CO26: 1438922 | CP26: 327264 | CQ26: 207030 | CR26: 1039119 | CS26: 3276 | CT26: 4397 | CU26: 37029 | CV26: 87615 | CW26: 41343 | CX26: 12006 | CY26: 241081 | CZ26: 57962 | DA26: 8549 | DB26: 16146 | DC26: 2649 | DD26: 2612 | DE26: 21184 | DF26: 59508 | DG26: 31616 | DH26: 121064 | DI26: 33741 | DJ26: 181070 | DK26: 151636 | DL26: 6619 | DM26: 64866 | DN26: 148309 | DO26: 29230 | DP26: 42047 | DQ26: 10294 | DR26: 14049 | DS26: 6508 | DT26: 7728 | DU26: 6505 | DV26: 5339 | DW26: 15885 | DX26: 9264 | DY26: 5109 | DZ26: 14279 | EA26: 18100 | EB26: 13492 | EC26: 1814 | ED26: 41829 | EE26: 4799 | EF26: 27902 | EG26: 38780 | EH26: 971987 | EI26: 125289 | EJ26: 7301 | EK26: 163384 | EL26: 197380 | EM26: 3641 | EN26: 85442 | EO26: 49624 | EP26: 22688 | EQ26: 4600 | ER26: 212540 | ES26: 136441 | ET26: 63904 | EU26: 36350 | EV26: 28903 | EW26: 113787 | EX26: 287946 | EY26: 208870 | EZ26: 2555 | FA26: 5082 | FB26: 2693 | FC26: 8318 | FD26: 40108 | FE26: 49921 | FF26: 21352 | FG26: 1510 | FH26: 94421 | FI26: 213807 | FJ26: 164438 | FK26: 37737 | FL26: 10315 | FM26: 33480 | FN26: 25189 | FO26: 5582 | FP26: 783736 | FQ26: 692991 | FR26: 404127 | FS26: 65891 | FT26: 6838 | FU26: 26289 | FV26: 72464 | FW26: 56449 | FX26: 13248 | FY26: 30895 | FZ26: 314197 | GA26: 2023437 | GB26: 1394009 | GC26: 134685 | GD26: 6955 | GE26: 11039 | GF26: 50430 | GG26: 60080 | GH26: 34482 | GI26: 3293 | GJ26: 67414 | GK26: 280537 | GL26: 659788 | GM26: 852206 | GN26: 218376 | GO26: 604157 | GP26: 149849 | GQ26: 149439 | GR26: 20373 | GS26: 25795 | GT26: 5853 | GU26: 23527 | GV26: 29380 | GW26: 66234 | GX26: 115019 | GY26: 89666 | GZ26: 28438 | HA26: 7841 | HB26: 12281 | HC26: 2834 | HD26: 1670 | HE26: 15940 | HF26: 15918 | HG26: 2757 | HH26: 3838 | HI26: 10361 | HJ26: 1083 | HK26: 3626 | HL26: 3541 | HM26: 4058 | HN26: 4994 | HO26: 6149 | HP26: 1469 | HQ26: 2818 | HR26: 9530 | HS26: 5303 | HT26: 11308 | HU26: 5283 | HV26: 6581 | HW26: 1866 | HX26: 9774 | HY26: 11694 | HZ26: 4791 | IA26: 10225 | IB26: 6010 | IC26: 10793 | ID26: 9425 | IE26: 306794 | IF26: 11744 | IG26: 18670 | IH26: 25986 | II26: 8916 | IJ26: 10512 | IK26: 10550 | IL26: 1553 | IM26: 92268 | IN26: 61530 | IO26: 19097 | IP26: 12307 | IQ26: 13672 | IR26: 10937 | IS26: 12788 | IT26: 10447 | IU26: 12102 | IV26: 10323 | IW26: 7027 | IX26: 4935 | IY26: 7813 | IZ26: 2285 | JA26: 12107 | JB26: 29126 | JC26: 13030 | JD26: 1597 | JE26: 1707 | JF26: 2333 | JG26: 1472 | JH26: 8992 | JI26: 2721 | JJ26: 14261 | JK26: 1546 | JL26: 2106 | JM26: 3544 | JN26: 7387 | JO26: 3227 | JP26: 2579 | JQ26: 505437 | JR26: 81342 | JS26: 113146 | JT26: 34791 | JU26: 33674 | JV26: 132904 | JW26: 2466927 | JX26: 223903 | JY26: 11612 | JZ26: 6274 | KA26: 5376 | KB26: 3513 | KC26: 3130 | KD26: 7527 | KE26: 23361 | KF26: 24579 | KG26: 21443 | KH26: 4682 | KI26: 1301 | KJ26: 1297 | KK26: 11113 | KL26: 8607 | KM26: 2367 | KN26: 3035 | KO26: 4552 | KP26: 1609 | KQ26: 1717 | KR26: 4052 | KS26: 7696 | KT26: 15987 | KU26: 3909 | KV26: 20443 | KW26: 17188 | KX26: 6209 | KY26: 3653 | KZ26: 8775 | LA26: 5358 | LB26: 11458 | LC26: 1077 | LD26: 10300 | LE26: 9838 | LF26: 1195 | LG26: 1396 | LH26: 4650 | LI26: 3567 | LJ26: 984109 | LK26: 22027 | LL26: 7309 | LM26: 116337 | LN26: 44838 | LO26: 5310 | LP26: 153184 | LQ26: 10477 | LR26: 8265 | LS26: 1130 | LT26: 6691 | LU26: 2410 | LV26: 6831 | LW26: 2671 | LX26: 9118 | LY26: 3427 | LZ26: 2442 | MA26: 1085 | MB26: 1280 | MC26: 6327 | MD26: 1097 | ME26: 3180 | MF26: 3108 | MG26: 5623 | MH26: 6180 | MI26: 2133 | MJ26: 170909 | MK26: 3669 | ML26: 4825 | MM26: 1411 | MN26: 4649 | MO26: 5080 | MP26: 1467 | MQ26: 15483 | MR26: 3281 | MS26: 1382 | MT26: 975 | MU26: 4576 | MV26: 2606 | MW26: 5462 | MX26: 4111 | MY26: 4102 | MZ26: 2026 | NA26: 3312 | NB26: 2208 | NC26: 2571 | ND26: 1838 | NE26: 1994 | NF26: 1707 | NG26: 5747 | NH26: 7924 | NI26: 167721 | NJ26: 5432 | NK26: 3994 | NL26: 11045 | NM26: 9716 | NN26: 10206 | NO26: 5267 | NP26: 4167 | NQ26: 3974 | NR26: 2405 | NS26: 5517 | NT26: 3216 | NU26: 3731 | NV26: 2115 | NW26: 2682 | NX26: 7211 | NY26: 3748 | NZ26: 5145 | OA26: 22720 | OB26: 328446 | OC26: 13357 | OD26: 3895 | OE26: 5128 | OF26: 4838 | OG26: 2693 | OH26: 2419 | OI26: 2301 | OJ26: 15063 | OK26: 6884 | OL26: 6084 | OM26: 4207 | ON26: 3084 | OO26: 2623 | OP26: 7143 | OQ26: 1804 | OR26: 5932 | OS26: 1675 | OT26: 5856 | OU26: 2973 | OV26: 4405 | OW26: 2585 | OX26: 1752 | OY26: 1263 | OZ26: 1484 | PA26: 1088 | PB26: 1276 | PC26: 1196 | PD26: 4244 | PE26: 5697 | PF26: 6605 | PG26: 3351 | PH26: 8917 | PI26: 2115 | PJ26: 1574 | PK26: 479 | PL26: 6709 | PM26: 8764 | PN26: 126311 | PO26: 3992 | PP26: 2856 | PQ26: 11743 | PR26: 2726 | PS26: 1807 | PT26: 1734 | PU26: 8047 | PV26: 6201 | PW26: 6469 | PX26: 4403 | PY26: 5397 | PZ26: 28253 | QA26: 5396 | QB26: 4652 | QC26: 2086 | QD26: 1811 | QE26: 11836 | QF26: 195772 | QG26: 19909 | QH26: 8279 | QI26: 3710 | QJ26: 11663 | QK26: 5900 | QL26: 14453 | QM26: 5124 | QN26: 2813 | QO26: 6755 | QP26: 5558 | QQ26: 5543 | QR26: 1355 | QS26: 10913 | QT26: 5737 | QU26: 3033 | QV26: 2496 | QW26: 1279 | QX26: 4522 | QY26: 849 | QZ26: 889 | RA26: 2111 | RB26: 1581 | RC26: 11796 | RD26: 1979 | RE26: 2841 | RF26: 1904 | RG26: 1478 | RH26: 5539 | RI26: 4609 | RJ26: 2928 | RK26: 1213 | RL26: 5950 | RM26: 2876 | RN26: 2892 | RO26: 3003 | RP26: 1298 | RQ26: 988 | RR26: 4231 | RS26: 6596 | RT26: 6467 | RU26: 997 | RV26: 1340 | RW26: 123523 | RX26: 4839 | RY26: 3010 | RZ26: 0 | SA26: 1869 | SB26: 3239 | SC26: 4044 | SD26: 3793 | SE26: 4310 | SF26: 23122 | SG26: 9266 | SH26: 3047 | SI26: 9786 | SJ26: 1039 | SK26: 8732 | SL26: 3691 | SM26: 1921 | SN26: 4503 | SO26: 9436 | SP26: 4381 | SQ26: 3249 | SR26: 2144 | SS26: 3549 | ST26: 4898 | SU26: 2625 | SV26: 4629 | SW26: 12070 | SX26: 3690 | SY26: 3326 | SZ26: 6058 | TA26: 9378 | TB26: 941 | TC26: 6090 | TD26: 2145 | TE26: 2425 | TF26: 2581 | TG26: 24264 | TH26: 81444 | TI26: 24487 | TJ26: 10110 | TK26: 2649 | TL26: 2633 | TM26: 24765 | TN26: 3298 | TO26: 3610 | TP26: 6477 | TQ26: 1965 | TR26: 2605 | TS26: 3817 | TT26: 2562 | TU26: 2639 | TV26: 29809 | TW26: 10767 | TX26: 2535 | TY26: 0 | TZ26: 2570 | UA26: 3931 | UB26: 2642 | UC26: 18473 | UD26: 8467 | UE26: 8650 | UF26: 25558 | UG26: 3360 | UH26: 4344 | UI26: 6063 | UJ26: 28485 | UK26: 2483 | UL26: 7913 | UM26: 3005 | UN26: 13141 | UO26: 4183 | UP26: 3083 | UQ26: 9310 | UR26: 8011 | US26: 3596 | UT26: 4996 | UU26: 1780 | UV26: 2181 | UW26: 0 | UX26: 1785 | UY26: 18902 | UZ26: 2349 | VA26: 1824 | VB26: 7245 | VC26: 28771 | VD26: 4544 | VE26: 3472 | VF26: 2266 | VG26: 6450 | VH26: 2541 | VI26: 1906 | VJ26: 5410 | VK26: 2630 | VL26: 2505 | VM26: 6326 | VN26: 3643 | VO26: 11878 | VP26: 3536 | VQ26: 2997 | VR26: 1670 | VS26: 10300 | VT26: 1616 | VU26: 2331 | VV26: 4489 | VW26: 1732 | VX26: 5542 | VY26: 3105 | VZ26: 2649 | WA26: 53412 | WB26: 22022 | WC26: 12613 | WD26: 1027 | WE26: 6490 | WF26: 6249 | WG26: 3847 | WH26: 6360 | WI26: 5001 | WJ26: 5514 | WK26: 4033 | WL26: 95115 | WM26: 3188 | WN26: 3807 | WO26: 66449 | WP26: 5153 | WQ26: 4255 | WR26: 6285 | WS26: 36012 | WT26: 2645 | WU26: 2236 | WV26: 6921 | WW26: 3521 | WX26: 9633 | WY26: 11370 | WZ26: 7499 | XA26: 10335 | XB26: 295222 | XC26: 283611 | XD26: 21904 | XE26: 109781 | XF26: 8480 | XG26: 3113 | XH26: 34226 | XI26: 3111 | XJ26: 19308 | XK26: 2144 | XL26: 23718 | XM26: 18408 | XN26: 7391 | XO26: 13215 | XP26: 19331 | XQ26: 6634 | XR26: 19551 | XS26: 2774 | XT26: 12202 | XU26: 2008 | XV26: 2746 | XW26: 9003 | XX26: 5051 | XY26: 13493 | XZ26: 6005 | YA26: 9262 | YB26: 2094 | YC26: 2210 | YD26: 10353 | YE26: 2163 | YF26: 3637 | YG26: 25906 | YH26: 2316 | YI26: 2055 | YJ26: 4316 | YK26: 897 | YL26: 4477 | YM26: 2576 | YN26: 1681 | YO26: 2641 | YP26: 19726 | YQ26: 17763 | YR26: 5528 | YS26: 59597 | YT26: 4254 | YU26: 6031 | YV26: 11808 | YW26: 4104 | YX26: 2093 | YY26: 3171 | YZ26: 2119 | ZA26: 10000 | ZB26: 9336 | ZC26: 2608 | ZD26: 15650 | ZE26: 142071 | ZF26: 7111 | ZG26: 2776 | ZH26: 7006 | ZI26: 19032 | ZJ26: 19783 | ZK26: 7871 | ZL26: 3785 | ZM26: 22368 | ZN26: 2590 | ZO26: 2641 | ZP26: 3940 | ZQ26: 5860 | ZR26: 14500 | ZS26: 34208 | ZT26: 21414 | ZU26: 39588 | ZV26: 3019 | ZW26: 6585 | ZX26: 9467 | ZY26: 9032 | ZZ26: 4501 | AAA26: 1311 | AAB26: 3428 | AAC26: 4508 | AAD26: 5960 | AAE26: 7264 | AAF26: 3912 | AAG26: 4688 | AAH26: 2783 | AAI26: 2142 | AAJ26: 11212 | AAK26: 8542
A27: 289 | B27: 1 | C27: X | E27: Biorec25_Sarz_CSHMS.d | F27: 58541 | G27: 535412 | H27: 50428 | I27: 29624 | J27: 30386 | K27: 4215 | L27: 71107 | M27: 45957 | N27: 21635 | O27: 191078 | P27: 71658 | Q27: 119525 | R27: 9012 | S27: 16502 | T27: 30512 | U27: 13229 | V27: 20709 | W27: 118022 | X27: 28749 | Y27: 10830 | Z27: 20546 | AA27: 676 | AB27: 876 | AC27: 2110 | AD27: 2438 | AE27: 10880 | AF27: 71252 | AG27: 27308 | AH27: 6213 | AI27: 11134 | AJ27: 20604 | AK27: 4909 | AL27: 5862 | AM27: 20474 | AN27: 8727 | AO27: 42149 | AP27: 11228 | AQ27: 8465 | AR27: 16010 | AS27: 9347 | AT27: 4376 | AU27: 5676 | AV27: 4129 | AW27: 889170 | AX27: 8453 | AY27: 331326 | AZ27: 106836 | BA27: 147958 | BB27: 3103 | BC27: 10056 | BD27: 37745 | BE27: 2626 | BF27: 7828 | BG27: 7778 | BH27: 7601 | BI27: 1970 | BJ27: 1876 | BK27: 48294 | BL27: 2025 | BM27: 5380 | BN27: 159305 | BO27: 127479 | BP27: 26738 | BQ27: 4560 | BR27: 19688 | BS27: 37503 | BT27: 4855860 | BU27: 69705 | BV27: 9009 | BW27: 20593 | BX27: 85868 | BY27: 11830 | BZ27: 10168 | CA27: 393140 | CB27: 2872439 | CC27: 779963 | CD27: 296481 | CE27: 2498087 | CF27: 2141016 | CG27: 6946 | CH27: 104409 | CI27: 3339 | CJ27: 9433 | CK27: 13672 | CL27: 35502 | CM27: 3299 | CN27: 358042 | CO27: 1515826 | CP27: 348096 | CQ27: 219506 | CR27: 1119140 | CS27: 3656 | CT27: 7000 | CU27: 39832 | CV27: 92534 | CW27: 44658 | CX27: 12528 | CY27: 256078 | CZ27: 63297 | DA27: 9435 | DB27: 17282 | DC27: 2879 | DD27: 2671 | DE27: 22830 | DF27: 64951 | DG27: 33153 | DH27: 128485 | DI27: 36521 | DJ27: 194260 | DK27: 163119 | DL27: 7284 | DM27: 71851 | DN27: 160368 | DO27: 30437 | DP27: 45751 | DQ27: 10712 | DR27: 14767 | DS27: 6640 | DT27: 3559 | DU27: 6955 | DV27: 5909 | DW27: 16706 | DX27: 8869 | DY27: 5288 | DZ27: 15066 | EA27: 18672 | EB27: 14384 | EC27: 1978 | ED27: 46274 | EE27: 6294 | EF27: 29579 | EG27: 40785 | EH27: 939750 | EI27: 135581 | EJ27: 8565 | EK27: 176141 | EL27: 212720 | EM27: 3593 | EN27: 93269 | EO27: 52679 | EP27: 25482 | EQ27: 4484 | ER27: 227396 | ES27: 146297 | ET27: 69177 | EU27: 40116 | EV27: 31052 | EW27: 122593 | EX27: 310282 | EY27: 222893 | EZ27: 3273 | FA27: 5147 | FB27: 2800 | FC27: 8269 | FD27: 40158 | FE27: 50524 | FF27: 21536 | FG27: 1930 | FH27: 97508 | FI27: 215426 | FJ27: 169272 | FK27: 38468 | FL27: 9662 | FM27: 33271 | FN27: 25849 | FO27: 4654 | FP27: 810415 | FQ27: 709461 | FR27: 419797 | FS27: 66472 | FT27: 7288 | FU27: 28042 | FV27: 76502 | FW27: 57350 | FX27: 13736 | FY27: 31059 | FZ27: 319476 | GA27: 2064794 | GB27: 1432667 | GC27: 140653 | GD27: 7274 | GE27: 10866 | GF27: 50745 | GG27: 61457 | GH27: 34104 | GI27: 2728 | GJ27: 66358 | GK27: 283508 | GL27: 685473 | GM27: 881030 | GN27: 226165 | GO27: 623994 | GP27: 153456 | GQ27: 126943 | GR27: 21771 | GS27: 26140 | GT27: 5588 | GU27: 24741 | GV27: 30329 | GW27: 68070 | GX27: 117215 | GY27: 94410 | GZ27: 30856 | HA27: 8070 | HB27: 12840 | HC27: 1879 | HD27: 2472 | HE27: 16784 | HF27: 16573 | HG27: 2847 | HH27: 4140 | HI27: 10658 | HJ27: 907 | HK27: 3672 | HL27: 3351 | HM27: 4361 | HN27: 5202 | HO27: 8231 | HP27: 2451 | HQ27: 2277 | HR27: 10070 | HS27: 5516 | HT27: 11865 | HU27: 5512 | HV27: 6416 | HW27: 1808 | HX27: 10329 | HY27: 11896 | HZ27: 4450 | IA27: 9598 | IB27: 5466 | IC27: 11012 | ID27: 9496 | IE27: 306879 | IF27: 11353 | IG27: 17994 | IH27: 26835 | II27: 9030 | IJ27: 10966 | IK27: 9234 | IL27: 1513 | IM27: 94741 | IN27: 63980 | IO27: 19666 | IP27: 12252 | IQ27: 14146 | IR27: 11358 | IS27: 12975 | IT27: 11150 | IU27: 13092 | IV27: 10590 | IW27: 6604 | IX27: 4897 | IY27: 9091 | IZ27: 2478 | JA27: 12178 | JB27: 28109 | JC27: 13208 | JD27: 1265 | JE27: 2201 | JF27: 2390 | JG27: 1380 | JH27: 8920 | JI27: 2007 | JJ27: 14118 | JK27: 1643 | JL27: 2159 | JM27: 4326 | JN27: 6721 | JO27: 3211 | JP27: 2232 | JQ27: 510251 | JR27: 85490 | JS27: 123075 | JT27: 38100 | JU27: 35862 | JV27: 132239 | JW27: 2546461 | JX27: 224156 | JY27: 11627 | JZ27: 6112 | KA27: 4827 | KB27: 3871 | KC27: 3131 | KD27: 6732 | KE27: 22670 | KF27: 23917 | KG27: 22232 | KH27: 4635 | KI27: 1278 | KJ27: 1524 | KK27: 11830 | KL27: 8659 | KM27: 2754 | KN27: 3241 | KO27: 4091 | KP27: 1716 | KQ27: 1882 | KR27: 3534 | KS27: 8146 | KT27: 15967 | KU27: 4229 | KV27: 20626 | KW27: 16867 | KX27: 6263 | KY27: 3916 | KZ27: 8351 | LA27: 5925 | LB27: 11636 | LC27: 1772 | LD27: 10320 | LE27: 10166 | LF27: 1358 | LG27: 1411 | LH27: 4336 | LI27: 3967 | LJ27: 1060360 | LK27: 18212 | LL27: 9055 | LM27: 116118 | LN27: 125167 | LO27: 5606 | LP27: 149357 | LQ27: 10023 | LR27: 8088 | LS27: 858 | LT27: 6911 | LU27: 2657 | LV27: 7668 | LW27: 2432 | LX27: 9208 | LY27: 2906 | LZ27: 2727 | MA27: 1506 | MB27: 1567 | MC27: 6639 | MD27: 1341 | ME27: 3821 | MF27: 2078 | MG27: 6123 | MH27: 6177 | MI27: 2443 | MJ27: 173655 | MK27: 3208 | ML27: 5308 | MM27: 1552 | MN27: 5524 | MO27: 5224 | MP27: 1404 | MQ27: 16013 | MR27: 3465 | MS27: 1163 | MT27: 932 | MU27: 5296 | MV27: 3125 | MW27: 6233 | MX27: 4310 | MY27: 2718 | MZ27: 2146 | NA27: 3293 | NB27: 2295 | NC27: 2507 | ND27: 1790 | NE27: 1793 | NF27: 1487 | NG27: 5300 | NH27: 8206 | NI27: 180179 | NJ27: 6235 | NK27: 4456 | NL27: 11009 | NM27: 9690 | NN27: 11391 | NO27: 5526 | NP27: 5890 | NQ27: 3788 | NR27: 2385 | NS27: 5810 | NT27: 3048 | NU27: 3494 | NV27: 2458 | NW27: 2464 | NX27: 3156 | NY27: 3737 | NZ27: 5027 | OA27: 21474 | OB27: 334253 | OC27: 14089 | OD27: 3071 | OE27: 4662 | OF27: 4299 | OG27: 3006 | OH27: 2802 | OI27: 2585 | OJ27: 14243 | OK27: 6973 | OL27: 5283 | OM27: 4417 | ON27: 3466 | OO27: 3001 | OP27: 10675 | OQ27: 1486 | OR27: 6022 | OS27: 2183 | OT27: 6217 | OU27: 2846 | OV27: 5387 | OW27: 2627 | OX27: 2062 | OY27: 1421 | OZ27: 1898 | PA27: 1297 | PB27: 1317 | PC27: 1705 | PD27: 4996 | PE27: 5952 | PF27: 3898 | PG27: 3652 | PH27: 10115 | PI27: 2671 | PJ27: 2218 | PK27: 650 | PL27: 7010 | PM27: 9369 | PN27: 131063 | PO27: 5053 | PP27: 2628 | PQ27: 11958 | PR27: 2824 | PS27: 2145 | PT27: 1864 | PU27: 7740 | PV27: 5513 | PW27: 6736 | PX27: 4196 | PY27: 5488 | PZ27: 14313 | QA27: 5243 | QB27: 4379 | QC27: 2515 | QD27: 2444 | QE27: 11115 | QF27: 0 | QG27: 22743 | QH27: 6256 | QI27: 3839 | QJ27: 12010 | QK27: 6290 | QL27: 14709 | QM27: 6021 | QN27: 2896 | QO27: 6993 | QP27: 6143 | QQ27: 7041 | QR27: 1469 | QS27: 11353 | QT27: 6033 | QU27: 3172 | QV27: 2958 | QW27: 1242 | QX27: 4533 | QY27: 1051 | QZ27: 1213 | RA27: 1767 | RB27: 1742 | RC27: 12219 | RD27: 1951 | RE27: 2372 | RF27: 2052 | RG27: 2626 | RH27: 3808 | RI27: 5177 | RJ27: 2562 | RK27: 1706 | RL27: 4817 | RM27: 2250 | RN27: 1755 | RO27: 2779 | RP27: 1249 | RQ27: 1243 | RR27: 4749 | RS27: 7257 | RT27: 6100 | RU27: 1006 | RV27: 1638 | RW27: 126067 | RX27: 5531 | RY27: 3189 | RZ27: 0 | SA27: 1988 | SB27: 1911 | SC27: 4423 | SD27: 3882 | SE27: 4020 | SF27: 3730 | SG27: 9178 | SH27: 2960 | SI27: 10891 | SJ27: 1519 | SK27: 9087 | SL27: 3360 | SM27: 2849 | SN27: 2244 | SO27: 9368 | SP27: 2984 | SQ27: 4531 | SR27: 2255 | SS27: 3499 | ST27: 4898 | SU27: 2591 | SV27: 2952 | SW27: 13099 | SX27: 3589 | SY27: 3356 | SZ27: 4988 | TA27: 9725 | TB27: 1278 | TC27: 5756 | TD27: 1867 | TE27: 1823 | TF27: 3047 | TG27: 21235 | TH27: 83296 | TI27: 24212 | TJ27: 10465 | TK27: 2936 | TL27: 2363 | TM27: 22166 | TN27: 3056 | TO27: 4197 | TP27: 5794 | TQ27: 1566 | TR27: 2558 | TS27: 3187 | TT27: 3090 | TU27: 2592 | TV27: 30001 | TW27: 10787 | TX27: 2514 | TY27: 0 | TZ27: 2755 | UA27: 3855 | UB27: 1766 | UC27: 19703 | UD27: 8060 | UE27: 8883 | UF27: 25383 | UG27: 3132 | UH27: 4411 | UI27: 5775 | UJ27: 28953 | UK27: 2528 | UL27: 7669 | UM27: 2987 | UN27: 16143 | UO27: 4097 | UP27: 3069 | UQ27: 9218 | UR27: 8814 | US27: 1922 | UT27: 4920 | UU27: 1534 | UV27: 2220 | UW27: 680 | UX27: 1560 | UY27: 16735 | UZ27: 2516 | VA27: 1969 | VB27: 7731 | VC27: 7077 | VD27: 7933 | VE27: 4085 | VF27: 2117 | VG27: 2850 | VH27: 2640 | VI27: 2058 | VJ27: 4982 | VK27: 2561 | VL27: 2402 | VM27: 7668 | VN27: 3000 | VO27: 11280 | VP27: 3562 | VQ27: 3364 | VR27: 1550 | VS27: 11443 | VT27: 1782 | VU27: 3280 | VV27: 4055 | VW27: 1899 | VX27: 5503 | VY27: 2840 | VZ27: 2964 | WA27: 56834 | WB27: 23351 | WC27: 13330 | WD27: 852 | WE27: 5701 | WF27: 6732 | WG27: 3593 | WH27: 5889 | WI27: 5474 | WJ27: 3376 | WK27: 7246 | WL27: 103317 | WM27: 3447 | WN27: 3915 | WO27: 71701 | WP27: 5595 | WQ27: 5035 | WR27: 5655 | WS27: 34217 | WT27: 2766 | WU27: 2265 | WV27: 7571 | WW27: 3324 | WX27: 9573 | WY27: 13405 | WZ27: 7826 | XA27: 11095 | XB27: 292110 | XC27: 275301 | XD27: 22105 | XE27: 99798 | XF27: 8767 | XG27: 2973 | XH27: 35841 | XI27: 1868 | XJ27: 20627 | XK27: 2303 | XL27: 27607 | XM27: 19555 | XN27: 8243 | XO27: 13525 | XP27: 21039 | XQ27: 7305 | XR27: 20656 | XS27: 4622 | XT27: 12379 | XU27: 3571 | XV27: 2885 | XW27: 10097 | XX27: 7527 | XY27: 14957 | XZ27: 11152 | YA27: 9887 | YB27: 3355 | YC27: 2144 | YD27: 11098 | YE27: 2001 | YF27: 4038 | YG27: 23571 | YH27: 3754 | YI27: 1883 | YJ27: 4426 | YK27: 640 | YL27: 5063 | YM27: 2606 | YN27: 2245 | YO27: 3500 | YP27: 12867 | YQ27: 18702 | YR27: 5268 | YS27: 60746 | YT27: 4278 | YU27: 5752 | YV27: 6577 | YW27: 4131 | YX27: 1762 | YY27: 3098 | YZ27: 2035 | ZA27: 10540 | ZB27: 9913 | ZC27: 2519 | ZD27: 15603 | ZE27: 130398 | ZF27: 9012 | ZG27: 2446 | ZH27: 7366 | ZI27: 20099 | ZJ27: 20275 | ZK27: 16776 | ZL27: 7609 | ZM27: 22796 | ZN27: 3187 | ZO27: 4265 | ZP27: 3787 | ZQ27: 5902 | ZR27: 10923 | ZS27: 35977 | ZT27: 29061 | ZU27: 41336 | ZV27: 2985 | ZW27: 6760 | ZX27: 9621 | ZY27: 8630 | ZZ27: 4380 | AAA27: 1375 | AAB27: 3740 | AAC27: 4305 | AAD27: 5951 | AAE27: 7494 | AAF27: 1816 | AAG27: 4976 | AAH27: 2576 | AAI27: 1630 | AAJ27: 10877 | AAK27: 8127
